Workbook

Sheet Cover
B3: IPART Rate peg model
B5: MODELLER: | D5: Bee Thompson
B6: email | D6: Bee_Thompson@ipart.nsw.gov.au
B9: HOW WE CALCULATE THE RATE PEG
B11: This model calculates a rate peg for each council under the methodology IPART established in 2023. For more information see
B12: IPART, Review of the rate peg methodology, Final Report, August 2023.
B14: For more information on the rate peg for the 2026-27 financial year, see
B15: IPART, Rate peg for NSW councils for 2026-27. Information Paper, 30 September 2025
B17: We calculate the rate peg as follows:
B21: BCC (Base Cost Change)
C22: The Base Cost Change (BCC) is a forward-looking price index that measures changes in councils' base costs. It has 3 components:
C24: ● | D24: Employee costs, which are measured by changes in the Local Government State (NSW) Award (the Award) when available, adjusted for changes in the superannuation guarantee. When the Award isn't available at the time we set the rate peg, we use the Reserve Bank of Australia’s(RBA) forecast change in the Wage Price Index (WPI) from the most recent Statement on Monetary Policy, averaging the changes over the year to June and December for the year the rate peg applies.
C25: ● | D25: Other operating costs, which are measured by the RBA’s forecast change in the Consumer Price Index (CPI), averaging the changes over the year to June and December for the year the rate peg applies.
C26: ● | D26: Asset costs, which we consider are best measured by the change in the Producer Price Index (PPI) for Road and bridge construction. In the absence of a publicly available forecast for the PPI, we apply an adjustment to the RBA's forecast change in the CPI to derive a forecast change in the PPI. The adjustment reflects the average difference between actual CPI (All groups, Sydney) and actual PPI (Road and bridge construction, NSW) over the past 5 years.
C28: The model calculates 3 separate BCCs, namely for metropolitan, regional and rural councils respectively.
C29: ● | D29: Each of the separate BCCs weights the 3 cost components differently to reflect the spending pattern of the average council in each group. | AL29: The population true-up reflects this and mitigates the impact of intercensal errors. We also decided that we would apply the true–up for any amount and to all councils for the rate peg for the 2024-25 financial year, due to the uncertainty with ABS population estimates due to the impact of COVID-19.
C30: ● | D30: We weight the 3 components using the latest 3 years of data obtained from the Financial Data Returns of councils in that group and update the weights annually.
B32: Productivity factor
C33: We set the productivity factor to 0% as a default.
B35: Population factor
C36: We calculate the population factor as follows:
D40: The change in population and the supplementary valuations percentage are based on data that is lagged by 3 years. For example, for the rate peg for the 2024-25 financial year:
D46: Where ERP = Estimated Residential Population as at 30 June, sourced from the Australian Bureau of Statistics (ABS).
C48: We include a population true-up in the rate peg for the 2024-25 financial year following the 2021 Census.
D49: In our 2021 Review of the rate peg to include population growth, we decided to true–up the population factor based on updates to the Census data. A true–up was decided because the ABS retrospectively recalculates its intercensal estimates of population once the Census data has been obtained. The population true-up reflects this and mitigates the impact of intercensal errors. We also decided that we would apply the true–up for any amount and to all councils for the rate peg for the 2024-25 financial year, due to the uncertainty with ABS population estimates due to the impact of COVID-19.
C51: Census true-up
D52: The Census true-up is based on the difference between the ABS’s original estimates and their post-Census estimates of the annual growth rates over the 2-year period from 30 June 2019 to 30 June 2021. Specifically, the true-up is the cumulative difference between the re-calculated population factors and the original population factors for the rate peg for the 2022-23 and 2023-24 financial years.
C53: For more information about the census true-up, see Review of the rate peg to include population growth, Final Report, September 2021 (Appendix B).
B55: Emergency Services Levy factor (ESL factor)
C56: The ESL factor reflects the annual change in the ESL contribution of individual councils, lagged by one year (after sharing arrangements between councils within some rural fire service
C57: districts). ESL factors are not the simple increase in a council’s ESL contribution. Instead they reflect the additional change to total permissible income that is needed for a council to meet
C58: its ESL obligations after this income has been adjusted by the BCC, the population factor and any specific (non-ESL related) adjustment factors.
C60: We calculate the ESL factor as follows:
D61: General formula The ESL factor for the 2024-25 rate peg, for example
C66: Where:
C67: TPI = Total Permissible income
C68: ESL = ESL Contribution
C69: Rx = Rate peg excluding the ESL factor
C70: I = Rate peg or special variation as applicable
C71: t = Current year
B73: Emergency Services Levy (ESL) catch-up adjustment for the discontinuation of the ESL subsidy
C74: For four years up until 2022-23, the NSW Government subsidised increases in council ESL contributions. These subsidy amounts were excluded when we calculated the rate peg
C75: (and hence not recovered from rates). For the ESL contributions for the 2023-24 financial year, the NSW Government discontinued this subsidy and this resulted in substantial increases in
C76: councils' ESL contribution costs over and above the increases in the amounts councils were invoiced between the 2022-23 and 2023-24 financial years.
C78: The ESL factor does not capture the impact on councils of the discontinuation of the subsidy in the 2023-24 financial year. Instead, we address this with a specific adjustment factor for each
C79: council.
B81: Other adjustments
C82: Our methodology makes provision for other adjustments for each council, to be decided when we set the rate peg each year.
C83: The 2026-27 rate peg includes:
C84: (i) | D84: Election cost adjustment: elections occur every 4 years. Instead of removing 100% of the temporary election cost adjustment, and then adding it back in 4 years, we have decided to smooth
D85: the cost of elections over time. To do this, we made an adjustment to allow councils to recover 25% of the 2025-26 election cost adjustment amount each year of the 4 year cycle
C86: (ii) | D86: A dams safety levy for 31 councils with declared dams not for water supply purposes. Dams Safety NSW introduced a levy on declared dams from 1 July 2025.
D87: Dams safety levy commences on 1 July 2025 | Dams Safety
B91: TAB COLOURS
B92: The tabs are coloured-coded as follows:
C93: Output tabs (rate peg by council) are in dark blue
B94: Input worksheets:
C95: BCC inputs are light blue
C96: Population factor inputs are pink
C97: ESL inputs are green
B99: The calculation worksheets are grey (Excel's default colour)
B101: COLOUR CODE FOR WORKSHEETS
B102: This model uses standard IPART colour coding within worksheets:
C103: Blue cells indicate inputs
C104: Blue font indicates IPART hard-coded values used that should not be changed
C105: Key outputs
C106: Pink font indicates calculation checks
C107: Red indicates assumptions made in calculations
C108: Red double line means formula changes across row
B111: PROTECTION
B113: We have protected the worksheets without a password to avoid accidental changes to the calculations. The input cells are all unprotected.
B114: If you wish to use Excel's auditing function, you will need to unprotect the worksheets. Please don't change or over-write formulae.

Sheet Rate peg
B2: =Cover!$B$3 -> IPART Rate peg model
B4: ="Rate Peg for "&D9&"-"&RIGHT(D9,2)+1 -> Rate Peg for 2026-27
A7: 1 | B7: ="Table "&A7 -> Table 1 | C7: Rate Peg year
B9: Rate peg for 1 July | D9: 2026
B10: IPART Determination year | D10: =D9-1&"-"&RIGHT(D9,2) -> 2025-26
B11: Rate peg year | D11: =D9&"-"&RIGHT(D9+1,2) -> 2026-27
B16: ='Rate peg calcs'!B34 -> Rounding rules: We round the Population factor after true-up to 3 decimal places and the final Rate Peg to 3 decimal places. All other components of the Rate Peg are unrounded.
A18: =A7+1 -> 2 | B18: ="Table "&A18 -> Table 2 | C18: =B4&" by council" -> Rate Peg for 2026-27 by council
B19: Org. Id | D19: Council | E19: ='Rate peg calcs'!E35 -> BCC | F19: ='Rate peg calcs'!F35 -> Super-annuation catch-up adjustment | G19: =LEFT('Rate peg calcs'!G35,10) -> ESL factor | H19: ='Rate peg calcs'!H35 -> ESL subsidy catch-up adjustment | I19: ='Rate peg calcs'!I35 -> Dams safety levy adjustment | J19: ='Rate peg calcs'!J35 -> Election cost adjustment | K19: ='Rate peg calcs'!K35 -> Productivity factor | L19: ='Rate peg calcs'!P35 -> Core Rate Peg | M19: ='Rate peg calcs'!L35 -> Change in population in the rate peg | N19: ='Rate peg calcs'!M35 -> Supplementary valuations percentage | O19: ='Rate peg calcs'!N35 -> Population factor | P19: ='Rate peg calcs'!O35 -> Final Rate Peg | R19: ='Rate peg calcs'!T35 -> ESL factor + subsidy catch-up adjustment | T19: check = 0
E20: ='Rate peg calcs'!E36 -> unrounded | F20: ='Rate peg calcs'!F36 -> unrounded | G20: =LEFT('Rate peg calcs'!G36,10) -> unrounded | H20: ='Rate peg calcs'!H36 -> unrounded | I20: ='Rate peg calcs'!I36 -> unrounded | J20: ='Rate peg calcs'!J36 -> unrounded | K20: ='Rate peg calcs'!K36 -> unrounded | L20: rounded | M20: ='Rate peg calcs'!L36 -> unrounded | N20: ='Rate peg calcs'!M36 -> unrounded | O20: ='Rate peg calcs'!N36 -> rounded | P20: ='Rate peg calcs'!O36 -> rounded
B21: ='Rate peg calcs'!B37 -> 2047 | C21: =INDEX('Rate peg calcs'!C$37:C$164,MATCH($B21,'Rate peg calcs'!$B$37:$B$164,0)) -> Regional | D21: =INDEX('Rate peg calcs'!D$37:D$164,MATCH($B21,'Rate peg calcs'!$B$37:$B$164,0)) -> Albury | E21: =INDEX('Rate peg calcs'!E$37:E$164,MATCH($B21,'Rate peg calcs'!$B$37:$B$164,0)) -> 0.02980866065 | F21: =INDEX('Rate peg calcs'!F$37:F$164,MATCH($B21,'Rate peg calcs'!$B$37:$B$164,0)) -> 0 | G21: =INDEX('Rate peg calcs'!G$37:G$164,MATCH($B21,'Rate peg calcs'!$B$37:$B$164,0)) -> 0.0001753119562 | H21: =INDEX('Rate peg calcs'!H$37:H$164,MATCH($B21,'Rate peg calcs'!$B$37:$B$164,0)) -> 0.001152838743 | I21: =INDEX('Rate peg calcs'!I$37:I$164,MATCH($B21,'Rate peg calcs'!$B$37:$B$164,0)) -> 0.0007184559737 | J21: =INDEX('Rate peg calcs'!J$37:J$164,MATCH($B21,'Rate peg calcs'!$B$37:$B$164,0)) -> -0.001387187834 | K21: =INDEX('Rate peg calcs'!K$37:K$164,MATCH($B21,'Rate peg calcs'!$B$37:$B$164,0)) -> 0 | L21: =P21-O21 -> 0.03 | M21: =INDEX('Rate peg calcs'!L$37:L$164,MATCH($B21,'Rate peg calcs'!$B$37:$B$164,0)) -> 0.01404997479 | N21: =INDEX('Rate peg calcs'!M$37:M$164,MATCH($B21,'Rate peg calcs'!$B$37:$B$164,0)) -> 0.007577556189 | O21: =ROUND(INDEX('Rate peg calcs'!N$37:N$164,MATCH($B21,'Rate peg calcs'!$B$37:$B$164,0)),3) -> 0.006 | P21: =INDEX('Rate peg calcs'!O$37:O$164,MATCH($B21,'Rate peg calcs'!$B$37:$B$164,0)) -> 0.036 | R21: =SUM(G21:H21) -> 0.001328150699 | T21: =ROUND(SUM(E21:J21)-K21,3)+O21-P21 -> 0
B22: ='Rate peg calcs'!B38 -> 2079 | C22: =INDEX('Rate peg calcs'!C$37:C$164,MATCH($B22,'Rate peg calcs'!$B$37:$B$164,0)) -> Regional | D22: =INDEX('Rate peg calcs'!D$37:D$164,MATCH($B22,'Rate peg calcs'!$B$37:$B$164,0)) -> Armidale Regional | E22: =INDEX('Rate peg calcs'!E$37:E$164,MATCH($B22,'Rate peg calcs'!$B$37:$B$164,0)) -> 0.02980866065 | F22: =INDEX('Rate peg calcs'!F$37:F$164,MATCH($B22,'Rate peg calcs'!$B$37:$B$164,0)) -> 0 | G22: =INDEX('Rate peg calcs'!G$37:G$164,MATCH($B22,'Rate peg calcs'!$B$37:$B$164,0)) -> 0.0004100468958 | H22: =INDEX('Rate peg calcs'!H$37:H$164,MATCH($B22,'Rate peg calcs'!$B$37:$B$164,0)) -> 0.00370157333 | I22: =INDEX('Rate peg calcs'!I$37:I$164,MATCH($B22,'Rate peg calcs'!$B$37:$B$164,0)) -> 0.0003394743099 | J22: =INDEX('Rate peg calcs'!J$37:J$164,MATCH($B22,'Rate peg calcs'!$B$37:$B$164,0)) -> -0.001822501932 | K22: =INDEX('Rate peg calcs'!K$37:K$164,MATCH($B22,'Rate peg calcs'!$B$37:$B$164,0)) -> 0 | L22: =P22-O22 -> 0.032 | M22: =INDEX('Rate peg calcs'!L$37:L$164,MATCH($B22,'Rate peg calcs'!$B$37:$B$164,0)) -> 0.001960254157 | N22: =INDEX('Rate peg calcs'!M$37:M$164,MATCH($B22,'Rate peg calcs'!$B$37:$B$164,0)) -> 0.006425601613 | O22: =INDEX('Rate peg calcs'!N$37:N$164,MATCH($B22,'Rate peg calcs'!$B$37:$B$164,0)) -> 0 | P22: =INDEX('Rate peg calcs'!O$37:O$164,MATCH($B22,'Rate peg calcs'!$B$37:$B$164,0)) -> 0.032 | R22: 0.004111620226 | T22: 0
B23: ='Rate peg calcs'!B39 -> 54 | C23: =INDEX('Rate peg calcs'!C$37:C$164,MATCH($B23,'Rate peg calcs'!$B$37:$B$164,0)) -> Regional | D23: =INDEX('Rate peg calcs'!D$37:D$164,MATCH($B23,'Rate peg calcs'!$B$37:$B$164,0)) -> Ballina | E23: =INDEX('Rate peg calcs'!E$37:E$164,MATCH($B23,'Rate peg calcs'!$B$37:$B$164,0)) -> 0.02980866065 | F23: =INDEX('Rate peg calcs'!F$37:F$164,MATCH($B23,'Rate peg calcs'!$B$37:$B$164,0)) -> 0 | G23: =INDEX('Rate peg calcs'!G$37:G$164,MATCH($B23,'Rate peg calcs'!$B$37:$B$164,0)) -> -0.0005550250084 | H23: =INDEX('Rate peg calcs'!H$37:H$164,MATCH($B23,'Rate peg calcs'!$B$37:$B$164,0)) -> 0.001212864431 | I23: =INDEX('Rate peg calcs'!I$37:I$164,MATCH($B23,'Rate peg calcs'!$B$37:$B$164,0)) -> 0 | J23: =INDEX('Rate peg calcs'!J$37:J$164,MATCH($B23,'Rate peg calcs'!$B$37:$B$164,0)) -> -0.001358207383 | K23: =INDEX('Rate peg calcs'!K$37:K$164,MATCH($B23,'Rate peg calcs'!$B$37:$B$164,0)) -> 0 | L23: 0.029 | M23: =INDEX('Rate peg calcs'!L$37:L$164,MATCH($B23,'Rate peg calcs'!$B$37:$B$164,0)) -> 0.0139179728 | N23: =INDEX('Rate peg calcs'!M$37:M$164,MATCH($B23,'Rate peg calcs'!$B$37:$B$164,0)) -> 0.008748692924 | O23: =INDEX('Rate peg calcs'!N$37:N$164,MATCH($B23,'Rate peg calcs'!$B$37:$B$164,0)) -> 0.005 | P23: =INDEX('Rate peg calcs'!O$37:O$164,MATCH($B23,'Rate peg calcs'!$B$37:$B$164,0)) -> 0.034 | R23: 0.0006578394223 | T23: 0
B24: ='Rate peg calcs'!B40 -> 55 | C24: =INDEX('Rate peg calcs'!C$37:C$164,MATCH($B24,'Rate peg calcs'!$B$37:$B$164,0)) -> Rural | D24: =INDEX('Rate peg calcs'!D$37:D$164,MATCH($B24,'Rate peg calcs'!$B$37:$B$164,0)) -> Balranald | E24: =INDEX('Rate peg calcs'!E$37:E$164,MATCH($B24,'Rate peg calcs'!$B$37:$B$164,0)) -> 0.02988176551 | F24: =INDEX('Rate peg calcs'!F$37:F$164,MATCH($B24,'Rate peg calcs'!$B$37:$B$164,0)) -> 0 | G24: =INDEX('Rate peg calcs'!G$37:G$164,MATCH($B24,'Rate peg calcs'!$B$37:$B$164,0)) -> 0.001831011888 | H24: =INDEX('Rate peg calcs'!H$37:H$164,MATCH($B24,'Rate peg calcs'!$B$37:$B$164,0)) -> 0.007075213321 | I24: =INDEX('Rate peg calcs'!I$37:I$164,MATCH($B24,'Rate peg calcs'!$B$37:$B$164,0)) -> 0 | J24: =INDEX('Rate peg calcs'!J$37:J$164,MATCH($B24,'Rate peg calcs'!$B$37:$B$164,0)) -> -0.0006390874903 | K24: =INDEX('Rate peg calcs'!K$37:K$164,MATCH($B24,'Rate peg calcs'!$B$37:$B$164,0)) -> 0 | L24: 0.038 | M24: =INDEX('Rate peg calcs'!L$37:L$164,MATCH($B24,'Rate peg calcs'!$B$37:$B$164,0)) -> 0.007720254314 | N24: =INDEX('Rate peg calcs'!M$37:M$164,MATCH($B24,'Rate peg calcs'!$B$37:$B$164,0)) -> 0 | O24: =INDEX('Rate peg calcs'!N$37:N$164,MATCH($B24,'Rate peg calcs'!$B$37:$B$164,0)) -> 0.008 | P24: =INDEX('Rate peg calcs'!O$37:O$164,MATCH($B24,'Rate peg calcs'!$B$37:$B$164,0)) -> 0.046 | R24: 0.008906225209 | T24: 0
B25: ='Rate peg calcs'!B41 -> 2043 | C25: =INDEX('Rate peg calcs'!C$37:C$164,MATCH($B25,'Rate peg calcs'!$B$37:$B$164,0)) -> Regional | D25: =INDEX('Rate peg calcs'!D$37:D$164,MATCH($B25,'Rate peg calcs'!$B$37:$B$164,0)) -> Bathurst Regional | E25: =INDEX('Rate peg calcs'!E$37:E$164,MATCH($B25,'Rate peg calcs'!$B$37:$B$164,0)) -> 0.02980866065 | F25: =INDEX('Rate peg calcs'!F$37:F$164,MATCH($B25,'Rate peg calcs'!$B$37:$B$164,0)) -> 0 | G25: =INDEX('Rate peg calcs'!G$37:G$164,MATCH($B25,'Rate peg calcs'!$B$37:$B$164,0)) -> 0.0008854605699 | H25: =INDEX('Rate peg calcs'!H$37:H$164,MATCH($B25,'Rate peg calcs'!$B$37:$B$164,0)) -> 0.002511482297 | I25: =INDEX('Rate peg calcs'!I$37:I$164,MATCH($B25,'Rate peg calcs'!$B$37:$B$164,0)) -> 0 | J25: =INDEX('Rate peg calcs'!J$37:J$164,MATCH($B25,'Rate peg calcs'!$B$37:$B$164,0)) -> -0.001877139658 | K25: =INDEX('Rate peg calcs'!K$37:K$164,MATCH($B25,'Rate peg calcs'!$B$37:$B$164,0)) -> 0 | L25: 0.031 | M25: =INDEX('Rate peg calcs'!L$37:L$164,MATCH($B25,'Rate peg calcs'!$B$37:$B$164,0)) -> 0.008954882924 | N25: =INDEX('Rate peg calcs'!M$37:M$164,MATCH($B25,'Rate peg calcs'!$B$37:$B$164,0)) -> 0.008680997202 | O25: =INDEX('Rate peg calcs'!N$37:N$164,MATCH($B25,'Rate peg calcs'!$B$37:$B$164,0)) -> 0 | P25: =INDEX('Rate peg calcs'!O$37:O$164,MATCH($B25,'Rate peg calcs'!$B$37:$B$164,0)) -> 0.031 | R25: 0.003396942867 | T25: 0
B26: ='Rate peg calcs'!B42 -> 2099 | C26: =INDEX('Rate peg calcs'!C$37:C$164,MATCH($B26,'Rate peg calcs'!$B$37:$B$164,0)) -> Metropolitan | D26: =INDEX('Rate peg calcs'!D$37:D$164,MATCH($B26,'Rate peg calcs'!$B$37:$B$164,0)) -> Bayside | E26: =INDEX('Rate peg calcs'!E$37:E$164,MATCH($B26,'Rate peg calcs'!$B$37:$B$164,0)) -> 0.02951901918 | F26: =INDEX('Rate peg calcs'!F$37:F$164,MATCH($B26,'Rate peg calcs'!$B$37:$B$164,0)) -> 0 | G26: =INDEX('Rate peg calcs'!G$37:G$164,MATCH($B26,'Rate peg calcs'!$B$37:$B$164,0)) -> 0.0002446428671 | H26: =INDEX('Rate peg calcs'!H$37:H$164,MATCH($B26,'Rate peg calcs'!$B$37:$B$164,0)) -> 0.0001630298048 | I26: =INDEX('Rate peg calcs'!I$37:I$164,MATCH($B26,'Rate peg calcs'!$B$37:$B$164,0)) -> 0 | J26: =INDEX('Rate peg calcs'!J$37:J$164,MATCH($B26,'Rate peg calcs'!$B$37:$B$164,0)) -> -0.001019079044 | K26: =INDEX('Rate peg calcs'!K$37:K$164,MATCH($B26,'Rate peg calcs'!$B$37:$B$164,0)) -> 0 | L26: 0.029 | M26: =INDEX('Rate peg calcs'!L$37:L$164,MATCH($B26,'Rate peg calcs'!$B$37:$B$164,0)) -> 0.01604307305 | N26: =INDEX('Rate peg calcs'!M$37:M$164,MATCH($B26,'Rate peg calcs'!$B$37:$B$164,0)) -> 0.006264335691 | O26: =INDEX('Rate peg calcs'!N$37:N$164,MATCH($B26,'Rate peg calcs'!$B$37:$B$164,0)) -> 0.01 | P26: =INDEX('Rate peg calcs'!O$37:O$164,MATCH($B26,'Rate peg calcs'!$B$37:$B$164,0)) -> 0.039 | R26: 0.0004076726719 | T26: 0
B27: ='Rate peg calcs'!B43 -> 60 | C27: =INDEX('Rate peg calcs'!C$37:C$164,MATCH($B27,'Rate peg calcs'!$B$37:$B$164,0)) -> Regional | D27: =INDEX('Rate peg calcs'!D$37:D$164,MATCH($B27,'Rate peg calcs'!$B$37:$B$164,0)) -> Bega Valley | E27: =INDEX('Rate peg calcs'!E$37:E$164,MATCH($B27,'Rate peg calcs'!$B$37:$B$164,0)) -> 0.02980866065 | F27: =INDEX('Rate peg calcs'!F$37:F$164,MATCH($B27,'Rate peg calcs'!$B$37:$B$164,0)) -> 0 | G27: =INDEX('Rate peg calcs'!G$37:G$164,MATCH($B27,'Rate peg calcs'!$B$37:$B$164,0)) -> 0.0001347928659 | H27: =INDEX('Rate peg calcs'!H$37:H$164,MATCH($B27,'Rate peg calcs'!$B$37:$B$164,0)) -> 0.001976394394 | I27: =INDEX('Rate peg calcs'!I$37:I$164,MATCH($B27,'Rate peg calcs'!$B$37:$B$164,0)) -> 0 | J27: =INDEX('Rate peg calcs'!J$37:J$164,MATCH($B27,'Rate peg calcs'!$B$37:$B$164,0)) -> -0.002288675863 | K27: =INDEX('Rate peg calcs'!K$37:K$164,MATCH($B27,'Rate peg calcs'!$B$37:$B$164,0)) -> 0 | L27: 0.03 | M27: =INDEX('Rate peg calcs'!L$37:L$164,MATCH($B27,'Rate peg calcs'!$B$37:$B$164,0)) -> 0.008682948343 | N27: =INDEX('Rate peg calcs'!M$37:M$164,MATCH($B27,'Rate peg calcs'!$B$37:$B$164,0)) -> 0.004025474646 | O27: =INDEX('Rate peg calcs'!N$37:N$164,MATCH($B27,'Rate peg calcs'!$B$37:$B$164,0)) -> 0.005 | P27: =INDEX('Rate peg calcs'!O$37:O$164,MATCH($B27,'Rate peg calcs'!$B$37:$B$164,0)) -> 0.035 | R27: 0.002111187259 | T27: 0
B28: ='Rate peg calcs'!B44 -> 61 | C28: =INDEX('Rate peg calcs'!C$37:C$164,MATCH($B28,'Rate peg calcs'!$B$37:$B$164,0)) -> Rural | D28: =INDEX('Rate peg calcs'!D$37:D$164,MATCH($B28,'Rate peg calcs'!$B$37:$B$164,0)) -> Bellingen | E28: =INDEX('Rate peg calcs'!E$37:E$164,MATCH($B28,'Rate peg calcs'!$B$37:$B$164,0)) -> 0.02988176551 | F28: =INDEX('Rate peg calcs'!F$37:F$164,MATCH($B28,'Rate peg calcs'!$B$37:$B$164,0)) -> 0 | G28: =INDEX('Rate peg calcs'!G$37:G$164,MATCH($B28,'Rate peg calcs'!$B$37:$B$164,0)) -> 0.001111672479 | H28: =INDEX('Rate peg calcs'!H$37:H$164,MATCH($B28,'Rate peg calcs'!$B$37:$B$164,0)) -> 0.008609267792 | I28: =INDEX('Rate peg calcs'!I$37:I$164,MATCH($B28,'Rate peg calcs'!$B$37:$B$164,0)) -> 0 | J28: =INDEX('Rate peg calcs'!J$37:J$164,MATCH($B28,'Rate peg calcs'!$B$37:$B$164,0)) -> -0.001386668489 | K28: =INDEX('Rate peg calcs'!K$37:K$164,MATCH($B28,'Rate peg calcs'!$B$37:$B$164,0)) -> 0 | L28: 0.038 | M28: =INDEX('Rate peg calcs'!L$37:L$164,MATCH($B28,'Rate peg calcs'!$B$37:$B$164,0)) -> 0.003552263623 | N28: =INDEX('Rate peg calcs'!M$37:M$164,MATCH($B28,'Rate peg calcs'!$B$37:$B$164,0)) -> 0.009191727445 | O28: =INDEX('Rate peg calcs'!N$37:N$164,MATCH($B28,'Rate peg calcs'!$B$37:$B$164,0)) -> 0 | P28: =INDEX('Rate peg calcs'!O$37:O$164,MATCH($B28,'Rate peg calcs'!$B$37:$B$164,0)) -> 0.038 | R28: 0.00972094027 | T28: 0
B29: ='Rate peg calcs'!B45 -> 62 | C29: =INDEX('Rate peg calcs'!C$37:C$164,MATCH($B29,'Rate peg calcs'!$B$37:$B$164,0)) -> Rural | D29: =INDEX('Rate peg calcs'!D$37:D$164,MATCH($B29,'Rate peg calcs'!$B$37:$B$164,0)) -> Berrigan | E29: =INDEX('Rate peg calcs'!E$37:E$164,MATCH($B29,'Rate peg calcs'!$B$37:$B$164,0)) -> 0.02988176551 | F29: =INDEX('Rate peg calcs'!F$37:F$164,MATCH($B29,'Rate peg calcs'!$B$37:$B$164,0)) -> 0 | G29: =INDEX('Rate peg calcs'!G$37:G$164,MATCH($B29,'Rate peg calcs'!$B$37:$B$164,0)) -> 0.00080315043 | H29: =INDEX('Rate peg calcs'!H$37:H$164,MATCH($B29,'Rate peg calcs'!$B$37:$B$164,0)) -> 0.003231509352 | I29: =INDEX('Rate peg calcs'!I$37:I$164,MATCH($B29,'Rate peg calcs'!$B$37:$B$164,0)) -> 0 | J29: =INDEX('Rate peg calcs'!J$37:J$164,MATCH($B29,'Rate peg calcs'!$B$37:$B$164,0)) -> -0.005507718017 | K29: =INDEX('Rate peg calcs'!K$37:K$164,MATCH($B29,'Rate peg calcs'!$B$37:$B$164,0)) -> 0 | L29: 0.028 | M29: =INDEX('Rate peg calcs'!L$37:L$164,MATCH($B29,'Rate peg calcs'!$B$37:$B$164,0)) -> 0.002661113039 | N29: =INDEX('Rate peg calcs'!M$37:M$164,MATCH($B29,'Rate peg calcs'!$B$37:$B$164,0)) -> 0.003202966959 | O29: =INDEX('Rate peg calcs'!N$37:N$164,MATCH($B29,'Rate peg calcs'!$B$37:$B$164,0)) -> 0 | P29: =INDEX('Rate peg calcs'!O$37:O$164,MATCH($B29,'Rate peg calcs'!$B$37:$B$164,0)) -> 0.028 | R29: 0.004034659782 | T29: 0
B30: ='Rate peg calcs'!B46 -> 64 | C30: =INDEX('Rate peg calcs'!C$37:C$164,MATCH($B30,'Rate peg calcs'!$B$37:$B$164,0)) -> Metropolitan | D30: =INDEX('Rate peg calcs'!D$37:D$164,MATCH($B30,'Rate peg calcs'!$B$37:$B$164,0)) -> Blacktown | E30: =INDEX('Rate peg calcs'!E$37:E$164,MATCH($B30,'Rate peg calcs'!$B$37:$B$164,0)) -> 0.02951901918 | F30: =INDEX('Rate peg calcs'!F$37:F$164,MATCH($B30,'Rate peg calcs'!$B$37:$B$164,0)) -> 0 | G30: =INDEX('Rate peg calcs'!G$37:G$164,MATCH($B30,'Rate peg calcs'!$B$37:$B$164,0)) -> 0.0001273916236 | H30: =INDEX('Rate peg calcs'!H$37:H$164,MATCH($B30,'Rate peg calcs'!$B$37:$B$164,0)) -> 0.001853561287 | I30: =INDEX('Rate peg calcs'!I$37:I$164,MATCH($B30,'Rate peg calcs'!$B$37:$B$164,0)) -> 0.0001492627237 | J30: =INDEX('Rate peg calcs'!J$37:J$164,MATCH($B30,'Rate peg calcs'!$B$37:$B$164,0)) -> -0.001359140362 | K30: =INDEX('Rate peg calcs'!K$37:K$164,MATCH($B30,'Rate peg calcs'!$B$37:$B$164,0)) -> 0 | L30: 0.03 | M30: =INDEX('Rate peg calcs'!L$37:L$164,MATCH($B30,'Rate peg calcs'!$B$37:$B$164,0)) -> 0.02990318588 | N30: =INDEX('Rate peg calcs'!M$37:M$164,MATCH($B30,'Rate peg calcs'!$B$37:$B$164,0)) -> 0.006335595134 | O30: =INDEX('Rate peg calcs'!N$37:N$164,MATCH($B30,'Rate peg calcs'!$B$37:$B$164,0)) -> 0.024 | P30: =INDEX('Rate peg calcs'!O$37:O$164,MATCH($B30,'Rate peg calcs'!$B$37:$B$164,0)) -> 0.054 | R30: 0.00198095291 | T30: 0
B31: ='Rate peg calcs'!B47 -> 65 | C31: =INDEX('Rate peg calcs'!C$37:C$164,MATCH($B31,'Rate peg calcs'!$B$37:$B$164,0)) -> Rural | D31: =INDEX('Rate peg calcs'!D$37:D$164,MATCH($B31,'Rate peg calcs'!$B$37:$B$164,0)) -> Bland | E31: =INDEX('Rate peg calcs'!E$37:E$164,MATCH($B31,'Rate peg calcs'!$B$37:$B$164,0)) -> 0.02988176551 | F31: =INDEX('Rate peg calcs'!F$37:F$164,MATCH($B31,'Rate peg calcs'!$B$37:$B$164,0)) -> 0 | G31: =INDEX('Rate peg calcs'!G$37:G$164,MATCH($B31,'Rate peg calcs'!$B$37:$B$164,0)) -> 0.00202687839 | H31: =INDEX('Rate peg calcs'!H$37:H$164,MATCH($B31,'Rate peg calcs'!$B$37:$B$164,0)) -> 0.006015469653 | I31: =INDEX('Rate peg calcs'!I$37:I$164,MATCH($B31,'Rate peg calcs'!$B$37:$B$164,0)) -> 0 | J31: =INDEX('Rate peg calcs'!J$37:J$164,MATCH($B31,'Rate peg calcs'!$B$37:$B$164,0)) -> -0.001964391707 | K31: =INDEX('Rate peg calcs'!K$37:K$164,MATCH($B31,'Rate peg calcs'!$B$37:$B$164,0)) -> 0 | L31: 0.036 | M31: =INDEX('Rate peg calcs'!L$37:L$164,MATCH($B31,'Rate peg calcs'!$B$37:$B$164,0)) -> 0 | N31: =INDEX('Rate peg calcs'!M$37:M$164,MATCH($B31,'Rate peg calcs'!$B$37:$B$164,0)) -> 0.0009388412017 | O31: =INDEX('Rate peg calcs'!N$37:N$164,MATCH($B31,'Rate peg calcs'!$B$37:$B$164,0)) -> 0 | P31: =INDEX('Rate peg calcs'!O$37:O$164,MATCH($B31,'Rate peg calcs'!$B$37:$B$164,0)) -> 0.036 | R31: 0.008042348043 | T31: 0
B32: ='Rate peg calcs'!B48 -> 66 | C32: =INDEX('Rate peg calcs'!C$37:C$164,MATCH($B32,'Rate peg calcs'!$B$37:$B$164,0)) -> Rural | D32: =INDEX('Rate peg calcs'!D$37:D$164,MATCH($B32,'Rate peg calcs'!$B$37:$B$164,0)) -> Blayney | E32: =INDEX('Rate peg calcs'!E$37:E$164,MATCH($B32,'Rate peg calcs'!$B$37:$B$164,0)) -> 0.02988176551 | F32: =INDEX('Rate peg calcs'!F$37:F$164,MATCH($B32,'Rate peg calcs'!$B$37:$B$164,0)) -> 0 | G32: =INDEX('Rate peg calcs'!G$37:G$164,MATCH($B32,'Rate peg calcs'!$B$37:$B$164,0)) -> 0.0002186852136 | H32: =INDEX('Rate peg calcs'!H$37:H$164,MATCH($B32,'Rate peg calcs'!$B$37:$B$164,0)) -> 0.002790128495 | I32: =INDEX('Rate peg calcs'!I$37:I$164,MATCH($B32,'Rate peg calcs'!$B$37:$B$164,0)) -> 0 | J32: =INDEX('Rate peg calcs'!J$37:J$164,MATCH($B32,'Rate peg calcs'!$B$37:$B$164,0)) -> -0.0009315420569 | K32: =INDEX('Rate peg calcs'!K$37:K$164,MATCH($B32,'Rate peg calcs'!$B$37:$B$164,0)) -> 0 | L32: 0.032 | M32: =INDEX('Rate peg calcs'!L$37:L$164,MATCH($B32,'Rate peg calcs'!$B$37:$B$164,0)) -> 0.01622399581 | N32: =INDEX('Rate peg calcs'!M$37:M$164,MATCH($B32,'Rate peg calcs'!$B$37:$B$164,0)) -> 0.0007977662545 | O32: =INDEX('Rate peg calcs'!N$37:N$164,MATCH($B32,'Rate peg calcs'!$B$37:$B$164,0)) -> 0.015 | P32: =INDEX('Rate peg calcs'!O$37:O$164,MATCH($B32,'Rate peg calcs'!$B$37:$B$164,0)) -> 0.047 | R32: 0.003008813709 | T32: 0
B33: ='Rate peg calcs'!B49 -> 67 | C33: =INDEX('Rate peg calcs'!C$37:C$164,MATCH($B33,'Rate peg calcs'!$B$37:$B$164,0)) -> Metropolitan | D33: =INDEX('Rate peg calcs'!D$37:D$164,MATCH($B33,'Rate peg calcs'!$B$37:$B$164,0)) -> Blue Mountains | E33: =INDEX('Rate peg calcs'!E$37:E$164,MATCH($B33,'Rate peg calcs'!$B$37:$B$164,0)) -> 0.02951901918 | F33: =INDEX('Rate peg calcs'!F$37:F$164,MATCH($B33,'Rate peg calcs'!$B$37:$B$164,0)) -> 0 | G33: =INDEX('Rate peg calcs'!G$37:G$164,MATCH($B33,'Rate peg calcs'!$B$37:$B$164,0)) -> 0.001038028905 | H33: =INDEX('Rate peg calcs'!H$37:H$164,MATCH($B33,'Rate peg calcs'!$B$37:$B$164,0)) -> 0.002503450336 | I33: =INDEX('Rate peg calcs'!I$37:I$164,MATCH($B33,'Rate peg calcs'!$B$37:$B$164,0)) -> 0.0001336892325 | J33: =INDEX('Rate peg calcs'!J$37:J$164,MATCH($B33,'Rate peg calcs'!$B$37:$B$164,0)) -> -0.0008189908703 | K33: =INDEX('Rate peg calcs'!K$37:K$164,MATCH($B33,'Rate peg calcs'!$B$37:$B$164,0)) -> 0 | L33: 0.032 | M33: =INDEX('Rate peg calcs'!L$37:L$164,MATCH($B33,'Rate peg calcs'!$B$37:$B$164,0)) -> 0.005788084705 | N33: =INDEX('Rate peg calcs'!M$37:M$164,MATCH($B33,'Rate peg calcs'!$B$37:$B$164,0)) -> 0.0009042420748 | O33: =INDEX('Rate peg calcs'!N$37:N$164,MATCH($B33,'Rate peg calcs'!$B$37:$B$164,0)) -> 0.005 | P33: =INDEX('Rate peg calcs'!O$37:O$164,MATCH($B33,'Rate peg calcs'!$B$37:$B$164,0)) -> 0.037 | R33: 0.003541479241 | T33: 0
B34: ='Rate peg calcs'!B50 -> 68 | C34: =INDEX('Rate peg calcs'!C$37:C$164,MATCH($B34,'Rate peg calcs'!$B$37:$B$164,0)) -> Rural | D34: =INDEX('Rate peg calcs'!D$37:D$164,MATCH($B34,'Rate peg calcs'!$B$37:$B$164,0)) -> Bogan | E34: =INDEX('Rate peg calcs'!E$37:E$164,MATCH($B34,'Rate peg calcs'!$B$37:$B$164,0)) -> 0.02988176551 | F34: =INDEX('Rate peg calcs'!F$37:F$164,MATCH($B34,'Rate peg calcs'!$B$37:$B$164,0)) -> 0 | G34: =INDEX('Rate peg calcs'!G$37:G$164,MATCH($B34,'Rate peg calcs'!$B$37:$B$164,0)) -> 0.00155325238 | H34: =INDEX('Rate peg calcs'!H$37:H$164,MATCH($B34,'Rate peg calcs'!$B$37:$B$164,0)) -> 0.004373273551 | I34: =INDEX('Rate peg calcs'!I$37:I$164,MATCH($B34,'Rate peg calcs'!$B$37:$B$164,0)) -> 0 | J34: =INDEX('Rate peg calcs'!J$37:J$164,MATCH($B34,'Rate peg calcs'!$B$37:$B$164,0)) -> -0.002093860041 | K34: =INDEX('Rate peg calcs'!K$37:K$164,MATCH($B34,'Rate peg calcs'!$B$37:$B$164,0)) -> 0 | L34: 0.034 | M34: =INDEX('Rate peg calcs'!L$37:L$164,MATCH($B34,'Rate peg calcs'!$B$37:$B$164,0)) -> 0 | N34: =INDEX('Rate peg calcs'!M$37:M$164,MATCH($B34,'Rate peg calcs'!$B$37:$B$164,0)) -> 0.005576208178 | O34: =INDEX('Rate peg calcs'!N$37:N$164,MATCH($B34,'Rate peg calcs'!$B$37:$B$164,0)) -> 0 | P34: =INDEX('Rate peg calcs'!O$37:O$164,MATCH($B34,'Rate peg calcs'!$B$37:$B$164,0)) -> 0.034 | R34: 0.005926525931 | T34: 0
B35: ='Rate peg calcs'!B51 -> 72 | C35: =INDEX('Rate peg calcs'!C$37:C$164,MATCH($B35,'Rate peg calcs'!$B$37:$B$164,0)) -> Rural | D35: =INDEX('Rate peg calcs'!D$37:D$164,MATCH($B35,'Rate peg calcs'!$B$37:$B$164,0)) -> Bourke | E35: =INDEX('Rate peg calcs'!E$37:E$164,MATCH($B35,'Rate peg calcs'!$B$37:$B$164,0)) -> 0.02988176551 | F35: =INDEX('Rate peg calcs'!F$37:F$164,MATCH($B35,'Rate peg calcs'!$B$37:$B$164,0)) -> 0 | G35: =INDEX('Rate peg calcs'!G$37:G$164,MATCH($B35,'Rate peg calcs'!$B$37:$B$164,0)) -> 0.003159461084 | H35: =INDEX('Rate peg calcs'!H$37:H$164,MATCH($B35,'Rate peg calcs'!$B$37:$B$164,0)) -> 0.00774752354 | I35: =INDEX('Rate peg calcs'!I$37:I$164,MATCH($B35,'Rate peg calcs'!$B$37:$B$164,0)) -> 0 | J35: =INDEX('Rate peg calcs'!J$37:J$164,MATCH($B35,'Rate peg calcs'!$B$37:$B$164,0)) -> 0.0003672538124 | K35: =INDEX('Rate peg calcs'!K$37:K$164,MATCH($B35,'Rate peg calcs'!$B$37:$B$164,0)) -> 0 | L35: 0.041 | M35: =INDEX('Rate peg calcs'!L$37:L$164,MATCH($B35,'Rate peg calcs'!$B$37:$B$164,0)) -> 0 | N35: =INDEX('Rate peg calcs'!M$37:M$164,MATCH($B35,'Rate peg calcs'!$B$37:$B$164,0)) -> 0 | O35: =INDEX('Rate peg calcs'!N$37:N$164,MATCH($B35,'Rate peg calcs'!$B$37:$B$164,0)) -> 0 | P35: =INDEX('Rate peg calcs'!O$37:O$164,MATCH($B35,'Rate peg calcs'!$B$37:$B$164,0)) -> 0.041 | R35: 0.01090698462 | T35: 0
B36: ='Rate peg calcs'!B52 -> 73 | C36: =INDEX('Rate peg calcs'!C$37:C$164,MATCH($B36,'Rate peg calcs'!$B$37:$B$164,0)) -> Rural | D36: =INDEX('Rate peg calcs'!D$37:D$164,MATCH($B36,'Rate peg calcs'!$B$37:$B$164,0)) -> Brewarrina | E36: =INDEX('Rate peg calcs'!E$37:E$164,MATCH($B36,'Rate peg calcs'!$B$37:$B$164,0)) -> 0.02988176551 | F36: =INDEX('Rate peg calcs'!F$37:F$164,MATCH($B36,'Rate peg calcs'!$B$37:$B$164,0)) -> 0 | G36: =INDEX('Rate peg calcs'!G$37:G$164,MATCH($B36,'Rate peg calcs'!$B$37:$B$164,0)) -> 0.004651462771 | H36: =INDEX('Rate peg calcs'!H$37:H$164,MATCH($B36,'Rate peg calcs'!$B$37:$B$164,0)) -> 0.007627931841 | I36: =INDEX('Rate peg calcs'!I$37:I$164,MATCH($B36,'Rate peg calcs'!$B$37:$B$164,0)) -> 0 | J36: =INDEX('Rate peg calcs'!J$37:J$164,MATCH($B36,'Rate peg calcs'!$B$37:$B$164,0)) -> -0.005867397898 | K36: =INDEX('Rate peg calcs'!K$37:K$164,MATCH($B36,'Rate peg calcs'!$B$37:$B$164,0)) -> 0 | L36: 0.036 | M36: =INDEX('Rate peg calcs'!L$37:L$164,MATCH($B36,'Rate peg calcs'!$B$37:$B$164,0)) -> 0 | N36: =INDEX('Rate peg calcs'!M$37:M$164,MATCH($B36,'Rate peg calcs'!$B$37:$B$164,0)) -> 0 | O36: =INDEX('Rate peg calcs'!N$37:N$164,MATCH($B36,'Rate peg calcs'!$B$37:$B$164,0)) -> 0 | P36: =INDEX('Rate peg calcs'!O$37:O$164,MATCH($B36,'Rate peg calcs'!$B$37:$B$164,0)) -> 0.036 | R36: 0.01227939461 | T36: 0
B37: ='Rate peg calcs'!B53 -> 74 | C37: =INDEX('Rate peg calcs'!C$37:C$164,MATCH($B37,'Rate peg calcs'!$B$37:$B$164,0)) -> Regional | D37: =INDEX('Rate peg calcs'!D$37:D$164,MATCH($B37,'Rate peg calcs'!$B$37:$B$164,0)) -> Broken Hill | E37: =INDEX('Rate peg calcs'!E$37:E$164,MATCH($B37,'Rate peg calcs'!$B$37:$B$164,0)) -> 0.02980866065 | F37: =INDEX('Rate peg calcs'!F$37:F$164,MATCH($B37,'Rate peg calcs'!$B$37:$B$164,0)) -> 0 | G37: =INDEX('Rate peg calcs'!G$37:G$164,MATCH($B37,'Rate peg calcs'!$B$37:$B$164,0)) -> 0.001694750958 | H37: =INDEX('Rate peg calcs'!H$37:H$164,MATCH($B37,'Rate peg calcs'!$B$37:$B$164,0)) -> 0.001598681705 | I37: =INDEX('Rate peg calcs'!I$37:I$164,MATCH($B37,'Rate peg calcs'!$B$37:$B$164,0)) -> 0 | J37: =INDEX('Rate peg calcs'!J$37:J$164,MATCH($B37,'Rate peg calcs'!$B$37:$B$164,0)) -> -0.001394214916 | K37: =INDEX('Rate peg calcs'!K$37:K$164,MATCH($B37,'Rate peg calcs'!$B$37:$B$164,0)) -> 0 | L37: 0.032 | M37: =INDEX('Rate peg calcs'!L$37:L$164,MATCH($B37,'Rate peg calcs'!$B$37:$B$164,0)) -> 0 | N37: =INDEX('Rate peg calcs'!M$37:M$164,MATCH($B37,'Rate peg calcs'!$B$37:$B$164,0)) -> 0 | O37: =INDEX('Rate peg calcs'!N$37:N$164,MATCH($B37,'Rate peg calcs'!$B$37:$B$164,0)) -> 0 | P37: =INDEX('Rate peg calcs'!O$37:O$164,MATCH($B37,'Rate peg calcs'!$B$37:$B$164,0)) -> 0.032 | R37: 0.003293432663 | T37: 0
B38: ='Rate peg calcs'!B54 -> 75 | C38: =INDEX('Rate peg calcs'!C$37:C$164,MATCH($B38,'Rate peg calcs'!$B$37:$B$164,0)) -> Metropolitan | D38: =INDEX('Rate peg calcs'!D$37:D$164,MATCH($B38,'Rate peg calcs'!$B$37:$B$164,0)) -> Burwood | E38: =INDEX('Rate peg calcs'!E$37:E$164,MATCH($B38,'Rate peg calcs'!$B$37:$B$164,0)) -> 0.02951901918 | F38: =INDEX('Rate peg calcs'!F$37:F$164,MATCH($B38,'Rate peg calcs'!$B$37:$B$164,0)) -> 0 | G38: =INDEX('Rate peg calcs'!G$37:G$164,MATCH($B38,'Rate peg calcs'!$B$37:$B$164,0)) -> 0.0003746944058 | H38: =INDEX('Rate peg calcs'!H$37:H$164,MATCH($B38,'Rate peg calcs'!$B$37:$B$164,0)) -> 0.0009695701726 | I38: =INDEX('Rate peg calcs'!I$37:I$164,MATCH($B38,'Rate peg calcs'!$B$37:$B$164,0)) -> 0 | J38: =INDEX('Rate peg calcs'!J$37:J$164,MATCH($B38,'Rate peg calcs'!$B$37:$B$164,0)) -> -0.001429402039 | K38: =INDEX('Rate peg calcs'!K$37:K$164,MATCH($B38,'Rate peg calcs'!$B$37:$B$164,0)) -> 0 | L38: 0.029 | M38: =INDEX('Rate peg calcs'!L$37:L$164,MATCH($B38,'Rate peg calcs'!$B$37:$B$164,0)) -> 0.02000188253 | N38: =INDEX('Rate peg calcs'!M$37:M$164,MATCH($B38,'Rate peg calcs'!$B$37:$B$164,0)) -> 0.008301106814 | O38: =INDEX('Rate peg calcs'!N$37:N$164,MATCH($B38,'Rate peg calcs'!$B$37:$B$164,0)) -> 0.012 | P38: =INDEX('Rate peg calcs'!O$37:O$164,MATCH($B38,'Rate peg calcs'!$B$37:$B$164,0)) -> 0.041 | R38: 0.001344264578 | T38: 0
B39: ='Rate peg calcs'!B55 -> 76 | C39: =INDEX('Rate peg calcs'!C$37:C$164,MATCH($B39,'Rate peg calcs'!$B$37:$B$164,0)) -> Regional | D39: =INDEX('Rate peg calcs'!D$37:D$164,MATCH($B39,'Rate peg calcs'!$B$37:$B$164,0)) -> Byron | E39: =INDEX('Rate peg calcs'!E$37:E$164,MATCH($B39,'Rate peg calcs'!$B$37:$B$164,0)) -> 0.02980866065 | F39: =INDEX('Rate peg calcs'!F$37:F$164,MATCH($B39,'Rate peg calcs'!$B$37:$B$164,0)) -> 0 | G39: =INDEX('Rate peg calcs'!G$37:G$164,MATCH($B39,'Rate peg calcs'!$B$37:$B$164,0)) -> -0.0003933512523 | H39: =INDEX('Rate peg calcs'!H$37:H$164,MATCH($B39,'Rate peg calcs'!$B$37:$B$164,0)) -> 0.001259290701 | I39: =INDEX('Rate peg calcs'!I$37:I$164,MATCH($B39,'Rate peg calcs'!$B$37:$B$164,0)) -> 0 | J39: =INDEX('Rate peg calcs'!J$37:J$164,MATCH($B39,'Rate peg calcs'!$B$37:$B$164,0)) -> -0.0009764016417 | K39: =INDEX('Rate peg calcs'!K$37:K$164,MATCH($B39,'Rate peg calcs'!$B$37:$B$164,0)) -> 0 | L39: 0.03 | M39: =INDEX('Rate peg calcs'!L$37:L$164,MATCH($B39,'Rate peg calcs'!$B$37:$B$164,0)) -> 0.01896449545 | N39: =INDEX('Rate peg calcs'!M$37:M$164,MATCH($B39,'Rate peg calcs'!$B$37:$B$164,0)) -> 0.002810225157 | O39: =INDEX('Rate peg calcs'!N$37:N$164,MATCH($B39,'Rate peg calcs'!$B$37:$B$164,0)) -> 0.016 | P39: =INDEX('Rate peg calcs'!O$37:O$164,MATCH($B39,'Rate peg calcs'!$B$37:$B$164,0)) -> 0.046 | R39: 0.0008659394488 | T39: 0
B40: ='Rate peg calcs'!B56 -> 77 | C40: =INDEX('Rate peg calcs'!C$37:C$164,MATCH($B40,'Rate peg calcs'!$B$37:$B$164,0)) -> Rural | D40: =INDEX('Rate peg calcs'!D$37:D$164,MATCH($B40,'Rate peg calcs'!$B$37:$B$164,0)) -> Cabonne | E40: =INDEX('Rate peg calcs'!E$37:E$164,MATCH($B40,'Rate peg calcs'!$B$37:$B$164,0)) -> 0.02988176551 | F40: =INDEX('Rate peg calcs'!F$37:F$164,MATCH($B40,'Rate peg calcs'!$B$37:$B$164,0)) -> 0 | G40: =INDEX('Rate peg calcs'!G$37:G$164,MATCH($B40,'Rate peg calcs'!$B$37:$B$164,0)) -> 0.001048159126 | H40: =INDEX('Rate peg calcs'!H$37:H$164,MATCH($B40,'Rate peg calcs'!$B$37:$B$164,0)) -> 0.004139990907 | I40: =INDEX('Rate peg calcs'!I$37:I$164,MATCH($B40,'Rate peg calcs'!$B$37:$B$164,0)) -> 0 | J40: =INDEX('Rate peg calcs'!J$37:J$164,MATCH($B40,'Rate peg calcs'!$B$37:$B$164,0)) -> -0.002080570466 | K40: =INDEX('Rate peg calcs'!K$37:K$164,MATCH($B40,'Rate peg calcs'!$B$37:$B$164,0)) -> 0 | L40: 0.033 | M40: =INDEX('Rate peg calcs'!L$37:L$164,MATCH($B40,'Rate peg calcs'!$B$37:$B$164,0)) -> 0.001296923409 | N40: =INDEX('Rate peg calcs'!M$37:M$164,MATCH($B40,'Rate peg calcs'!$B$37:$B$164,0)) -> 0 | O40: =INDEX('Rate peg calcs'!N$37:N$164,MATCH($B40,'Rate peg calcs'!$B$37:$B$164,0)) -> 0.001 | P40: =INDEX('Rate peg calcs'!O$37:O$164,MATCH($B40,'Rate peg calcs'!$B$37:$B$164,0)) -> 0.034 | R40: 0.005188150033 | T40: 0
B41: ='Rate peg calcs'!B57 -> 78 | C41: =INDEX('Rate peg calcs'!C$37:C$164,MATCH($B41,'Rate peg calcs'!$B$37:$B$164,0)) -> Metropolitan | D41: =INDEX('Rate peg calcs'!D$37:D$164,MATCH($B41,'Rate peg calcs'!$B$37:$B$164,0)) -> Camden | E41: =INDEX('Rate peg calcs'!E$37:E$164,MATCH($B41,'Rate peg calcs'!$B$37:$B$164,0)) -> 0.02951901918 | F41: =INDEX('Rate peg calcs'!F$37:F$164,MATCH($B41,'Rate peg calcs'!$B$37:$B$164,0)) -> 0 | G41: =INDEX('Rate peg calcs'!G$37:G$164,MATCH($B41,'Rate peg calcs'!$B$37:$B$164,0)) -> -0.003903425329 | H41: =INDEX('Rate peg calcs'!H$37:H$164,MATCH($B41,'Rate peg calcs'!$B$37:$B$164,0)) -> 0.001057564514 | I41: =INDEX('Rate peg calcs'!I$37:I$164,MATCH($B41,'Rate peg calcs'!$B$37:$B$164,0)) -> 0.0001203927419 | J41: =INDEX('Rate peg calcs'!J$37:J$164,MATCH($B41,'Rate peg calcs'!$B$37:$B$164,0)) -> -0.00167612817 | K41: =INDEX('Rate peg calcs'!K$37:K$164,MATCH($B41,'Rate peg calcs'!$B$37:$B$164,0)) -> 0 | L41: 0.025 | M41: =INDEX('Rate peg calcs'!L$37:L$164,MATCH($B41,'Rate peg calcs'!$B$37:$B$164,0)) -> 0.04726816708 | N41: =INDEX('Rate peg calcs'!M$37:M$164,MATCH($B41,'Rate peg calcs'!$B$37:$B$164,0)) -> 0.02604059345 | O41: =INDEX('Rate peg calcs'!N$37:N$164,MATCH($B41,'Rate peg calcs'!$B$37:$B$164,0)) -> 0.021 | P41: =INDEX('Rate peg calcs'!O$37:O$164,MATCH($B41,'Rate peg calcs'!$B$37:$B$164,0)) -> 0.046 | R41: -0.002845860815 | T41: 0
B42: ='Rate peg calcs'!B58 -> 79 | C42: =INDEX('Rate peg calcs'!C$37:C$164,MATCH($B42,'Rate peg calcs'!$B$37:$B$164,0)) -> Metropolitan | D42: =INDEX('Rate peg calcs'!D$37:D$164,MATCH($B42,'Rate peg calcs'!$B$37:$B$164,0)) -> Campbelltown | E42: =INDEX('Rate peg calcs'!E$37:E$164,MATCH($B42,'Rate peg calcs'!$B$37:$B$164,0)) -> 0.02951901918 | F42: =INDEX('Rate peg calcs'!F$37:F$164,MATCH($B42,'Rate peg calcs'!$B$37:$B$164,0)) -> 0 | G42: =INDEX('Rate peg calcs'!G$37:G$164,MATCH($B42,'Rate peg calcs'!$B$37:$B$164,0)) -> 0.0003780039541 | H42: =INDEX('Rate peg calcs'!H$37:H$164,MATCH($B42,'Rate peg calcs'!$B$37:$B$164,0)) -> 0.001458421111 | I42: =INDEX('Rate peg calcs'!I$37:I$164,MATCH($B42,'Rate peg calcs'!$B$37:$B$164,0)) -> 0.0004643435035 | J42: =INDEX('Rate peg calcs'!J$37:J$164,MATCH($B42,'Rate peg calcs'!$B$37:$B$164,0)) -> -0.0007369015645 | K42: =INDEX('Rate peg calcs'!K$37:K$164,MATCH($B42,'Rate peg calcs'!$B$37:$B$164,0)) -> 0 | L42: 0.031 | M42: =INDEX('Rate peg calcs'!L$37:L$164,MATCH($B42,'Rate peg calcs'!$B$37:$B$164,0)) -> 0.01931967045 | N42: =INDEX('Rate peg calcs'!M$37:M$164,MATCH($B42,'Rate peg calcs'!$B$37:$B$164,0)) -> 0.01368591757 | O42: =INDEX('Rate peg calcs'!N$37:N$164,MATCH($B42,'Rate peg calcs'!$B$37:$B$164,0)) -> 0.006 | P42: =INDEX('Rate peg calcs'!O$37:O$164,MATCH($B42,'Rate peg calcs'!$B$37:$B$164,0)) -> 0.037 | R42: 0.001836425065 | T42: 0
B43: ='Rate peg calcs'!B59 -> 1989 | C43: =INDEX('Rate peg calcs'!C$37:C$164,MATCH($B43,'Rate peg calcs'!$B$37:$B$164,0)) -> Metropolitan | D43: =INDEX('Rate peg calcs'!D$37:D$164,MATCH($B43,'Rate peg calcs'!$B$37:$B$164,0)) -> Canada Bay | E43: =INDEX('Rate peg calcs'!E$37:E$164,MATCH($B43,'Rate peg calcs'!$B$37:$B$164,0)) -> 0.02951901918 | F43: =INDEX('Rate peg calcs'!F$37:F$164,MATCH($B43,'Rate peg calcs'!$B$37:$B$164,0)) -> 0 | G43: =INDEX('Rate peg calcs'!G$37:G$164,MATCH($B43,'Rate peg calcs'!$B$37:$B$164,0)) -> 0.001149520663 | H43: =INDEX('Rate peg calcs'!H$37:H$164,MATCH($B43,'Rate peg calcs'!$B$37:$B$164,0)) -> 0.004831462749 | I43: =INDEX('Rate peg calcs'!I$37:I$164,MATCH($B43,'Rate peg calcs'!$B$37:$B$164,0)) -> 0 | J43: =INDEX('Rate peg calcs'!J$37:J$164,MATCH($B43,'Rate peg calcs'!$B$37:$B$164,0)) -> -0.001844588502 | K43: =INDEX('Rate peg calcs'!K$37:K$164,MATCH($B43,'Rate peg calcs'!$B$37:$B$164,0)) -> 0 | L43: 0.034 | M43: =INDEX('Rate peg calcs'!L$37:L$164,MATCH($B43,'Rate peg calcs'!$B$37:$B$164,0)) -> 0.009542256218 | N43: =INDEX('Rate peg calcs'!M$37:M$164,MATCH($B43,'Rate peg calcs'!$B$37:$B$164,0)) -> 0.001663359987 | O43: =INDEX('Rate peg calcs'!N$37:N$164,MATCH($B43,'Rate peg calcs'!$B$37:$B$164,0)) -> 0.008 | P43: =INDEX('Rate peg calcs'!O$37:O$164,MATCH($B43,'Rate peg calcs'!$B$37:$B$164,0)) -> 0.042 | R43: 0.005980983412 | T43: 0
B44: ='Rate peg calcs'!B60 -> 2080 | C44: =INDEX('Rate peg calcs'!C$37:C$164,MATCH($B44,'Rate peg calcs'!$B$37:$B$164,0)) -> Metropolitan | D44: =INDEX('Rate peg calcs'!D$37:D$164,MATCH($B44,'Rate peg calcs'!$B$37:$B$164,0)) -> Canterbury-Bankstown | E44: =INDEX('Rate peg calcs'!E$37:E$164,MATCH($B44,'Rate peg calcs'!$B$37:$B$164,0)) -> 0.02951901918 | F44: =INDEX('Rate peg calcs'!F$37:F$164,MATCH($B44,'Rate peg calcs'!$B$37:$B$164,0)) -> 0 | G44: =INDEX('Rate peg calcs'!G$37:G$164,MATCH($B44,'Rate peg calcs'!$B$37:$B$164,0)) -> -0.0002121009166 | H44: =INDEX('Rate peg calcs'!H$37:H$164,MATCH($B44,'Rate peg calcs'!$B$37:$B$164,0)) -> 0.002049974131 | I44: =INDEX('Rate peg calcs'!I$37:I$164,MATCH($B44,'Rate peg calcs'!$B$37:$B$164,0)) -> 0 | J44: =INDEX('Rate peg calcs'!J$37:J$164,MATCH($B44,'Rate peg calcs'!$B$37:$B$164,0)) -> -0.001037243973 | K44: =INDEX('Rate peg calcs'!K$37:K$164,MATCH($B44,'Rate peg calcs'!$B$37:$B$164,0)) -> 0 | L44: 0.03 | M44: =INDEX('Rate peg calcs'!L$37:L$164,MATCH($B44,'Rate peg calcs'!$B$37:$B$164,0)) -> 0.01450756189 | N44: =INDEX('Rate peg calcs'!M$37:M$164,MATCH($B44,'Rate peg calcs'!$B$37:$B$164,0)) -> 0.003261842219 | O44: =INDEX('Rate peg calcs'!N$37:N$164,MATCH($B44,'Rate peg calcs'!$B$37:$B$164,0)) -> 0.011 | P44: =INDEX('Rate peg calcs'!O$37:O$164,MATCH($B44,'Rate peg calcs'!$B$37:$B$164,0)) -> 0.041 | R44: 0.001837873214 | T44: 0
B45: ='Rate peg calcs'!B61 -> 81 | C45: =INDEX('Rate peg calcs'!C$37:C$164,MATCH($B45,'Rate peg calcs'!$B$37:$B$164,0)) -> Rural | D45: =INDEX('Rate peg calcs'!D$37:D$164,MATCH($B45,'Rate peg calcs'!$B$37:$B$164,0)) -> Carrathool | E45: =INDEX('Rate peg calcs'!E$37:E$164,MATCH($B45,'Rate peg calcs'!$B$37:$B$164,0)) -> 0.02988176551 | F45: =INDEX('Rate peg calcs'!F$37:F$164,MATCH($B45,'Rate peg calcs'!$B$37:$B$164,0)) -> 0 | G45: =INDEX('Rate peg calcs'!G$37:G$164,MATCH($B45,'Rate peg calcs'!$B$37:$B$164,0)) -> 0.002002452101 | H45: =INDEX('Rate peg calcs'!H$37:H$164,MATCH($B45,'Rate peg calcs'!$B$37:$B$164,0)) -> 0.005895556639 | I45: =INDEX('Rate peg calcs'!I$37:I$164,MATCH($B45,'Rate peg calcs'!$B$37:$B$164,0)) -> 0 | J45: =INDEX('Rate peg calcs'!J$37:J$164,MATCH($B45,'Rate peg calcs'!$B$37:$B$164,0)) -> -0.00115619874 | K45: =INDEX('Rate peg calcs'!K$37:K$164,MATCH($B45,'Rate peg calcs'!$B$37:$B$164,0)) -> 0 | L45: 0.037 | M45: =INDEX('Rate peg calcs'!L$37:L$164,MATCH($B45,'Rate peg calcs'!$B$37:$B$164,0)) -> 0.001085383502 | N45: =INDEX('Rate peg calcs'!M$37:M$164,MATCH($B45,'Rate peg calcs'!$B$37:$B$164,0)) -> 0.007737459979 | O45: =INDEX('Rate peg calcs'!N$37:N$164,MATCH($B45,'Rate peg calcs'!$B$37:$B$164,0)) -> 0 | P45: =INDEX('Rate peg calcs'!O$37:O$164,MATCH($B45,'Rate peg calcs'!$B$37:$B$164,0)) -> 0.037 | R45: 0.007898008739 | T45: 0
B46: ='Rate peg calcs'!B62 -> 2088 | C46: =INDEX('Rate peg calcs'!C$37:C$164,MATCH($B46,'Rate peg calcs'!$B$37:$B$164,0)) -> Metropolitan | D46: =INDEX('Rate peg calcs'!D$37:D$164,MATCH($B46,'Rate peg calcs'!$B$37:$B$164,0)) -> Central Coast | E46: =INDEX('Rate peg calcs'!E$37:E$164,MATCH($B46,'Rate peg calcs'!$B$37:$B$164,0)) -> 0.02951901918 | F46: =INDEX('Rate peg calcs'!F$37:F$164,MATCH($B46,'Rate peg calcs'!$B$37:$B$164,0)) -> 0 | G46: =INDEX('Rate peg calcs'!G$37:G$164,MATCH($B46,'Rate peg calcs'!$B$37:$B$164,0)) -> 0.0003205316925 | H46: =INDEX('Rate peg calcs'!H$37:H$164,MATCH($B46,'Rate peg calcs'!$B$37:$B$164,0)) -> 0.001732527605 | I46: =INDEX('Rate peg calcs'!I$37:I$164,MATCH($B46,'Rate peg calcs'!$B$37:$B$164,0)) -> 0.0001607121632 | J46: =INDEX('Rate peg calcs'!J$37:J$164,MATCH($B46,'Rate peg calcs'!$B$37:$B$164,0)) -> -0.001584143008 | K46: =INDEX('Rate peg calcs'!K$37:K$164,MATCH($B46,'Rate peg calcs'!$B$37:$B$164,0)) -> 0 | L46: =P46-O46 -> 0.03 | M46: =INDEX('Rate peg calcs'!L$37:L$164,MATCH($B46,'Rate peg calcs'!$B$37:$B$164,0)) -> 0.00827305927 | N46: =INDEX('Rate peg calcs'!M$37:M$164,MATCH($B46,'Rate peg calcs'!$B$37:$B$164,0)) -> 0.006393831833 | O46: =INDEX('Rate peg calcs'!N$37:N$164,MATCH($B46,'Rate peg calcs'!$B$37:$B$164,0)) -> 0.002 | P46: =INDEX('Rate peg calcs'!O$37:O$164,MATCH($B46,'Rate peg calcs'!$B$37:$B$164,0)) -> 0.032 | R46: 0.002053059297 | T46: 0
B47: ='Rate peg calcs'!B63 -> 83 | C47: =INDEX('Rate peg calcs'!C$37:C$164,MATCH($B47,'Rate peg calcs'!$B$37:$B$164,0)) -> Rural | D47: =INDEX('Rate peg calcs'!D$37:D$164,MATCH($B47,'Rate peg calcs'!$B$37:$B$164,0)) -> Central Darling | E47: =INDEX('Rate peg calcs'!E$37:E$164,MATCH($B47,'Rate peg calcs'!$B$37:$B$164,0)) -> 0.02988176551 | F47: =INDEX('Rate peg calcs'!F$37:F$164,MATCH($B47,'Rate peg calcs'!$B$37:$B$164,0)) -> 0 | G47: =INDEX('Rate peg calcs'!G$37:G$164,MATCH($B47,'Rate peg calcs'!$B$37:$B$164,0)) -> 0.004701313649 | H47: =INDEX('Rate peg calcs'!H$37:H$164,MATCH($B47,'Rate peg calcs'!$B$37:$B$164,0)) -> 0.007745107923 | I47: =INDEX('Rate peg calcs'!I$37:I$164,MATCH($B47,'Rate peg calcs'!$B$37:$B$164,0)) -> 0 | J47: =INDEX('Rate peg calcs'!J$37:J$164,MATCH($B47,'Rate peg calcs'!$B$37:$B$164,0)) -> 0 | K47: =INDEX('Rate peg calcs'!K$37:K$164,MATCH($B47,'Rate peg calcs'!$B$37:$B$164,0)) -> 0 | L47: 0.042 | M47: =INDEX('Rate peg calcs'!L$37:L$164,MATCH($B47,'Rate peg calcs'!$B$37:$B$164,0)) -> 0.006264236902 | N47: =INDEX('Rate peg calcs'!M$37:M$164,MATCH($B47,'Rate peg calcs'!$B$37:$B$164,0)) -> 0 | O47: =INDEX('Rate peg calcs'!N$37:N$164,MATCH($B47,'Rate peg calcs'!$B$37:$B$164,0)) -> 0.006 | P47: =INDEX('Rate peg calcs'!O$37:O$164,MATCH($B47,'Rate peg calcs'!$B$37:$B$164,0)) -> 0.048 | R47: 0.01244642157 | T47: 0
B48: ='Rate peg calcs'!B64 -> 84 | C48: =INDEX('Rate peg calcs'!C$37:C$164,MATCH($B48,'Rate peg calcs'!$B$37:$B$164,0)) -> Regional | D48: =INDEX('Rate peg calcs'!D$37:D$164,MATCH($B48,'Rate peg calcs'!$B$37:$B$164,0)) -> Cessnock | E48: =INDEX('Rate peg calcs'!E$37:E$164,MATCH($B48,'Rate peg calcs'!$B$37:$B$164,0)) -> 0.02980866065 | F48: =INDEX('Rate peg calcs'!F$37:F$164,MATCH($B48,'Rate peg calcs'!$B$37:$B$164,0)) -> 0 | G48: =INDEX('Rate peg calcs'!G$37:G$164,MATCH($B48,'Rate peg calcs'!$B$37:$B$164,0)) -> 0.0001065939455 | H48: =INDEX('Rate peg calcs'!H$37:H$164,MATCH($B48,'Rate peg calcs'!$B$37:$B$164,0)) -> 0.001871048303 | I48: =INDEX('Rate peg calcs'!I$37:I$164,MATCH($B48,'Rate peg calcs'!$B$37:$B$164,0)) -> 0.0004142100612 | J48: =INDEX('Rate peg calcs'!J$37:J$164,MATCH($B48,'Rate peg calcs'!$B$37:$B$164,0)) -> -0.001744554601 | K48: =INDEX('Rate peg calcs'!K$37:K$164,MATCH($B48,'Rate peg calcs'!$B$37:$B$164,0)) -> 0 | L48: 0.03 | M48: =INDEX('Rate peg calcs'!L$37:L$164,MATCH($B48,'Rate peg calcs'!$B$37:$B$164,0)) -> 0.02717325595 | N48: =INDEX('Rate peg calcs'!M$37:M$164,MATCH($B48,'Rate peg calcs'!$B$37:$B$164,0)) -> 0.01885572451 | O48: =INDEX('Rate peg calcs'!N$37:N$164,MATCH($B48,'Rate peg calcs'!$B$37:$B$164,0)) -> 0.008 | P48: =INDEX('Rate peg calcs'!O$37:O$164,MATCH($B48,'Rate peg calcs'!$B$37:$B$164,0)) -> 0.038 | R48: 0.001977642249 | T48: 0
B49: ='Rate peg calcs'!B65 -> 2037 | C49: =INDEX('Rate peg calcs'!C$37:C$164,MATCH($B49,'Rate peg calcs'!$B$37:$B$164,0)) -> Regional | D49: =INDEX('Rate peg calcs'!D$37:D$164,MATCH($B49,'Rate peg calcs'!$B$37:$B$164,0)) -> Clarence Valley | E49: =INDEX('Rate peg calcs'!E$37:E$164,MATCH($B49,'Rate peg calcs'!$B$37:$B$164,0)) -> 0.02980866065 | F49: =INDEX('Rate peg calcs'!F$37:F$164,MATCH($B49,'Rate peg calcs'!$B$37:$B$164,0)) -> 0 | G49: =INDEX('Rate peg calcs'!G$37:G$164,MATCH($B49,'Rate peg calcs'!$B$37:$B$164,0)) -> -4.325479291e-05 | H49: =INDEX('Rate peg calcs'!H$37:H$164,MATCH($B49,'Rate peg calcs'!$B$37:$B$164,0)) -> 0.002807475738 | I49: =INDEX('Rate peg calcs'!I$37:I$164,MATCH($B49,'Rate peg calcs'!$B$37:$B$164,0)) -> 0 | J49: =INDEX('Rate peg calcs'!J$37:J$164,MATCH($B49,'Rate peg calcs'!$B$37:$B$164,0)) -> -0.001571634944 | K49: =INDEX('Rate peg calcs'!K$37:K$164,MATCH($B49,'Rate peg calcs'!$B$37:$B$164,0)) -> 0 | L49: 0.031 | M49: =INDEX('Rate peg calcs'!L$37:L$164,MATCH($B49,'Rate peg calcs'!$B$37:$B$164,0)) -> 0.0115254613 | N49: =INDEX('Rate peg calcs'!M$37:M$164,MATCH($B49,'Rate peg calcs'!$B$37:$B$164,0)) -> 0 | O49: =INDEX('Rate peg calcs'!N$37:N$164,MATCH($B49,'Rate peg calcs'!$B$37:$B$164,0)) -> 0.012 | P49: =INDEX('Rate peg calcs'!O$37:O$164,MATCH($B49,'Rate peg calcs'!$B$37:$B$164,0)) -> 0.043 | R49: 0.002764220946 | T49: 0
B50: ='Rate peg calcs'!B66 -> 85 | C50: =INDEX('Rate peg calcs'!C$37:C$164,MATCH($B50,'Rate peg calcs'!$B$37:$B$164,0)) -> Rural | D50: =INDEX('Rate peg calcs'!D$37:D$164,MATCH($B50,'Rate peg calcs'!$B$37:$B$164,0)) -> Cobar | E50: =INDEX('Rate peg calcs'!E$37:E$164,MATCH($B50,'Rate peg calcs'!$B$37:$B$164,0)) -> 0.02988176551 | F50: =INDEX('Rate peg calcs'!F$37:F$164,MATCH($B50,'Rate peg calcs'!$B$37:$B$164,0)) -> 0 | G50: =INDEX('Rate peg calcs'!G$37:G$164,MATCH($B50,'Rate peg calcs'!$B$37:$B$164,0)) -> 0.001739066892 | H50: =INDEX('Rate peg calcs'!H$37:H$164,MATCH($B50,'Rate peg calcs'!$B$37:$B$164,0)) -> 0.005111277291 | I50: =INDEX('Rate peg calcs'!I$37:I$164,MATCH($B50,'Rate peg calcs'!$B$37:$B$164,0)) -> 0 | J50: =INDEX('Rate peg calcs'!J$37:J$164,MATCH($B50,'Rate peg calcs'!$B$37:$B$164,0)) -> 0.0006714716532 | K50: =INDEX('Rate peg calcs'!K$37:K$164,MATCH($B50,'Rate peg calcs'!$B$37:$B$164,0)) -> 0 | L50: 0.037 | M50: =INDEX('Rate peg calcs'!L$37:L$164,MATCH($B50,'Rate peg calcs'!$B$37:$B$164,0)) -> 0 | N50: =INDEX('Rate peg calcs'!M$37:M$164,MATCH($B50,'Rate peg calcs'!$B$37:$B$164,0)) -> 0 | O50: =INDEX('Rate peg calcs'!N$37:N$164,MATCH($B50,'Rate peg calcs'!$B$37:$B$164,0)) -> 0 | P50: =INDEX('Rate peg calcs'!O$37:O$164,MATCH($B50,'Rate peg calcs'!$B$37:$B$164,0)) -> 0.037 | R50: 0.006850344183 | T50: 0
B51: ='Rate peg calcs'!B67 -> 86 | C51: =INDEX('Rate peg calcs'!C$37:C$164,MATCH($B51,'Rate peg calcs'!$B$37:$B$164,0)) -> Regional | D51: =INDEX('Rate peg calcs'!D$37:D$164,MATCH($B51,'Rate peg calcs'!$B$37:$B$164,0)) -> Coffs Harbour | E51: =INDEX('Rate peg calcs'!E$37:E$164,MATCH($B51,'Rate peg calcs'!$B$37:$B$164,0)) -> 0.02980866065 | F51: =INDEX('Rate peg calcs'!F$37:F$164,MATCH($B51,'Rate peg calcs'!$B$37:$B$164,0)) -> 0 | G51: =INDEX('Rate peg calcs'!G$37:G$164,MATCH($B51,'Rate peg calcs'!$B$37:$B$164,0)) -> 0.0002044231293 | H51: =INDEX('Rate peg calcs'!H$37:H$164,MATCH($B51,'Rate peg calcs'!$B$37:$B$164,0)) -> 0.002081471052 | I51: =INDEX('Rate peg calcs'!I$37:I$164,MATCH($B51,'Rate peg calcs'!$B$37:$B$164,0)) -> 0.001091475407 | J51: =INDEX('Rate peg calcs'!J$37:J$164,MATCH($B51,'Rate peg calcs'!$B$37:$B$164,0)) -> -0.002076437557 | K51: =INDEX('Rate peg calcs'!K$37:K$164,MATCH($B51,'Rate peg calcs'!$B$37:$B$164,0)) -> 0 | L51: 0.031 | M51: =INDEX('Rate peg calcs'!L$37:L$164,MATCH($B51,'Rate peg calcs'!$B$37:$B$164,0)) -> 0.009542743539 | N51: =INDEX('Rate peg calcs'!M$37:M$164,MATCH($B51,'Rate peg calcs'!$B$37:$B$164,0)) -> 0.003678222256 | O51: =INDEX('Rate peg calcs'!N$37:N$164,MATCH($B51,'Rate peg calcs'!$B$37:$B$164,0)) -> 0.006 | P51: =INDEX('Rate peg calcs'!O$37:O$164,MATCH($B51,'Rate peg calcs'!$B$37:$B$164,0)) -> 0.037 | R51: 0.002285894182 | T51: 0
B52: ='Rate peg calcs'!B68 -> 90 | C52: =INDEX('Rate peg calcs'!C$37:C$164,MATCH($B52,'Rate peg calcs'!$B$37:$B$164,0)) -> Rural | D52: =INDEX('Rate peg calcs'!D$37:D$164,MATCH($B52,'Rate peg calcs'!$B$37:$B$164,0)) -> Coolamon | E52: =INDEX('Rate peg calcs'!E$37:E$164,MATCH($B52,'Rate peg calcs'!$B$37:$B$164,0)) -> 0.02988176551 | F52: =INDEX('Rate peg calcs'!F$37:F$164,MATCH($B52,'Rate peg calcs'!$B$37:$B$164,0)) -> 0 | G52: =INDEX('Rate peg calcs'!G$37:G$164,MATCH($B52,'Rate peg calcs'!$B$37:$B$164,0)) -> 0.0009930837166 | H52: =INDEX('Rate peg calcs'!H$37:H$164,MATCH($B52,'Rate peg calcs'!$B$37:$B$164,0)) -> 0.008275725373 | I52: =INDEX('Rate peg calcs'!I$37:I$164,MATCH($B52,'Rate peg calcs'!$B$37:$B$164,0)) -> 0 | J52: =INDEX('Rate peg calcs'!J$37:J$164,MATCH($B52,'Rate peg calcs'!$B$37:$B$164,0)) -> -0.004464711283 | K52: =INDEX('Rate peg calcs'!K$37:K$164,MATCH($B52,'Rate peg calcs'!$B$37:$B$164,0)) -> 0 | L52: 0.035 | M52: =INDEX('Rate peg calcs'!L$37:L$164,MATCH($B52,'Rate peg calcs'!$B$37:$B$164,0)) -> 0.01406902616 | N52: =INDEX('Rate peg calcs'!M$37:M$164,MATCH($B52,'Rate peg calcs'!$B$37:$B$164,0)) -> 0 | O52: =INDEX('Rate peg calcs'!N$37:N$164,MATCH($B52,'Rate peg calcs'!$B$37:$B$164,0)) -> 0.014 | P52: =INDEX('Rate peg calcs'!O$37:O$164,MATCH($B52,'Rate peg calcs'!$B$37:$B$164,0)) -> 0.049 | R52: 0.00926880909 | T52: 0
B53: ='Rate peg calcs'!B69 -> 93 | C53: =INDEX('Rate peg calcs'!C$37:C$164,MATCH($B53,'Rate peg calcs'!$B$37:$B$164,0)) -> Rural | D53: =INDEX('Rate peg calcs'!D$37:D$164,MATCH($B53,'Rate peg calcs'!$B$37:$B$164,0)) -> Coonamble | E53: =INDEX('Rate peg calcs'!E$37:E$164,MATCH($B53,'Rate peg calcs'!$B$37:$B$164,0)) -> 0.02988176551 | F53: =INDEX('Rate peg calcs'!F$37:F$164,MATCH($B53,'Rate peg calcs'!$B$37:$B$164,0)) -> 0 | G53: =INDEX('Rate peg calcs'!G$37:G$164,MATCH($B53,'Rate peg calcs'!$B$37:$B$164,0)) -> 0.0006496651258 | H53: =INDEX('Rate peg calcs'!H$37:H$164,MATCH($B53,'Rate peg calcs'!$B$37:$B$164,0)) -> 0.00264879517 | I53: =INDEX('Rate peg calcs'!I$37:I$164,MATCH($B53,'Rate peg calcs'!$B$37:$B$164,0)) -> 0 | J53: =INDEX('Rate peg calcs'!J$37:J$164,MATCH($B53,'Rate peg calcs'!$B$37:$B$164,0)) -> -0.001124244794 | K53: =INDEX('Rate peg calcs'!K$37:K$164,MATCH($B53,'Rate peg calcs'!$B$37:$B$164,0)) -> 0 | L53: =P53-O53 -> 0.032 | M53: =INDEX('Rate peg calcs'!L$37:L$164,MATCH($B53,'Rate peg calcs'!$B$37:$B$164,0)) -> 0.002849740933 | N53: =INDEX('Rate peg calcs'!M$37:M$164,MATCH($B53,'Rate peg calcs'!$B$37:$B$164,0)) -> 0 | O53: =INDEX('Rate peg calcs'!N$37:N$164,MATCH($B53,'Rate peg calcs'!$B$37:$B$164,0)) -> 0.003 | P53: =INDEX('Rate peg calcs'!O$37:O$164,MATCH($B53,'Rate peg calcs'!$B$37:$B$164,0)) -> 0.035 | R53: =SUM(G53:H53) -> 0.003298460296 | T53: =ROUND(SUM(E53:J53)-K53,3)+O53-P53 -> 0
B54: ='Rate peg calcs'!B70 -> 2094 | C54: =INDEX('Rate peg calcs'!C$37:C$164,MATCH($B54,'Rate peg calcs'!$B$37:$B$164,0)) -> Rural | D54: =INDEX('Rate peg calcs'!D$37:D$164,MATCH($B54,'Rate peg calcs'!$B$37:$B$164,0)) -> Cootamundra-Gundagai Regional | E54: =INDEX('Rate peg calcs'!E$37:E$164,MATCH($B54,'Rate peg calcs'!$B$37:$B$164,0)) -> 0.02988176551 | F54: =INDEX('Rate peg calcs'!F$37:F$164,MATCH($B54,'Rate peg calcs'!$B$37:$B$164,0)) -> 0 | G54: =INDEX('Rate peg calcs'!G$37:G$164,MATCH($B54,'Rate peg calcs'!$B$37:$B$164,0)) -> 0.001341034615 | H54: =INDEX('Rate peg calcs'!H$37:H$164,MATCH($B54,'Rate peg calcs'!$B$37:$B$164,0)) -> 0.004455775916 | I54: =INDEX('Rate peg calcs'!I$37:I$164,MATCH($B54,'Rate peg calcs'!$B$37:$B$164,0)) -> 0 | J54: =INDEX('Rate peg calcs'!J$37:J$164,MATCH($B54,'Rate peg calcs'!$B$37:$B$164,0)) -> -0.003832353924 | K54: =INDEX('Rate peg calcs'!K$37:K$164,MATCH($B54,'Rate peg calcs'!$B$37:$B$164,0)) -> 0 | L54: 0.032 | M54: =INDEX('Rate peg calcs'!L$37:L$164,MATCH($B54,'Rate peg calcs'!$B$37:$B$164,0)) -> 8.754267706e-05 | N54: =INDEX('Rate peg calcs'!M$37:M$164,MATCH($B54,'Rate peg calcs'!$B$37:$B$164,0)) -> 0 | O54: =INDEX('Rate peg calcs'!N$37:N$164,MATCH($B54,'Rate peg calcs'!$B$37:$B$164,0)) -> 0 | P54: =INDEX('Rate peg calcs'!O$37:O$164,MATCH($B54,'Rate peg calcs'!$B$37:$B$164,0)) -> 0.032 | R54: 0.005796810531 | T54: 0
B55: ='Rate peg calcs'!B71 -> 97 | C55: =INDEX('Rate peg calcs'!C$37:C$164,MATCH($B55,'Rate peg calcs'!$B$37:$B$164,0)) -> Rural | D55: =INDEX('Rate peg calcs'!D$37:D$164,MATCH($B55,'Rate peg calcs'!$B$37:$B$164,0)) -> Cowra | E55: =INDEX('Rate peg calcs'!E$37:E$164,MATCH($B55,'Rate peg calcs'!$B$37:$B$164,0)) -> 0.02988176551 | F55: =INDEX('Rate peg calcs'!F$37:F$164,MATCH($B55,'Rate peg calcs'!$B$37:$B$164,0)) -> 0 | G55: =INDEX('Rate peg calcs'!G$37:G$164,MATCH($B55,'Rate peg calcs'!$B$37:$B$164,0)) -> 0.000853710096 | H55: =INDEX('Rate peg calcs'!H$37:H$164,MATCH($B55,'Rate peg calcs'!$B$37:$B$164,0)) -> 0.004191323681 | I55: =INDEX('Rate peg calcs'!I$37:I$164,MATCH($B55,'Rate peg calcs'!$B$37:$B$164,0)) -> 0.005222237395 | J55: =INDEX('Rate peg calcs'!J$37:J$164,MATCH($B55,'Rate peg calcs'!$B$37:$B$164,0)) -> -0.002548279321 | K55: =INDEX('Rate peg calcs'!K$37:K$164,MATCH($B55,'Rate peg calcs'!$B$37:$B$164,0)) -> 0 | L55: 0.038 | M55: =INDEX('Rate peg calcs'!L$37:L$164,MATCH($B55,'Rate peg calcs'!$B$37:$B$164,0)) -> 0.001658898807 | N55: =INDEX('Rate peg calcs'!M$37:M$164,MATCH($B55,'Rate peg calcs'!$B$37:$B$164,0)) -> 0.001275998469 | O55: =INDEX('Rate peg calcs'!N$37:N$164,MATCH($B55,'Rate peg calcs'!$B$37:$B$164,0)) -> 0 | P55: =INDEX('Rate peg calcs'!O$37:O$164,MATCH($B55,'Rate peg calcs'!$B$37:$B$164,0)) -> 0.038 | R55: 0.005045033777 | T55: 0
B56: ='Rate peg calcs'!B72 -> 2090 | C56: =INDEX('Rate peg calcs'!C$37:C$164,MATCH($B56,'Rate peg calcs'!$B$37:$B$164,0)) -> Metropolitan | D56: =INDEX('Rate peg calcs'!D$37:D$164,MATCH($B56,'Rate peg calcs'!$B$37:$B$164,0)) -> Cumberland | E56: =INDEX('Rate peg calcs'!E$37:E$164,MATCH($B56,'Rate peg calcs'!$B$37:$B$164,0)) -> 0.02951901918 | F56: =INDEX('Rate peg calcs'!F$37:F$164,MATCH($B56,'Rate peg calcs'!$B$37:$B$164,0)) -> 0 | G56: =INDEX('Rate peg calcs'!G$37:G$164,MATCH($B56,'Rate peg calcs'!$B$37:$B$164,0)) -> 0.0002753265128 | H56: =INDEX('Rate peg calcs'!H$37:H$164,MATCH($B56,'Rate peg calcs'!$B$37:$B$164,0)) -> 0 | I56: =INDEX('Rate peg calcs'!I$37:I$164,MATCH($B56,'Rate peg calcs'!$B$37:$B$164,0)) -> 8.908271507e-05 | J56: =INDEX('Rate peg calcs'!J$37:J$164,MATCH($B56,'Rate peg calcs'!$B$37:$B$164,0)) -> -0.001399957428 | K56: =INDEX('Rate peg calcs'!K$37:K$164,MATCH($B56,'Rate peg calcs'!$B$37:$B$164,0)) -> 0 | L56: 0.028 | M56: =INDEX('Rate peg calcs'!L$37:L$164,MATCH($B56,'Rate peg calcs'!$B$37:$B$164,0)) -> 0.02921262155 | N56: =INDEX('Rate peg calcs'!M$37:M$164,MATCH($B56,'Rate peg calcs'!$B$37:$B$164,0)) -> 0.01303502652 | O56: =INDEX('Rate peg calcs'!N$37:N$164,MATCH($B56,'Rate peg calcs'!$B$37:$B$164,0)) -> 0.016 | P56: =INDEX('Rate peg calcs'!O$37:O$164,MATCH($B56,'Rate peg calcs'!$B$37:$B$164,0)) -> 0.044 | R56: 0.0002753265128 | T56: 0
B57: ='Rate peg calcs'!B73 -> 2098 | C57: =INDEX('Rate peg calcs'!C$37:C$164,MATCH($B57,'Rate peg calcs'!$B$37:$B$164,0)) -> Regional | D57: =INDEX('Rate peg calcs'!D$37:D$164,MATCH($B57,'Rate peg calcs'!$B$37:$B$164,0)) -> Dubbo Regional | E57: =INDEX('Rate peg calcs'!E$37:E$164,MATCH($B57,'Rate peg calcs'!$B$37:$B$164,0)) -> 0.02980866065 | F57: =INDEX('Rate peg calcs'!F$37:F$164,MATCH($B57,'Rate peg calcs'!$B$37:$B$164,0)) -> 0 | G57: =INDEX('Rate peg calcs'!G$37:G$164,MATCH($B57,'Rate peg calcs'!$B$37:$B$164,0)) -> 0.0006506460307 | H57: =INDEX('Rate peg calcs'!H$37:H$164,MATCH($B57,'Rate peg calcs'!$B$37:$B$164,0)) -> 0.002430222926 | I57: =INDEX('Rate peg calcs'!I$37:I$164,MATCH($B57,'Rate peg calcs'!$B$37:$B$164,0)) -> 0 | J57: =INDEX('Rate peg calcs'!J$37:J$164,MATCH($B57,'Rate peg calcs'!$B$37:$B$164,0)) -> -0.003332913036 | K57: =INDEX('Rate peg calcs'!K$37:K$164,MATCH($B57,'Rate peg calcs'!$B$37:$B$164,0)) -> 0 | L57: 0.03 | M57: =INDEX('Rate peg calcs'!L$37:L$164,MATCH($B57,'Rate peg calcs'!$B$37:$B$164,0)) -> 0.00690852469 | N57: =INDEX('Rate peg calcs'!M$37:M$164,MATCH($B57,'Rate peg calcs'!$B$37:$B$164,0)) -> 0.009582303909 | O57: =INDEX('Rate peg calcs'!N$37:N$164,MATCH($B57,'Rate peg calcs'!$B$37:$B$164,0)) -> 0 | P57: =INDEX('Rate peg calcs'!O$37:O$164,MATCH($B57,'Rate peg calcs'!$B$37:$B$164,0)) -> 0.03 | R57: 0.003080868956 | T57: 0
B58: ='Rate peg calcs'!B74 -> 104 | C58: =INDEX('Rate peg calcs'!C$37:C$164,MATCH($B58,'Rate peg calcs'!$B$37:$B$164,0)) -> Rural | D58: =INDEX('Rate peg calcs'!D$37:D$164,MATCH($B58,'Rate peg calcs'!$B$37:$B$164,0)) -> Dungog | E58: =INDEX('Rate peg calcs'!E$37:E$164,MATCH($B58,'Rate peg calcs'!$B$37:$B$164,0)) -> 0.02988176551 | F58: =INDEX('Rate peg calcs'!F$37:F$164,MATCH($B58,'Rate peg calcs'!$B$37:$B$164,0)) -> 0 | G58: =INDEX('Rate peg calcs'!G$37:G$164,MATCH($B58,'Rate peg calcs'!$B$37:$B$164,0)) -> 0.0008117357513 | H58: =INDEX('Rate peg calcs'!H$37:H$164,MATCH($B58,'Rate peg calcs'!$B$37:$B$164,0)) -> 0.004549459006 | I58: =INDEX('Rate peg calcs'!I$37:I$164,MATCH($B58,'Rate peg calcs'!$B$37:$B$164,0)) -> 0 | J58: =INDEX('Rate peg calcs'!J$37:J$164,MATCH($B58,'Rate peg calcs'!$B$37:$B$164,0)) -> -0.001935671321 | K58: =INDEX('Rate peg calcs'!K$37:K$164,MATCH($B58,'Rate peg calcs'!$B$37:$B$164,0)) -> 0 | L58: 0.033 | M58: =INDEX('Rate peg calcs'!L$37:L$164,MATCH($B58,'Rate peg calcs'!$B$37:$B$164,0)) -> 0.01423305345 | N58: =INDEX('Rate peg calcs'!M$37:M$164,MATCH($B58,'Rate peg calcs'!$B$37:$B$164,0)) -> 0.007586810622 | O58: =INDEX('Rate peg calcs'!N$37:N$164,MATCH($B58,'Rate peg calcs'!$B$37:$B$164,0)) -> 0.007 | P58: =INDEX('Rate peg calcs'!O$37:O$164,MATCH($B58,'Rate peg calcs'!$B$37:$B$164,0)) -> 0.04 | R58: 0.005361194758 | T58: 0
B59: ='Rate peg calcs'!B75 -> 2091 | C59: =INDEX('Rate peg calcs'!C$37:C$164,MATCH($B59,'Rate peg calcs'!$B$37:$B$164,0)) -> Rural | D59: =INDEX('Rate peg calcs'!D$37:D$164,MATCH($B59,'Rate peg calcs'!$B$37:$B$164,0)) -> Edward River | E59: =INDEX('Rate peg calcs'!E$37:E$164,MATCH($B59,'Rate peg calcs'!$B$37:$B$164,0)) -> 0.02988176551 | F59: =INDEX('Rate peg calcs'!F$37:F$164,MATCH($B59,'Rate peg calcs'!$B$37:$B$164,0)) -> 0 | G59: =INDEX('Rate peg calcs'!G$37:G$164,MATCH($B59,'Rate peg calcs'!$B$37:$B$164,0)) -> 0.001269823938 | H59: =INDEX('Rate peg calcs'!H$37:H$164,MATCH($B59,'Rate peg calcs'!$B$37:$B$164,0)) -> 0.004064419157 | I59: =INDEX('Rate peg calcs'!I$37:I$164,MATCH($B59,'Rate peg calcs'!$B$37:$B$164,0)) -> 0 | J59: =INDEX('Rate peg calcs'!J$37:J$164,MATCH($B59,'Rate peg calcs'!$B$37:$B$164,0)) -> -0.005464811072 | K59: =INDEX('Rate peg calcs'!K$37:K$164,MATCH($B59,'Rate peg calcs'!$B$37:$B$164,0)) -> 0 | L59: 0.03 | M59: =INDEX('Rate peg calcs'!L$37:L$164,MATCH($B59,'Rate peg calcs'!$B$37:$B$164,0)) -> 0 | N59: =INDEX('Rate peg calcs'!M$37:M$164,MATCH($B59,'Rate peg calcs'!$B$37:$B$164,0)) -> 0.002166064982 | O59: =INDEX('Rate peg calcs'!N$37:N$164,MATCH($B59,'Rate peg calcs'!$B$37:$B$164,0)) -> 0 | P59: =INDEX('Rate peg calcs'!O$37:O$164,MATCH($B59,'Rate peg calcs'!$B$37:$B$164,0)) -> 0.03 | R59: 0.005334243095 | T59: 0
B60: ='Rate peg calcs'!B76 -> 105 | C60: =INDEX('Rate peg calcs'!C$37:C$164,MATCH($B60,'Rate peg calcs'!$B$37:$B$164,0)) -> Regional | D60: =INDEX('Rate peg calcs'!D$37:D$164,MATCH($B60,'Rate peg calcs'!$B$37:$B$164,0)) -> Eurobodalla | E60: =INDEX('Rate peg calcs'!E$37:E$164,MATCH($B60,'Rate peg calcs'!$B$37:$B$164,0)) -> 0.02980866065 | F60: =INDEX('Rate peg calcs'!F$37:F$164,MATCH($B60,'Rate peg calcs'!$B$37:$B$164,0)) -> 0 | G60: =INDEX('Rate peg calcs'!G$37:G$164,MATCH($B60,'Rate peg calcs'!$B$37:$B$164,0)) -> 0.0005553960174 | H60: =INDEX('Rate peg calcs'!H$37:H$164,MATCH($B60,'Rate peg calcs'!$B$37:$B$164,0)) -> 0.002618411739 | I60: =INDEX('Rate peg calcs'!I$37:I$164,MATCH($B60,'Rate peg calcs'!$B$37:$B$164,0)) -> 0.0003468009108 | J60: =INDEX('Rate peg calcs'!J$37:J$164,MATCH($B60,'Rate peg calcs'!$B$37:$B$164,0)) -> -0.001957307948 | K60: =INDEX('Rate peg calcs'!K$37:K$164,MATCH($B60,'Rate peg calcs'!$B$37:$B$164,0)) -> 0 | L60: 0.031 | M60: =INDEX('Rate peg calcs'!L$37:L$164,MATCH($B60,'Rate peg calcs'!$B$37:$B$164,0)) -> 0.00559724293 | N60: =INDEX('Rate peg calcs'!M$37:M$164,MATCH($B60,'Rate peg calcs'!$B$37:$B$164,0)) -> 0.005153897095 | O60: =INDEX('Rate peg calcs'!N$37:N$164,MATCH($B60,'Rate peg calcs'!$B$37:$B$164,0)) -> 0 | P60: =INDEX('Rate peg calcs'!O$37:O$164,MATCH($B60,'Rate peg calcs'!$B$37:$B$164,0)) -> 0.031 | R60: 0.003173807757 | T60: 0
B61: ='Rate peg calcs'!B77 -> 107 | C61: =INDEX('Rate peg calcs'!C$37:C$164,MATCH($B61,'Rate peg calcs'!$B$37:$B$164,0)) -> Metropolitan | D61: =INDEX('Rate peg calcs'!D$37:D$164,MATCH($B61,'Rate peg calcs'!$B$37:$B$164,0)) -> Fairfield | E61: =INDEX('Rate peg calcs'!E$37:E$164,MATCH($B61,'Rate peg calcs'!$B$37:$B$164,0)) -> 0.02951901918 | F61: =INDEX('Rate peg calcs'!F$37:F$164,MATCH($B61,'Rate peg calcs'!$B$37:$B$164,0)) -> 0 | G61: =INDEX('Rate peg calcs'!G$37:G$164,MATCH($B61,'Rate peg calcs'!$B$37:$B$164,0)) -> -4.026590067e-05 | H61: =INDEX('Rate peg calcs'!H$37:H$164,MATCH($B61,'Rate peg calcs'!$B$37:$B$164,0)) -> 0.001536080828 | I61: =INDEX('Rate peg calcs'!I$37:I$164,MATCH($B61,'Rate peg calcs'!$B$37:$B$164,0)) -> 0.001300404269 | J61: =INDEX('Rate peg calcs'!J$37:J$164,MATCH($B61,'Rate peg calcs'!$B$37:$B$164,0)) -> -0.002179476279 | K61: =INDEX('Rate peg calcs'!K$37:K$164,MATCH($B61,'Rate peg calcs'!$B$37:$B$164,0)) -> 0 | L61: 0.03 | M61: =INDEX('Rate peg calcs'!L$37:L$164,MATCH($B61,'Rate peg calcs'!$B$37:$B$164,0)) -> 0.0119453518 | N61: =INDEX('Rate peg calcs'!M$37:M$164,MATCH($B61,'Rate peg calcs'!$B$37:$B$164,0)) -> 0.00201153707 | O61: =INDEX('Rate peg calcs'!N$37:N$164,MATCH($B61,'Rate peg calcs'!$B$37:$B$164,0)) -> 0.01 | P61: =INDEX('Rate peg calcs'!O$37:O$164,MATCH($B61,'Rate peg calcs'!$B$37:$B$164,0)) -> 0.04 | R61: 0.001495814927 | T61: 0
B62: ='Rate peg calcs'!B78 -> 2092 | C62: =INDEX('Rate peg calcs'!C$37:C$164,MATCH($B62,'Rate peg calcs'!$B$37:$B$164,0)) -> Rural | D62: =INDEX('Rate peg calcs'!D$37:D$164,MATCH($B62,'Rate peg calcs'!$B$37:$B$164,0)) -> Federation | E62: =INDEX('Rate peg calcs'!E$37:E$164,MATCH($B62,'Rate peg calcs'!$B$37:$B$164,0)) -> 0.02988176551 | F62: =INDEX('Rate peg calcs'!F$37:F$164,MATCH($B62,'Rate peg calcs'!$B$37:$B$164,0)) -> 0 | G62: =INDEX('Rate peg calcs'!G$37:G$164,MATCH($B62,'Rate peg calcs'!$B$37:$B$164,0)) -> 0.0002121642201 | H62: =INDEX('Rate peg calcs'!H$37:H$164,MATCH($B62,'Rate peg calcs'!$B$37:$B$164,0)) -> 0.004362085868 | I62: =INDEX('Rate peg calcs'!I$37:I$164,MATCH($B62,'Rate peg calcs'!$B$37:$B$164,0)) -> 0 | J62: =INDEX('Rate peg calcs'!J$37:J$164,MATCH($B62,'Rate peg calcs'!$B$37:$B$164,0)) -> -0.003497042159 | K62: =INDEX('Rate peg calcs'!K$37:K$164,MATCH($B62,'Rate peg calcs'!$B$37:$B$164,0)) -> 0 | L62: 0.031 | M62: =INDEX('Rate peg calcs'!L$37:L$164,MATCH($B62,'Rate peg calcs'!$B$37:$B$164,0)) -> 0.01043276662 | N62: =INDEX('Rate peg calcs'!M$37:M$164,MATCH($B62,'Rate peg calcs'!$B$37:$B$164,0)) -> 0.0006332549303 | O62: =INDEX('Rate peg calcs'!N$37:N$164,MATCH($B62,'Rate peg calcs'!$B$37:$B$164,0)) -> 0.01 | P62: =INDEX('Rate peg calcs'!O$37:O$164,MATCH($B62,'Rate peg calcs'!$B$37:$B$164,0)) -> 0.041 | R62: 0.004574250088 | T62: 0
B63: ='Rate peg calcs'!B79 -> 108 | C63: =INDEX('Rate peg calcs'!C$37:C$164,MATCH($B63,'Rate peg calcs'!$B$37:$B$164,0)) -> Rural | D63: =INDEX('Rate peg calcs'!D$37:D$164,MATCH($B63,'Rate peg calcs'!$B$37:$B$164,0)) -> Forbes | E63: =INDEX('Rate peg calcs'!E$37:E$164,MATCH($B63,'Rate peg calcs'!$B$37:$B$164,0)) -> 0.02988176551 | F63: =INDEX('Rate peg calcs'!F$37:F$164,MATCH($B63,'Rate peg calcs'!$B$37:$B$164,0)) -> 0 | G63: =INDEX('Rate peg calcs'!G$37:G$164,MATCH($B63,'Rate peg calcs'!$B$37:$B$164,0)) -> 0.001058676003 | H63: =INDEX('Rate peg calcs'!H$37:H$164,MATCH($B63,'Rate peg calcs'!$B$37:$B$164,0)) -> 0.004272907708 | I63: =INDEX('Rate peg calcs'!I$37:I$164,MATCH($B63,'Rate peg calcs'!$B$37:$B$164,0)) -> 0 | J63: =INDEX('Rate peg calcs'!J$37:J$164,MATCH($B63,'Rate peg calcs'!$B$37:$B$164,0)) -> -0.0041877305 | K63: =INDEX('Rate peg calcs'!K$37:K$164,MATCH($B63,'Rate peg calcs'!$B$37:$B$164,0)) -> 0 | L63: 0.031 | M63: =INDEX('Rate peg calcs'!L$37:L$164,MATCH($B63,'Rate peg calcs'!$B$37:$B$164,0)) -> 0 | N63: =INDEX('Rate peg calcs'!M$37:M$164,MATCH($B63,'Rate peg calcs'!$B$37:$B$164,0)) -> 0.002228477598 | O63: =INDEX('Rate peg calcs'!N$37:N$164,MATCH($B63,'Rate peg calcs'!$B$37:$B$164,0)) -> 0 | P63: =INDEX('Rate peg calcs'!O$37:O$164,MATCH($B63,'Rate peg calcs'!$B$37:$B$164,0)) -> 0.031 | R63: 0.005331583711 | T63: 0
B64: ='Rate peg calcs'!B80 -> 2093 | C64: =INDEX('Rate peg calcs'!C$37:C$164,MATCH($B64,'Rate peg calcs'!$B$37:$B$164,0)) -> Metropolitan | D64: =INDEX('Rate peg calcs'!D$37:D$164,MATCH($B64,'Rate peg calcs'!$B$37:$B$164,0)) -> Georges River | E64: =INDEX('Rate peg calcs'!E$37:E$164,MATCH($B64,'Rate peg calcs'!$B$37:$B$164,0)) -> 0.02951901918 | F64: =INDEX('Rate peg calcs'!F$37:F$164,MATCH($B64,'Rate peg calcs'!$B$37:$B$164,0)) -> 0 | G64: =INDEX('Rate peg calcs'!G$37:G$164,MATCH($B64,'Rate peg calcs'!$B$37:$B$164,0)) -> -7.09752171e-05 | H64: =INDEX('Rate peg calcs'!H$37:H$164,MATCH($B64,'Rate peg calcs'!$B$37:$B$164,0)) -> 0.002025692292 | I64: =INDEX('Rate peg calcs'!I$37:I$164,MATCH($B64,'Rate peg calcs'!$B$37:$B$164,0)) -> 0 | J64: =INDEX('Rate peg calcs'!J$37:J$164,MATCH($B64,'Rate peg calcs'!$B$37:$B$164,0)) -> -0.001187800681 | K64: =INDEX('Rate peg calcs'!K$37:K$164,MATCH($B64,'Rate peg calcs'!$B$37:$B$164,0)) -> 0 | L64: 0.03 | M64: =INDEX('Rate peg calcs'!L$37:L$164,MATCH($B64,'Rate peg calcs'!$B$37:$B$164,0)) -> 0.02263694816 | N64: =INDEX('Rate peg calcs'!M$37:M$164,MATCH($B64,'Rate peg calcs'!$B$37:$B$164,0)) -> 0.005003075176 | O64: =INDEX('Rate peg calcs'!N$37:N$164,MATCH($B64,'Rate peg calcs'!$B$37:$B$164,0)) -> 0.018 | P64: =INDEX('Rate peg calcs'!O$37:O$164,MATCH($B64,'Rate peg calcs'!$B$37:$B$164,0)) -> 0.048 | R64: 0.001954717075 | T64: 0
B65: ='Rate peg calcs'!B81 -> 109 | C65: =INDEX('Rate peg calcs'!C$37:C$164,MATCH($B65,'Rate peg calcs'!$B$37:$B$164,0)) -> Rural | D65: =INDEX('Rate peg calcs'!D$37:D$164,MATCH($B65,'Rate peg calcs'!$B$37:$B$164,0)) -> Gilgandra | E65: =INDEX('Rate peg calcs'!E$37:E$164,MATCH($B65,'Rate peg calcs'!$B$37:$B$164,0)) -> 0.02988176551 | F65: =INDEX('Rate peg calcs'!F$37:F$164,MATCH($B65,'Rate peg calcs'!$B$37:$B$164,0)) -> 0 | G65: =INDEX('Rate peg calcs'!G$37:G$164,MATCH($B65,'Rate peg calcs'!$B$37:$B$164,0)) -> 0.001587795384 | H65: =INDEX('Rate peg calcs'!H$37:H$164,MATCH($B65,'Rate peg calcs'!$B$37:$B$164,0)) -> 0.004590541708 | I65: =INDEX('Rate peg calcs'!I$37:I$164,MATCH($B65,'Rate peg calcs'!$B$37:$B$164,0)) -> 0 | J65: =INDEX('Rate peg calcs'!J$37:J$164,MATCH($B65,'Rate peg calcs'!$B$37:$B$164,0)) -> -0.001161735426 | K65: =INDEX('Rate peg calcs'!K$37:K$164,MATCH($B65,'Rate peg calcs'!$B$37:$B$164,0)) -> 0 | L65: 0.035 | M65: =INDEX('Rate peg calcs'!L$37:L$164,MATCH($B65,'Rate peg calcs'!$B$37:$B$164,0)) -> 0 | N65: =INDEX('Rate peg calcs'!M$37:M$164,MATCH($B65,'Rate peg calcs'!$B$37:$B$164,0)) -> 0 | O65: =INDEX('Rate peg calcs'!N$37:N$164,MATCH($B65,'Rate peg calcs'!$B$37:$B$164,0)) -> 0 | P65: =INDEX('Rate peg calcs'!O$37:O$164,MATCH($B65,'Rate peg calcs'!$B$37:$B$164,0)) -> 0.035 | R65: 0.006178337092 | T65: 0
B66: ='Rate peg calcs'!B82 -> 2053 | C66: =INDEX('Rate peg calcs'!C$37:C$164,MATCH($B66,'Rate peg calcs'!$B$37:$B$164,0)) -> Rural | D66: =INDEX('Rate peg calcs'!D$37:D$164,MATCH($B66,'Rate peg calcs'!$B$37:$B$164,0)) -> Glen Innes Severn | E66: =INDEX('Rate peg calcs'!E$37:E$164,MATCH($B66,'Rate peg calcs'!$B$37:$B$164,0)) -> 0.02988176551 | F66: =INDEX('Rate peg calcs'!F$37:F$164,MATCH($B66,'Rate peg calcs'!$B$37:$B$164,0)) -> 0 | G66: =INDEX('Rate peg calcs'!G$37:G$164,MATCH($B66,'Rate peg calcs'!$B$37:$B$164,0)) -> 0.001357865037 | H66: =INDEX('Rate peg calcs'!H$37:H$164,MATCH($B66,'Rate peg calcs'!$B$37:$B$164,0)) -> 0.00472008405 | I66: =INDEX('Rate peg calcs'!I$37:I$164,MATCH($B66,'Rate peg calcs'!$B$37:$B$164,0)) -> 0 | J66: =INDEX('Rate peg calcs'!J$37:J$164,MATCH($B66,'Rate peg calcs'!$B$37:$B$164,0)) -> -0.001968969773 | K66: =INDEX('Rate peg calcs'!K$37:K$164,MATCH($B66,'Rate peg calcs'!$B$37:$B$164,0)) -> 0 | L66: 0.034 | M66: =INDEX('Rate peg calcs'!L$37:L$164,MATCH($B66,'Rate peg calcs'!$B$37:$B$164,0)) -> 0.001800382581 | N66: =INDEX('Rate peg calcs'!M$37:M$164,MATCH($B66,'Rate peg calcs'!$B$37:$B$164,0)) -> 0 | O66: =INDEX('Rate peg calcs'!N$37:N$164,MATCH($B66,'Rate peg calcs'!$B$37:$B$164,0)) -> 0.002 | P66: =INDEX('Rate peg calcs'!O$37:O$164,MATCH($B66,'Rate peg calcs'!$B$37:$B$164,0)) -> 0.036 | R66: 0.006077949086 | T66: 0
B67: ='Rate peg calcs'!B83 -> 2032 | C67: =INDEX('Rate peg calcs'!C$37:C$164,MATCH($B67,'Rate peg calcs'!$B$37:$B$164,0)) -> Regional | D67: =INDEX('Rate peg calcs'!D$37:D$164,MATCH($B67,'Rate peg calcs'!$B$37:$B$164,0)) -> Goulburn Mulwaree | E67: =INDEX('Rate peg calcs'!E$37:E$164,MATCH($B67,'Rate peg calcs'!$B$37:$B$164,0)) -> 0.02980866065 | F67: =INDEX('Rate peg calcs'!F$37:F$164,MATCH($B67,'Rate peg calcs'!$B$37:$B$164,0)) -> 0 | G67: =INDEX('Rate peg calcs'!G$37:G$164,MATCH($B67,'Rate peg calcs'!$B$37:$B$164,0)) -> -0.0001863403698 | H67: =INDEX('Rate peg calcs'!H$37:H$164,MATCH($B67,'Rate peg calcs'!$B$37:$B$164,0)) -> 0.00184192364 | I67: =INDEX('Rate peg calcs'!I$37:I$164,MATCH($B67,'Rate peg calcs'!$B$37:$B$164,0)) -> 0 | J67: =INDEX('Rate peg calcs'!J$37:J$164,MATCH($B67,'Rate peg calcs'!$B$37:$B$164,0)) -> -0.0008700736698 | K67: =INDEX('Rate peg calcs'!K$37:K$164,MATCH($B67,'Rate peg calcs'!$B$37:$B$164,0)) -> 0 | L67: 0.031 | M67: =INDEX('Rate peg calcs'!L$37:L$164,MATCH($B67,'Rate peg calcs'!$B$37:$B$164,0)) -> 0.01666201247 | N67: =INDEX('Rate peg calcs'!M$37:M$164,MATCH($B67,'Rate peg calcs'!$B$37:$B$164,0)) -> 0.001759604508 | O67: =INDEX('Rate peg calcs'!N$37:N$164,MATCH($B67,'Rate peg calcs'!$B$37:$B$164,0)) -> 0.015 | P67: =INDEX('Rate peg calcs'!O$37:O$164,MATCH($B67,'Rate peg calcs'!$B$37:$B$164,0)) -> 0.046 | R67: 0.00165558327 | T67: 0
B68: ='Rate peg calcs'!B84 -> 2049 | C68: =INDEX('Rate peg calcs'!C$37:C$164,MATCH($B68,'Rate peg calcs'!$B$37:$B$164,0)) -> Rural | D68: =INDEX('Rate peg calcs'!D$37:D$164,MATCH($B68,'Rate peg calcs'!$B$37:$B$164,0)) -> Greater Hume | E68: =INDEX('Rate peg calcs'!E$37:E$164,MATCH($B68,'Rate peg calcs'!$B$37:$B$164,0)) -> 0.02988176551 | F68: =INDEX('Rate peg calcs'!F$37:F$164,MATCH($B68,'Rate peg calcs'!$B$37:$B$164,0)) -> 0 | G68: =INDEX('Rate peg calcs'!G$37:G$164,MATCH($B68,'Rate peg calcs'!$B$37:$B$164,0)) -> 0.000919831408 | H68: =INDEX('Rate peg calcs'!H$37:H$164,MATCH($B68,'Rate peg calcs'!$B$37:$B$164,0)) -> 0.00487139325 | I68: =INDEX('Rate peg calcs'!I$37:I$164,MATCH($B68,'Rate peg calcs'!$B$37:$B$164,0)) -> 0 | J68: =INDEX('Rate peg calcs'!J$37:J$164,MATCH($B68,'Rate peg calcs'!$B$37:$B$164,0)) -> -0.002208325337 | K68: =INDEX('Rate peg calcs'!K$37:K$164,MATCH($B68,'Rate peg calcs'!$B$37:$B$164,0)) -> 0 | L68: 0.033 | M68: =INDEX('Rate peg calcs'!L$37:L$164,MATCH($B68,'Rate peg calcs'!$B$37:$B$164,0)) -> 0.01214716421 | N68: =INDEX('Rate peg calcs'!M$37:M$164,MATCH($B68,'Rate peg calcs'!$B$37:$B$164,0)) -> 0.003884462151 | O68: =INDEX('Rate peg calcs'!N$37:N$164,MATCH($B68,'Rate peg calcs'!$B$37:$B$164,0)) -> 0.008 | P68: =INDEX('Rate peg calcs'!O$37:O$164,MATCH($B68,'Rate peg calcs'!$B$37:$B$164,0)) -> 0.041 | R68: 0.005791224658 | T68: 0
B69: ='Rate peg calcs'!B85 -> 118 | C69: =INDEX('Rate peg calcs'!C$37:C$164,MATCH($B69,'Rate peg calcs'!$B$37:$B$164,0)) -> Regional | D69: =INDEX('Rate peg calcs'!D$37:D$164,MATCH($B69,'Rate peg calcs'!$B$37:$B$164,0)) -> Griffith | E69: =INDEX('Rate peg calcs'!E$37:E$164,MATCH($B69,'Rate peg calcs'!$B$37:$B$164,0)) -> 0.02980866065 | F69: =INDEX('Rate peg calcs'!F$37:F$164,MATCH($B69,'Rate peg calcs'!$B$37:$B$164,0)) -> 0 | G69: =INDEX('Rate peg calcs'!G$37:G$164,MATCH($B69,'Rate peg calcs'!$B$37:$B$164,0)) -> 9.195659219e-05 | H69: =INDEX('Rate peg calcs'!H$37:H$164,MATCH($B69,'Rate peg calcs'!$B$37:$B$164,0)) -> 0.001987092497 | I69: =INDEX('Rate peg calcs'!I$37:I$164,MATCH($B69,'Rate peg calcs'!$B$37:$B$164,0)) -> 0 | J69: =INDEX('Rate peg calcs'!J$37:J$164,MATCH($B69,'Rate peg calcs'!$B$37:$B$164,0)) -> -0.002400538763 | K69: =INDEX('Rate peg calcs'!K$37:K$164,MATCH($B69,'Rate peg calcs'!$B$37:$B$164,0)) -> 0 | L69: 0.029 | M69: =INDEX('Rate peg calcs'!L$37:L$164,MATCH($B69,'Rate peg calcs'!$B$37:$B$164,0)) -> 0.007889110079 | N69: =INDEX('Rate peg calcs'!M$37:M$164,MATCH($B69,'Rate peg calcs'!$B$37:$B$164,0)) -> 0.004616243088 | O69: =INDEX('Rate peg calcs'!N$37:N$164,MATCH($B69,'Rate peg calcs'!$B$37:$B$164,0)) -> 0.003 | P69: =INDEX('Rate peg calcs'!O$37:O$164,MATCH($B69,'Rate peg calcs'!$B$37:$B$164,0)) -> 0.032 | R69: 0.00207904909 | T69: 0
B70: ='Rate peg calcs'!B86 -> 120 | C70: =INDEX('Rate peg calcs'!C$37:C$164,MATCH($B70,'Rate peg calcs'!$B$37:$B$164,0)) -> Rural | D70: =INDEX('Rate peg calcs'!D$37:D$164,MATCH($B70,'Rate peg calcs'!$B$37:$B$164,0)) -> Gunnedah | E70: =INDEX('Rate peg calcs'!E$37:E$164,MATCH($B70,'Rate peg calcs'!$B$37:$B$164,0)) -> 0.02988176551 | F70: =INDEX('Rate peg calcs'!F$37:F$164,MATCH($B70,'Rate peg calcs'!$B$37:$B$164,0)) -> 0 | G70: =INDEX('Rate peg calcs'!G$37:G$164,MATCH($B70,'Rate peg calcs'!$B$37:$B$164,0)) -> -1.373850022e-05 | H70: =INDEX('Rate peg calcs'!H$37:H$164,MATCH($B70,'Rate peg calcs'!$B$37:$B$164,0)) -> 0.001447689493 | I70: =INDEX('Rate peg calcs'!I$37:I$164,MATCH($B70,'Rate peg calcs'!$B$37:$B$164,0)) -> 0 | J70: =INDEX('Rate peg calcs'!J$37:J$164,MATCH($B70,'Rate peg calcs'!$B$37:$B$164,0)) -> -0.003345127943 | K70: =INDEX('Rate peg calcs'!K$37:K$164,MATCH($B70,'Rate peg calcs'!$B$37:$B$164,0)) -> 0 | L70: 0.028 | M70: =INDEX('Rate peg calcs'!L$37:L$164,MATCH($B70,'Rate peg calcs'!$B$37:$B$164,0)) -> 0.008585630366 | N70: =INDEX('Rate peg calcs'!M$37:M$164,MATCH($B70,'Rate peg calcs'!$B$37:$B$164,0)) -> 0 | O70: =INDEX('Rate peg calcs'!N$37:N$164,MATCH($B70,'Rate peg calcs'!$B$37:$B$164,0)) -> 0.009 | P70: =INDEX('Rate peg calcs'!O$37:O$164,MATCH($B70,'Rate peg calcs'!$B$37:$B$164,0)) -> 0.037 | R70: 0.001433950993 | T70: 0
B71: ='Rate peg calcs'!B87 -> 2039 | C71: =INDEX('Rate peg calcs'!C$37:C$164,MATCH($B71,'Rate peg calcs'!$B$37:$B$164,0)) -> Rural | D71: =INDEX('Rate peg calcs'!D$37:D$164,MATCH($B71,'Rate peg calcs'!$B$37:$B$164,0)) -> Gwydir | E71: =INDEX('Rate peg calcs'!E$37:E$164,MATCH($B71,'Rate peg calcs'!$B$37:$B$164,0)) -> 0.02988176551 | F71: =INDEX('Rate peg calcs'!F$37:F$164,MATCH($B71,'Rate peg calcs'!$B$37:$B$164,0)) -> 0 | G71: =INDEX('Rate peg calcs'!G$37:G$164,MATCH($B71,'Rate peg calcs'!$B$37:$B$164,0)) -> 0.001501696975 | H71: =INDEX('Rate peg calcs'!H$37:H$164,MATCH($B71,'Rate peg calcs'!$B$37:$B$164,0)) -> 0.004287543525 | I71: =INDEX('Rate peg calcs'!I$37:I$164,MATCH($B71,'Rate peg calcs'!$B$37:$B$164,0)) -> 0 | J71: =INDEX('Rate peg calcs'!J$37:J$164,MATCH($B71,'Rate peg calcs'!$B$37:$B$164,0)) -> -0.001466485649 | K71: =INDEX('Rate peg calcs'!K$37:K$164,MATCH($B71,'Rate peg calcs'!$B$37:$B$164,0)) -> 0 | L71: 0.034 | M71: =INDEX('Rate peg calcs'!L$37:L$164,MATCH($B71,'Rate peg calcs'!$B$37:$B$164,0)) -> 0 | N71: =INDEX('Rate peg calcs'!M$37:M$164,MATCH($B71,'Rate peg calcs'!$B$37:$B$164,0)) -> 0 | O71: =INDEX('Rate peg calcs'!N$37:N$164,MATCH($B71,'Rate peg calcs'!$B$37:$B$164,0)) -> 0 | P71: =INDEX('Rate peg calcs'!O$37:O$164,MATCH($B71,'Rate peg calcs'!$B$37:$B$164,0)) -> 0.034 | R71: 0.0057892405 | T71: 0
B72: ='Rate peg calcs'!B88 -> 125 | C72: =INDEX('Rate peg calcs'!C$37:C$164,MATCH($B72,'Rate peg calcs'!$B$37:$B$164,0)) -> Metropolitan | D72: =INDEX('Rate peg calcs'!D$37:D$164,MATCH($B72,'Rate peg calcs'!$B$37:$B$164,0)) -> Hawkesbury | E72: =INDEX('Rate peg calcs'!E$37:E$164,MATCH($B72,'Rate peg calcs'!$B$37:$B$164,0)) -> 0.02951901918 | F72: =INDEX('Rate peg calcs'!F$37:F$164,MATCH($B72,'Rate peg calcs'!$B$37:$B$164,0)) -> 0 | G72: =INDEX('Rate peg calcs'!G$37:G$164,MATCH($B72,'Rate peg calcs'!$B$37:$B$164,0)) -> 8.955797221e-05 | H72: =INDEX('Rate peg calcs'!H$37:H$164,MATCH($B72,'Rate peg calcs'!$B$37:$B$164,0)) -> 0.002229656815 | I72: =INDEX('Rate peg calcs'!I$37:I$164,MATCH($B72,'Rate peg calcs'!$B$37:$B$164,0)) -> 0.0004787061669 | J72: =INDEX('Rate peg calcs'!J$37:J$164,MATCH($B72,'Rate peg calcs'!$B$37:$B$164,0)) -> -0.001261632291 | K72: =INDEX('Rate peg calcs'!K$37:K$164,MATCH($B72,'Rate peg calcs'!$B$37:$B$164,0)) -> 0 | L72: 0.031 | M72: =INDEX('Rate peg calcs'!L$37:L$164,MATCH($B72,'Rate peg calcs'!$B$37:$B$164,0)) -> 0.008217891524 | N72: =INDEX('Rate peg calcs'!M$37:M$164,MATCH($B72,'Rate peg calcs'!$B$37:$B$164,0)) -> 0.01368003792 | O72: =INDEX('Rate peg calcs'!N$37:N$164,MATCH($B72,'Rate peg calcs'!$B$37:$B$164,0)) -> 0 | P72: =INDEX('Rate peg calcs'!O$37:O$164,MATCH($B72,'Rate peg calcs'!$B$37:$B$164,0)) -> 0.031 | R72: 0.002319214788 | T72: 0
B73: ='Rate peg calcs'!B89 -> 126 | C73: =INDEX('Rate peg calcs'!C$37:C$164,MATCH($B73,'Rate peg calcs'!$B$37:$B$164,0)) -> Rural | D73: =INDEX('Rate peg calcs'!D$37:D$164,MATCH($B73,'Rate peg calcs'!$B$37:$B$164,0)) -> Hay | E73: =INDEX('Rate peg calcs'!E$37:E$164,MATCH($B73,'Rate peg calcs'!$B$37:$B$164,0)) -> 0.02988176551 | F73: =INDEX('Rate peg calcs'!F$37:F$164,MATCH($B73,'Rate peg calcs'!$B$37:$B$164,0)) -> 0 | G73: =INDEX('Rate peg calcs'!G$37:G$164,MATCH($B73,'Rate peg calcs'!$B$37:$B$164,0)) -> 0.001515639826 | H73: =INDEX('Rate peg calcs'!H$37:H$164,MATCH($B73,'Rate peg calcs'!$B$37:$B$164,0)) -> 0.006981582698 | I73: =INDEX('Rate peg calcs'!I$37:I$164,MATCH($B73,'Rate peg calcs'!$B$37:$B$164,0)) -> 0 | J73: =INDEX('Rate peg calcs'!J$37:J$164,MATCH($B73,'Rate peg calcs'!$B$37:$B$164,0)) -> -0.001676448341 | K73: =INDEX('Rate peg calcs'!K$37:K$164,MATCH($B73,'Rate peg calcs'!$B$37:$B$164,0)) -> 0 | L73: 0.037 | M73: =INDEX('Rate peg calcs'!L$37:L$164,MATCH($B73,'Rate peg calcs'!$B$37:$B$164,0)) -> 0.01131141746 | N73: =INDEX('Rate peg calcs'!M$37:M$164,MATCH($B73,'Rate peg calcs'!$B$37:$B$164,0)) -> 0 | O73: =INDEX('Rate peg calcs'!N$37:N$164,MATCH($B73,'Rate peg calcs'!$B$37:$B$164,0)) -> 0.011 | P73: =INDEX('Rate peg calcs'!O$37:O$164,MATCH($B73,'Rate peg calcs'!$B$37:$B$164,0)) -> 0.048 | R73: 0.008497222524 | T73: 0
B74: ='Rate peg calcs'!B90 -> 2081 | C74: =INDEX('Rate peg calcs'!C$37:C$164,MATCH($B74,'Rate peg calcs'!$B$37:$B$164,0)) -> Rural | D74: =INDEX('Rate peg calcs'!D$37:D$164,MATCH($B74,'Rate peg calcs'!$B$37:$B$164,0)) -> Hilltops | E74: =INDEX('Rate peg calcs'!E$37:E$164,MATCH($B74,'Rate peg calcs'!$B$37:$B$164,0)) -> 0.02988176551 | F74: =INDEX('Rate peg calcs'!F$37:F$164,MATCH($B74,'Rate peg calcs'!$B$37:$B$164,0)) -> 0 | G74: =INDEX('Rate peg calcs'!G$37:G$164,MATCH($B74,'Rate peg calcs'!$B$37:$B$164,0)) -> 0.001306862889 | H74: =INDEX('Rate peg calcs'!H$37:H$164,MATCH($B74,'Rate peg calcs'!$B$37:$B$164,0)) -> 0.004833202403 | I74: =INDEX('Rate peg calcs'!I$37:I$164,MATCH($B74,'Rate peg calcs'!$B$37:$B$164,0)) -> 0 | J74: =INDEX('Rate peg calcs'!J$37:J$164,MATCH($B74,'Rate peg calcs'!$B$37:$B$164,0)) -> -0.004083047843 | K74: =INDEX('Rate peg calcs'!K$37:K$164,MATCH($B74,'Rate peg calcs'!$B$37:$B$164,0)) -> 0 | L74: 0.032 | M74: =INDEX('Rate peg calcs'!L$37:L$164,MATCH($B74,'Rate peg calcs'!$B$37:$B$164,0)) -> 0.002441177998 | N74: =INDEX('Rate peg calcs'!M$37:M$164,MATCH($B74,'Rate peg calcs'!$B$37:$B$164,0)) -> 0.003045349222 | O74: =INDEX('Rate peg calcs'!N$37:N$164,MATCH($B74,'Rate peg calcs'!$B$37:$B$164,0)) -> 0 | P74: =INDEX('Rate peg calcs'!O$37:O$164,MATCH($B74,'Rate peg calcs'!$B$37:$B$164,0)) -> 0.032 | R74: 0.006140065292 | T74: 0
B75: ='Rate peg calcs'!B91 -> 129 | C75: =INDEX('Rate peg calcs'!C$37:C$164,MATCH($B75,'Rate peg calcs'!$B$37:$B$164,0)) -> Metropolitan | D75: =INDEX('Rate peg calcs'!D$37:D$164,MATCH($B75,'Rate peg calcs'!$B$37:$B$164,0)) -> Hornsby | E75: =INDEX('Rate peg calcs'!E$37:E$164,MATCH($B75,'Rate peg calcs'!$B$37:$B$164,0)) -> 0.02951901918 | F75: =INDEX('Rate peg calcs'!F$37:F$164,MATCH($B75,'Rate peg calcs'!$B$37:$B$164,0)) -> 0 | G75: =INDEX('Rate peg calcs'!G$37:G$164,MATCH($B75,'Rate peg calcs'!$B$37:$B$164,0)) -> 0.0008074211671 | H75: =INDEX('Rate peg calcs'!H$37:H$164,MATCH($B75,'Rate peg calcs'!$B$37:$B$164,0)) -> 0.003661133688 | I75: =INDEX('Rate peg calcs'!I$37:I$164,MATCH($B75,'Rate peg calcs'!$B$37:$B$164,0)) -> 0 | J75: =INDEX('Rate peg calcs'!J$37:J$164,MATCH($B75,'Rate peg calcs'!$B$37:$B$164,0)) -> -0.001305662566 | K75: =INDEX('Rate peg calcs'!K$37:K$164,MATCH($B75,'Rate peg calcs'!$B$37:$B$164,0)) -> 0 | L75: 0.033 | M75: =INDEX('Rate peg calcs'!L$37:L$164,MATCH($B75,'Rate peg calcs'!$B$37:$B$164,0)) -> 0.00497183062 | N75: =INDEX('Rate peg calcs'!M$37:M$164,MATCH($B75,'Rate peg calcs'!$B$37:$B$164,0)) -> 0.00166185497 | O75: =INDEX('Rate peg calcs'!N$37:N$164,MATCH($B75,'Rate peg calcs'!$B$37:$B$164,0)) -> 0.003 | P75: =INDEX('Rate peg calcs'!O$37:O$164,MATCH($B75,'Rate peg calcs'!$B$37:$B$164,0)) -> 0.036 | R75: 0.004468554855 | T75: 0
B76: ='Rate peg calcs'!B92 -> 131 | C76: =INDEX('Rate peg calcs'!C$37:C$164,MATCH($B76,'Rate peg calcs'!$B$37:$B$164,0)) -> Metropolitan | D76: =INDEX('Rate peg calcs'!D$37:D$164,MATCH($B76,'Rate peg calcs'!$B$37:$B$164,0)) -> Hunters Hill | E76: =INDEX('Rate peg calcs'!E$37:E$164,MATCH($B76,'Rate peg calcs'!$B$37:$B$164,0)) -> 0.02951901918 | F76: =INDEX('Rate peg calcs'!F$37:F$164,MATCH($B76,'Rate peg calcs'!$B$37:$B$164,0)) -> 0 | G76: =INDEX('Rate peg calcs'!G$37:G$164,MATCH($B76,'Rate peg calcs'!$B$37:$B$164,0)) -> 0.001539843479 | H76: =INDEX('Rate peg calcs'!H$37:H$164,MATCH($B76,'Rate peg calcs'!$B$37:$B$164,0)) -> 0.001889796715 | I76: =INDEX('Rate peg calcs'!I$37:I$164,MATCH($B76,'Rate peg calcs'!$B$37:$B$164,0)) -> 0 | J76: =INDEX('Rate peg calcs'!J$37:J$164,MATCH($B76,'Rate peg calcs'!$B$37:$B$164,0)) -> -0.005797280715 | K76: =INDEX('Rate peg calcs'!K$37:K$164,MATCH($B76,'Rate peg calcs'!$B$37:$B$164,0)) -> 0 | L76: 0.027 | M76: =INDEX('Rate peg calcs'!L$37:L$164,MATCH($B76,'Rate peg calcs'!$B$37:$B$164,0)) -> 0.001709645249 | N76: =INDEX('Rate peg calcs'!M$37:M$164,MATCH($B76,'Rate peg calcs'!$B$37:$B$164,0)) -> 0.0001763357433 | O76: =INDEX('Rate peg calcs'!N$37:N$164,MATCH($B76,'Rate peg calcs'!$B$37:$B$164,0)) -> 0.002 | P76: =INDEX('Rate peg calcs'!O$37:O$164,MATCH($B76,'Rate peg calcs'!$B$37:$B$164,0)) -> 0.029 | R76: 0.003429640194 | T76: 0
B77: ='Rate peg calcs'!B93 -> 2083 | C77: =INDEX('Rate peg calcs'!C$37:C$164,MATCH($B77,'Rate peg calcs'!$B$37:$B$164,0)) -> Metropolitan | D77: =INDEX('Rate peg calcs'!D$37:D$164,MATCH($B77,'Rate peg calcs'!$B$37:$B$164,0)) -> Inner West | E77: =INDEX('Rate peg calcs'!E$37:E$164,MATCH($B77,'Rate peg calcs'!$B$37:$B$164,0)) -> 0.02951901918 | F77: =INDEX('Rate peg calcs'!F$37:F$164,MATCH($B77,'Rate peg calcs'!$B$37:$B$164,0)) -> 0 | G77: =INDEX('Rate peg calcs'!G$37:G$164,MATCH($B77,'Rate peg calcs'!$B$37:$B$164,0)) -> -7.863891932e-05 | H77: =INDEX('Rate peg calcs'!H$37:H$164,MATCH($B77,'Rate peg calcs'!$B$37:$B$164,0)) -> 0.001932315405 | I77: =INDEX('Rate peg calcs'!I$37:I$164,MATCH($B77,'Rate peg calcs'!$B$37:$B$164,0)) -> 9.116189795e-05 | J77: =INDEX('Rate peg calcs'!J$37:J$164,MATCH($B77,'Rate peg calcs'!$B$37:$B$164,0)) -> -0.0009698179919 | K77: =INDEX('Rate peg calcs'!K$37:K$164,MATCH($B77,'Rate peg calcs'!$B$37:$B$164,0)) -> 0 | L77: 0.03 | M77: =INDEX('Rate peg calcs'!L$37:L$164,MATCH($B77,'Rate peg calcs'!$B$37:$B$164,0)) -> 0.01392871556 | N77: =INDEX('Rate peg calcs'!M$37:M$164,MATCH($B77,'Rate peg calcs'!$B$37:$B$164,0)) -> 0 | O77: =INDEX('Rate peg calcs'!N$37:N$164,MATCH($B77,'Rate peg calcs'!$B$37:$B$164,0)) -> 0.014 | P77: =INDEX('Rate peg calcs'!O$37:O$164,MATCH($B77,'Rate peg calcs'!$B$37:$B$164,0)) -> 0.044 | R77: 0.001853676485 | T77: 0
B78: ='Rate peg calcs'!B94 -> 133 | C78: =INDEX('Rate peg calcs'!C$37:C$164,MATCH($B78,'Rate peg calcs'!$B$37:$B$164,0)) -> Rural | D78: =INDEX('Rate peg calcs'!D$37:D$164,MATCH($B78,'Rate peg calcs'!$B$37:$B$164,0)) -> Inverell | E78: =INDEX('Rate peg calcs'!E$37:E$164,MATCH($B78,'Rate peg calcs'!$B$37:$B$164,0)) -> 0.02988176551 | F78: =INDEX('Rate peg calcs'!F$37:F$164,MATCH($B78,'Rate peg calcs'!$B$37:$B$164,0)) -> 0 | G78: =INDEX('Rate peg calcs'!G$37:G$164,MATCH($B78,'Rate peg calcs'!$B$37:$B$164,0)) -> 0.000395121623 | H78: =INDEX('Rate peg calcs'!H$37:H$164,MATCH($B78,'Rate peg calcs'!$B$37:$B$164,0)) -> 0.002355078512 | I78: =INDEX('Rate peg calcs'!I$37:I$164,MATCH($B78,'Rate peg calcs'!$B$37:$B$164,0)) -> 0.0007821032971 | J78: =INDEX('Rate peg calcs'!J$37:J$164,MATCH($B78,'Rate peg calcs'!$B$37:$B$164,0)) -> -0.00116638351 | K78: =INDEX('Rate peg calcs'!K$37:K$164,MATCH($B78,'Rate peg calcs'!$B$37:$B$164,0)) -> 0 | L78: 0.032 | M78: =INDEX('Rate peg calcs'!L$37:L$164,MATCH($B78,'Rate peg calcs'!$B$37:$B$164,0)) -> 0.001329198051 | N78: =INDEX('Rate peg calcs'!M$37:M$164,MATCH($B78,'Rate peg calcs'!$B$37:$B$164,0)) -> 0.002115384615 | O78: =INDEX('Rate peg calcs'!N$37:N$164,MATCH($B78,'Rate peg calcs'!$B$37:$B$164,0)) -> 0 | P78: =INDEX('Rate peg calcs'!O$37:O$164,MATCH($B78,'Rate peg calcs'!$B$37:$B$164,0)) -> 0.032 | R78: 0.002750200135 | T78: 0
B79: ='Rate peg calcs'!B95 -> 135 | C79: =INDEX('Rate peg calcs'!C$37:C$164,MATCH($B79,'Rate peg calcs'!$B$37:$B$164,0)) -> Rural | D79: =INDEX('Rate peg calcs'!D$37:D$164,MATCH($B79,'Rate peg calcs'!$B$37:$B$164,0)) -> Junee | E79: =INDEX('Rate peg calcs'!E$37:E$164,MATCH($B79,'Rate peg calcs'!$B$37:$B$164,0)) -> 0.02988176551 | F79: =INDEX('Rate peg calcs'!F$37:F$164,MATCH($B79,'Rate peg calcs'!$B$37:$B$164,0)) -> 0 | G79: =INDEX('Rate peg calcs'!G$37:G$164,MATCH($B79,'Rate peg calcs'!$B$37:$B$164,0)) -> 0.0006233188313 | H79: =INDEX('Rate peg calcs'!H$37:H$164,MATCH($B79,'Rate peg calcs'!$B$37:$B$164,0)) -> 0.004120307101 | I79: =INDEX('Rate peg calcs'!I$37:I$164,MATCH($B79,'Rate peg calcs'!$B$37:$B$164,0)) -> 0 | J79: =INDEX('Rate peg calcs'!J$37:J$164,MATCH($B79,'Rate peg calcs'!$B$37:$B$164,0)) -> -0.004356644634 | K79: =INDEX('Rate peg calcs'!K$37:K$164,MATCH($B79,'Rate peg calcs'!$B$37:$B$164,0)) -> 0 | L79: 0.03 | M79: =INDEX('Rate peg calcs'!L$37:L$164,MATCH($B79,'Rate peg calcs'!$B$37:$B$164,0)) -> 0.009044156765 | N79: =INDEX('Rate peg calcs'!M$37:M$164,MATCH($B79,'Rate peg calcs'!$B$37:$B$164,0)) -> 0.0007642338556 | O79: =INDEX('Rate peg calcs'!N$37:N$164,MATCH($B79,'Rate peg calcs'!$B$37:$B$164,0)) -> 0.008 | P79: =INDEX('Rate peg calcs'!O$37:O$164,MATCH($B79,'Rate peg calcs'!$B$37:$B$164,0)) -> 0.038 | R79: 0.004743625933 | T79: 0
B80: ='Rate peg calcs'!B96 -> 136 | C80: =INDEX('Rate peg calcs'!C$37:C$164,MATCH($B80,'Rate peg calcs'!$B$37:$B$164,0)) -> Regional | D80: =INDEX('Rate peg calcs'!D$37:D$164,MATCH($B80,'Rate peg calcs'!$B$37:$B$164,0)) -> Kempsey | E80: =INDEX('Rate peg calcs'!E$37:E$164,MATCH($B80,'Rate peg calcs'!$B$37:$B$164,0)) -> 0.02980866065 | F80: =INDEX('Rate peg calcs'!F$37:F$164,MATCH($B80,'Rate peg calcs'!$B$37:$B$164,0)) -> 0 | G80: =INDEX('Rate peg calcs'!G$37:G$164,MATCH($B80,'Rate peg calcs'!$B$37:$B$164,0)) -> 0.0001657318599 | H80: =INDEX('Rate peg calcs'!H$37:H$164,MATCH($B80,'Rate peg calcs'!$B$37:$B$164,0)) -> 0.001817155746 | I80: =INDEX('Rate peg calcs'!I$37:I$164,MATCH($B80,'Rate peg calcs'!$B$37:$B$164,0)) -> 0 | J80: =INDEX('Rate peg calcs'!J$37:J$164,MATCH($B80,'Rate peg calcs'!$B$37:$B$164,0)) -> -0.001257461081 | K80: =INDEX('Rate peg calcs'!K$37:K$164,MATCH($B80,'Rate peg calcs'!$B$37:$B$164,0)) -> 0 | L80: =P80-O80 -> 0.031 | M80: =INDEX('Rate peg calcs'!L$37:L$164,MATCH($B80,'Rate peg calcs'!$B$37:$B$164,0)) -> 0.005547035599 | N80: =INDEX('Rate peg calcs'!M$37:M$164,MATCH($B80,'Rate peg calcs'!$B$37:$B$164,0)) -> 0.006819616923 | O80: =INDEX('Rate peg calcs'!N$37:N$164,MATCH($B80,'Rate peg calcs'!$B$37:$B$164,0)) -> 0 | P80: =INDEX('Rate peg calcs'!O$37:O$164,MATCH($B80,'Rate peg calcs'!$B$37:$B$164,0)) -> 0.031 | R80: 0.001982887606 | T80: 0
B81: ='Rate peg calcs'!B97 -> 137 | C81: =INDEX('Rate peg calcs'!C$37:C$164,MATCH($B81,'Rate peg calcs'!$B$37:$B$164,0)) -> Regional | D81: =INDEX('Rate peg calcs'!D$37:D$164,MATCH($B81,'Rate peg calcs'!$B$37:$B$164,0)) -> Kiama | E81: =INDEX('Rate peg calcs'!E$37:E$164,MATCH($B81,'Rate peg calcs'!$B$37:$B$164,0)) -> 0.02980866065 | F81: =INDEX('Rate peg calcs'!F$37:F$164,MATCH($B81,'Rate peg calcs'!$B$37:$B$164,0)) -> 0 | G81: =INDEX('Rate peg calcs'!G$37:G$164,MATCH($B81,'Rate peg calcs'!$B$37:$B$164,0)) -> -8.63082729e-05 | H81: =INDEX('Rate peg calcs'!H$37:H$164,MATCH($B81,'Rate peg calcs'!$B$37:$B$164,0)) -> 0.001490627379 | I81: =INDEX('Rate peg calcs'!I$37:I$164,MATCH($B81,'Rate peg calcs'!$B$37:$B$164,0)) -> 0.0005873045575 | J81: =INDEX('Rate peg calcs'!J$37:J$164,MATCH($B81,'Rate peg calcs'!$B$37:$B$164,0)) -> -0.0005346319899 | K81: =INDEX('Rate peg calcs'!K$37:K$164,MATCH($B81,'Rate peg calcs'!$B$37:$B$164,0)) -> 0 | L81: 0.031 | M81: =INDEX('Rate peg calcs'!L$37:L$164,MATCH($B81,'Rate peg calcs'!$B$37:$B$164,0)) -> 0.007477935742 | N81: =INDEX('Rate peg calcs'!M$37:M$164,MATCH($B81,'Rate peg calcs'!$B$37:$B$164,0)) -> 0.00676263163 | O81: =INDEX('Rate peg calcs'!N$37:N$164,MATCH($B81,'Rate peg calcs'!$B$37:$B$164,0)) -> 0.001 | P81: =INDEX('Rate peg calcs'!O$37:O$164,MATCH($B81,'Rate peg calcs'!$B$37:$B$164,0)) -> 0.032 | R81: 0.001404319106 | T81: 0
B82: ='Rate peg calcs'!B98 -> 139 | C82: =INDEX('Rate peg calcs'!C$37:C$164,MATCH($B82,'Rate peg calcs'!$B$37:$B$164,0)) -> Metropolitan | D82: =INDEX('Rate peg calcs'!D$37:D$164,MATCH($B82,'Rate peg calcs'!$B$37:$B$164,0)) -> Ku-ring-gai | E82: =INDEX('Rate peg calcs'!E$37:E$164,MATCH($B82,'Rate peg calcs'!$B$37:$B$164,0)) -> 0.02951901918 | F82: =INDEX('Rate peg calcs'!F$37:F$164,MATCH($B82,'Rate peg calcs'!$B$37:$B$164,0)) -> 0 | G82: =INDEX('Rate peg calcs'!G$37:G$164,MATCH($B82,'Rate peg calcs'!$B$37:$B$164,0)) -> 0.001890544558 | H82: =INDEX('Rate peg calcs'!H$37:H$164,MATCH($B82,'Rate peg calcs'!$B$37:$B$164,0)) -> 0.002753302008 | I82: =INDEX('Rate peg calcs'!I$37:I$164,MATCH($B82,'Rate peg calcs'!$B$37:$B$164,0)) -> 0.0001329080983 | J82: =INDEX('Rate peg calcs'!J$37:J$164,MATCH($B82,'Rate peg calcs'!$B$37:$B$164,0)) -> -0.001772342083 | K82: =INDEX('Rate peg calcs'!K$37:K$164,MATCH($B82,'Rate peg calcs'!$B$37:$B$164,0)) -> 0 | L82: 0.033 | M82: =INDEX('Rate peg calcs'!L$37:L$164,MATCH($B82,'Rate peg calcs'!$B$37:$B$164,0)) -> 0.01070849278 | N82: =INDEX('Rate peg calcs'!M$37:M$164,MATCH($B82,'Rate peg calcs'!$B$37:$B$164,0)) -> 2.676623707e-05 | O82: =INDEX('Rate peg calcs'!N$37:N$164,MATCH($B82,'Rate peg calcs'!$B$37:$B$164,0)) -> 0.011 | P82: =INDEX('Rate peg calcs'!O$37:O$164,MATCH($B82,'Rate peg calcs'!$B$37:$B$164,0)) -> 0.044 | R82: 0.004643846565 | T82: 0
B83: ='Rate peg calcs'!B99 -> 140 | C83: =INDEX('Rate peg calcs'!C$37:C$164,MATCH($B83,'Rate peg calcs'!$B$37:$B$164,0)) -> Rural | D83: =INDEX('Rate peg calcs'!D$37:D$164,MATCH($B83,'Rate peg calcs'!$B$37:$B$164,0)) -> Kyogle | E83: =INDEX('Rate peg calcs'!E$37:E$164,MATCH($B83,'Rate peg calcs'!$B$37:$B$164,0)) -> 0.02988176551 | F83: =INDEX('Rate peg calcs'!F$37:F$164,MATCH($B83,'Rate peg calcs'!$B$37:$B$164,0)) -> 0 | G83: =INDEX('Rate peg calcs'!G$37:G$164,MATCH($B83,'Rate peg calcs'!$B$37:$B$164,0)) -> 0.0003324954948 | H83: =INDEX('Rate peg calcs'!H$37:H$164,MATCH($B83,'Rate peg calcs'!$B$37:$B$164,0)) -> 0.004008256982 | I83: =INDEX('Rate peg calcs'!I$37:I$164,MATCH($B83,'Rate peg calcs'!$B$37:$B$164,0)) -> 0 | J83: =INDEX('Rate peg calcs'!J$37:J$164,MATCH($B83,'Rate peg calcs'!$B$37:$B$164,0)) -> -0.00229772083 | K83: =INDEX('Rate peg calcs'!K$37:K$164,MATCH($B83,'Rate peg calcs'!$B$37:$B$164,0)) -> 0 | L83: 0.032 | M83: =INDEX('Rate peg calcs'!L$37:L$164,MATCH($B83,'Rate peg calcs'!$B$37:$B$164,0)) -> 0.01204055767 | N83: =INDEX('Rate peg calcs'!M$37:M$164,MATCH($B83,'Rate peg calcs'!$B$37:$B$164,0)) -> 0 | O83: =INDEX('Rate peg calcs'!N$37:N$164,MATCH($B83,'Rate peg calcs'!$B$37:$B$164,0)) -> 0.012 | P83: =INDEX('Rate peg calcs'!O$37:O$164,MATCH($B83,'Rate peg calcs'!$B$37:$B$164,0)) -> 0.044 | R83: 0.004340752477 | T83: 0
B84: ='Rate peg calcs'!B100 -> 141 | C84: =INDEX('Rate peg calcs'!C$37:C$164,MATCH($B84,'Rate peg calcs'!$B$37:$B$164,0)) -> Rural | D84: =INDEX('Rate peg calcs'!D$37:D$164,MATCH($B84,'Rate peg calcs'!$B$37:$B$164,0)) -> Lachlan | E84: =INDEX('Rate peg calcs'!E$37:E$164,MATCH($B84,'Rate peg calcs'!$B$37:$B$164,0)) -> 0.02988176551 | F84: =INDEX('Rate peg calcs'!F$37:F$164,MATCH($B84,'Rate peg calcs'!$B$37:$B$164,0)) -> 0 | G84: =INDEX('Rate peg calcs'!G$37:G$164,MATCH($B84,'Rate peg calcs'!$B$37:$B$164,0)) -> 0.00171579015 | H84: =INDEX('Rate peg calcs'!H$37:H$164,MATCH($B84,'Rate peg calcs'!$B$37:$B$164,0)) -> 0.005037828639 | I84: =INDEX('Rate peg calcs'!I$37:I$164,MATCH($B84,'Rate peg calcs'!$B$37:$B$164,0)) -> 0 | J84: =INDEX('Rate peg calcs'!J$37:J$164,MATCH($B84,'Rate peg calcs'!$B$37:$B$164,0)) -> -0.00248081532 | K84: =INDEX('Rate peg calcs'!K$37:K$164,MATCH($B84,'Rate peg calcs'!$B$37:$B$164,0)) -> 0 | L84: 0.034 | M84: =INDEX('Rate peg calcs'!L$37:L$164,MATCH($B84,'Rate peg calcs'!$B$37:$B$164,0)) -> 0 | N84: =INDEX('Rate peg calcs'!M$37:M$164,MATCH($B84,'Rate peg calcs'!$B$37:$B$164,0)) -> . | O84: =INDEX('Rate peg calcs'!N$37:N$164,MATCH($B84,'Rate peg calcs'!$B$37:$B$164,0)) -> 0 | P84: =INDEX('Rate peg calcs'!O$37:O$164,MATCH($B84,'Rate peg calcs'!$B$37:$B$164,0)) -> 0.034 | R84: 0.006753618789 | T84: 0
B85: ='Rate peg calcs'!B101 -> 142 | C85: =INDEX('Rate peg calcs'!C$37:C$164,MATCH($B85,'Rate peg calcs'!$B$37:$B$164,0)) -> Regional | D85: =INDEX('Rate peg calcs'!D$37:D$164,MATCH($B85,'Rate peg calcs'!$B$37:$B$164,0)) -> Lake Macquarie | E85: =INDEX('Rate peg calcs'!E$37:E$164,MATCH($B85,'Rate peg calcs'!$B$37:$B$164,0)) -> 0.02980866065 | F85: =INDEX('Rate peg calcs'!F$37:F$164,MATCH($B85,'Rate peg calcs'!$B$37:$B$164,0)) -> 0 | G85: =INDEX('Rate peg calcs'!G$37:G$164,MATCH($B85,'Rate peg calcs'!$B$37:$B$164,0)) -> 0.0007719833004 | H85: =INDEX('Rate peg calcs'!H$37:H$164,MATCH($B85,'Rate peg calcs'!$B$37:$B$164,0)) -> 0.001660310623 | I85: =INDEX('Rate peg calcs'!I$37:I$164,MATCH($B85,'Rate peg calcs'!$B$37:$B$164,0)) -> 0.0001236603528 | J85: =INDEX('Rate peg calcs'!J$37:J$164,MATCH($B85,'Rate peg calcs'!$B$37:$B$164,0)) -> -0.0004524541284 | K85: =INDEX('Rate peg calcs'!K$37:K$164,MATCH($B85,'Rate peg calcs'!$B$37:$B$164,0)) -> 0 | L85: =P85-O85 -> 0.032 | M85: =INDEX('Rate peg calcs'!L$37:L$164,MATCH($B85,'Rate peg calcs'!$B$37:$B$164,0)) -> 0.0119873558 | N85: =INDEX('Rate peg calcs'!M$37:M$164,MATCH($B85,'Rate peg calcs'!$B$37:$B$164,0)) -> 0.01486198239 | O85: =INDEX('Rate peg calcs'!N$37:N$164,MATCH($B85,'Rate peg calcs'!$B$37:$B$164,0)) -> 0 | P85: =INDEX('Rate peg calcs'!O$37:O$164,MATCH($B85,'Rate peg calcs'!$B$37:$B$164,0)) -> 0.032 | R85: =SUM(G85:H85) -> 0.002432293924 | T85: =ROUND(SUM(E85:J85)-K85,3)+O85-P85 -> 0
B86: ='Rate peg calcs'!B102 -> 143 | C86: =INDEX('Rate peg calcs'!C$37:C$164,MATCH($B86,'Rate peg calcs'!$B$37:$B$164,0)) -> Metropolitan | D86: =INDEX('Rate peg calcs'!D$37:D$164,MATCH($B86,'Rate peg calcs'!$B$37:$B$164,0)) -> Lane Cove | E86: =INDEX('Rate peg calcs'!E$37:E$164,MATCH($B86,'Rate peg calcs'!$B$37:$B$164,0)) -> 0.02951901918 | F86: =INDEX('Rate peg calcs'!F$37:F$164,MATCH($B86,'Rate peg calcs'!$B$37:$B$164,0)) -> 0 | G86: =INDEX('Rate peg calcs'!G$37:G$164,MATCH($B86,'Rate peg calcs'!$B$37:$B$164,0)) -> 0.0006641413294 | H86: =INDEX('Rate peg calcs'!H$37:H$164,MATCH($B86,'Rate peg calcs'!$B$37:$B$164,0)) -> 0.001698154352 | I86: =INDEX('Rate peg calcs'!I$37:I$164,MATCH($B86,'Rate peg calcs'!$B$37:$B$164,0)) -> 0 | J86: =INDEX('Rate peg calcs'!J$37:J$164,MATCH($B86,'Rate peg calcs'!$B$37:$B$164,0)) -> -0.001454012723 | K86: =INDEX('Rate peg calcs'!K$37:K$164,MATCH($B86,'Rate peg calcs'!$B$37:$B$164,0)) -> 0 | L86: 0.03 | M86: =INDEX('Rate peg calcs'!L$37:L$164,MATCH($B86,'Rate peg calcs'!$B$37:$B$164,0)) -> 0.02452643994 | N86: =INDEX('Rate peg calcs'!M$37:M$164,MATCH($B86,'Rate peg calcs'!$B$37:$B$164,0)) -> 0.007238813508 | O86: =INDEX('Rate peg calcs'!N$37:N$164,MATCH($B86,'Rate peg calcs'!$B$37:$B$164,0)) -> 0.017 | P86: =INDEX('Rate peg calcs'!O$37:O$164,MATCH($B86,'Rate peg calcs'!$B$37:$B$164,0)) -> 0.047 | R86: 0.002362295681 | T86: 0
B87: ='Rate peg calcs'!B103 -> 144 | C87: =INDEX('Rate peg calcs'!C$37:C$164,MATCH($B87,'Rate peg calcs'!$B$37:$B$164,0)) -> Rural | D87: =INDEX('Rate peg calcs'!D$37:D$164,MATCH($B87,'Rate peg calcs'!$B$37:$B$164,0)) -> Leeton | E87: =INDEX('Rate peg calcs'!E$37:E$164,MATCH($B87,'Rate peg calcs'!$B$37:$B$164,0)) -> 0.02988176551 | F87: =INDEX('Rate peg calcs'!F$37:F$164,MATCH($B87,'Rate peg calcs'!$B$37:$B$164,0)) -> 0 | G87: =INDEX('Rate peg calcs'!G$37:G$164,MATCH($B87,'Rate peg calcs'!$B$37:$B$164,0)) -> 0.0001458943331 | H87: =INDEX('Rate peg calcs'!H$37:H$164,MATCH($B87,'Rate peg calcs'!$B$37:$B$164,0)) -> 0.002210826553 | I87: =INDEX('Rate peg calcs'!I$37:I$164,MATCH($B87,'Rate peg calcs'!$B$37:$B$164,0)) -> 0 | J87: =INDEX('Rate peg calcs'!J$37:J$164,MATCH($B87,'Rate peg calcs'!$B$37:$B$164,0)) -> -0.00484449814 | K87: =INDEX('Rate peg calcs'!K$37:K$164,MATCH($B87,'Rate peg calcs'!$B$37:$B$164,0)) -> 0 | L87: 0.027 | M87: =INDEX('Rate peg calcs'!L$37:L$164,MATCH($B87,'Rate peg calcs'!$B$37:$B$164,0)) -> 0.0006999125109 | N87: =INDEX('Rate peg calcs'!M$37:M$164,MATCH($B87,'Rate peg calcs'!$B$37:$B$164,0)) -> 0.001474926254 | O87: =INDEX('Rate peg calcs'!N$37:N$164,MATCH($B87,'Rate peg calcs'!$B$37:$B$164,0)) -> 0 | P87: =INDEX('Rate peg calcs'!O$37:O$164,MATCH($B87,'Rate peg calcs'!$B$37:$B$164,0)) -> 0.027 | R87: 0.002356720886 | T87: 0
B88: ='Rate peg calcs'!B104 -> 146 | C88: =INDEX('Rate peg calcs'!C$37:C$164,MATCH($B88,'Rate peg calcs'!$B$37:$B$164,0)) -> Regional | D88: =INDEX('Rate peg calcs'!D$37:D$164,MATCH($B88,'Rate peg calcs'!$B$37:$B$164,0)) -> Lismore | E88: =INDEX('Rate peg calcs'!E$37:E$164,MATCH($B88,'Rate peg calcs'!$B$37:$B$164,0)) -> 0.02980866065 | F88: =INDEX('Rate peg calcs'!F$37:F$164,MATCH($B88,'Rate peg calcs'!$B$37:$B$164,0)) -> 0 | G88: =INDEX('Rate peg calcs'!G$37:G$164,MATCH($B88,'Rate peg calcs'!$B$37:$B$164,0)) -> 0.0007517473496 | H88: =INDEX('Rate peg calcs'!H$37:H$164,MATCH($B88,'Rate peg calcs'!$B$37:$B$164,0)) -> 0.001982931799 | I88: =INDEX('Rate peg calcs'!I$37:I$164,MATCH($B88,'Rate peg calcs'!$B$37:$B$164,0)) -> 0 | J88: =INDEX('Rate peg calcs'!J$37:J$164,MATCH($B88,'Rate peg calcs'!$B$37:$B$164,0)) -> -0.00176142961 | K88: =INDEX('Rate peg calcs'!K$37:K$164,MATCH($B88,'Rate peg calcs'!$B$37:$B$164,0)) -> 0 | L88: 0.031 | M88: =INDEX('Rate peg calcs'!L$37:L$164,MATCH($B88,'Rate peg calcs'!$B$37:$B$164,0)) -> 0 | N88: =INDEX('Rate peg calcs'!M$37:M$164,MATCH($B88,'Rate peg calcs'!$B$37:$B$164,0)) -> 0.001663262329 | O88: =INDEX('Rate peg calcs'!N$37:N$164,MATCH($B88,'Rate peg calcs'!$B$37:$B$164,0)) -> 0 | P88: =INDEX('Rate peg calcs'!O$37:O$164,MATCH($B88,'Rate peg calcs'!$B$37:$B$164,0)) -> 0.031 | R88: 0.002734679148 | T88: 0
B89: ='Rate peg calcs'!B105 -> 2044 | C89: =INDEX('Rate peg calcs'!C$37:C$164,MATCH($B89,'Rate peg calcs'!$B$37:$B$164,0)) -> Regional | D89: =INDEX('Rate peg calcs'!D$37:D$164,MATCH($B89,'Rate peg calcs'!$B$37:$B$164,0)) -> Lithgow | E89: =INDEX('Rate peg calcs'!E$37:E$164,MATCH($B89,'Rate peg calcs'!$B$37:$B$164,0)) -> 0.02980866065 | F89: =INDEX('Rate peg calcs'!F$37:F$164,MATCH($B89,'Rate peg calcs'!$B$37:$B$164,0)) -> 0 | G89: =INDEX('Rate peg calcs'!G$37:G$164,MATCH($B89,'Rate peg calcs'!$B$37:$B$164,0)) -> 0.0007306724846 | H89: =INDEX('Rate peg calcs'!H$37:H$164,MATCH($B89,'Rate peg calcs'!$B$37:$B$164,0)) -> 0.002556070337 | I89: =INDEX('Rate peg calcs'!I$37:I$164,MATCH($B89,'Rate peg calcs'!$B$37:$B$164,0)) -> 0.0005551738366 | J89: =INDEX('Rate peg calcs'!J$37:J$164,MATCH($B89,'Rate peg calcs'!$B$37:$B$164,0)) -> -0.002429935019 | K89: =INDEX('Rate peg calcs'!K$37:K$164,MATCH($B89,'Rate peg calcs'!$B$37:$B$164,0)) -> 0 | L89: 0.031 | M89: =INDEX('Rate peg calcs'!L$37:L$164,MATCH($B89,'Rate peg calcs'!$B$37:$B$164,0)) -> 0 | N89: =INDEX('Rate peg calcs'!M$37:M$164,MATCH($B89,'Rate peg calcs'!$B$37:$B$164,0)) -> 0.003129750514 | O89: =INDEX('Rate peg calcs'!N$37:N$164,MATCH($B89,'Rate peg calcs'!$B$37:$B$164,0)) -> 0 | P89: =INDEX('Rate peg calcs'!O$37:O$164,MATCH($B89,'Rate peg calcs'!$B$37:$B$164,0)) -> 0.031 | R89: 0.003286742822 | T89: 0
B90: ='Rate peg calcs'!B106 -> 147 | C90: =INDEX('Rate peg calcs'!C$37:C$164,MATCH($B90,'Rate peg calcs'!$B$37:$B$164,0)) -> Metropolitan | D90: =INDEX('Rate peg calcs'!D$37:D$164,MATCH($B90,'Rate peg calcs'!$B$37:$B$164,0)) -> Liverpool | E90: =INDEX('Rate peg calcs'!E$37:E$164,MATCH($B90,'Rate peg calcs'!$B$37:$B$164,0)) -> 0.02951901918 | F90: =INDEX('Rate peg calcs'!F$37:F$164,MATCH($B90,'Rate peg calcs'!$B$37:$B$164,0)) -> 0 | G90: =INDEX('Rate peg calcs'!G$37:G$164,MATCH($B90,'Rate peg calcs'!$B$37:$B$164,0)) -> -0.000100009272 | H90: =INDEX('Rate peg calcs'!H$37:H$164,MATCH($B90,'Rate peg calcs'!$B$37:$B$164,0)) -> 0.001599655676 | I90: =INDEX('Rate peg calcs'!I$37:I$164,MATCH($B90,'Rate peg calcs'!$B$37:$B$164,0)) -> 0.0009950991491 | J90: =INDEX('Rate peg calcs'!J$37:J$164,MATCH($B90,'Rate peg calcs'!$B$37:$B$164,0)) -> -0.00166980344 | K90: =INDEX('Rate peg calcs'!K$37:K$164,MATCH($B90,'Rate peg calcs'!$B$37:$B$164,0)) -> 0 | L90: 0.03 | M90: =INDEX('Rate peg calcs'!L$37:L$164,MATCH($B90,'Rate peg calcs'!$B$37:$B$164,0)) -> 0.02947412634 | N90: =INDEX('Rate peg calcs'!M$37:M$164,MATCH($B90,'Rate peg calcs'!$B$37:$B$164,0)) -> 0.0187798808 | O90: =INDEX('Rate peg calcs'!N$37:N$164,MATCH($B90,'Rate peg calcs'!$B$37:$B$164,0)) -> 0.011 | P90: =INDEX('Rate peg calcs'!O$37:O$164,MATCH($B90,'Rate peg calcs'!$B$37:$B$164,0)) -> 0.041 | R90: 0.001499646404 | T90: 0
B91: ='Rate peg calcs'!B107 -> 2040 | C91: =INDEX('Rate peg calcs'!C$37:C$164,MATCH($B91,'Rate peg calcs'!$B$37:$B$164,0)) -> Rural | D91: =INDEX('Rate peg calcs'!D$37:D$164,MATCH($B91,'Rate peg calcs'!$B$37:$B$164,0)) -> Liverpool Plains | E91: =INDEX('Rate peg calcs'!E$37:E$164,MATCH($B91,'Rate peg calcs'!$B$37:$B$164,0)) -> 0.02988176551 | F91: =INDEX('Rate peg calcs'!F$37:F$164,MATCH($B91,'Rate peg calcs'!$B$37:$B$164,0)) -> 0 | G91: =INDEX('Rate peg calcs'!G$37:G$164,MATCH($B91,'Rate peg calcs'!$B$37:$B$164,0)) -> 0.001362943656 | H91: =INDEX('Rate peg calcs'!H$37:H$164,MATCH($B91,'Rate peg calcs'!$B$37:$B$164,0)) -> 0.004488331789 | I91: =INDEX('Rate peg calcs'!I$37:I$164,MATCH($B91,'Rate peg calcs'!$B$37:$B$164,0)) -> 0.001101723569 | J91: =INDEX('Rate peg calcs'!J$37:J$164,MATCH($B91,'Rate peg calcs'!$B$37:$B$164,0)) -> -0.001460420973 | K91: =INDEX('Rate peg calcs'!K$37:K$164,MATCH($B91,'Rate peg calcs'!$B$37:$B$164,0)) -> 0 | L91: 0.035 | M91: =INDEX('Rate peg calcs'!L$37:L$164,MATCH($B91,'Rate peg calcs'!$B$37:$B$164,0)) -> 0.000521784503 | N91: =INDEX('Rate peg calcs'!M$37:M$164,MATCH($B91,'Rate peg calcs'!$B$37:$B$164,0)) -> 0 | O91: =INDEX('Rate peg calcs'!N$37:N$164,MATCH($B91,'Rate peg calcs'!$B$37:$B$164,0)) -> 0.001 | P91: =INDEX('Rate peg calcs'!O$37:O$164,MATCH($B91,'Rate peg calcs'!$B$37:$B$164,0)) -> 0.036 | R91: 0.005851275445 | T91: 0
B92: ='Rate peg calcs'!B108 -> 148 | C92: =INDEX('Rate peg calcs'!C$37:C$164,MATCH($B92,'Rate peg calcs'!$B$37:$B$164,0)) -> Rural | D92: =INDEX('Rate peg calcs'!D$37:D$164,MATCH($B92,'Rate peg calcs'!$B$37:$B$164,0)) -> Lockhart | E92: =INDEX('Rate peg calcs'!E$37:E$164,MATCH($B92,'Rate peg calcs'!$B$37:$B$164,0)) -> 0.02988176551 | F92: =INDEX('Rate peg calcs'!F$37:F$164,MATCH($B92,'Rate peg calcs'!$B$37:$B$164,0)) -> 0 | G92: =INDEX('Rate peg calcs'!G$37:G$164,MATCH($B92,'Rate peg calcs'!$B$37:$B$164,0)) -> 0.0003020047337 | H92: =INDEX('Rate peg calcs'!H$37:H$164,MATCH($B92,'Rate peg calcs'!$B$37:$B$164,0)) -> 0.007603132032 | I92: =INDEX('Rate peg calcs'!I$37:I$164,MATCH($B92,'Rate peg calcs'!$B$37:$B$164,0)) -> 0 | J92: =INDEX('Rate peg calcs'!J$37:J$164,MATCH($B92,'Rate peg calcs'!$B$37:$B$164,0)) -> -0.003201713256 | K92: =INDEX('Rate peg calcs'!K$37:K$164,MATCH($B92,'Rate peg calcs'!$B$37:$B$164,0)) -> 0 | L92: 0.035 | M92: =INDEX('Rate peg calcs'!L$37:L$164,MATCH($B92,'Rate peg calcs'!$B$37:$B$164,0)) -> 0.02296819788 | N92: =INDEX('Rate peg calcs'!M$37:M$164,MATCH($B92,'Rate peg calcs'!$B$37:$B$164,0)) -> 0.001082251082 | O92: =INDEX('Rate peg calcs'!N$37:N$164,MATCH($B92,'Rate peg calcs'!$B$37:$B$164,0)) -> 0.022 | P92: =INDEX('Rate peg calcs'!O$37:O$164,MATCH($B92,'Rate peg calcs'!$B$37:$B$164,0)) -> 0.057 | R92: 0.007905136766 | T92: 0
B93: ='Rate peg calcs'!B109 -> 150 | C93: =INDEX('Rate peg calcs'!C$37:C$164,MATCH($B93,'Rate peg calcs'!$B$37:$B$164,0)) -> Regional | D93: =INDEX('Rate peg calcs'!D$37:D$164,MATCH($B93,'Rate peg calcs'!$B$37:$B$164,0)) -> Maitland | E93: =INDEX('Rate peg calcs'!E$37:E$164,MATCH($B93,'Rate peg calcs'!$B$37:$B$164,0)) -> 0.02980866065 | F93: =INDEX('Rate peg calcs'!F$37:F$164,MATCH($B93,'Rate peg calcs'!$B$37:$B$164,0)) -> 0 | G93: =INDEX('Rate peg calcs'!G$37:G$164,MATCH($B93,'Rate peg calcs'!$B$37:$B$164,0)) -> 0.0001395711153 | H93: =INDEX('Rate peg calcs'!H$37:H$164,MATCH($B93,'Rate peg calcs'!$B$37:$B$164,0)) -> 0.0009618895488 | I93: =INDEX('Rate peg calcs'!I$37:I$164,MATCH($B93,'Rate peg calcs'!$B$37:$B$164,0)) -> 0 | J93: =INDEX('Rate peg calcs'!J$37:J$164,MATCH($B93,'Rate peg calcs'!$B$37:$B$164,0)) -> -0.0003819958576 | K93: =INDEX('Rate peg calcs'!K$37:K$164,MATCH($B93,'Rate peg calcs'!$B$37:$B$164,0)) -> 0 | L93: 0.031 | M93: =INDEX('Rate peg calcs'!L$37:L$164,MATCH($B93,'Rate peg calcs'!$B$37:$B$164,0)) -> 0.02320272679 | N93: =INDEX('Rate peg calcs'!M$37:M$164,MATCH($B93,'Rate peg calcs'!$B$37:$B$164,0)) -> 0.02234940756 | O93: =INDEX('Rate peg calcs'!N$37:N$164,MATCH($B93,'Rate peg calcs'!$B$37:$B$164,0)) -> 0.001 | P93: =INDEX('Rate peg calcs'!O$37:O$164,MATCH($B93,'Rate peg calcs'!$B$37:$B$164,0)) -> 0.032 | R93: 0.001101460664 | T93: 0
B94: ='Rate peg calcs'!B110 -> 2084 | C94: =INDEX('Rate peg calcs'!C$37:C$164,MATCH($B94,'Rate peg calcs'!$B$37:$B$164,0)) -> Regional | D94: =INDEX('Rate peg calcs'!D$37:D$164,MATCH($B94,'Rate peg calcs'!$B$37:$B$164,0)) -> Mid-Coast | E94: =INDEX('Rate peg calcs'!E$37:E$164,MATCH($B94,'Rate peg calcs'!$B$37:$B$164,0)) -> 0.02980866065 | F94: =INDEX('Rate peg calcs'!F$37:F$164,MATCH($B94,'Rate peg calcs'!$B$37:$B$164,0)) -> 0 | G94: =INDEX('Rate peg calcs'!G$37:G$164,MATCH($B94,'Rate peg calcs'!$B$37:$B$164,0)) -> 0.0001968902112 | H94: =INDEX('Rate peg calcs'!H$37:H$164,MATCH($B94,'Rate peg calcs'!$B$37:$B$164,0)) -> 0.001933624635 | I94: =INDEX('Rate peg calcs'!I$37:I$164,MATCH($B94,'Rate peg calcs'!$B$37:$B$164,0)) -> 0 | J94: =INDEX('Rate peg calcs'!J$37:J$164,MATCH($B94,'Rate peg calcs'!$B$37:$B$164,0)) -> -0.001026560809 | K94: =INDEX('Rate peg calcs'!K$37:K$164,MATCH($B94,'Rate peg calcs'!$B$37:$B$164,0)) -> 0 | L94: 0.031 | M94: =INDEX('Rate peg calcs'!L$37:L$164,MATCH($B94,'Rate peg calcs'!$B$37:$B$164,0)) -> 0.006853162566 | N94: =INDEX('Rate peg calcs'!M$37:M$164,MATCH($B94,'Rate peg calcs'!$B$37:$B$164,0)) -> 0.006647489145 | O94: =INDEX('Rate peg calcs'!N$37:N$164,MATCH($B94,'Rate peg calcs'!$B$37:$B$164,0)) -> 0 | P94: =INDEX('Rate peg calcs'!O$37:O$164,MATCH($B94,'Rate peg calcs'!$B$37:$B$164,0)) -> 0.031 | R94: 0.002130514846 | T94: 0
B95: ='Rate peg calcs'!B111 -> 2042 | C95: =INDEX('Rate peg calcs'!C$37:C$164,MATCH($B95,'Rate peg calcs'!$B$37:$B$164,0)) -> Regional | D95: =INDEX('Rate peg calcs'!D$37:D$164,MATCH($B95,'Rate peg calcs'!$B$37:$B$164,0)) -> Mid-Western Regional | E95: =INDEX('Rate peg calcs'!E$37:E$164,MATCH($B95,'Rate peg calcs'!$B$37:$B$164,0)) -> 0.02980866065 | F95: =INDEX('Rate peg calcs'!F$37:F$164,MATCH($B95,'Rate peg calcs'!$B$37:$B$164,0)) -> 0 | G95: =INDEX('Rate peg calcs'!G$37:G$164,MATCH($B95,'Rate peg calcs'!$B$37:$B$164,0)) -> 0.000401509811 | H95: =INDEX('Rate peg calcs'!H$37:H$164,MATCH($B95,'Rate peg calcs'!$B$37:$B$164,0)) -> 0.002485852247 | I95: =INDEX('Rate peg calcs'!I$37:I$164,MATCH($B95,'Rate peg calcs'!$B$37:$B$164,0)) -> 0 | J95: =INDEX('Rate peg calcs'!J$37:J$164,MATCH($B95,'Rate peg calcs'!$B$37:$B$164,0)) -> -0.0009471173434 | K95: =INDEX('Rate peg calcs'!K$37:K$164,MATCH($B95,'Rate peg calcs'!$B$37:$B$164,0)) -> 0 | L95: 0.032 | M95: =INDEX('Rate peg calcs'!L$37:L$164,MATCH($B95,'Rate peg calcs'!$B$37:$B$164,0)) -> 0.01142063431 | N95: =INDEX('Rate peg calcs'!M$37:M$164,MATCH($B95,'Rate peg calcs'!$B$37:$B$164,0)) -> 0.007455971205 | O95: =INDEX('Rate peg calcs'!N$37:N$164,MATCH($B95,'Rate peg calcs'!$B$37:$B$164,0)) -> 0.004 | P95: =INDEX('Rate peg calcs'!O$37:O$164,MATCH($B95,'Rate peg calcs'!$B$37:$B$164,0)) -> 0.036 | R95: 0.002887362058 | T95: 0
B96: ='Rate peg calcs'!B112 -> 155 | C96: =INDEX('Rate peg calcs'!C$37:C$164,MATCH($B96,'Rate peg calcs'!$B$37:$B$164,0)) -> Rural | D96: =INDEX('Rate peg calcs'!D$37:D$164,MATCH($B96,'Rate peg calcs'!$B$37:$B$164,0)) -> Moree Plains | E96: =INDEX('Rate peg calcs'!E$37:E$164,MATCH($B96,'Rate peg calcs'!$B$37:$B$164,0)) -> 0.02988176551 | F96: =INDEX('Rate peg calcs'!F$37:F$164,MATCH($B96,'Rate peg calcs'!$B$37:$B$164,0)) -> 0 | G96: =INDEX('Rate peg calcs'!G$37:G$164,MATCH($B96,'Rate peg calcs'!$B$37:$B$164,0)) -> 0.0006296604824 | H96: =INDEX('Rate peg calcs'!H$37:H$164,MATCH($B96,'Rate peg calcs'!$B$37:$B$164,0)) -> 0.001674834142 | I96: =INDEX('Rate peg calcs'!I$37:I$164,MATCH($B96,'Rate peg calcs'!$B$37:$B$164,0)) -> 0 | J96: =INDEX('Rate peg calcs'!J$37:J$164,MATCH($B96,'Rate peg calcs'!$B$37:$B$164,0)) -> -0.0008064645013 | K96: =INDEX('Rate peg calcs'!K$37:K$164,MATCH($B96,'Rate peg calcs'!$B$37:$B$164,0)) -> 0 | L96: 0.031 | M96: =INDEX('Rate peg calcs'!L$37:L$164,MATCH($B96,'Rate peg calcs'!$B$37:$B$164,0)) -> 0 | N96: =INDEX('Rate peg calcs'!M$37:M$164,MATCH($B96,'Rate peg calcs'!$B$37:$B$164,0)) -> 0 | O96: =INDEX('Rate peg calcs'!N$37:N$164,MATCH($B96,'Rate peg calcs'!$B$37:$B$164,0)) -> 0 | P96: =INDEX('Rate peg calcs'!O$37:O$164,MATCH($B96,'Rate peg calcs'!$B$37:$B$164,0)) -> 0.031 | R96: 0.002304494624 | T96: 0
B97: ='Rate peg calcs'!B113 -> 156 | C97: =INDEX('Rate peg calcs'!C$37:C$164,MATCH($B97,'Rate peg calcs'!$B$37:$B$164,0)) -> Metropolitan | D97: =INDEX('Rate peg calcs'!D$37:D$164,MATCH($B97,'Rate peg calcs'!$B$37:$B$164,0)) -> Mosman | E97: =INDEX('Rate peg calcs'!E$37:E$164,MATCH($B97,'Rate peg calcs'!$B$37:$B$164,0)) -> 0.02951901918 | F97: =INDEX('Rate peg calcs'!F$37:F$164,MATCH($B97,'Rate peg calcs'!$B$37:$B$164,0)) -> 0 | G97: =INDEX('Rate peg calcs'!G$37:G$164,MATCH($B97,'Rate peg calcs'!$B$37:$B$164,0)) -> 0.003587017598 | H97: =INDEX('Rate peg calcs'!H$37:H$164,MATCH($B97,'Rate peg calcs'!$B$37:$B$164,0)) -> 0.002774314839 | I97: =INDEX('Rate peg calcs'!I$37:I$164,MATCH($B97,'Rate peg calcs'!$B$37:$B$164,0)) -> 0 | J97: =INDEX('Rate peg calcs'!J$37:J$164,MATCH($B97,'Rate peg calcs'!$B$37:$B$164,0)) -> -0.000994418592 | K97: =INDEX('Rate peg calcs'!K$37:K$164,MATCH($B97,'Rate peg calcs'!$B$37:$B$164,0)) -> 0 | L97: 0.035 | M97: =INDEX('Rate peg calcs'!L$37:L$164,MATCH($B97,'Rate peg calcs'!$B$37:$B$164,0)) -> 0.006122098022 | N97: =INDEX('Rate peg calcs'!M$37:M$164,MATCH($B97,'Rate peg calcs'!$B$37:$B$164,0)) -> 8.753118298e-05 | O97: =INDEX('Rate peg calcs'!N$37:N$164,MATCH($B97,'Rate peg calcs'!$B$37:$B$164,0)) -> 0.006 | P97: =INDEX('Rate peg calcs'!O$37:O$164,MATCH($B97,'Rate peg calcs'!$B$37:$B$164,0)) -> 0.041 | R97: 0.006361332437 | T97: 0
B98: ='Rate peg calcs'!B114 -> 2085 | C98: =INDEX('Rate peg calcs'!C$37:C$164,MATCH($B98,'Rate peg calcs'!$B$37:$B$164,0)) -> Rural | D98: =INDEX('Rate peg calcs'!D$37:D$164,MATCH($B98,'Rate peg calcs'!$B$37:$B$164,0)) -> Murray River | E98: =INDEX('Rate peg calcs'!E$37:E$164,MATCH($B98,'Rate peg calcs'!$B$37:$B$164,0)) -> 0.02988176551 | F98: =INDEX('Rate peg calcs'!F$37:F$164,MATCH($B98,'Rate peg calcs'!$B$37:$B$164,0)) -> 0 | G98: =INDEX('Rate peg calcs'!G$37:G$164,MATCH($B98,'Rate peg calcs'!$B$37:$B$164,0)) -> 0.001020304395 | H98: =INDEX('Rate peg calcs'!H$37:H$164,MATCH($B98,'Rate peg calcs'!$B$37:$B$164,0)) -> 0.003874491695 | I98: =INDEX('Rate peg calcs'!I$37:I$164,MATCH($B98,'Rate peg calcs'!$B$37:$B$164,0)) -> 0 | J98: =INDEX('Rate peg calcs'!J$37:J$164,MATCH($B98,'Rate peg calcs'!$B$37:$B$164,0)) -> -0.003175692277 | K98: =INDEX('Rate peg calcs'!K$37:K$164,MATCH($B98,'Rate peg calcs'!$B$37:$B$164,0)) -> 0 | L98: 0.032 | M98: =INDEX('Rate peg calcs'!L$37:L$164,MATCH($B98,'Rate peg calcs'!$B$37:$B$164,0)) -> 0.01770974036 | N98: =INDEX('Rate peg calcs'!M$37:M$164,MATCH($B98,'Rate peg calcs'!$B$37:$B$164,0)) -> 0.02844779229 | O98: =INDEX('Rate peg calcs'!N$37:N$164,MATCH($B98,'Rate peg calcs'!$B$37:$B$164,0)) -> 0 | P98: =INDEX('Rate peg calcs'!O$37:O$164,MATCH($B98,'Rate peg calcs'!$B$37:$B$164,0)) -> 0.032 | R98: 0.00489479609 | T98: 0
B99: ='Rate peg calcs'!B115 -> 2086 | C99: =INDEX('Rate peg calcs'!C$37:C$164,MATCH($B99,'Rate peg calcs'!$B$37:$B$164,0)) -> Rural | D99: =INDEX('Rate peg calcs'!D$37:D$164,MATCH($B99,'Rate peg calcs'!$B$37:$B$164,0)) -> Murrumbidgee | E99: =INDEX('Rate peg calcs'!E$37:E$164,MATCH($B99,'Rate peg calcs'!$B$37:$B$164,0)) -> 0.02988176551 | F99: =INDEX('Rate peg calcs'!F$37:F$164,MATCH($B99,'Rate peg calcs'!$B$37:$B$164,0)) -> 0 | G99: =INDEX('Rate peg calcs'!G$37:G$164,MATCH($B99,'Rate peg calcs'!$B$37:$B$164,0)) -> 0.001191154709 | H99: =INDEX('Rate peg calcs'!H$37:H$164,MATCH($B99,'Rate peg calcs'!$B$37:$B$164,0)) -> 0.0070622397 | I99: =INDEX('Rate peg calcs'!I$37:I$164,MATCH($B99,'Rate peg calcs'!$B$37:$B$164,0)) -> 0 | J99: =INDEX('Rate peg calcs'!J$37:J$164,MATCH($B99,'Rate peg calcs'!$B$37:$B$164,0)) -> -0.002975017868 | K99: =INDEX('Rate peg calcs'!K$37:K$164,MATCH($B99,'Rate peg calcs'!$B$37:$B$164,0)) -> 0 | L99: 0.035 | M99: =INDEX('Rate peg calcs'!L$37:L$164,MATCH($B99,'Rate peg calcs'!$B$37:$B$164,0)) -> 0.01413917383 | N99: =INDEX('Rate peg calcs'!M$37:M$164,MATCH($B99,'Rate peg calcs'!$B$37:$B$164,0)) -> 0 | O99: =INDEX('Rate peg calcs'!N$37:N$164,MATCH($B99,'Rate peg calcs'!$B$37:$B$164,0)) -> 0.014 | P99: =INDEX('Rate peg calcs'!O$37:O$164,MATCH($B99,'Rate peg calcs'!$B$37:$B$164,0)) -> 0.049 | R99: 0.008253394408 | T99: 0
B100: ='Rate peg calcs'!B116 -> 162 | C100: =INDEX('Rate peg calcs'!C$37:C$164,MATCH($B100,'Rate peg calcs'!$B$37:$B$164,0)) -> Rural | D100: =INDEX('Rate peg calcs'!D$37:D$164,MATCH($B100,'Rate peg calcs'!$B$37:$B$164,0)) -> Muswellbrook | E100: =INDEX('Rate peg calcs'!E$37:E$164,MATCH($B100,'Rate peg calcs'!$B$37:$B$164,0)) -> 0.02988176551 | F100: =INDEX('Rate peg calcs'!F$37:F$164,MATCH($B100,'Rate peg calcs'!$B$37:$B$164,0)) -> 0 | G100: =INDEX('Rate peg calcs'!G$37:G$164,MATCH($B100,'Rate peg calcs'!$B$37:$B$164,0)) -> 0.0004650215725 | H100: =INDEX('Rate peg calcs'!H$37:H$164,MATCH($B100,'Rate peg calcs'!$B$37:$B$164,0)) -> 0.002100243985 | I100: =INDEX('Rate peg calcs'!I$37:I$164,MATCH($B100,'Rate peg calcs'!$B$37:$B$164,0)) -> 0 | J100: =INDEX('Rate peg calcs'!J$37:J$164,MATCH($B100,'Rate peg calcs'!$B$37:$B$164,0)) -> -0.001698395983 | K100: =INDEX('Rate peg calcs'!K$37:K$164,MATCH($B100,'Rate peg calcs'!$B$37:$B$164,0)) -> 0 | L100: 0.031 | M100: =INDEX('Rate peg calcs'!L$37:L$164,MATCH($B100,'Rate peg calcs'!$B$37:$B$164,0)) -> 0.0007237635706 | N100: =INDEX('Rate peg calcs'!M$37:M$164,MATCH($B100,'Rate peg calcs'!$B$37:$B$164,0)) -> 0.002608734764 | O100: =INDEX('Rate peg calcs'!N$37:N$164,MATCH($B100,'Rate peg calcs'!$B$37:$B$164,0)) -> 0 | P100: =INDEX('Rate peg calcs'!O$37:O$164,MATCH($B100,'Rate peg calcs'!$B$37:$B$164,0)) -> 0.031 | R100: 0.002565265558 | T100: 0
B101: ='Rate peg calcs'!B117 -> 163 | C101: =INDEX('Rate peg calcs'!C$37:C$164,MATCH($B101,'Rate peg calcs'!$B$37:$B$164,0)) -> Rural | D101: =INDEX('Rate peg calcs'!D$37:D$164,MATCH($B101,'Rate peg calcs'!$B$37:$B$164,0)) -> Nambucca | E101: =INDEX('Rate peg calcs'!E$37:E$164,MATCH($B101,'Rate peg calcs'!$B$37:$B$164,0)) -> 0.02988176551 | F101: =INDEX('Rate peg calcs'!F$37:F$164,MATCH($B101,'Rate peg calcs'!$B$37:$B$164,0)) -> 0 | G101: =INDEX('Rate peg calcs'!G$37:G$164,MATCH($B101,'Rate peg calcs'!$B$37:$B$164,0)) -> 0.0003803516134 | H101: =INDEX('Rate peg calcs'!H$37:H$164,MATCH($B101,'Rate peg calcs'!$B$37:$B$164,0)) -> 0.003238570601 | I101: =INDEX('Rate peg calcs'!I$37:I$164,MATCH($B101,'Rate peg calcs'!$B$37:$B$164,0)) -> 0 | J101: =INDEX('Rate peg calcs'!J$37:J$164,MATCH($B101,'Rate peg calcs'!$B$37:$B$164,0)) -> -0.001641338846 | K101: =INDEX('Rate peg calcs'!K$37:K$164,MATCH($B101,'Rate peg calcs'!$B$37:$B$164,0)) -> 0 | L101: 0.032 | M101: =INDEX('Rate peg calcs'!L$37:L$164,MATCH($B101,'Rate peg calcs'!$B$37:$B$164,0)) -> 0.01020506402 | N101: =INDEX('Rate peg calcs'!M$37:M$164,MATCH($B101,'Rate peg calcs'!$B$37:$B$164,0)) -> 0.00753968254 | O101: =INDEX('Rate peg calcs'!N$37:N$164,MATCH($B101,'Rate peg calcs'!$B$37:$B$164,0)) -> 0.003 | P101: =INDEX('Rate peg calcs'!O$37:O$164,MATCH($B101,'Rate peg calcs'!$B$37:$B$164,0)) -> 0.035 | R101: 0.003618922215 | T101: 0
B102: ='Rate peg calcs'!B118 -> 164 | C102: =INDEX('Rate peg calcs'!C$37:C$164,MATCH($B102,'Rate peg calcs'!$B$37:$B$164,0)) -> Rural | D102: =INDEX('Rate peg calcs'!D$37:D$164,MATCH($B102,'Rate peg calcs'!$B$37:$B$164,0)) -> Narrabri | E102: =INDEX('Rate peg calcs'!E$37:E$164,MATCH($B102,'Rate peg calcs'!$B$37:$B$164,0)) -> 0.02988176551 | F102: =INDEX('Rate peg calcs'!F$37:F$164,MATCH($B102,'Rate peg calcs'!$B$37:$B$164,0)) -> 0 | G102: =INDEX('Rate peg calcs'!G$37:G$164,MATCH($B102,'Rate peg calcs'!$B$37:$B$164,0)) -> 0.0007156494055 | H102: =INDEX('Rate peg calcs'!H$37:H$164,MATCH($B102,'Rate peg calcs'!$B$37:$B$164,0)) -> 0.002719106694 | I102: =INDEX('Rate peg calcs'!I$37:I$164,MATCH($B102,'Rate peg calcs'!$B$37:$B$164,0)) -> 0 | J102: =INDEX('Rate peg calcs'!J$37:J$164,MATCH($B102,'Rate peg calcs'!$B$37:$B$164,0)) -> -0.002593348425 | K102: =INDEX('Rate peg calcs'!K$37:K$164,MATCH($B102,'Rate peg calcs'!$B$37:$B$164,0)) -> 0 | L102: 0.031 | M102: =INDEX('Rate peg calcs'!L$37:L$164,MATCH($B102,'Rate peg calcs'!$B$37:$B$164,0)) -> 0.003450439147 | N102: =INDEX('Rate peg calcs'!M$37:M$164,MATCH($B102,'Rate peg calcs'!$B$37:$B$164,0)) -> 0 | O102: =INDEX('Rate peg calcs'!N$37:N$164,MATCH($B102,'Rate peg calcs'!$B$37:$B$164,0)) -> 0.003 | P102: =INDEX('Rate peg calcs'!O$37:O$164,MATCH($B102,'Rate peg calcs'!$B$37:$B$164,0)) -> 0.034 | R102: 0.003434756099 | T102: 0
B103: ='Rate peg calcs'!B119 -> 165 | C103: =INDEX('Rate peg calcs'!C$37:C$164,MATCH($B103,'Rate peg calcs'!$B$37:$B$164,0)) -> Rural | D103: =INDEX('Rate peg calcs'!D$37:D$164,MATCH($B103,'Rate peg calcs'!$B$37:$B$164,0)) -> Narrandera | E103: =INDEX('Rate peg calcs'!E$37:E$164,MATCH($B103,'Rate peg calcs'!$B$37:$B$164,0)) -> 0.02988176551 | F103: =INDEX('Rate peg calcs'!F$37:F$164,MATCH($B103,'Rate peg calcs'!$B$37:$B$164,0)) -> 0 | G103: =INDEX('Rate peg calcs'!G$37:G$164,MATCH($B103,'Rate peg calcs'!$B$37:$B$164,0)) -> 0.000985337501 | H103: =INDEX('Rate peg calcs'!H$37:H$164,MATCH($B103,'Rate peg calcs'!$B$37:$B$164,0)) -> 0.003049378429 | I103: =INDEX('Rate peg calcs'!I$37:I$164,MATCH($B103,'Rate peg calcs'!$B$37:$B$164,0)) -> 0 | J103: =INDEX('Rate peg calcs'!J$37:J$164,MATCH($B103,'Rate peg calcs'!$B$37:$B$164,0)) -> -0.001155695508 | K103: =INDEX('Rate peg calcs'!K$37:K$164,MATCH($B103,'Rate peg calcs'!$B$37:$B$164,0)) -> 0 | L103: 0.033 | M103: =INDEX('Rate peg calcs'!L$37:L$164,MATCH($B103,'Rate peg calcs'!$B$37:$B$164,0)) -> 0 | N103: =INDEX('Rate peg calcs'!M$37:M$164,MATCH($B103,'Rate peg calcs'!$B$37:$B$164,0)) -> 0.0003629105426 | O103: =INDEX('Rate peg calcs'!N$37:N$164,MATCH($B103,'Rate peg calcs'!$B$37:$B$164,0)) -> 0 | P103: =INDEX('Rate peg calcs'!O$37:O$164,MATCH($B103,'Rate peg calcs'!$B$37:$B$164,0)) -> 0.033 | R103: 0.00403471593 | T103: 0
B104: ='Rate peg calcs'!B120 -> 166 | C104: =INDEX('Rate peg calcs'!C$37:C$164,MATCH($B104,'Rate peg calcs'!$B$37:$B$164,0)) -> Rural | D104: =INDEX('Rate peg calcs'!D$37:D$164,MATCH($B104,'Rate peg calcs'!$B$37:$B$164,0)) -> Narromine | E104: =INDEX('Rate peg calcs'!E$37:E$164,MATCH($B104,'Rate peg calcs'!$B$37:$B$164,0)) -> 0.02988176551 | F104: =INDEX('Rate peg calcs'!F$37:F$164,MATCH($B104,'Rate peg calcs'!$B$37:$B$164,0)) -> 0 | G104: =INDEX('Rate peg calcs'!G$37:G$164,MATCH($B104,'Rate peg calcs'!$B$37:$B$164,0)) -> 0.001486954108 | H104: =INDEX('Rate peg calcs'!H$37:H$164,MATCH($B104,'Rate peg calcs'!$B$37:$B$164,0)) -> 0.004713003972 | I104: =INDEX('Rate peg calcs'!I$37:I$164,MATCH($B104,'Rate peg calcs'!$B$37:$B$164,0)) -> 0 | J104: =INDEX('Rate peg calcs'!J$37:J$164,MATCH($B104,'Rate peg calcs'!$B$37:$B$164,0)) -> -0.00171547115 | K104: =INDEX('Rate peg calcs'!K$37:K$164,MATCH($B104,'Rate peg calcs'!$B$37:$B$164,0)) -> 0 | L104: 0.034 | M104: =INDEX('Rate peg calcs'!L$37:L$164,MATCH($B104,'Rate peg calcs'!$B$37:$B$164,0)) -> 0 | N104: =INDEX('Rate peg calcs'!M$37:M$164,MATCH($B104,'Rate peg calcs'!$B$37:$B$164,0)) -> 0.006001846722 | O104: =INDEX('Rate peg calcs'!N$37:N$164,MATCH($B104,'Rate peg calcs'!$B$37:$B$164,0)) -> 0 | P104: =INDEX('Rate peg calcs'!O$37:O$164,MATCH($B104,'Rate peg calcs'!$B$37:$B$164,0)) -> 0.034 | R104: 0.00619995808 | T104: 0
B105: ='Rate peg calcs'!B121 -> 167 | C105: =INDEX('Rate peg calcs'!C$37:C$164,MATCH($B105,'Rate peg calcs'!$B$37:$B$164,0)) -> Regional | D105: =INDEX('Rate peg calcs'!D$37:D$164,MATCH($B105,'Rate peg calcs'!$B$37:$B$164,0)) -> Newcastle | E105: =INDEX('Rate peg calcs'!E$37:E$164,MATCH($B105,'Rate peg calcs'!$B$37:$B$164,0)) -> 0.02980866065 | F105: =INDEX('Rate peg calcs'!F$37:F$164,MATCH($B105,'Rate peg calcs'!$B$37:$B$164,0)) -> 0 | G105: =INDEX('Rate peg calcs'!G$37:G$164,MATCH($B105,'Rate peg calcs'!$B$37:$B$164,0)) -> 0.0005170667759 | H105: =INDEX('Rate peg calcs'!H$37:H$164,MATCH($B105,'Rate peg calcs'!$B$37:$B$164,0)) -> 0.001040116594 | I105: =INDEX('Rate peg calcs'!I$37:I$164,MATCH($B105,'Rate peg calcs'!$B$37:$B$164,0)) -> 5.540295499e-05 | J105: =INDEX('Rate peg calcs'!J$37:J$164,MATCH($B105,'Rate peg calcs'!$B$37:$B$164,0)) -> -0.0009436034093 | K105: =INDEX('Rate peg calcs'!K$37:K$164,MATCH($B105,'Rate peg calcs'!$B$37:$B$164,0)) -> 0 | L105: 0.03 | M105: =INDEX('Rate peg calcs'!L$37:L$164,MATCH($B105,'Rate peg calcs'!$B$37:$B$164,0)) -> 0.01482756642 | N105: =INDEX('Rate peg calcs'!M$37:M$164,MATCH($B105,'Rate peg calcs'!$B$37:$B$164,0)) -> 0.003294312078 | O105: =INDEX('Rate peg calcs'!N$37:N$164,MATCH($B105,'Rate peg calcs'!$B$37:$B$164,0)) -> 0.012 | P105: =INDEX('Rate peg calcs'!O$37:O$164,MATCH($B105,'Rate peg calcs'!$B$37:$B$164,0)) -> 0.042 | R105: 0.00155718337 | T105: 0
B106: ='Rate peg calcs'!B122 -> 168 | C106: =INDEX('Rate peg calcs'!C$37:C$164,MATCH($B106,'Rate peg calcs'!$B$37:$B$164,0)) -> Metropolitan | D106: =INDEX('Rate peg calcs'!D$37:D$164,MATCH($B106,'Rate peg calcs'!$B$37:$B$164,0)) -> North Sydney | E106: =INDEX('Rate peg calcs'!E$37:E$164,MATCH($B106,'Rate peg calcs'!$B$37:$B$164,0)) -> 0.02951901918 | F106: =INDEX('Rate peg calcs'!F$37:F$164,MATCH($B106,'Rate peg calcs'!$B$37:$B$164,0)) -> 0 | G106: =INDEX('Rate peg calcs'!G$37:G$164,MATCH($B106,'Rate peg calcs'!$B$37:$B$164,0)) -> 0.001475954915 | H106: =INDEX('Rate peg calcs'!H$37:H$164,MATCH($B106,'Rate peg calcs'!$B$37:$B$164,0)) -> 0.001770169719 | I106: =INDEX('Rate peg calcs'!I$37:I$164,MATCH($B106,'Rate peg calcs'!$B$37:$B$164,0)) -> 0 | J106: =INDEX('Rate peg calcs'!J$37:J$164,MATCH($B106,'Rate peg calcs'!$B$37:$B$164,0)) -> -0.002353902669 | K106: =INDEX('Rate peg calcs'!K$37:K$164,MATCH($B106,'Rate peg calcs'!$B$37:$B$164,0)) -> 0 | L106: 0.03 | M106: =INDEX('Rate peg calcs'!L$37:L$164,MATCH($B106,'Rate peg calcs'!$B$37:$B$164,0)) -> 0.01238596443 | N106: =INDEX('Rate peg calcs'!M$37:M$164,MATCH($B106,'Rate peg calcs'!$B$37:$B$164,0)) -> 0.002822409249 | O106: =INDEX('Rate peg calcs'!N$37:N$164,MATCH($B106,'Rate peg calcs'!$B$37:$B$164,0)) -> 0.01 | P106: =INDEX('Rate peg calcs'!O$37:O$164,MATCH($B106,'Rate peg calcs'!$B$37:$B$164,0)) -> 0.04 | R106: 0.003246124634 | T106: 0
B107: ='Rate peg calcs'!B123 -> 2087 | C107: =INDEX('Rate peg calcs'!C$37:C$164,MATCH($B107,'Rate peg calcs'!$B$37:$B$164,0)) -> Metropolitan | D107: =INDEX('Rate peg calcs'!D$37:D$164,MATCH($B107,'Rate peg calcs'!$B$37:$B$164,0)) -> Northern Beaches | E107: =INDEX('Rate peg calcs'!E$37:E$164,MATCH($B107,'Rate peg calcs'!$B$37:$B$164,0)) -> 0.02951901918 | F107: =INDEX('Rate peg calcs'!F$37:F$164,MATCH($B107,'Rate peg calcs'!$B$37:$B$164,0)) -> 0 | G107: =INDEX('Rate peg calcs'!G$37:G$164,MATCH($B107,'Rate peg calcs'!$B$37:$B$164,0)) -> 0.0009080077117 | H107: =INDEX('Rate peg calcs'!H$37:H$164,MATCH($B107,'Rate peg calcs'!$B$37:$B$164,0)) -> 0.001957340928 | I107: =INDEX('Rate peg calcs'!I$37:I$164,MATCH($B107,'Rate peg calcs'!$B$37:$B$164,0)) -> 0 | J107: =INDEX('Rate peg calcs'!J$37:J$164,MATCH($B107,'Rate peg calcs'!$B$37:$B$164,0)) -> -0.001045880676 | K107: =INDEX('Rate peg calcs'!K$37:K$164,MATCH($B107,'Rate peg calcs'!$B$37:$B$164,0)) -> 0 | L107: 0.031 | M107: =INDEX('Rate peg calcs'!L$37:L$164,MATCH($B107,'Rate peg calcs'!$B$37:$B$164,0)) -> 0.01072419083 | N107: =INDEX('Rate peg calcs'!M$37:M$164,MATCH($B107,'Rate peg calcs'!$B$37:$B$164,0)) -> 0.0008130297314 | O107: =INDEX('Rate peg calcs'!N$37:N$164,MATCH($B107,'Rate peg calcs'!$B$37:$B$164,0)) -> 0.01 | P107: =INDEX('Rate peg calcs'!O$37:O$164,MATCH($B107,'Rate peg calcs'!$B$37:$B$164,0)) -> 0.041 | R107: 0.00286534864 | T107: 0
B108: ='Rate peg calcs'!B124 -> 2045 | C108: =INDEX('Rate peg calcs'!C$37:C$164,MATCH($B108,'Rate peg calcs'!$B$37:$B$164,0)) -> Rural | D108: =INDEX('Rate peg calcs'!D$37:D$164,MATCH($B108,'Rate peg calcs'!$B$37:$B$164,0)) -> Oberon | E108: =INDEX('Rate peg calcs'!E$37:E$164,MATCH($B108,'Rate peg calcs'!$B$37:$B$164,0)) -> 0.02988176551 | F108: =INDEX('Rate peg calcs'!F$37:F$164,MATCH($B108,'Rate peg calcs'!$B$37:$B$164,0)) -> 0 | G108: =INDEX('Rate peg calcs'!G$37:G$164,MATCH($B108,'Rate peg calcs'!$B$37:$B$164,0)) -> 0.001771299144 | H108: =INDEX('Rate peg calcs'!H$37:H$164,MATCH($B108,'Rate peg calcs'!$B$37:$B$164,0)) -> 0.006172383617 | I108: =INDEX('Rate peg calcs'!I$37:I$164,MATCH($B108,'Rate peg calcs'!$B$37:$B$164,0)) -> 0 | J108: =INDEX('Rate peg calcs'!J$37:J$164,MATCH($B108,'Rate peg calcs'!$B$37:$B$164,0)) -> -0.005786895467 | K108: =INDEX('Rate peg calcs'!K$37:K$164,MATCH($B108,'Rate peg calcs'!$B$37:$B$164,0)) -> 0 | L108: 0.032 | M108: =INDEX('Rate peg calcs'!L$37:L$164,MATCH($B108,'Rate peg calcs'!$B$37:$B$164,0)) -> 0.0007142857143 | N108: =INDEX('Rate peg calcs'!M$37:M$164,MATCH($B108,'Rate peg calcs'!$B$37:$B$164,0)) -> 0 | O108: =INDEX('Rate peg calcs'!N$37:N$164,MATCH($B108,'Rate peg calcs'!$B$37:$B$164,0)) -> 0.001 | P108: =INDEX('Rate peg calcs'!O$37:O$164,MATCH($B108,'Rate peg calcs'!$B$37:$B$164,0)) -> 0.033 | R108: 0.007943682761 | T108: 0
B109: ='Rate peg calcs'!B125 -> 172 | C109: =INDEX('Rate peg calcs'!C$37:C$164,MATCH($B109,'Rate peg calcs'!$B$37:$B$164,0)) -> Regional | D109: =INDEX('Rate peg calcs'!D$37:D$164,MATCH($B109,'Rate peg calcs'!$B$37:$B$164,0)) -> Orange | E109: =INDEX('Rate peg calcs'!E$37:E$164,MATCH($B109,'Rate peg calcs'!$B$37:$B$164,0)) -> 0.02980866065 | F109: =INDEX('Rate peg calcs'!F$37:F$164,MATCH($B109,'Rate peg calcs'!$B$37:$B$164,0)) -> 0 | G109: =INDEX('Rate peg calcs'!G$37:G$164,MATCH($B109,'Rate peg calcs'!$B$37:$B$164,0)) -> 0.000368407812 | H109: =INDEX('Rate peg calcs'!H$37:H$164,MATCH($B109,'Rate peg calcs'!$B$37:$B$164,0)) -> 0.00151704261 | I109: =INDEX('Rate peg calcs'!I$37:I$164,MATCH($B109,'Rate peg calcs'!$B$37:$B$164,0)) -> 0 | J109: =INDEX('Rate peg calcs'!J$37:J$164,MATCH($B109,'Rate peg calcs'!$B$37:$B$164,0)) -> -0.001564451636 | K109: =INDEX('Rate peg calcs'!K$37:K$164,MATCH($B109,'Rate peg calcs'!$B$37:$B$164,0)) -> 0 | L109: 0.03 | M109: =INDEX('Rate peg calcs'!L$37:L$164,MATCH($B109,'Rate peg calcs'!$B$37:$B$164,0)) -> 0.008454652319 | N109: =INDEX('Rate peg calcs'!M$37:M$164,MATCH($B109,'Rate peg calcs'!$B$37:$B$164,0)) -> 0.01286442871 | O109: =INDEX('Rate peg calcs'!N$37:N$164,MATCH($B109,'Rate peg calcs'!$B$37:$B$164,0)) -> 0 | P109: =INDEX('Rate peg calcs'!O$37:O$164,MATCH($B109,'Rate peg calcs'!$B$37:$B$164,0)) -> 0.03 | R109: 0.001885450422 | T109: 0
B110: ='Rate peg calcs'!B126 -> 173 | C110: =INDEX('Rate peg calcs'!C$37:C$164,MATCH($B110,'Rate peg calcs'!$B$37:$B$164,0)) -> Rural | D110: =INDEX('Rate peg calcs'!D$37:D$164,MATCH($B110,'Rate peg calcs'!$B$37:$B$164,0)) -> Parkes | E110: =INDEX('Rate peg calcs'!E$37:E$164,MATCH($B110,'Rate peg calcs'!$B$37:$B$164,0)) -> 0.02988176551 | F110: =INDEX('Rate peg calcs'!F$37:F$164,MATCH($B110,'Rate peg calcs'!$B$37:$B$164,0)) -> 0 | G110: =INDEX('Rate peg calcs'!G$37:G$164,MATCH($B110,'Rate peg calcs'!$B$37:$B$164,0)) -> 0.0005937119841 | H110: =INDEX('Rate peg calcs'!H$37:H$164,MATCH($B110,'Rate peg calcs'!$B$37:$B$164,0)) -> 0.002749625409 | I110: =INDEX('Rate peg calcs'!I$37:I$164,MATCH($B110,'Rate peg calcs'!$B$37:$B$164,0)) -> 0 | J110: =INDEX('Rate peg calcs'!J$37:J$164,MATCH($B110,'Rate peg calcs'!$B$37:$B$164,0)) -> -0.001989413358 | K110: =INDEX('Rate peg calcs'!K$37:K$164,MATCH($B110,'Rate peg calcs'!$B$37:$B$164,0)) -> 0 | L110: 0.031 | M110: =INDEX('Rate peg calcs'!L$37:L$164,MATCH($B110,'Rate peg calcs'!$B$37:$B$164,0)) -> 0 | N110: =INDEX('Rate peg calcs'!M$37:M$164,MATCH($B110,'Rate peg calcs'!$B$37:$B$164,0)) -> 0.002094706106 | O110: =INDEX('Rate peg calcs'!N$37:N$164,MATCH($B110,'Rate peg calcs'!$B$37:$B$164,0)) -> 0 | P110: =INDEX('Rate peg calcs'!O$37:O$164,MATCH($B110,'Rate peg calcs'!$B$37:$B$164,0)) -> 0.031 | R110: 0.003343337393 | T110: 0
B111: ='Rate peg calcs'!B127 -> 2089 | C111: =INDEX('Rate peg calcs'!C$37:C$164,MATCH($B111,'Rate peg calcs'!$B$37:$B$164,0)) -> Metropolitan | D111: =INDEX('Rate peg calcs'!D$37:D$164,MATCH($B111,'Rate peg calcs'!$B$37:$B$164,0)) -> Parramatta | E111: =INDEX('Rate peg calcs'!E$37:E$164,MATCH($B111,'Rate peg calcs'!$B$37:$B$164,0)) -> 0.02951901918 | F111: =INDEX('Rate peg calcs'!F$37:F$164,MATCH($B111,'Rate peg calcs'!$B$37:$B$164,0)) -> 0 | G111: =INDEX('Rate peg calcs'!G$37:G$164,MATCH($B111,'Rate peg calcs'!$B$37:$B$164,0)) -> 0.0006790464723 | H111: =INDEX('Rate peg calcs'!H$37:H$164,MATCH($B111,'Rate peg calcs'!$B$37:$B$164,0)) -> 0.0002694782339 | I111: =INDEX('Rate peg calcs'!I$37:I$164,MATCH($B111,'Rate peg calcs'!$B$37:$B$164,0)) -> 0.0003017020865 | J111: =INDEX('Rate peg calcs'!J$37:J$164,MATCH($B111,'Rate peg calcs'!$B$37:$B$164,0)) -> -0.0008777199296 | K111: =INDEX('Rate peg calcs'!K$37:K$164,MATCH($B111,'Rate peg calcs'!$B$37:$B$164,0)) -> 0 | L111: 0.03 | M111: =INDEX('Rate peg calcs'!L$37:L$164,MATCH($B111,'Rate peg calcs'!$B$37:$B$164,0)) -> 0.02098676994 | N111: =INDEX('Rate peg calcs'!M$37:M$164,MATCH($B111,'Rate peg calcs'!$B$37:$B$164,0)) -> 0.002582137683 | O111: =INDEX('Rate peg calcs'!N$37:N$164,MATCH($B111,'Rate peg calcs'!$B$37:$B$164,0)) -> 0.018 | P111: =INDEX('Rate peg calcs'!O$37:O$164,MATCH($B111,'Rate peg calcs'!$B$37:$B$164,0)) -> 0.048 | R111: 0.0009485247063 | T111: 0
B112: ='Rate peg calcs'!B128 -> 176 | C112: =INDEX('Rate peg calcs'!C$37:C$164,MATCH($B112,'Rate peg calcs'!$B$37:$B$164,0)) -> Metropolitan | D112: =INDEX('Rate peg calcs'!D$37:D$164,MATCH($B112,'Rate peg calcs'!$B$37:$B$164,0)) -> Penrith | E112: =INDEX('Rate peg calcs'!E$37:E$164,MATCH($B112,'Rate peg calcs'!$B$37:$B$164,0)) -> 0.02951901918 | F112: =INDEX('Rate peg calcs'!F$37:F$164,MATCH($B112,'Rate peg calcs'!$B$37:$B$164,0)) -> 0 | G112: =INDEX('Rate peg calcs'!G$37:G$164,MATCH($B112,'Rate peg calcs'!$B$37:$B$164,0)) -> 0.0004727796257 | H112: =INDEX('Rate peg calcs'!H$37:H$164,MATCH($B112,'Rate peg calcs'!$B$37:$B$164,0)) -> 0.001400341575 | I112: =INDEX('Rate peg calcs'!I$37:I$164,MATCH($B112,'Rate peg calcs'!$B$37:$B$164,0)) -> 0.0001141279235 | J112: =INDEX('Rate peg calcs'!J$37:J$164,MATCH($B112,'Rate peg calcs'!$B$37:$B$164,0)) -> -0.00164302988 | K112: =INDEX('Rate peg calcs'!K$37:K$164,MATCH($B112,'Rate peg calcs'!$B$37:$B$164,0)) -> 0 | L112: 0.03 | M112: =INDEX('Rate peg calcs'!L$37:L$164,MATCH($B112,'Rate peg calcs'!$B$37:$B$164,0)) -> 0.01879556075 | N112: =INDEX('Rate peg calcs'!M$37:M$164,MATCH($B112,'Rate peg calcs'!$B$37:$B$164,0)) -> 0.01170043221 | O112: =INDEX('Rate peg calcs'!N$37:N$164,MATCH($B112,'Rate peg calcs'!$B$37:$B$164,0)) -> 0.007 | P112: =INDEX('Rate peg calcs'!O$37:O$164,MATCH($B112,'Rate peg calcs'!$B$37:$B$164,0)) -> 0.037 | R112: 0.001873121201 | T112: 0
B113: ='Rate peg calcs'!B129 -> 124 | C113: =INDEX('Rate peg calcs'!C$37:C$164,MATCH($B113,'Rate peg calcs'!$B$37:$B$164,0)) -> Regional | D113: =INDEX('Rate peg calcs'!D$37:D$164,MATCH($B113,'Rate peg calcs'!$B$37:$B$164,0)) -> Port Macquarie-Hastings | E113: =INDEX('Rate peg calcs'!E$37:E$164,MATCH($B113,'Rate peg calcs'!$B$37:$B$164,0)) -> 0.02980866065 | F113: =INDEX('Rate peg calcs'!F$37:F$164,MATCH($B113,'Rate peg calcs'!$B$37:$B$164,0)) -> 0 | G113: =INDEX('Rate peg calcs'!G$37:G$164,MATCH($B113,'Rate peg calcs'!$B$37:$B$164,0)) -> -6.100860925e-05 | H113: =INDEX('Rate peg calcs'!H$37:H$164,MATCH($B113,'Rate peg calcs'!$B$37:$B$164,0)) -> 0.001651214484 | I113: =INDEX('Rate peg calcs'!I$37:I$164,MATCH($B113,'Rate peg calcs'!$B$37:$B$164,0)) -> 0 | J113: =INDEX('Rate peg calcs'!J$37:J$164,MATCH($B113,'Rate peg calcs'!$B$37:$B$164,0)) -> -0.002105082366 | K113: =INDEX('Rate peg calcs'!K$37:K$164,MATCH($B113,'Rate peg calcs'!$B$37:$B$164,0)) -> 0 | L113: 0.029 | M113: =INDEX('Rate peg calcs'!L$37:L$164,MATCH($B113,'Rate peg calcs'!$B$37:$B$164,0)) -> 0.01384005804 | N113: =INDEX('Rate peg calcs'!M$37:M$164,MATCH($B113,'Rate peg calcs'!$B$37:$B$164,0)) -> 0.008917197452 | O113: =INDEX('Rate peg calcs'!N$37:N$164,MATCH($B113,'Rate peg calcs'!$B$37:$B$164,0)) -> 0.005 | P113: =INDEX('Rate peg calcs'!O$37:O$164,MATCH($B113,'Rate peg calcs'!$B$37:$B$164,0)) -> 0.034 | R113: 0.001590205875 | T113: 0
B114: ='Rate peg calcs'!B130 -> 178 | C114: =INDEX('Rate peg calcs'!C$37:C$164,MATCH($B114,'Rate peg calcs'!$B$37:$B$164,0)) -> Regional | D114: =INDEX('Rate peg calcs'!D$37:D$164,MATCH($B114,'Rate peg calcs'!$B$37:$B$164,0)) -> Port Stephens | E114: =INDEX('Rate peg calcs'!E$37:E$164,MATCH($B114,'Rate peg calcs'!$B$37:$B$164,0)) -> 0.02980866065 | F114: =INDEX('Rate peg calcs'!F$37:F$164,MATCH($B114,'Rate peg calcs'!$B$37:$B$164,0)) -> 0 | G114: =INDEX('Rate peg calcs'!G$37:G$164,MATCH($B114,'Rate peg calcs'!$B$37:$B$164,0)) -> -0.0003016958954 | H114: =INDEX('Rate peg calcs'!H$37:H$164,MATCH($B114,'Rate peg calcs'!$B$37:$B$164,0)) -> 0.002686419685 | I114: =INDEX('Rate peg calcs'!I$37:I$164,MATCH($B114,'Rate peg calcs'!$B$37:$B$164,0)) -> 0 | J114: =INDEX('Rate peg calcs'!J$37:J$164,MATCH($B114,'Rate peg calcs'!$B$37:$B$164,0)) -> -0.001811423799 | K114: =INDEX('Rate peg calcs'!K$37:K$164,MATCH($B114,'Rate peg calcs'!$B$37:$B$164,0)) -> 0 | L114: 0.03 | M114: =INDEX('Rate peg calcs'!L$37:L$164,MATCH($B114,'Rate peg calcs'!$B$37:$B$164,0)) -> 0.01497260168 | N114: =INDEX('Rate peg calcs'!M$37:M$164,MATCH($B114,'Rate peg calcs'!$B$37:$B$164,0)) -> 0.003609426082 | O114: =INDEX('Rate peg calcs'!N$37:N$164,MATCH($B114,'Rate peg calcs'!$B$37:$B$164,0)) -> 0.011 | P114: =INDEX('Rate peg calcs'!O$37:O$164,MATCH($B114,'Rate peg calcs'!$B$37:$B$164,0)) -> 0.041 | R114: 0.00238472379 | T114: 0
B115: ='Rate peg calcs'!B131 -> 2095 | C115: =INDEX('Rate peg calcs'!C$37:C$164,MATCH($B115,'Rate peg calcs'!$B$37:$B$164,0)) -> Regional | D115: =INDEX('Rate peg calcs'!D$37:D$164,MATCH($B115,'Rate peg calcs'!$B$37:$B$164,0)) -> Queanbeyan-Palerang Regional | E115: =INDEX('Rate peg calcs'!E$37:E$164,MATCH($B115,'Rate peg calcs'!$B$37:$B$164,0)) -> 0.02980866065 | F115: =INDEX('Rate peg calcs'!F$37:F$164,MATCH($B115,'Rate peg calcs'!$B$37:$B$164,0)) -> 0 | G115: =INDEX('Rate peg calcs'!G$37:G$164,MATCH($B115,'Rate peg calcs'!$B$37:$B$164,0)) -> -0.0006831801862 | H115: =INDEX('Rate peg calcs'!H$37:H$164,MATCH($B115,'Rate peg calcs'!$B$37:$B$164,0)) -> 0.00313559606 | I115: =INDEX('Rate peg calcs'!I$37:I$164,MATCH($B115,'Rate peg calcs'!$B$37:$B$164,0)) -> 0 | J115: =INDEX('Rate peg calcs'!J$37:J$164,MATCH($B115,'Rate peg calcs'!$B$37:$B$164,0)) -> -0.001357463754 | K115: =INDEX('Rate peg calcs'!K$37:K$164,MATCH($B115,'Rate peg calcs'!$B$37:$B$164,0)) -> 0 | L115: 0.031 | M115: =INDEX('Rate peg calcs'!L$37:L$164,MATCH($B115,'Rate peg calcs'!$B$37:$B$164,0)) -> 0.0229828776 | N115: =INDEX('Rate peg calcs'!M$37:M$164,MATCH($B115,'Rate peg calcs'!$B$37:$B$164,0)) -> 0.02703178484 | O115: =INDEX('Rate peg calcs'!N$37:N$164,MATCH($B115,'Rate peg calcs'!$B$37:$B$164,0)) -> 0 | P115: =INDEX('Rate peg calcs'!O$37:O$164,MATCH($B115,'Rate peg calcs'!$B$37:$B$164,0)) -> 0.031 | R115: 0.002452415874 | T115: 0
B116: ='Rate peg calcs'!B132 -> 181 | C116: =INDEX('Rate peg calcs'!C$37:C$164,MATCH($B116,'Rate peg calcs'!$B$37:$B$164,0)) -> Metropolitan | D116: =INDEX('Rate peg calcs'!D$37:D$164,MATCH($B116,'Rate peg calcs'!$B$37:$B$164,0)) -> Randwick | E116: =INDEX('Rate peg calcs'!E$37:E$164,MATCH($B116,'Rate peg calcs'!$B$37:$B$164,0)) -> 0.02951901918 | F116: =INDEX('Rate peg calcs'!F$37:F$164,MATCH($B116,'Rate peg calcs'!$B$37:$B$164,0)) -> 0 | G116: =INDEX('Rate peg calcs'!G$37:G$164,MATCH($B116,'Rate peg calcs'!$B$37:$B$164,0)) -> 0.0008444412246 | H116: =INDEX('Rate peg calcs'!H$37:H$164,MATCH($B116,'Rate peg calcs'!$B$37:$B$164,0)) -> 0.001437413584 | I116: =INDEX('Rate peg calcs'!I$37:I$164,MATCH($B116,'Rate peg calcs'!$B$37:$B$164,0)) -> 0 | J116: =INDEX('Rate peg calcs'!J$37:J$164,MATCH($B116,'Rate peg calcs'!$B$37:$B$164,0)) -> -0.001070818055 | K116: =INDEX('Rate peg calcs'!K$37:K$164,MATCH($B116,'Rate peg calcs'!$B$37:$B$164,0)) -> 0 | L116: 0.031 | M116: =INDEX('Rate peg calcs'!L$37:L$164,MATCH($B116,'Rate peg calcs'!$B$37:$B$164,0)) -> 0.01915733288 | N116: =INDEX('Rate peg calcs'!M$37:M$164,MATCH($B116,'Rate peg calcs'!$B$37:$B$164,0)) -> 0.0004661634746 | O116: =INDEX('Rate peg calcs'!N$37:N$164,MATCH($B116,'Rate peg calcs'!$B$37:$B$164,0)) -> 0.019 | P116: =INDEX('Rate peg calcs'!O$37:O$164,MATCH($B116,'Rate peg calcs'!$B$37:$B$164,0)) -> 0.05 | R116: 0.002281854808 | T116: 0
B117: ='Rate peg calcs'!B133 -> 1981 | C117: =INDEX('Rate peg calcs'!C$37:C$164,MATCH($B117,'Rate peg calcs'!$B$37:$B$164,0)) -> Regional | D117: =INDEX('Rate peg calcs'!D$37:D$164,MATCH($B117,'Rate peg calcs'!$B$37:$B$164,0)) -> Richmond Valley | E117: =INDEX('Rate peg calcs'!E$37:E$164,MATCH($B117,'Rate peg calcs'!$B$37:$B$164,0)) -> 0.02980866065 | F117: =INDEX('Rate peg calcs'!F$37:F$164,MATCH($B117,'Rate peg calcs'!$B$37:$B$164,0)) -> 0 | G117: =INDEX('Rate peg calcs'!G$37:G$164,MATCH($B117,'Rate peg calcs'!$B$37:$B$164,0)) -> 0.0002037358497 | H117: =INDEX('Rate peg calcs'!H$37:H$164,MATCH($B117,'Rate peg calcs'!$B$37:$B$164,0)) -> 0.002883045763 | I117: =INDEX('Rate peg calcs'!I$37:I$164,MATCH($B117,'Rate peg calcs'!$B$37:$B$164,0)) -> 0 | J117: =INDEX('Rate peg calcs'!J$37:J$164,MATCH($B117,'Rate peg calcs'!$B$37:$B$164,0)) -> -0.001411287698 | K117: =INDEX('Rate peg calcs'!K$37:K$164,MATCH($B117,'Rate peg calcs'!$B$37:$B$164,0)) -> 0 | L117: =P117-O117 -> 0.031 | M117: =INDEX('Rate peg calcs'!L$37:L$164,MATCH($B117,'Rate peg calcs'!$B$37:$B$164,0)) -> 0.007973674218 | N117: =INDEX('Rate peg calcs'!M$37:M$164,MATCH($B117,'Rate peg calcs'!$B$37:$B$164,0)) -> 0.002023174545 | O117: =INDEX('Rate peg calcs'!N$37:N$164,MATCH($B117,'Rate peg calcs'!$B$37:$B$164,0)) -> 0.006 | P117: =INDEX('Rate peg calcs'!O$37:O$164,MATCH($B117,'Rate peg calcs'!$B$37:$B$164,0)) -> 0.037 | R117: =SUM(G117:H117) -> 0.003086781613 | T117: =ROUND(SUM(E117:J117)-K117,3)+O117-P117 -> 0
B118: ='Rate peg calcs'!B134 -> 184 | C118: =INDEX('Rate peg calcs'!C$37:C$164,MATCH($B118,'Rate peg calcs'!$B$37:$B$164,0)) -> Metropolitan | D118: =INDEX('Rate peg calcs'!D$37:D$164,MATCH($B118,'Rate peg calcs'!$B$37:$B$164,0)) -> Ryde | E118: =INDEX('Rate peg calcs'!E$37:E$164,MATCH($B118,'Rate peg calcs'!$B$37:$B$164,0)) -> 0.02951901918 | F118: =INDEX('Rate peg calcs'!F$37:F$164,MATCH($B118,'Rate peg calcs'!$B$37:$B$164,0)) -> 0 | G118: =INDEX('Rate peg calcs'!G$37:G$164,MATCH($B118,'Rate peg calcs'!$B$37:$B$164,0)) -> 0.001151672741 | H118: =INDEX('Rate peg calcs'!H$37:H$164,MATCH($B118,'Rate peg calcs'!$B$37:$B$164,0)) -> 0.001616042827 | I118: =INDEX('Rate peg calcs'!I$37:I$164,MATCH($B118,'Rate peg calcs'!$B$37:$B$164,0)) -> 0 | J118: =INDEX('Rate peg calcs'!J$37:J$164,MATCH($B118,'Rate peg calcs'!$B$37:$B$164,0)) -> -0.001551445283 | K118: =INDEX('Rate peg calcs'!K$37:K$164,MATCH($B118,'Rate peg calcs'!$B$37:$B$164,0)) -> 0 | L118: 0.031 | M118: =INDEX('Rate peg calcs'!L$37:L$164,MATCH($B118,'Rate peg calcs'!$B$37:$B$164,0)) -> 0.02462694816 | N118: =INDEX('Rate peg calcs'!M$37:M$164,MATCH($B118,'Rate peg calcs'!$B$37:$B$164,0)) -> 0.004358208955 | O118: =INDEX('Rate peg calcs'!N$37:N$164,MATCH($B118,'Rate peg calcs'!$B$37:$B$164,0)) -> 0.02 | P118: =INDEX('Rate peg calcs'!O$37:O$164,MATCH($B118,'Rate peg calcs'!$B$37:$B$164,0)) -> 0.051 | R118: 0.002767715568 | T118: 0
B119: ='Rate peg calcs'!B135 -> 188 | C119: =INDEX('Rate peg calcs'!C$37:C$164,MATCH($B119,'Rate peg calcs'!$B$37:$B$164,0)) -> Regional | D119: =INDEX('Rate peg calcs'!D$37:D$164,MATCH($B119,'Rate peg calcs'!$B$37:$B$164,0)) -> Shellharbour | E119: =INDEX('Rate peg calcs'!E$37:E$164,MATCH($B119,'Rate peg calcs'!$B$37:$B$164,0)) -> 0.02980866065 | F119: =INDEX('Rate peg calcs'!F$37:F$164,MATCH($B119,'Rate peg calcs'!$B$37:$B$164,0)) -> 0 | G119: =INDEX('Rate peg calcs'!G$37:G$164,MATCH($B119,'Rate peg calcs'!$B$37:$B$164,0)) -> 0.0001311199788 | H119: =INDEX('Rate peg calcs'!H$37:H$164,MATCH($B119,'Rate peg calcs'!$B$37:$B$164,0)) -> 0.001396451935 | I119: =INDEX('Rate peg calcs'!I$37:I$164,MATCH($B119,'Rate peg calcs'!$B$37:$B$164,0)) -> 0.0005151499422 | J119: =INDEX('Rate peg calcs'!J$37:J$164,MATCH($B119,'Rate peg calcs'!$B$37:$B$164,0)) -> -0.00104629085 | K119: =INDEX('Rate peg calcs'!K$37:K$164,MATCH($B119,'Rate peg calcs'!$B$37:$B$164,0)) -> 0 | L119: 0.031 | M119: =INDEX('Rate peg calcs'!L$37:L$164,MATCH($B119,'Rate peg calcs'!$B$37:$B$164,0)) -> 0.02309187833 | N119: =INDEX('Rate peg calcs'!M$37:M$164,MATCH($B119,'Rate peg calcs'!$B$37:$B$164,0)) -> 0.01133237034 | O119: =INDEX('Rate peg calcs'!N$37:N$164,MATCH($B119,'Rate peg calcs'!$B$37:$B$164,0)) -> 0.012 | P119: =INDEX('Rate peg calcs'!O$37:O$164,MATCH($B119,'Rate peg calcs'!$B$37:$B$164,0)) -> 0.043 | R119: 0.001527571914 | T119: 0
B120: ='Rate peg calcs'!B136 -> 189 | C120: =INDEX('Rate peg calcs'!C$37:C$164,MATCH($B120,'Rate peg calcs'!$B$37:$B$164,0)) -> Regional | D120: =INDEX('Rate peg calcs'!D$37:D$164,MATCH($B120,'Rate peg calcs'!$B$37:$B$164,0)) -> Shoalhaven | E120: =INDEX('Rate peg calcs'!E$37:E$164,MATCH($B120,'Rate peg calcs'!$B$37:$B$164,0)) -> 0.02980866065 | F120: =INDEX('Rate peg calcs'!F$37:F$164,MATCH($B120,'Rate peg calcs'!$B$37:$B$164,0)) -> 0 | G120: =INDEX('Rate peg calcs'!G$37:G$164,MATCH($B120,'Rate peg calcs'!$B$37:$B$164,0)) -> -0.0005477118847 | H120: =INDEX('Rate peg calcs'!H$37:H$164,MATCH($B120,'Rate peg calcs'!$B$37:$B$164,0)) -> 0.001765533529 | I120: =INDEX('Rate peg calcs'!I$37:I$164,MATCH($B120,'Rate peg calcs'!$B$37:$B$164,0)) -> 0 | J120: =INDEX('Rate peg calcs'!J$37:J$164,MATCH($B120,'Rate peg calcs'!$B$37:$B$164,0)) -> -0.0007690293378 | K120: =INDEX('Rate peg calcs'!K$37:K$164,MATCH($B120,'Rate peg calcs'!$B$37:$B$164,0)) -> 0 | L120: 0.03 | M120: =INDEX('Rate peg calcs'!L$37:L$164,MATCH($B120,'Rate peg calcs'!$B$37:$B$164,0)) -> 0.006500700428 | N120: =INDEX('Rate peg calcs'!M$37:M$164,MATCH($B120,'Rate peg calcs'!$B$37:$B$164,0)) -> 0.005756206428 | O120: =INDEX('Rate peg calcs'!N$37:N$164,MATCH($B120,'Rate peg calcs'!$B$37:$B$164,0)) -> 0.001 | P120: =INDEX('Rate peg calcs'!O$37:O$164,MATCH($B120,'Rate peg calcs'!$B$37:$B$164,0)) -> 0.031 | R120: 0.001217821645 | T120: 0
B121: ='Rate peg calcs'!B137 -> 190 | C121: =INDEX('Rate peg calcs'!C$37:C$164,MATCH($B121,'Rate peg calcs'!$B$37:$B$164,0)) -> Regional | D121: =INDEX('Rate peg calcs'!D$37:D$164,MATCH($B121,'Rate peg calcs'!$B$37:$B$164,0)) -> Singleton | E121: =INDEX('Rate peg calcs'!E$37:E$164,MATCH($B121,'Rate peg calcs'!$B$37:$B$164,0)) -> 0.02980866065 | F121: =INDEX('Rate peg calcs'!F$37:F$164,MATCH($B121,'Rate peg calcs'!$B$37:$B$164,0)) -> 0 | G121: =INDEX('Rate peg calcs'!G$37:G$164,MATCH($B121,'Rate peg calcs'!$B$37:$B$164,0)) -> 0.0001720074684 | H121: =INDEX('Rate peg calcs'!H$37:H$164,MATCH($B121,'Rate peg calcs'!$B$37:$B$164,0)) -> 0.002604479301 | I121: =INDEX('Rate peg calcs'!I$37:I$164,MATCH($B121,'Rate peg calcs'!$B$37:$B$164,0)) -> 0 | J121: =INDEX('Rate peg calcs'!J$37:J$164,MATCH($B121,'Rate peg calcs'!$B$37:$B$164,0)) -> -0.0008185495765 | K121: =INDEX('Rate peg calcs'!K$37:K$164,MATCH($B121,'Rate peg calcs'!$B$37:$B$164,0)) -> 0 | L121: 0.032 | M121: =INDEX('Rate peg calcs'!L$37:L$164,MATCH($B121,'Rate peg calcs'!$B$37:$B$164,0)) -> 0.01227890082 | N121: =INDEX('Rate peg calcs'!M$37:M$164,MATCH($B121,'Rate peg calcs'!$B$37:$B$164,0)) -> 0.002338485929 | O121: =INDEX('Rate peg calcs'!N$37:N$164,MATCH($B121,'Rate peg calcs'!$B$37:$B$164,0)) -> 0.01 | P121: =INDEX('Rate peg calcs'!O$37:O$164,MATCH($B121,'Rate peg calcs'!$B$37:$B$164,0)) -> 0.042 | R121: 0.002776486769 | T121: 0
B122: ='Rate peg calcs'!B138 -> 2096 | C122: =INDEX('Rate peg calcs'!C$37:C$164,MATCH($B122,'Rate peg calcs'!$B$37:$B$164,0)) -> Regional | D122: =INDEX('Rate peg calcs'!D$37:D$164,MATCH($B122,'Rate peg calcs'!$B$37:$B$164,0)) -> Snowy Monaro Regional | E122: =INDEX('Rate peg calcs'!E$37:E$164,MATCH($B122,'Rate peg calcs'!$B$37:$B$164,0)) -> 0.02980866065 | F122: =INDEX('Rate peg calcs'!F$37:F$164,MATCH($B122,'Rate peg calcs'!$B$37:$B$164,0)) -> 0 | G122: =INDEX('Rate peg calcs'!G$37:G$164,MATCH($B122,'Rate peg calcs'!$B$37:$B$164,0)) -> 0.00119385227 | H122: =INDEX('Rate peg calcs'!H$37:H$164,MATCH($B122,'Rate peg calcs'!$B$37:$B$164,0)) -> 0.009226671032 | I122: =INDEX('Rate peg calcs'!I$37:I$164,MATCH($B122,'Rate peg calcs'!$B$37:$B$164,0)) -> 0 | J122: =INDEX('Rate peg calcs'!J$37:J$164,MATCH($B122,'Rate peg calcs'!$B$37:$B$164,0)) -> -0.0008776219345 | K122: =INDEX('Rate peg calcs'!K$37:K$164,MATCH($B122,'Rate peg calcs'!$B$37:$B$164,0)) -> 0 | L122: 0.039 | M122: =INDEX('Rate peg calcs'!L$37:L$164,MATCH($B122,'Rate peg calcs'!$B$37:$B$164,0)) -> 0.005137764845 | N122: =INDEX('Rate peg calcs'!M$37:M$164,MATCH($B122,'Rate peg calcs'!$B$37:$B$164,0)) -> 0.002280954034 | O122: =INDEX('Rate peg calcs'!N$37:N$164,MATCH($B122,'Rate peg calcs'!$B$37:$B$164,0)) -> 0.003 | P122: =INDEX('Rate peg calcs'!O$37:O$164,MATCH($B122,'Rate peg calcs'!$B$37:$B$164,0)) -> 0.042 | R122: 0.0104205233 | T122: 0
B123: ='Rate peg calcs'!B139 -> 2097 | C123: =INDEX('Rate peg calcs'!C$37:C$164,MATCH($B123,'Rate peg calcs'!$B$37:$B$164,0)) -> Rural | D123: =INDEX('Rate peg calcs'!D$37:D$164,MATCH($B123,'Rate peg calcs'!$B$37:$B$164,0)) -> Snowy Valleys | E123: =INDEX('Rate peg calcs'!E$37:E$164,MATCH($B123,'Rate peg calcs'!$B$37:$B$164,0)) -> 0.02988176551 | F123: =INDEX('Rate peg calcs'!F$37:F$164,MATCH($B123,'Rate peg calcs'!$B$37:$B$164,0)) -> 0 | G123: =INDEX('Rate peg calcs'!G$37:G$164,MATCH($B123,'Rate peg calcs'!$B$37:$B$164,0)) -> 0.00105434249 | H123: =INDEX('Rate peg calcs'!H$37:H$164,MATCH($B123,'Rate peg calcs'!$B$37:$B$164,0)) -> 0.004073814131 | I123: =INDEX('Rate peg calcs'!I$37:I$164,MATCH($B123,'Rate peg calcs'!$B$37:$B$164,0)) -> 0 | J123: =INDEX('Rate peg calcs'!J$37:J$164,MATCH($B123,'Rate peg calcs'!$B$37:$B$164,0)) -> -0.0036922393 | K123: =INDEX('Rate peg calcs'!K$37:K$164,MATCH($B123,'Rate peg calcs'!$B$37:$B$164,0)) -> 0 | L123: 0.031 | M123: =INDEX('Rate peg calcs'!L$37:L$164,MATCH($B123,'Rate peg calcs'!$B$37:$B$164,0)) -> 0.002293732713 | N123: =INDEX('Rate peg calcs'!M$37:M$164,MATCH($B123,'Rate peg calcs'!$B$37:$B$164,0)) -> 0.003006566975 | O123: =INDEX('Rate peg calcs'!N$37:N$164,MATCH($B123,'Rate peg calcs'!$B$37:$B$164,0)) -> 0 | P123: =INDEX('Rate peg calcs'!O$37:O$164,MATCH($B123,'Rate peg calcs'!$B$37:$B$164,0)) -> 0.031 | R123: 0.005128156621 | T123: 0
B124: ='Rate peg calcs'!B140 -> 193 | C124: =INDEX('Rate peg calcs'!C$37:C$164,MATCH($B124,'Rate peg calcs'!$B$37:$B$164,0)) -> Metropolitan | D124: =INDEX('Rate peg calcs'!D$37:D$164,MATCH($B124,'Rate peg calcs'!$B$37:$B$164,0)) -> Strathfield | E124: =INDEX('Rate peg calcs'!E$37:E$164,MATCH($B124,'Rate peg calcs'!$B$37:$B$164,0)) -> 0.02951901918 | F124: =INDEX('Rate peg calcs'!F$37:F$164,MATCH($B124,'Rate peg calcs'!$B$37:$B$164,0)) -> 0 | G124: =INDEX('Rate peg calcs'!G$37:G$164,MATCH($B124,'Rate peg calcs'!$B$37:$B$164,0)) -> 0.001661314928 | H124: =INDEX('Rate peg calcs'!H$37:H$164,MATCH($B124,'Rate peg calcs'!$B$37:$B$164,0)) -> 0.003242748352 | I124: =INDEX('Rate peg calcs'!I$37:I$164,MATCH($B124,'Rate peg calcs'!$B$37:$B$164,0)) -> 0 | J124: =INDEX('Rate peg calcs'!J$37:J$164,MATCH($B124,'Rate peg calcs'!$B$37:$B$164,0)) -> -0.001490678668 | K124: =INDEX('Rate peg calcs'!K$37:K$164,MATCH($B124,'Rate peg calcs'!$B$37:$B$164,0)) -> 0 | L124: 0.033 | M124: =INDEX('Rate peg calcs'!L$37:L$164,MATCH($B124,'Rate peg calcs'!$B$37:$B$164,0)) -> 0.01411543287 | N124: =INDEX('Rate peg calcs'!M$37:M$164,MATCH($B124,'Rate peg calcs'!$B$37:$B$164,0)) -> 0.01499833352 | O124: =INDEX('Rate peg calcs'!N$37:N$164,MATCH($B124,'Rate peg calcs'!$B$37:$B$164,0)) -> 0 | P124: =INDEX('Rate peg calcs'!O$37:O$164,MATCH($B124,'Rate peg calcs'!$B$37:$B$164,0)) -> 0.033 | R124: 0.00490406328 | T124: 0
B125: ='Rate peg calcs'!B141 -> 194 | C125: =INDEX('Rate peg calcs'!C$37:C$164,MATCH($B125,'Rate peg calcs'!$B$37:$B$164,0)) -> Metropolitan | D125: =INDEX('Rate peg calcs'!D$37:D$164,MATCH($B125,'Rate peg calcs'!$B$37:$B$164,0)) -> Sutherland | E125: =INDEX('Rate peg calcs'!E$37:E$164,MATCH($B125,'Rate peg calcs'!$B$37:$B$164,0)) -> 0.02951901918 | F125: =INDEX('Rate peg calcs'!F$37:F$164,MATCH($B125,'Rate peg calcs'!$B$37:$B$164,0)) -> 0 | G125: =INDEX('Rate peg calcs'!G$37:G$164,MATCH($B125,'Rate peg calcs'!$B$37:$B$164,0)) -> 0.0003626361576 | H125: =INDEX('Rate peg calcs'!H$37:H$164,MATCH($B125,'Rate peg calcs'!$B$37:$B$164,0)) -> 0.001723343697 | I125: =INDEX('Rate peg calcs'!I$37:I$164,MATCH($B125,'Rate peg calcs'!$B$37:$B$164,0)) -> 4.890835221e-05 | J125: =INDEX('Rate peg calcs'!J$37:J$164,MATCH($B125,'Rate peg calcs'!$B$37:$B$164,0)) -> -0.0009574785068 | K125: =INDEX('Rate peg calcs'!K$37:K$164,MATCH($B125,'Rate peg calcs'!$B$37:$B$164,0)) -> 0 | L125: 0.031 | M125: =INDEX('Rate peg calcs'!L$37:L$164,MATCH($B125,'Rate peg calcs'!$B$37:$B$164,0)) -> 0.01540464863 | N125: =INDEX('Rate peg calcs'!M$37:M$164,MATCH($B125,'Rate peg calcs'!$B$37:$B$164,0)) -> 0.004533170604 | O125: =INDEX('Rate peg calcs'!N$37:N$164,MATCH($B125,'Rate peg calcs'!$B$37:$B$164,0)) -> 0.011 | P125: =INDEX('Rate peg calcs'!O$37:O$164,MATCH($B125,'Rate peg calcs'!$B$37:$B$164,0)) -> 0.042 | R125: 0.002085979855 | T125: 0
B126: ='Rate peg calcs'!B142 -> 2029 | C126: =INDEX('Rate peg calcs'!C$37:C$164,MATCH($B126,'Rate peg calcs'!$B$37:$B$164,0)) -> Metropolitan | D126: =INDEX('Rate peg calcs'!D$37:D$164,MATCH($B126,'Rate peg calcs'!$B$37:$B$164,0)) -> Sydney | E126: =INDEX('Rate peg calcs'!E$37:E$164,MATCH($B126,'Rate peg calcs'!$B$37:$B$164,0)) -> 0.02951901918 | F126: =INDEX('Rate peg calcs'!F$37:F$164,MATCH($B126,'Rate peg calcs'!$B$37:$B$164,0)) -> 0 | G126: =INDEX('Rate peg calcs'!G$37:G$164,MATCH($B126,'Rate peg calcs'!$B$37:$B$164,0)) -> -0.0003839958485 | H126: =INDEX('Rate peg calcs'!H$37:H$164,MATCH($B126,'Rate peg calcs'!$B$37:$B$164,0)) -> 0.0006886465485 | I126: =INDEX('Rate peg calcs'!I$37:I$164,MATCH($B126,'Rate peg calcs'!$B$37:$B$164,0)) -> 0 | J126: =INDEX('Rate peg calcs'!J$37:J$164,MATCH($B126,'Rate peg calcs'!$B$37:$B$164,0)) -> -0.0008423091902 | K126: =INDEX('Rate peg calcs'!K$37:K$164,MATCH($B126,'Rate peg calcs'!$B$37:$B$164,0)) -> 0 | L126: 0.029 | M126: =INDEX('Rate peg calcs'!L$37:L$164,MATCH($B126,'Rate peg calcs'!$B$37:$B$164,0)) -> 0.02663118726 | N126: =INDEX('Rate peg calcs'!M$37:M$164,MATCH($B126,'Rate peg calcs'!$B$37:$B$164,0)) -> 0 | O126: =INDEX('Rate peg calcs'!N$37:N$164,MATCH($B126,'Rate peg calcs'!$B$37:$B$164,0)) -> 0.027 | P126: =INDEX('Rate peg calcs'!O$37:O$164,MATCH($B126,'Rate peg calcs'!$B$37:$B$164,0)) -> 0.056 | R126: 0.0003046506999 | T126: 0
B127: ='Rate peg calcs'!B143 -> 2038 | C127: =INDEX('Rate peg calcs'!C$37:C$164,MATCH($B127,'Rate peg calcs'!$B$37:$B$164,0)) -> Regional | D127: =INDEX('Rate peg calcs'!D$37:D$164,MATCH($B127,'Rate peg calcs'!$B$37:$B$164,0)) -> Tamworth Regional | E127: =INDEX('Rate peg calcs'!E$37:E$164,MATCH($B127,'Rate peg calcs'!$B$37:$B$164,0)) -> 0.02980866065 | F127: =INDEX('Rate peg calcs'!F$37:F$164,MATCH($B127,'Rate peg calcs'!$B$37:$B$164,0)) -> 0 | G127: =INDEX('Rate peg calcs'!G$37:G$164,MATCH($B127,'Rate peg calcs'!$B$37:$B$164,0)) -> 0.0004507457226 | H127: =INDEX('Rate peg calcs'!H$37:H$164,MATCH($B127,'Rate peg calcs'!$B$37:$B$164,0)) -> 0.001888432456 | I127: =INDEX('Rate peg calcs'!I$37:I$164,MATCH($B127,'Rate peg calcs'!$B$37:$B$164,0)) -> 0 | J127: =INDEX('Rate peg calcs'!J$37:J$164,MATCH($B127,'Rate peg calcs'!$B$37:$B$164,0)) -> -0.0001610732276 | K127: =INDEX('Rate peg calcs'!K$37:K$164,MATCH($B127,'Rate peg calcs'!$B$37:$B$164,0)) -> 0 | L127: 0.032 | M127: =INDEX('Rate peg calcs'!L$37:L$164,MATCH($B127,'Rate peg calcs'!$B$37:$B$164,0)) -> 0.01003298305 | N127: =INDEX('Rate peg calcs'!M$37:M$164,MATCH($B127,'Rate peg calcs'!$B$37:$B$164,0)) -> 0.01018020126 | O127: =INDEX('Rate peg calcs'!N$37:N$164,MATCH($B127,'Rate peg calcs'!$B$37:$B$164,0)) -> 0 | P127: =INDEX('Rate peg calcs'!O$37:O$164,MATCH($B127,'Rate peg calcs'!$B$37:$B$164,0)) -> 0.032 | R127: 0.002339178179 | T127: 0
B128: ='Rate peg calcs'!B144 -> 198 | C128: =INDEX('Rate peg calcs'!C$37:C$164,MATCH($B128,'Rate peg calcs'!$B$37:$B$164,0)) -> Rural | D128: =INDEX('Rate peg calcs'!D$37:D$164,MATCH($B128,'Rate peg calcs'!$B$37:$B$164,0)) -> Temora | E128: =INDEX('Rate peg calcs'!E$37:E$164,MATCH($B128,'Rate peg calcs'!$B$37:$B$164,0)) -> 0.02988176551 | F128: =INDEX('Rate peg calcs'!F$37:F$164,MATCH($B128,'Rate peg calcs'!$B$37:$B$164,0)) -> 0 | G128: =INDEX('Rate peg calcs'!G$37:G$164,MATCH($B128,'Rate peg calcs'!$B$37:$B$164,0)) -> 0.002409192886 | H128: =INDEX('Rate peg calcs'!H$37:H$164,MATCH($B128,'Rate peg calcs'!$B$37:$B$164,0)) -> 0.007373225276 | I128: =INDEX('Rate peg calcs'!I$37:I$164,MATCH($B128,'Rate peg calcs'!$B$37:$B$164,0)) -> 0 | J128: =INDEX('Rate peg calcs'!J$37:J$164,MATCH($B128,'Rate peg calcs'!$B$37:$B$164,0)) -> -0.005934534159 | K128: =INDEX('Rate peg calcs'!K$37:K$164,MATCH($B128,'Rate peg calcs'!$B$37:$B$164,0)) -> 0 | L128: 0.034 | M128: =INDEX('Rate peg calcs'!L$37:L$164,MATCH($B128,'Rate peg calcs'!$B$37:$B$164,0)) -> 0 | N128: =INDEX('Rate peg calcs'!M$37:M$164,MATCH($B128,'Rate peg calcs'!$B$37:$B$164,0)) -> 0.007743362832 | O128: =INDEX('Rate peg calcs'!N$37:N$164,MATCH($B128,'Rate peg calcs'!$B$37:$B$164,0)) -> 0 | P128: =INDEX('Rate peg calcs'!O$37:O$164,MATCH($B128,'Rate peg calcs'!$B$37:$B$164,0)) -> 0.034 | R128: 0.009782418162 | T128: 0
B129: ='Rate peg calcs'!B145 -> 199 | C129: =INDEX('Rate peg calcs'!C$37:C$164,MATCH($B129,'Rate peg calcs'!$B$37:$B$164,0)) -> Rural | D129: =INDEX('Rate peg calcs'!D$37:D$164,MATCH($B129,'Rate peg calcs'!$B$37:$B$164,0)) -> Tenterfield | E129: =INDEX('Rate peg calcs'!E$37:E$164,MATCH($B129,'Rate peg calcs'!$B$37:$B$164,0)) -> 0.02988176551 | F129: =INDEX('Rate peg calcs'!F$37:F$164,MATCH($B129,'Rate peg calcs'!$B$37:$B$164,0)) -> 0 | G129: =INDEX('Rate peg calcs'!G$37:G$164,MATCH($B129,'Rate peg calcs'!$B$37:$B$164,0)) -> 0.000466214282 | H129: =INDEX('Rate peg calcs'!H$37:H$164,MATCH($B129,'Rate peg calcs'!$B$37:$B$164,0)) -> 0.004996591344 | I129: =INDEX('Rate peg calcs'!I$37:I$164,MATCH($B129,'Rate peg calcs'!$B$37:$B$164,0)) -> 0 | J129: =INDEX('Rate peg calcs'!J$37:J$164,MATCH($B129,'Rate peg calcs'!$B$37:$B$164,0)) -> -0.0005060493244 | K129: =INDEX('Rate peg calcs'!K$37:K$164,MATCH($B129,'Rate peg calcs'!$B$37:$B$164,0)) -> 0 | L129: 0.035 | M129: =INDEX('Rate peg calcs'!L$37:L$164,MATCH($B129,'Rate peg calcs'!$B$37:$B$164,0)) -> 0.01563396443 | N129: =INDEX('Rate peg calcs'!M$37:M$164,MATCH($B129,'Rate peg calcs'!$B$37:$B$164,0)) -> 0 | O129: =INDEX('Rate peg calcs'!N$37:N$164,MATCH($B129,'Rate peg calcs'!$B$37:$B$164,0)) -> 0.016 | P129: =INDEX('Rate peg calcs'!O$37:O$164,MATCH($B129,'Rate peg calcs'!$B$37:$B$164,0)) -> 0.051 | R129: 0.005462805626 | T129: 0
B130: ='Rate peg calcs'!B146 -> 59 | C130: =INDEX('Rate peg calcs'!C$37:C$164,MATCH($B130,'Rate peg calcs'!$B$37:$B$164,0)) -> Metropolitan | D130: =INDEX('Rate peg calcs'!D$37:D$164,MATCH($B130,'Rate peg calcs'!$B$37:$B$164,0)) -> The Hills | E130: =INDEX('Rate peg calcs'!E$37:E$164,MATCH($B130,'Rate peg calcs'!$B$37:$B$164,0)) -> 0.02951901918 | F130: =INDEX('Rate peg calcs'!F$37:F$164,MATCH($B130,'Rate peg calcs'!$B$37:$B$164,0)) -> 0 | G130: =INDEX('Rate peg calcs'!G$37:G$164,MATCH($B130,'Rate peg calcs'!$B$37:$B$164,0)) -> -0.0002562443801 | H130: =INDEX('Rate peg calcs'!H$37:H$164,MATCH($B130,'Rate peg calcs'!$B$37:$B$164,0)) -> 0.002104944182 | I130: =INDEX('Rate peg calcs'!I$37:I$164,MATCH($B130,'Rate peg calcs'!$B$37:$B$164,0)) -> 0.0002537665301 | J130: =INDEX('Rate peg calcs'!J$37:J$164,MATCH($B130,'Rate peg calcs'!$B$37:$B$164,0)) -> -0.001196684958 | K130: =INDEX('Rate peg calcs'!K$37:K$164,MATCH($B130,'Rate peg calcs'!$B$37:$B$164,0)) -> 0 | L130: 0.03 | M130: =INDEX('Rate peg calcs'!L$37:L$164,MATCH($B130,'Rate peg calcs'!$B$37:$B$164,0)) -> 0.03695509984 | N130: =INDEX('Rate peg calcs'!M$37:M$164,MATCH($B130,'Rate peg calcs'!$B$37:$B$164,0)) -> 0.01968660779 | O130: =INDEX('Rate peg calcs'!N$37:N$164,MATCH($B130,'Rate peg calcs'!$B$37:$B$164,0)) -> 0.017 | P130: =INDEX('Rate peg calcs'!O$37:O$164,MATCH($B130,'Rate peg calcs'!$B$37:$B$164,0)) -> 0.047 | R130: 0.001848699802 | T130: 0
B131: ='Rate peg calcs'!B147 -> 202 | C131: =INDEX('Rate peg calcs'!C$37:C$164,MATCH($B131,'Rate peg calcs'!$B$37:$B$164,0)) -> Regional | D131: =INDEX('Rate peg calcs'!D$37:D$164,MATCH($B131,'Rate peg calcs'!$B$37:$B$164,0)) -> Tweed | E131: =INDEX('Rate peg calcs'!E$37:E$164,MATCH($B131,'Rate peg calcs'!$B$37:$B$164,0)) -> 0.02980866065 | F131: =INDEX('Rate peg calcs'!F$37:F$164,MATCH($B131,'Rate peg calcs'!$B$37:$B$164,0)) -> 0 | G131: =INDEX('Rate peg calcs'!G$37:G$164,MATCH($B131,'Rate peg calcs'!$B$37:$B$164,0)) -> -0.0001514050721 | H131: =INDEX('Rate peg calcs'!H$37:H$164,MATCH($B131,'Rate peg calcs'!$B$37:$B$164,0)) -> 0.001034079871 | I131: =INDEX('Rate peg calcs'!I$37:I$164,MATCH($B131,'Rate peg calcs'!$B$37:$B$164,0)) -> 0 | J131: =INDEX('Rate peg calcs'!J$37:J$164,MATCH($B131,'Rate peg calcs'!$B$37:$B$164,0)) -> -0.001257629209 | K131: =INDEX('Rate peg calcs'!K$37:K$164,MATCH($B131,'Rate peg calcs'!$B$37:$B$164,0)) -> 0 | L131: 0.029 | M131: =INDEX('Rate peg calcs'!L$37:L$164,MATCH($B131,'Rate peg calcs'!$B$37:$B$164,0)) -> 0.008386972909 | N131: =INDEX('Rate peg calcs'!M$37:M$164,MATCH($B131,'Rate peg calcs'!$B$37:$B$164,0)) -> 0.005906460945 | O131: =INDEX('Rate peg calcs'!N$37:N$164,MATCH($B131,'Rate peg calcs'!$B$37:$B$164,0)) -> 0.002 | P131: =INDEX('Rate peg calcs'!O$37:O$164,MATCH($B131,'Rate peg calcs'!$B$37:$B$164,0)) -> 0.031 | R131: 0.0008826747989 | T131: 0
B132: ='Rate peg calcs'!B148 -> 2046 | C132: =INDEX('Rate peg calcs'!C$37:C$164,MATCH($B132,'Rate peg calcs'!$B$37:$B$164,0)) -> Rural | D132: =INDEX('Rate peg calcs'!D$37:D$164,MATCH($B132,'Rate peg calcs'!$B$37:$B$164,0)) -> Upper Hunter | E132: =INDEX('Rate peg calcs'!E$37:E$164,MATCH($B132,'Rate peg calcs'!$B$37:$B$164,0)) -> 0.02988176551 | F132: =INDEX('Rate peg calcs'!F$37:F$164,MATCH($B132,'Rate peg calcs'!$B$37:$B$164,0)) -> 0 | G132: =INDEX('Rate peg calcs'!G$37:G$164,MATCH($B132,'Rate peg calcs'!$B$37:$B$164,0)) -> 0.001340893522 | H132: =INDEX('Rate peg calcs'!H$37:H$164,MATCH($B132,'Rate peg calcs'!$B$37:$B$164,0)) -> 0.004631585339 | I132: =INDEX('Rate peg calcs'!I$37:I$164,MATCH($B132,'Rate peg calcs'!$B$37:$B$164,0)) -> 0 | J132: =INDEX('Rate peg calcs'!J$37:J$164,MATCH($B132,'Rate peg calcs'!$B$37:$B$164,0)) -> -0.001784631528 | K132: =INDEX('Rate peg calcs'!K$37:K$164,MATCH($B132,'Rate peg calcs'!$B$37:$B$164,0)) -> 0 | L132: 0.034 | M132: =INDEX('Rate peg calcs'!L$37:L$164,MATCH($B132,'Rate peg calcs'!$B$37:$B$164,0)) -> 0.005022321429 | N132: =INDEX('Rate peg calcs'!M$37:M$164,MATCH($B132,'Rate peg calcs'!$B$37:$B$164,0)) -> 0.003559006714 | O132: =INDEX('Rate peg calcs'!N$37:N$164,MATCH($B132,'Rate peg calcs'!$B$37:$B$164,0)) -> 0.001 | P132: =INDEX('Rate peg calcs'!O$37:O$164,MATCH($B132,'Rate peg calcs'!$B$37:$B$164,0)) -> 0.035 | R132: 0.00597247886 | T132: 0
B133: ='Rate peg calcs'!B149 -> 2035 | C133: =INDEX('Rate peg calcs'!C$37:C$164,MATCH($B133,'Rate peg calcs'!$B$37:$B$164,0)) -> Rural | D133: =INDEX('Rate peg calcs'!D$37:D$164,MATCH($B133,'Rate peg calcs'!$B$37:$B$164,0)) -> Upper Lachlan | E133: =INDEX('Rate peg calcs'!E$37:E$164,MATCH($B133,'Rate peg calcs'!$B$37:$B$164,0)) -> 0.02988176551 | F133: =INDEX('Rate peg calcs'!F$37:F$164,MATCH($B133,'Rate peg calcs'!$B$37:$B$164,0)) -> 0 | G133: =INDEX('Rate peg calcs'!G$37:G$164,MATCH($B133,'Rate peg calcs'!$B$37:$B$164,0)) -> 0.0008510132456 | H133: =INDEX('Rate peg calcs'!H$37:H$164,MATCH($B133,'Rate peg calcs'!$B$37:$B$164,0)) -> 0.00615173309 | I133: =INDEX('Rate peg calcs'!I$37:I$164,MATCH($B133,'Rate peg calcs'!$B$37:$B$164,0)) -> 0 | J133: =INDEX('Rate peg calcs'!J$37:J$164,MATCH($B133,'Rate peg calcs'!$B$37:$B$164,0)) -> -0.00144475894 | K133: =INDEX('Rate peg calcs'!K$37:K$164,MATCH($B133,'Rate peg calcs'!$B$37:$B$164,0)) -> 0 | L133: 0.035 | M133: =INDEX('Rate peg calcs'!L$37:L$164,MATCH($B133,'Rate peg calcs'!$B$37:$B$164,0)) -> 0.01952900632 | N133: =INDEX('Rate peg calcs'!M$37:M$164,MATCH($B133,'Rate peg calcs'!$B$37:$B$164,0)) -> 0.005065622841 | O133: =INDEX('Rate peg calcs'!N$37:N$164,MATCH($B133,'Rate peg calcs'!$B$37:$B$164,0)) -> 0.014 | P133: =INDEX('Rate peg calcs'!O$37:O$164,MATCH($B133,'Rate peg calcs'!$B$37:$B$164,0)) -> 0.049 | R133: 0.007002746335 | T133: 0
B134: ='Rate peg calcs'!B150 -> 204 | C134: =INDEX('Rate peg calcs'!C$37:C$164,MATCH($B134,'Rate peg calcs'!$B$37:$B$164,0)) -> Rural | D134: =INDEX('Rate peg calcs'!D$37:D$164,MATCH($B134,'Rate peg calcs'!$B$37:$B$164,0)) -> Uralla | E134: =INDEX('Rate peg calcs'!E$37:E$164,MATCH($B134,'Rate peg calcs'!$B$37:$B$164,0)) -> 0.02988176551 | F134: =INDEX('Rate peg calcs'!F$37:F$164,MATCH($B134,'Rate peg calcs'!$B$37:$B$164,0)) -> 0 | G134: =INDEX('Rate peg calcs'!G$37:G$164,MATCH($B134,'Rate peg calcs'!$B$37:$B$164,0)) -> 0.0004090384194 | H134: =INDEX('Rate peg calcs'!H$37:H$164,MATCH($B134,'Rate peg calcs'!$B$37:$B$164,0)) -> 0.003300847344 | I134: =INDEX('Rate peg calcs'!I$37:I$164,MATCH($B134,'Rate peg calcs'!$B$37:$B$164,0)) -> 0 | J134: =INDEX('Rate peg calcs'!J$37:J$164,MATCH($B134,'Rate peg calcs'!$B$37:$B$164,0)) -> -0.0034394744 | K134: =INDEX('Rate peg calcs'!K$37:K$164,MATCH($B134,'Rate peg calcs'!$B$37:$B$164,0)) -> 0 | L134: 0.03 | M134: =INDEX('Rate peg calcs'!L$37:L$164,MATCH($B134,'Rate peg calcs'!$B$37:$B$164,0)) -> 0.008103191665 | N134: =INDEX('Rate peg calcs'!M$37:M$164,MATCH($B134,'Rate peg calcs'!$B$37:$B$164,0)) -> 0.0009140767824 | O134: =INDEX('Rate peg calcs'!N$37:N$164,MATCH($B134,'Rate peg calcs'!$B$37:$B$164,0)) -> 0.007 | P134: =INDEX('Rate peg calcs'!O$37:O$164,MATCH($B134,'Rate peg calcs'!$B$37:$B$164,0)) -> 0.037 | R134: 0.003709885764 | T134: 0
B135: ='Rate peg calcs'!B151 -> 206 | C135: =INDEX('Rate peg calcs'!C$37:C$164,MATCH($B135,'Rate peg calcs'!$B$37:$B$164,0)) -> Regional | D135: =INDEX('Rate peg calcs'!D$37:D$164,MATCH($B135,'Rate peg calcs'!$B$37:$B$164,0)) -> Wagga Wagga | E135: =INDEX('Rate peg calcs'!E$37:E$164,MATCH($B135,'Rate peg calcs'!$B$37:$B$164,0)) -> 0.02980866065 | F135: =INDEX('Rate peg calcs'!F$37:F$164,MATCH($B135,'Rate peg calcs'!$B$37:$B$164,0)) -> 0 | G135: =INDEX('Rate peg calcs'!G$37:G$164,MATCH($B135,'Rate peg calcs'!$B$37:$B$164,0)) -> 0.0003492415345 | H135: =INDEX('Rate peg calcs'!H$37:H$164,MATCH($B135,'Rate peg calcs'!$B$37:$B$164,0)) -> 0.001776719948 | I135: =INDEX('Rate peg calcs'!I$37:I$164,MATCH($B135,'Rate peg calcs'!$B$37:$B$164,0)) -> 0 | J135: =INDEX('Rate peg calcs'!J$37:J$164,MATCH($B135,'Rate peg calcs'!$B$37:$B$164,0)) -> -0.0008985950513 | K135: =INDEX('Rate peg calcs'!K$37:K$164,MATCH($B135,'Rate peg calcs'!$B$37:$B$164,0)) -> 0 | L135: 0.031 | M135: =INDEX('Rate peg calcs'!L$37:L$164,MATCH($B135,'Rate peg calcs'!$B$37:$B$164,0)) -> 0.003566074262 | N135: =INDEX('Rate peg calcs'!M$37:M$164,MATCH($B135,'Rate peg calcs'!$B$37:$B$164,0)) -> 0.003053128452 | O135: =INDEX('Rate peg calcs'!N$37:N$164,MATCH($B135,'Rate peg calcs'!$B$37:$B$164,0)) -> 0.001 | P135: =INDEX('Rate peg calcs'!O$37:O$164,MATCH($B135,'Rate peg calcs'!$B$37:$B$164,0)) -> 0.032 | R135: 0.002125961483 | T135: 0
B136: ='Rate peg calcs'!B152 -> 208 | C136: =INDEX('Rate peg calcs'!C$37:C$164,MATCH($B136,'Rate peg calcs'!$B$37:$B$164,0)) -> Rural | D136: =INDEX('Rate peg calcs'!D$37:D$164,MATCH($B136,'Rate peg calcs'!$B$37:$B$164,0)) -> Walcha | E136: =INDEX('Rate peg calcs'!E$37:E$164,MATCH($B136,'Rate peg calcs'!$B$37:$B$164,0)) -> 0.02988176551 | F136: =INDEX('Rate peg calcs'!F$37:F$164,MATCH($B136,'Rate peg calcs'!$B$37:$B$164,0)) -> 0 | G136: =INDEX('Rate peg calcs'!G$37:G$164,MATCH($B136,'Rate peg calcs'!$B$37:$B$164,0)) -> 0.0004787227964 | H136: =INDEX('Rate peg calcs'!H$37:H$164,MATCH($B136,'Rate peg calcs'!$B$37:$B$164,0)) -> 0.004712927856 | I136: =INDEX('Rate peg calcs'!I$37:I$164,MATCH($B136,'Rate peg calcs'!$B$37:$B$164,0)) -> 0 | J136: =INDEX('Rate peg calcs'!J$37:J$164,MATCH($B136,'Rate peg calcs'!$B$37:$B$164,0)) -> -0.0006090061764 | K136: =INDEX('Rate peg calcs'!K$37:K$164,MATCH($B136,'Rate peg calcs'!$B$37:$B$164,0)) -> 0 | L136: 0.034 | M136: =INDEX('Rate peg calcs'!L$37:L$164,MATCH($B136,'Rate peg calcs'!$B$37:$B$164,0)) -> 0.007412398922 | N136: =INDEX('Rate peg calcs'!M$37:M$164,MATCH($B136,'Rate peg calcs'!$B$37:$B$164,0)) -> 0 | O136: =INDEX('Rate peg calcs'!N$37:N$164,MATCH($B136,'Rate peg calcs'!$B$37:$B$164,0)) -> 0.007 | P136: =INDEX('Rate peg calcs'!O$37:O$164,MATCH($B136,'Rate peg calcs'!$B$37:$B$164,0)) -> 0.041 | R136: 0.005191650652 | T136: 0
B137: ='Rate peg calcs'!B153 -> 209 | C137: =INDEX('Rate peg calcs'!C$37:C$164,MATCH($B137,'Rate peg calcs'!$B$37:$B$164,0)) -> Rural | D137: =INDEX('Rate peg calcs'!D$37:D$164,MATCH($B137,'Rate peg calcs'!$B$37:$B$164,0)) -> Walgett | E137: =INDEX('Rate peg calcs'!E$37:E$164,MATCH($B137,'Rate peg calcs'!$B$37:$B$164,0)) -> 0.02988176551 | F137: =INDEX('Rate peg calcs'!F$37:F$164,MATCH($B137,'Rate peg calcs'!$B$37:$B$164,0)) -> 0 | G137: =INDEX('Rate peg calcs'!G$37:G$164,MATCH($B137,'Rate peg calcs'!$B$37:$B$164,0)) -> 0.001604506049 | H137: =INDEX('Rate peg calcs'!H$37:H$164,MATCH($B137,'Rate peg calcs'!$B$37:$B$164,0)) -> 0.004539205891 | I137: =INDEX('Rate peg calcs'!I$37:I$164,MATCH($B137,'Rate peg calcs'!$B$37:$B$164,0)) -> 0 | J137: =INDEX('Rate peg calcs'!J$37:J$164,MATCH($B137,'Rate peg calcs'!$B$37:$B$164,0)) -> -0.002677106817 | K137: =INDEX('Rate peg calcs'!K$37:K$164,MATCH($B137,'Rate peg calcs'!$B$37:$B$164,0)) -> 0 | L137: 0.033 | M137: =INDEX('Rate peg calcs'!L$37:L$164,MATCH($B137,'Rate peg calcs'!$B$37:$B$164,0)) -> 0 | N137: =INDEX('Rate peg calcs'!M$37:M$164,MATCH($B137,'Rate peg calcs'!$B$37:$B$164,0)) -> 0 | O137: =INDEX('Rate peg calcs'!N$37:N$164,MATCH($B137,'Rate peg calcs'!$B$37:$B$164,0)) -> 0 | P137: =INDEX('Rate peg calcs'!O$37:O$164,MATCH($B137,'Rate peg calcs'!$B$37:$B$164,0)) -> 0.033 | R137: 0.00614371194 | T137: 0
B138: ='Rate peg calcs'!B154 -> 210 | C138: =INDEX('Rate peg calcs'!C$37:C$164,MATCH($B138,'Rate peg calcs'!$B$37:$B$164,0)) -> Rural | D138: =INDEX('Rate peg calcs'!D$37:D$164,MATCH($B138,'Rate peg calcs'!$B$37:$B$164,0)) -> Warren | E138: =INDEX('Rate peg calcs'!E$37:E$164,MATCH($B138,'Rate peg calcs'!$B$37:$B$164,0)) -> 0.02988176551 | F138: =INDEX('Rate peg calcs'!F$37:F$164,MATCH($B138,'Rate peg calcs'!$B$37:$B$164,0)) -> 0 | G138: =INDEX('Rate peg calcs'!G$37:G$164,MATCH($B138,'Rate peg calcs'!$B$37:$B$164,0)) -> 0.0007894240097 | H138: =INDEX('Rate peg calcs'!H$37:H$164,MATCH($B138,'Rate peg calcs'!$B$37:$B$164,0)) -> 0.00257463188 | I138: =INDEX('Rate peg calcs'!I$37:I$164,MATCH($B138,'Rate peg calcs'!$B$37:$B$164,0)) -> 0 | J138: =INDEX('Rate peg calcs'!J$37:J$164,MATCH($B138,'Rate peg calcs'!$B$37:$B$164,0)) -> -0.001576341126 | K138: =INDEX('Rate peg calcs'!K$37:K$164,MATCH($B138,'Rate peg calcs'!$B$37:$B$164,0)) -> 0 | L138: 0.032 | M138: =INDEX('Rate peg calcs'!L$37:L$164,MATCH($B138,'Rate peg calcs'!$B$37:$B$164,0)) -> 0.003871467286 | N138: =INDEX('Rate peg calcs'!M$37:M$164,MATCH($B138,'Rate peg calcs'!$B$37:$B$164,0)) -> 0 | O138: =INDEX('Rate peg calcs'!N$37:N$164,MATCH($B138,'Rate peg calcs'!$B$37:$B$164,0)) -> 0.004 | P138: =INDEX('Rate peg calcs'!O$37:O$164,MATCH($B138,'Rate peg calcs'!$B$37:$B$164,0)) -> 0.036 | R138: 0.003364055889 | T138: 0
B139: ='Rate peg calcs'!B155 -> 2050 | C139: =INDEX('Rate peg calcs'!C$37:C$164,MATCH($B139,'Rate peg calcs'!$B$37:$B$164,0)) -> Rural | D139: =INDEX('Rate peg calcs'!D$37:D$164,MATCH($B139,'Rate peg calcs'!$B$37:$B$164,0)) -> Warrumbungle | E139: =INDEX('Rate peg calcs'!E$37:E$164,MATCH($B139,'Rate peg calcs'!$B$37:$B$164,0)) -> 0.02988176551 | F139: =INDEX('Rate peg calcs'!F$37:F$164,MATCH($B139,'Rate peg calcs'!$B$37:$B$164,0)) -> 0 | G139: =INDEX('Rate peg calcs'!G$37:G$164,MATCH($B139,'Rate peg calcs'!$B$37:$B$164,0)) -> 0.001814965538 | H139: =INDEX('Rate peg calcs'!H$37:H$164,MATCH($B139,'Rate peg calcs'!$B$37:$B$164,0)) -> 0.005843000414 | I139: =INDEX('Rate peg calcs'!I$37:I$164,MATCH($B139,'Rate peg calcs'!$B$37:$B$164,0)) -> 0 | J139: =INDEX('Rate peg calcs'!J$37:J$164,MATCH($B139,'Rate peg calcs'!$B$37:$B$164,0)) -> 0.0008613262132 | K139: =INDEX('Rate peg calcs'!K$37:K$164,MATCH($B139,'Rate peg calcs'!$B$37:$B$164,0)) -> 0 | L139: 0.038 | M139: =INDEX('Rate peg calcs'!L$37:L$164,MATCH($B139,'Rate peg calcs'!$B$37:$B$164,0)) -> 0.001192024274 | N139: =INDEX('Rate peg calcs'!M$37:M$164,MATCH($B139,'Rate peg calcs'!$B$37:$B$164,0)) -> 0.000221116639 | O139: =INDEX('Rate peg calcs'!N$37:N$164,MATCH($B139,'Rate peg calcs'!$B$37:$B$164,0)) -> 0.001 | P139: =INDEX('Rate peg calcs'!O$37:O$164,MATCH($B139,'Rate peg calcs'!$B$37:$B$164,0)) -> 0.039 | R139: 0.007657965952 | T139: 0
B140: ='Rate peg calcs'!B156 -> 212 | C140: =INDEX('Rate peg calcs'!C$37:C$164,MATCH($B140,'Rate peg calcs'!$B$37:$B$164,0)) -> Metropolitan | D140: =INDEX('Rate peg calcs'!D$37:D$164,MATCH($B140,'Rate peg calcs'!$B$37:$B$164,0)) -> Waverley | E140: =INDEX('Rate peg calcs'!E$37:E$164,MATCH($B140,'Rate peg calcs'!$B$37:$B$164,0)) -> 0.02951901918 | F140: =INDEX('Rate peg calcs'!F$37:F$164,MATCH($B140,'Rate peg calcs'!$B$37:$B$164,0)) -> 0 | G140: =INDEX('Rate peg calcs'!G$37:G$164,MATCH($B140,'Rate peg calcs'!$B$37:$B$164,0)) -> 0.002570583834 | H140: =INDEX('Rate peg calcs'!H$37:H$164,MATCH($B140,'Rate peg calcs'!$B$37:$B$164,0)) -> 0.001357124565 | I140: =INDEX('Rate peg calcs'!I$37:I$164,MATCH($B140,'Rate peg calcs'!$B$37:$B$164,0)) -> 0 | J140: =INDEX('Rate peg calcs'!J$37:J$164,MATCH($B140,'Rate peg calcs'!$B$37:$B$164,0)) -> -0.001378321712 | K140: =INDEX('Rate peg calcs'!K$37:K$164,MATCH($B140,'Rate peg calcs'!$B$37:$B$164,0)) -> 0 | L140: 0.032 | M140: =INDEX('Rate peg calcs'!L$37:L$164,MATCH($B140,'Rate peg calcs'!$B$37:$B$164,0)) -> 0.02009184845 | N140: =INDEX('Rate peg calcs'!M$37:M$164,MATCH($B140,'Rate peg calcs'!$B$37:$B$164,0)) -> 0 | O140: =INDEX('Rate peg calcs'!N$37:N$164,MATCH($B140,'Rate peg calcs'!$B$37:$B$164,0)) -> 0.02 | P140: =INDEX('Rate peg calcs'!O$37:O$164,MATCH($B140,'Rate peg calcs'!$B$37:$B$164,0)) -> 0.052 | R140: 0.003927708399 | T140: 0
B141: ='Rate peg calcs'!B157 -> 213 | C141: =INDEX('Rate peg calcs'!C$37:C$164,MATCH($B141,'Rate peg calcs'!$B$37:$B$164,0)) -> Rural | D141: =INDEX('Rate peg calcs'!D$37:D$164,MATCH($B141,'Rate peg calcs'!$B$37:$B$164,0)) -> Weddin | E141: =INDEX('Rate peg calcs'!E$37:E$164,MATCH($B141,'Rate peg calcs'!$B$37:$B$164,0)) -> 0.02988176551 | F141: =INDEX('Rate peg calcs'!F$37:F$164,MATCH($B141,'Rate peg calcs'!$B$37:$B$164,0)) -> 0 | G141: =INDEX('Rate peg calcs'!G$37:G$164,MATCH($B141,'Rate peg calcs'!$B$37:$B$164,0)) -> 0.002749804004 | H141: =INDEX('Rate peg calcs'!H$37:H$164,MATCH($B141,'Rate peg calcs'!$B$37:$B$164,0)) -> 0.007801067102 | I141: =INDEX('Rate peg calcs'!I$37:I$164,MATCH($B141,'Rate peg calcs'!$B$37:$B$164,0)) -> 0.003851571852 | J141: =INDEX('Rate peg calcs'!J$37:J$164,MATCH($B141,'Rate peg calcs'!$B$37:$B$164,0)) -> -0.002531555881 | K141: =INDEX('Rate peg calcs'!K$37:K$164,MATCH($B141,'Rate peg calcs'!$B$37:$B$164,0)) -> 0 | L141: 0.042 | M141: =INDEX('Rate peg calcs'!L$37:L$164,MATCH($B141,'Rate peg calcs'!$B$37:$B$164,0)) -> 0 | N141: =INDEX('Rate peg calcs'!M$37:M$164,MATCH($B141,'Rate peg calcs'!$B$37:$B$164,0)) -> 0.000325732899 | O141: =INDEX('Rate peg calcs'!N$37:N$164,MATCH($B141,'Rate peg calcs'!$B$37:$B$164,0)) -> 0 | P141: =INDEX('Rate peg calcs'!O$37:O$164,MATCH($B141,'Rate peg calcs'!$B$37:$B$164,0)) -> 0.042 | R141: 0.01055087111 | T141: 0
B142: ='Rate peg calcs'!B158 -> 215 | C142: =INDEX('Rate peg calcs'!C$37:C$164,MATCH($B142,'Rate peg calcs'!$B$37:$B$164,0)) -> Rural | D142: =INDEX('Rate peg calcs'!D$37:D$164,MATCH($B142,'Rate peg calcs'!$B$37:$B$164,0)) -> Wentworth | E142: =INDEX('Rate peg calcs'!E$37:E$164,MATCH($B142,'Rate peg calcs'!$B$37:$B$164,0)) -> 0.02988176551 | F142: =INDEX('Rate peg calcs'!F$37:F$164,MATCH($B142,'Rate peg calcs'!$B$37:$B$164,0)) -> 0 | G142: =INDEX('Rate peg calcs'!G$37:G$164,MATCH($B142,'Rate peg calcs'!$B$37:$B$164,0)) -> 0.001385795974 | H142: =INDEX('Rate peg calcs'!H$37:H$164,MATCH($B142,'Rate peg calcs'!$B$37:$B$164,0)) -> 0.00501875692 | I142: =INDEX('Rate peg calcs'!I$37:I$164,MATCH($B142,'Rate peg calcs'!$B$37:$B$164,0)) -> 0 | J142: =INDEX('Rate peg calcs'!J$37:J$164,MATCH($B142,'Rate peg calcs'!$B$37:$B$164,0)) -> -0.004430862516 | K142: =INDEX('Rate peg calcs'!K$37:K$164,MATCH($B142,'Rate peg calcs'!$B$37:$B$164,0)) -> 0 | L142: 0.032 | M142: =INDEX('Rate peg calcs'!L$37:L$164,MATCH($B142,'Rate peg calcs'!$B$37:$B$164,0)) -> 0.01522050215 | N142: =INDEX('Rate peg calcs'!M$37:M$164,MATCH($B142,'Rate peg calcs'!$B$37:$B$164,0)) -> 0.03013743997 | O142: =INDEX('Rate peg calcs'!N$37:N$164,MATCH($B142,'Rate peg calcs'!$B$37:$B$164,0)) -> 0 | P142: =INDEX('Rate peg calcs'!O$37:O$164,MATCH($B142,'Rate peg calcs'!$B$37:$B$164,0)) -> 0.032 | R142: 0.006404552894 | T142: 0
B143: ='Rate peg calcs'!B159 -> 216 | C143: =INDEX('Rate peg calcs'!C$37:C$164,MATCH($B143,'Rate peg calcs'!$B$37:$B$164,0)) -> Metropolitan | D143: =INDEX('Rate peg calcs'!D$37:D$164,MATCH($B143,'Rate peg calcs'!$B$37:$B$164,0)) -> Willoughby | E143: =INDEX('Rate peg calcs'!E$37:E$164,MATCH($B143,'Rate peg calcs'!$B$37:$B$164,0)) -> 0.02951901918 | F143: =INDEX('Rate peg calcs'!F$37:F$164,MATCH($B143,'Rate peg calcs'!$B$37:$B$164,0)) -> 0 | G143: =INDEX('Rate peg calcs'!G$37:G$164,MATCH($B143,'Rate peg calcs'!$B$37:$B$164,0)) -> 0.001062149079 | H143: =INDEX('Rate peg calcs'!H$37:H$164,MATCH($B143,'Rate peg calcs'!$B$37:$B$164,0)) -> 0.001350314284 | I143: =INDEX('Rate peg calcs'!I$37:I$164,MATCH($B143,'Rate peg calcs'!$B$37:$B$164,0)) -> 0 | J143: =INDEX('Rate peg calcs'!J$37:J$164,MATCH($B143,'Rate peg calcs'!$B$37:$B$164,0)) -> -0.002063410814 | K143: =INDEX('Rate peg calcs'!K$37:K$164,MATCH($B143,'Rate peg calcs'!$B$37:$B$164,0)) -> 0 | L143: 0.03 | M143: =INDEX('Rate peg calcs'!L$37:L$164,MATCH($B143,'Rate peg calcs'!$B$37:$B$164,0)) -> 0.02242993054 | N143: =INDEX('Rate peg calcs'!M$37:M$164,MATCH($B143,'Rate peg calcs'!$B$37:$B$164,0)) -> 0 | O143: =INDEX('Rate peg calcs'!N$37:N$164,MATCH($B143,'Rate peg calcs'!$B$37:$B$164,0)) -> 0.022 | P143: =INDEX('Rate peg calcs'!O$37:O$164,MATCH($B143,'Rate peg calcs'!$B$37:$B$164,0)) -> 0.052 | R143: 0.002412463362 | T143: 0
B144: ='Rate peg calcs'!B160 -> 218 | C144: =INDEX('Rate peg calcs'!C$37:C$164,MATCH($B144,'Rate peg calcs'!$B$37:$B$164,0)) -> Regional | D144: =INDEX('Rate peg calcs'!D$37:D$164,MATCH($B144,'Rate peg calcs'!$B$37:$B$164,0)) -> Wingecarribee | E144: =INDEX('Rate peg calcs'!E$37:E$164,MATCH($B144,'Rate peg calcs'!$B$37:$B$164,0)) -> 0.02980866065 | F144: =INDEX('Rate peg calcs'!F$37:F$164,MATCH($B144,'Rate peg calcs'!$B$37:$B$164,0)) -> 0 | G144: =INDEX('Rate peg calcs'!G$37:G$164,MATCH($B144,'Rate peg calcs'!$B$37:$B$164,0)) -> 2.605295079e-05 | H144: =INDEX('Rate peg calcs'!H$37:H$164,MATCH($B144,'Rate peg calcs'!$B$37:$B$164,0)) -> 0.001467214713 | I144: =INDEX('Rate peg calcs'!I$37:I$164,MATCH($B144,'Rate peg calcs'!$B$37:$B$164,0)) -> 0.0002089166486 | J144: =INDEX('Rate peg calcs'!J$37:J$164,MATCH($B144,'Rate peg calcs'!$B$37:$B$164,0)) -> -0.001156721729 | K144: =INDEX('Rate peg calcs'!K$37:K$164,MATCH($B144,'Rate peg calcs'!$B$37:$B$164,0)) -> 0 | L144: 0.03 | M144: =INDEX('Rate peg calcs'!L$37:L$164,MATCH($B144,'Rate peg calcs'!$B$37:$B$164,0)) -> 0.008379309696 | N144: =INDEX('Rate peg calcs'!M$37:M$164,MATCH($B144,'Rate peg calcs'!$B$37:$B$164,0)) -> 0.004943272515 | O144: =INDEX('Rate peg calcs'!N$37:N$164,MATCH($B144,'Rate peg calcs'!$B$37:$B$164,0)) -> 0.003 | P144: =INDEX('Rate peg calcs'!O$37:O$164,MATCH($B144,'Rate peg calcs'!$B$37:$B$164,0)) -> 0.033 | R144: 0.001493267664 | T144: 0
B145: ='Rate peg calcs'!B161 -> 219 | C145: =INDEX('Rate peg calcs'!C$37:C$164,MATCH($B145,'Rate peg calcs'!$B$37:$B$164,0)) -> Metropolitan | D145: =INDEX('Rate peg calcs'!D$37:D$164,MATCH($B145,'Rate peg calcs'!$B$37:$B$164,0)) -> Wollondilly | E145: =INDEX('Rate peg calcs'!E$37:E$164,MATCH($B145,'Rate peg calcs'!$B$37:$B$164,0)) -> 0.02951901918 | F145: =INDEX('Rate peg calcs'!F$37:F$164,MATCH($B145,'Rate peg calcs'!$B$37:$B$164,0)) -> 0 | G145: =INDEX('Rate peg calcs'!G$37:G$164,MATCH($B145,'Rate peg calcs'!$B$37:$B$164,0)) -> -0.0003208724616 | H145: =INDEX('Rate peg calcs'!H$37:H$164,MATCH($B145,'Rate peg calcs'!$B$37:$B$164,0)) -> 0.001738287108 | I145: =INDEX('Rate peg calcs'!I$37:I$164,MATCH($B145,'Rate peg calcs'!$B$37:$B$164,0)) -> 0 | J145: =INDEX('Rate peg calcs'!J$37:J$164,MATCH($B145,'Rate peg calcs'!$B$37:$B$164,0)) -> -0.001083250193 | K145: =INDEX('Rate peg calcs'!K$37:K$164,MATCH($B145,'Rate peg calcs'!$B$37:$B$164,0)) -> 0 | L145: 0.03 | M145: =INDEX('Rate peg calcs'!L$37:L$164,MATCH($B145,'Rate peg calcs'!$B$37:$B$164,0)) -> 0.03784590813 | N145: =INDEX('Rate peg calcs'!M$37:M$164,MATCH($B145,'Rate peg calcs'!$B$37:$B$164,0)) -> 0.02154842379 | O145: =INDEX('Rate peg calcs'!N$37:N$164,MATCH($B145,'Rate peg calcs'!$B$37:$B$164,0)) -> 0.016 | P145: =INDEX('Rate peg calcs'!O$37:O$164,MATCH($B145,'Rate peg calcs'!$B$37:$B$164,0)) -> 0.046 | R145: 0.001417414646 | T145: 0
B146: ='Rate peg calcs'!B162 -> 220 | C146: =INDEX('Rate peg calcs'!C$37:C$164,MATCH($B146,'Rate peg calcs'!$B$37:$B$164,0)) -> Regional | D146: =INDEX('Rate peg calcs'!D$37:D$164,MATCH($B146,'Rate peg calcs'!$B$37:$B$164,0)) -> Wollongong | E146: =INDEX('Rate peg calcs'!E$37:E$164,MATCH($B146,'Rate peg calcs'!$B$37:$B$164,0)) -> 0.02980866065 | F146: =INDEX('Rate peg calcs'!F$37:F$164,MATCH($B146,'Rate peg calcs'!$B$37:$B$164,0)) -> 0 | G146: =INDEX('Rate peg calcs'!G$37:G$164,MATCH($B146,'Rate peg calcs'!$B$37:$B$164,0)) -> 0.0005060784062 | H146: =INDEX('Rate peg calcs'!H$37:H$164,MATCH($B146,'Rate peg calcs'!$B$37:$B$164,0)) -> 0.001365175767 | I146: =INDEX('Rate peg calcs'!I$37:I$164,MATCH($B146,'Rate peg calcs'!$B$37:$B$164,0)) -> 0.0003374095899 | J146: =INDEX('Rate peg calcs'!J$37:J$164,MATCH($B146,'Rate peg calcs'!$B$37:$B$164,0)) -> -0.0009795540461 | K146: =INDEX('Rate peg calcs'!K$37:K$164,MATCH($B146,'Rate peg calcs'!$B$37:$B$164,0)) -> 0 | L146: 0.031 | M146: =INDEX('Rate peg calcs'!L$37:L$164,MATCH($B146,'Rate peg calcs'!$B$37:$B$164,0)) -> 0.01267376799 | N146: =INDEX('Rate peg calcs'!M$37:M$164,MATCH($B146,'Rate peg calcs'!$B$37:$B$164,0)) -> 0.004288972111 | O146: =INDEX('Rate peg calcs'!N$37:N$164,MATCH($B146,'Rate peg calcs'!$B$37:$B$164,0)) -> 0.008 | P146: =INDEX('Rate peg calcs'!O$37:O$164,MATCH($B146,'Rate peg calcs'!$B$37:$B$164,0)) -> 0.039 | R146: 0.001871254173 | T146: 0
B147: ='Rate peg calcs'!B163 -> 221 | C147: =INDEX('Rate peg calcs'!C$37:C$164,MATCH($B147,'Rate peg calcs'!$B$37:$B$164,0)) -> Metropolitan | D147: =INDEX('Rate peg calcs'!D$37:D$164,MATCH($B147,'Rate peg calcs'!$B$37:$B$164,0)) -> Woollahra | E147: =INDEX('Rate peg calcs'!E$37:E$164,MATCH($B147,'Rate peg calcs'!$B$37:$B$164,0)) -> 0.02951901918 | F147: =INDEX('Rate peg calcs'!F$37:F$164,MATCH($B147,'Rate peg calcs'!$B$37:$B$164,0)) -> 0 | G147: =INDEX('Rate peg calcs'!G$37:G$164,MATCH($B147,'Rate peg calcs'!$B$37:$B$164,0)) -> 0.006297917539 | H147: =INDEX('Rate peg calcs'!H$37:H$164,MATCH($B147,'Rate peg calcs'!$B$37:$B$164,0)) -> 0.002144982086 | I147: =INDEX('Rate peg calcs'!I$37:I$164,MATCH($B147,'Rate peg calcs'!$B$37:$B$164,0)) -> 0 | J147: =INDEX('Rate peg calcs'!J$37:J$164,MATCH($B147,'Rate peg calcs'!$B$37:$B$164,0)) -> -0.002077868221 | K147: =INDEX('Rate peg calcs'!K$37:K$164,MATCH($B147,'Rate peg calcs'!$B$37:$B$164,0)) -> 0 | L147: 0.036 | M147: =INDEX('Rate peg calcs'!L$37:L$164,MATCH($B147,'Rate peg calcs'!$B$37:$B$164,0)) -> 0.00931108916 | N147: =INDEX('Rate peg calcs'!M$37:M$164,MATCH($B147,'Rate peg calcs'!$B$37:$B$164,0)) -> 0.000406504065 | O147: =INDEX('Rate peg calcs'!N$37:N$164,MATCH($B147,'Rate peg calcs'!$B$37:$B$164,0)) -> 0.009 | P147: =INDEX('Rate peg calcs'!O$37:O$164,MATCH($B147,'Rate peg calcs'!$B$37:$B$164,0)) -> 0.045 | R147: 0.008442899625 | T147: 0
B148: ='Rate peg calcs'!B164 -> 2036 | C148: =INDEX('Rate peg calcs'!C$37:C$164,MATCH($B148,'Rate peg calcs'!$B$37:$B$164,0)) -> Rural | D148: =INDEX('Rate peg calcs'!D$37:D$164,MATCH($B148,'Rate peg calcs'!$B$37:$B$164,0)) -> Yass Valley | E148: =INDEX('Rate peg calcs'!E$37:E$164,MATCH($B148,'Rate peg calcs'!$B$37:$B$164,0)) -> 0.02988176551 | F148: =INDEX('Rate peg calcs'!F$37:F$164,MATCH($B148,'Rate peg calcs'!$B$37:$B$164,0)) -> 0 | G148: =INDEX('Rate peg calcs'!G$37:G$164,MATCH($B148,'Rate peg calcs'!$B$37:$B$164,0)) -> 0.001039886433 | H148: =INDEX('Rate peg calcs'!H$37:H$164,MATCH($B148,'Rate peg calcs'!$B$37:$B$164,0)) -> 0.004450134243 | I148: =INDEX('Rate peg calcs'!I$37:I$164,MATCH($B148,'Rate peg calcs'!$B$37:$B$164,0)) -> 0 | J148: =INDEX('Rate peg calcs'!J$37:J$164,MATCH($B148,'Rate peg calcs'!$B$37:$B$164,0)) -> -0.001730225939 | K148: =INDEX('Rate peg calcs'!K$37:K$164,MATCH($B148,'Rate peg calcs'!$B$37:$B$164,0)) -> 0 | L148: 0.034 | M148: =INDEX('Rate peg calcs'!L$37:L$164,MATCH($B148,'Rate peg calcs'!$B$37:$B$164,0)) -> 0.009842632332 | N148: =INDEX('Rate peg calcs'!M$37:M$164,MATCH($B148,'Rate peg calcs'!$B$37:$B$164,0)) -> 0.02587626441 | O148: =INDEX('Rate peg calcs'!N$37:N$164,MATCH($B148,'Rate peg calcs'!$B$37:$B$164,0)) -> 0 | P148: =INDEX('Rate peg calcs'!O$37:O$164,MATCH($B148,'Rate peg calcs'!$B$37:$B$164,0)) -> 0.034 | R148: 0.005490020676 | T148: 0
B150: Note: Totals may not sum due to rounding. We round the Population factor after true-up and the final Rate Peg to 3 decimal places. All other components of the Rate Peg are unrounded.
D189: ='ABS Pop T1'!S123/'ABS Pop T1'!N123-1 -> 0.007389130349 | E189: ='ABS Pop T1'!S123/'ABS Pop T1'!G123-1 -> -0.06040448561

Sheet Info Paper Table
B2: =Cover!$B$3 -> IPART Rate peg model
B5: ="Charts and tables for "&'Rate peg'!$D$11&" rate peg" -> Charts and tables for 2026-27 rate peg
B10: Select change in population to display | D10: Change in population
D11: =MATCH(D10,Q13:R13,0) -> 1
B12: Rate Pegs for Information Paper
B13: ='Rate peg'!D19 -> Council | C13: ='Rate peg'!E19 -> BCC | D13: ='Rate peg'!G19 -> ESL factor | E13: ='Rate peg'!K19 -> Productivity factor | F13: ='Rate peg'!H19 -> ESL subsidy catch-up adjustment | G13: ='Rate peg'!I19 -> Dams safety levy adjustment | H13: ='Rate peg'!J19 -> Election cost adjustment | I13: ='Rate peg'!L19 -> Core Rate Peg | J13: =CHOOSE($D$11,Q13,R13) -> Change in population | K13: ='Rate peg'!N19 -> Supplementary valuations percentage | L13: ='Rate peg'!O19 -> Population factor | M13: ='Rate peg'!P19 -> Final Rate Peg | O13: ='Rate peg'!R19 -> ESL factor + subsidy catch-up adjustment | Q13: Change in population | R13: ='Rate peg'!M19 -> Change in population in the rate peg | T13: check = 0 | U13: check = 0 | V13: check = 0 | W13: check = 0 | X13: check name = TRUE
B14: ='Rate peg'!D21 -> Albury | C14: ='Rate peg'!E21 -> 0.02980866065 | D14: ='Rate peg'!G21 -> 0.0001753119562 | E14: ='Rate peg'!K21 -> 0 | F14: ='Rate peg'!H21 -> 0.001152838743 | G14: ='Rate peg'!I21 -> 0.0007184559737 | H14: ='Rate peg'!J21 -> -0.001387187834 | I14: ='Rate peg'!L21 -> 0.03 | J14: 0.01404997479 | K14: ='Rate peg'!N21 -> 0.007577556189 | L14: ='Rate peg'!O21 -> 0.006 | M14: ='Rate peg'!P21 -> 0.036 | O14: ='Rate peg'!R21 -> 0.001328150699 | Q14: =INDEX('ABS Pop T1'!AQ18:AU18,MATCH('Rate peg'!$D$9,'ABS Pop T1'!$AQ$16:$AU$16,0)) -> 0.01404997479 | R14: ='Rate peg'!M21 -> 0.01404997479 | T14: =IF(Q14>0,Q14-R14,0-R14) -> 0 | U14: =ROUND(SUM(C14:H14),3)-I14 -> 0 | V14: =M14-I14-L14 -> 0 | W14: =SUM(D14:F14)-O14 -> 0 | X14: ='ABS Pop T1'!F18=B14 -> TRUE
B15: ='Rate peg'!D22 -> Armidale Regional | C15: ='Rate peg'!E22 -> 0.02980866065 | D15: ='Rate peg'!G22 -> 0.0004100468958 | E15: ='Rate peg'!K22 -> 0 | F15: ='Rate peg'!H22 -> 0.00370157333 | G15: ='Rate peg'!I22 -> 0.0003394743099 | H15: ='Rate peg'!J22 -> -0.001822501932 | I15: ='Rate peg'!L22 -> 0.032 | J15: 0.001960254157 | K15: ='Rate peg'!N22 -> 0.006425601613 | L15: ='Rate peg'!O22 -> 0 | M15: ='Rate peg'!P22 -> 0.032 | O15: ='Rate peg'!R22 -> 0.004111620226 | Q15: =INDEX('ABS Pop T1'!AQ19:AU19,MATCH('Rate peg'!$D$9,'ABS Pop T1'!$AQ$16:$AU$16,0)) -> 0.001960254157 | R15: ='Rate peg'!M22 -> 0.001960254157 | T15: =IF(Q15>0,Q15-R15,0-R15) -> 0 | U15: =ROUND(SUM(C15:H15),3)-I15 -> 0 | V15: =M15-I15-L15 -> 0 | W15: =SUM(D15:F15)-O15 -> 0 | X15: ='ABS Pop T1'!F19=B15 -> TRUE
B16: ='Rate peg'!D23 -> Ballina | C16: ='Rate peg'!E23 -> 0.02980866065 | D16: ='Rate peg'!G23 -> -0.0005550250084 | E16: ='Rate peg'!K23 -> 0 | F16: ='Rate peg'!H23 -> 0.001212864431 | G16: ='Rate peg'!I23 -> 0 | H16: ='Rate peg'!J23 -> -0.001358207383 | I16: ='Rate peg'!L23 -> 0.029 | J16: 0.0139179728 | K16: ='Rate peg'!N23 -> 0.008748692924 | L16: ='Rate peg'!O23 -> 0.005 | M16: ='Rate peg'!P23 -> 0.034 | O16: ='Rate peg'!R23 -> 0.0006578394223 | Q16: =INDEX('ABS Pop T1'!AQ20:AU20,MATCH('Rate peg'!$D$9,'ABS Pop T1'!$AQ$16:$AU$16,0)) -> 0.0139179728 | R16: ='Rate peg'!M23 -> 0.0139179728 | T16: 0 | U16: 0 | V16: 0 | W16: 0 | X16: ='ABS Pop T1'!F20=B16 -> TRUE
B17: ='Rate peg'!D24 -> Balranald | C17: ='Rate peg'!E24 -> 0.02988176551 | D17: ='Rate peg'!G24 -> 0.001831011888 | E17: ='Rate peg'!K24 -> 0 | F17: ='Rate peg'!H24 -> 0.007075213321 | G17: ='Rate peg'!I24 -> 0 | H17: ='Rate peg'!J24 -> -0.0006390874903 | I17: ='Rate peg'!L24 -> 0.038 | J17: 0.007720254314 | K17: ='Rate peg'!N24 -> 0 | L17: ='Rate peg'!O24 -> 0.008 | M17: ='Rate peg'!P24 -> 0.046 | O17: ='Rate peg'!R24 -> 0.008906225209 | Q17: =INDEX('ABS Pop T1'!AQ21:AU21,MATCH('Rate peg'!$D$9,'ABS Pop T1'!$AQ$16:$AU$16,0)) -> 0.007720254314 | R17: ='Rate peg'!M24 -> 0.007720254314 | T17: 0 | U17: 0 | V17: 0 | W17: 0 | X17: ='ABS Pop T1'!F21=B17 -> TRUE
B18: ='Rate peg'!D25 -> Bathurst Regional | C18: ='Rate peg'!E25 -> 0.02980866065 | D18: ='Rate peg'!G25 -> 0.0008854605699 | E18: ='Rate peg'!K25 -> 0 | F18: ='Rate peg'!H25 -> 0.002511482297 | G18: ='Rate peg'!I25 -> 0 | H18: ='Rate peg'!J25 -> -0.001877139658 | I18: ='Rate peg'!L25 -> 0.031 | J18: 0.008954882924 | K18: ='Rate peg'!N25 -> 0.008680997202 | L18: ='Rate peg'!O25 -> 0 | M18: ='Rate peg'!P25 -> 0.031 | O18: ='Rate peg'!R25 -> 0.003396942867 | Q18: =INDEX('ABS Pop T1'!AQ22:AU22,MATCH('Rate peg'!$D$9,'ABS Pop T1'!$AQ$16:$AU$16,0)) -> 0.008954882924 | R18: ='Rate peg'!M25 -> 0.008954882924 | T18: 0 | U18: 0 | V18: 0 | W18: 0 | X18: ='ABS Pop T1'!F22=B18 -> TRUE
B19: ='Rate peg'!D26 -> Bayside | C19: ='Rate peg'!E26 -> 0.02951901918 | D19: ='Rate peg'!G26 -> 0.0002446428671 | E19: ='Rate peg'!K26 -> 0 | F19: ='Rate peg'!H26 -> 0.0001630298048 | G19: ='Rate peg'!I26 -> 0 | H19: ='Rate peg'!J26 -> -0.001019079044 | I19: ='Rate peg'!L26 -> 0.029 | J19: 0.01604307305 | K19: ='Rate peg'!N26 -> 0.006264335691 | L19: ='Rate peg'!O26 -> 0.01 | M19: ='Rate peg'!P26 -> 0.039 | O19: ='Rate peg'!R26 -> 0.0004076726719 | Q19: =INDEX('ABS Pop T1'!AQ23:AU23,MATCH('Rate peg'!$D$9,'ABS Pop T1'!$AQ$16:$AU$16,0)) -> 0.01604307305 | R19: ='Rate peg'!M26 -> 0.01604307305 | T19: 0 | U19: 0 | V19: 0 | W19: 0 | X19: ='ABS Pop T1'!F23=B19 -> TRUE
B20: ='Rate peg'!D27 -> Bega Valley | C20: ='Rate peg'!E27 -> 0.02980866065 | D20: ='Rate peg'!G27 -> 0.0001347928659 | E20: ='Rate peg'!K27 -> 0 | F20: ='Rate peg'!H27 -> 0.001976394394 | G20: ='Rate peg'!I27 -> 0 | H20: ='Rate peg'!J27 -> -0.002288675863 | I20: ='Rate peg'!L27 -> 0.03 | J20: 0.008682948343 | K20: ='Rate peg'!N27 -> 0.004025474646 | L20: ='Rate peg'!O27 -> 0.005 | M20: ='Rate peg'!P27 -> 0.035 | O20: ='Rate peg'!R27 -> 0.002111187259 | Q20: =INDEX('ABS Pop T1'!AQ24:AU24,MATCH('Rate peg'!$D$9,'ABS Pop T1'!$AQ$16:$AU$16,0)) -> 0.008682948343 | R20: ='Rate peg'!M27 -> 0.008682948343 | T20: 0 | U20: 0 | V20: 0 | W20: 0 | X20: ='ABS Pop T1'!F24=B20 -> TRUE
B21: ='Rate peg'!D28 -> Bellingen | C21: ='Rate peg'!E28 -> 0.02988176551 | D21: ='Rate peg'!G28 -> 0.001111672479 | E21: ='Rate peg'!K28 -> 0 | F21: ='Rate peg'!H28 -> 0.008609267792 | G21: ='Rate peg'!I28 -> 0 | H21: ='Rate peg'!J28 -> -0.001386668489 | I21: ='Rate peg'!L28 -> 0.038 | J21: 0.003552263623 | K21: ='Rate peg'!N28 -> 0.009191727445 | L21: ='Rate peg'!O28 -> 0 | M21: ='Rate peg'!P28 -> 0.038 | O21: ='Rate peg'!R28 -> 0.00972094027 | Q21: =INDEX('ABS Pop T1'!AQ25:AU25,MATCH('Rate peg'!$D$9,'ABS Pop T1'!$AQ$16:$AU$16,0)) -> 0.003552263623 | R21: ='Rate peg'!M28 -> 0.003552263623 | T21: 0 | U21: 0 | V21: 0 | W21: 0 | X21: ='ABS Pop T1'!F25=B21 -> TRUE
B22: ='Rate peg'!D29 -> Berrigan | C22: ='Rate peg'!E29 -> 0.02988176551 | D22: ='Rate peg'!G29 -> 0.00080315043 | E22: ='Rate peg'!K29 -> 0 | F22: ='Rate peg'!H29 -> 0.003231509352 | G22: ='Rate peg'!I29 -> 0 | H22: ='Rate peg'!J29 -> -0.005507718017 | I22: ='Rate peg'!L29 -> 0.028 | J22: 0.002661113039 | K22: ='Rate peg'!N29 -> 0.003202966959 | L22: ='Rate peg'!O29 -> 0 | M22: ='Rate peg'!P29 -> 0.028 | O22: ='Rate peg'!R29 -> 0.004034659782 | Q22: =INDEX('ABS Pop T1'!AQ26:AU26,MATCH('Rate peg'!$D$9,'ABS Pop T1'!$AQ$16:$AU$16,0)) -> 0.002661113039 | R22: ='Rate peg'!M29 -> 0.002661113039 | T22: 0 | U22: 0 | V22: 0 | W22: 0 | X22: ='ABS Pop T1'!F26=B22 -> TRUE
B23: ='Rate peg'!D30 -> Blacktown | C23: ='Rate peg'!E30 -> 0.02951901918 | D23: ='Rate peg'!G30 -> 0.0001273916236 | E23: ='Rate peg'!K30 -> 0 | F23: ='Rate peg'!H30 -> 0.001853561287 | G23: ='Rate peg'!I30 -> 0.0001492627237 | H23: ='Rate peg'!J30 -> -0.001359140362 | I23: ='Rate peg'!L30 -> 0.03 | J23: 0.02990318588 | K23: ='Rate peg'!N30 -> 0.006335595134 | L23: ='Rate peg'!O30 -> 0.024 | M23: ='Rate peg'!P30 -> 0.054 | O23: ='Rate peg'!R30 -> 0.00198095291 | Q23: =INDEX('ABS Pop T1'!AQ27:AU27,MATCH('Rate peg'!$D$9,'ABS Pop T1'!$AQ$16:$AU$16,0)) -> 0.02990318588 | R23: ='Rate peg'!M30 -> 0.02990318588 | T23: 0 | U23: 0 | V23: 0 | W23: 0 | X23: ='ABS Pop T1'!F27=B23 -> TRUE
B24: ='Rate peg'!D31 -> Bland | C24: ='Rate peg'!E31 -> 0.02988176551 | D24: ='Rate peg'!G31 -> 0.00202687839 | E24: ='Rate peg'!K31 -> 0 | F24: ='Rate peg'!H31 -> 0.006015469653 | G24: ='Rate peg'!I31 -> 0 | H24: ='Rate peg'!J31 -> -0.001964391707 | I24: ='Rate peg'!L31 -> 0.036 | J24: -0.001647446458 | K24: ='Rate peg'!N31 -> 0.0009388412017 | L24: ='Rate peg'!O31 -> 0 | M24: ='Rate peg'!P31 -> 0.036 | O24: ='Rate peg'!R31 -> 0.008042348043 | Q24: =INDEX('ABS Pop T1'!AQ28:AU28,MATCH('Rate peg'!$D$9,'ABS Pop T1'!$AQ$16:$AU$16,0)) -> -0.001647446458 | R24: ='Rate peg'!M31 -> 0 | T24: 0 | U24: 0 | V24: 0 | W24: 0 | X24: ='ABS Pop T1'!F28=B24 -> TRUE
B25: ='Rate peg'!D32 -> Blayney | C25: ='Rate peg'!E32 -> 0.02988176551 | D25: ='Rate peg'!G32 -> 0.0002186852136 | E25: ='Rate peg'!K32 -> 0 | F25: ='Rate peg'!H32 -> 0.002790128495 | G25: ='Rate peg'!I32 -> 0 | H25: ='Rate peg'!J32 -> -0.0009315420569 | I25: ='Rate peg'!L32 -> 0.032 | J25: 0.01622399581 | K25: ='Rate peg'!N32 -> 0.0007977662545 | L25: ='Rate peg'!O32 -> 0.015 | M25: ='Rate peg'!P32 -> 0.047 | O25: ='Rate peg'!R32 -> 0.003008813709 | Q25: =INDEX('ABS Pop T1'!AQ29:AU29,MATCH('Rate peg'!$D$9,'ABS Pop T1'!$AQ$16:$AU$16,0)) -> 0.01622399581 | R25: ='Rate peg'!M32 -> 0.01622399581 | T25: 0 | U25: 0 | V25: 0 | W25: 0 | X25: ='ABS Pop T1'!F29=B25 -> TRUE
B26: ='Rate peg'!D33 -> Blue Mountains | C26: ='Rate peg'!E33 -> 0.02951901918 | D26: ='Rate peg'!G33 -> 0.001038028905 | E26: ='Rate peg'!K33 -> 0 | F26: ='Rate peg'!H33 -> 0.002503450336 | G26: ='Rate peg'!I33 -> 0.0001336892325 | H26: ='Rate peg'!J33 -> -0.0008189908703 | I26: ='Rate peg'!L33 -> 0.032 | J26: 0.005788084705 | K26: ='Rate peg'!N33 -> 0.0009042420748 | L26: ='Rate peg'!O33 -> 0.005 | M26: ='Rate peg'!P33 -> 0.037 | O26: ='Rate peg'!R33 -> 0.003541479241 | Q26: =INDEX('ABS Pop T1'!AQ30:AU30,MATCH('Rate peg'!$D$9,'ABS Pop T1'!$AQ$16:$AU$16,0)) -> 0.005788084705 | R26: ='Rate peg'!M33 -> 0.005788084705 | T26: 0 | U26: 0 | V26: 0 | W26: 0 | X26: ='ABS Pop T1'!F30=B26 -> TRUE
B27: ='Rate peg'!D34 -> Bogan | C27: ='Rate peg'!E34 -> 0.02988176551 | D27: ='Rate peg'!G34 -> 0.00155325238 | E27: ='Rate peg'!K34 -> 0 | F27: ='Rate peg'!H34 -> 0.004373273551 | G27: ='Rate peg'!I34 -> 0 | H27: ='Rate peg'!J34 -> -0.002093860041 | I27: ='Rate peg'!L34 -> 0.034 | J27: -0.005371900826 | K27: ='Rate peg'!N34 -> 0.005576208178 | L27: ='Rate peg'!O34 -> 0 | M27: ='Rate peg'!P34 -> 0.034 | O27: ='Rate peg'!R34 -> 0.005926525931 | Q27: =INDEX('ABS Pop T1'!AQ31:AU31,MATCH('Rate peg'!$D$9,'ABS Pop T1'!$AQ$16:$AU$16,0)) -> -0.005371900826 | R27: ='Rate peg'!M34 -> 0 | T27: 0 | U27: 0 | V27: 0 | W27: 0 | X27: ='ABS Pop T1'!F31=B27 -> TRUE
B28: ='Rate peg'!D35 -> Bourke | C28: ='Rate peg'!E35 -> 0.02988176551 | D28: ='Rate peg'!G35 -> 0.003159461084 | E28: ='Rate peg'!K35 -> 0 | F28: ='Rate peg'!H35 -> 0.00774752354 | G28: ='Rate peg'!I35 -> 0 | H28: ='Rate peg'!J35 -> 0.0003672538124 | I28: ='Rate peg'!L35 -> 0.041 | J28: -0.006345177665 | K28: ='Rate peg'!N35 -> 0 | L28: ='Rate peg'!O35 -> 0 | M28: ='Rate peg'!P35 -> 0.041 | O28: ='Rate peg'!R35 -> 0.01090698462 | Q28: =INDEX('ABS Pop T1'!AQ32:AU32,MATCH('Rate peg'!$D$9,'ABS Pop T1'!$AQ$16:$AU$16,0)) -> -0.006345177665 | R28: ='Rate peg'!M35 -> 0 | T28: 0 | U28: 0 | V28: 0 | W28: 0 | X28: ='ABS Pop T1'!F32=B28 -> TRUE
B29: ='Rate peg'!D36 -> Brewarrina | C29: ='Rate peg'!E36 -> 0.02988176551 | D29: ='Rate peg'!G36 -> 0.004651462771 | E29: ='Rate peg'!K36 -> 0 | F29: ='Rate peg'!H36 -> 0.007627931841 | G29: ='Rate peg'!I36 -> 0 | H29: ='Rate peg'!J36 -> -0.005867397898 | I29: ='Rate peg'!L36 -> 0.036 | J29: -0.002126151665 | K29: ='Rate peg'!N36 -> 0 | L29: ='Rate peg'!O36 -> 0 | M29: ='Rate peg'!P36 -> 0.036 | O29: ='Rate peg'!R36 -> 0.01227939461 | Q29: =INDEX('ABS Pop T1'!AQ33:AU33,MATCH('Rate peg'!$D$9,'ABS Pop T1'!$AQ$16:$AU$16,0)) -> -0.002126151665 | R29: ='Rate peg'!M36 -> 0 | T29: 0 | U29: 0 | V29: 0 | W29: 0 | X29: ='ABS Pop T1'!F33=B29 -> TRUE
B30: ='Rate peg'!D37 -> Broken Hill | C30: ='Rate peg'!E37 -> 0.02980866065 | D30: ='Rate peg'!G37 -> 0.001694750958 | E30: ='Rate peg'!K37 -> 0 | F30: ='Rate peg'!H37 -> 0.001598681705 | G30: ='Rate peg'!I37 -> 0 | H30: ='Rate peg'!J37 -> -0.001394214916 | I30: ='Rate peg'!L37 -> 0.032 | J30: -0.005237390413 | K30: ='Rate peg'!N37 -> 0 | L30: ='Rate peg'!O37 -> 0 | M30: ='Rate peg'!P37 -> 0.032 | O30: ='Rate peg'!R37 -> 0.003293432663 | Q30: =INDEX('ABS Pop T1'!AQ34:AU34,MATCH('Rate peg'!$D$9,'ABS Pop T1'!$AQ$16:$AU$16,0)) -> -0.005237390413 | R30: ='Rate peg'!M37 -> 0 | T30: 0 | U30: 0 | V30: 0 | W30: 0 | X30: ='ABS Pop T1'!F34=B30 -> TRUE
B31: ='Rate peg'!D38 -> Burwood | C31: ='Rate peg'!E38 -> 0.02951901918 | D31: ='Rate peg'!G38 -> 0.0003746944058 | E31: ='Rate peg'!K38 -> 0 | F31: ='Rate peg'!H38 -> 0.0009695701726 | G31: ='Rate peg'!I38 -> 0 | H31: ='Rate peg'!J38 -> -0.001429402039 | I31: ='Rate peg'!L38 -> 0.029 | J31: 0.02000188253 | K31: ='Rate peg'!N38 -> 0.008301106814 | L31: ='Rate peg'!O38 -> 0.012 | M31: ='Rate peg'!P38 -> 0.041 | O31: ='Rate peg'!R38 -> 0.001344264578 | Q31: =INDEX('ABS Pop T1'!AQ35:AU35,MATCH('Rate peg'!$D$9,'ABS Pop T1'!$AQ$16:$AU$16,0)) -> 0.02000188253 | R31: ='Rate peg'!M38 -> 0.02000188253 | T31: 0 | U31: 0 | V31: 0 | W31: 0 | X31: ='ABS Pop T1'!F35=B31 -> TRUE
B32: ='Rate peg'!D39 -> Byron | C32: ='Rate peg'!E39 -> 0.02980866065 | D32: ='Rate peg'!G39 -> -0.0003933512523 | E32: ='Rate peg'!K39 -> 0 | F32: ='Rate peg'!H39 -> 0.001259290701 | G32: ='Rate peg'!I39 -> 0 | H32: ='Rate peg'!J39 -> -0.0009764016417 | I32: ='Rate peg'!L39 -> 0.03 | J32: 0.01896449545 | K32: ='Rate peg'!N39 -> 0.002810225157 | L32: ='Rate peg'!O39 -> 0.016 | M32: ='Rate peg'!P39 -> 0.046 | O32: ='Rate peg'!R39 -> 0.0008659394488 | Q32: =INDEX('ABS Pop T1'!AQ36:AU36,MATCH('Rate peg'!$D$9,'ABS Pop T1'!$AQ$16:$AU$16,0)) -> 0.01896449545 | R32: ='Rate peg'!M39 -> 0.01896449545 | T32: 0 | U32: 0 | V32: 0 | W32: 0 | X32: ='ABS Pop T1'!F36=B32 -> TRUE
B33: ='Rate peg'!D40 -> Cabonne | C33: ='Rate peg'!E40 -> 0.02988176551 | D33: ='Rate peg'!G40 -> 0.001048159126 | E33: ='Rate peg'!K40 -> 0 | F33: ='Rate peg'!H40 -> 0.004139990907 | G33: ='Rate peg'!I40 -> 0 | H33: ='Rate peg'!J40 -> -0.002080570466 | I33: ='Rate peg'!L40 -> 0.033 | J33: 0.001296923409 | K33: ='Rate peg'!N40 -> 0 | L33: ='Rate peg'!O40 -> 0.001 | M33: ='Rate peg'!P40 -> 0.034 | O33: ='Rate peg'!R40 -> 0.005188150033 | Q33: =INDEX('ABS Pop T1'!AQ37:AU37,MATCH('Rate peg'!$D$9,'ABS Pop T1'!$AQ$16:$AU$16,0)) -> 0.001296923409 | R33: ='Rate peg'!M40 -> 0.001296923409 | T33: 0 | U33: 0 | V33: 0 | W33: 0 | X33: ='ABS Pop T1'!F37=B33 -> TRUE
B34: ='Rate peg'!D41 -> Camden | C34: ='Rate peg'!E41 -> 0.02951901918 | D34: ='Rate peg'!G41 -> -0.003903425329 | E34: ='Rate peg'!K41 -> 0 | F34: ='Rate peg'!H41 -> 0.001057564514 | G34: ='Rate peg'!I41 -> 0.0001203927419 | H34: ='Rate peg'!J41 -> -0.00167612817 | I34: ='Rate peg'!L41 -> 0.025 | J34: 0.04726816708 | K34: ='Rate peg'!N41 -> 0.02604059345 | L34: ='Rate peg'!O41 -> 0.021 | M34: ='Rate peg'!P41 -> 0.046 | O34: ='Rate peg'!R41 -> -0.002845860815 | Q34: =INDEX('ABS Pop T1'!AQ38:AU38,MATCH('Rate peg'!$D$9,'ABS Pop T1'!$AQ$16:$AU$16,0)) -> 0.04726816708 | R34: ='Rate peg'!M41 -> 0.04726816708 | T34: 0 | U34: 0 | V34: 0 | W34: 0 | X34: ='ABS Pop T1'!F38=B34 -> TRUE
B35: ='Rate peg'!D42 -> Campbelltown | C35: ='Rate peg'!E42 -> 0.02951901918 | D35: ='Rate peg'!G42 -> 0.0003780039541 | E35: ='Rate peg'!K42 -> 0 | F35: ='Rate peg'!H42 -> 0.001458421111 | G35: ='Rate peg'!I42 -> 0.0004643435035 | H35: ='Rate peg'!J42 -> -0.0007369015645 | I35: ='Rate peg'!L42 -> 0.031 | J35: 0.01931967045 | K35: ='Rate peg'!N42 -> 0.01368591757 | L35: ='Rate peg'!O42 -> 0.006 | M35: ='Rate peg'!P42 -> 0.037 | O35: ='Rate peg'!R42 -> 0.001836425065 | Q35: =INDEX('ABS Pop T1'!AQ39:AU39,MATCH('Rate peg'!$D$9,'ABS Pop T1'!$AQ$16:$AU$16,0)) -> 0.01931967045 | R35: ='Rate peg'!M42 -> 0.01931967045 | T35: 0 | U35: 0 | V35: 0 | W35: 0 | X35: ='ABS Pop T1'!F39=B35 -> TRUE
B36: ='Rate peg'!D43 -> Canada Bay | C36: ='Rate peg'!E43 -> 0.02951901918 | D36: ='Rate peg'!G43 -> 0.001149520663 | E36: ='Rate peg'!K43 -> 0 | F36: ='Rate peg'!H43 -> 0.004831462749 | G36: ='Rate peg'!I43 -> 0 | H36: ='Rate peg'!J43 -> -0.001844588502 | I36: ='Rate peg'!L43 -> 0.034 | J36: 0.009542256218 | K36: ='Rate peg'!N43 -> 0.001663359987 | L36: ='Rate peg'!O43 -> 0.008 | M36: ='Rate peg'!P43 -> 0.042 | O36: ='Rate peg'!R43 -> 0.005980983412 | Q36: =INDEX('ABS Pop T1'!AQ40:AU40,MATCH('Rate peg'!$D$9,'ABS Pop T1'!$AQ$16:$AU$16,0)) -> 0.009542256218 | R36: ='Rate peg'!M43 -> 0.009542256218 | T36: 0 | U36: 0 | V36: 0 | W36: 0 | X36: ='ABS Pop T1'!F40=B36 -> TRUE
B37: ='Rate peg'!D44 -> Canterbury-Bankstown | C37: ='Rate peg'!E44 -> 0.02951901918 | D37: ='Rate peg'!G44 -> -0.0002121009166 | E37: ='Rate peg'!K44 -> 0 | F37: ='Rate peg'!H44 -> 0.002049974131 | G37: ='Rate peg'!I44 -> 0 | H37: ='Rate peg'!J44 -> -0.001037243973 | I37: ='Rate peg'!L44 -> 0.03 | J37: 0.01450756189 | K37: ='Rate peg'!N44 -> 0.003261842219 | L37: ='Rate peg'!O44 -> 0.011 | M37: ='Rate peg'!P44 -> 0.041 | O37: ='Rate peg'!R44 -> 0.001837873214 | Q37: =INDEX('ABS Pop T1'!AQ41:AU41,MATCH('Rate peg'!$D$9,'ABS Pop T1'!$AQ$16:$AU$16,0)) -> 0.01450756189 | R37: ='Rate peg'!M44 -> 0.01450756189 | T37: 0 | U37: 0 | V37: 0 | W37: 0 | X37: ='ABS Pop T1'!F41=B37 -> TRUE
B38: ='Rate peg'!D45 -> Carrathool | C38: ='Rate peg'!E45 -> 0.02988176551 | D38: ='Rate peg'!G45 -> 0.002002452101 | E38: ='Rate peg'!K45 -> 0 | F38: ='Rate peg'!H45 -> 0.005895556639 | G38: ='Rate peg'!I45 -> 0 | H38: ='Rate peg'!J45 -> -0.00115619874 | I38: ='Rate peg'!L45 -> 0.037 | J38: 0.001085383502 | K38: ='Rate peg'!N45 -> 0.007737459979 | L38: ='Rate peg'!O45 -> 0 | M38: ='Rate peg'!P45 -> 0.037 | O38: ='Rate peg'!R45 -> 0.007898008739 | Q38: =INDEX('ABS Pop T1'!AQ42:AU42,MATCH('Rate peg'!$D$9,'ABS Pop T1'!$AQ$16:$AU$16,0)) -> 0.001085383502 | R38: ='Rate peg'!M45 -> 0.001085383502 | T38: 0 | U38: 0 | V38: 0 | W38: 0 | X38: ='ABS Pop T1'!F42=B38 -> TRUE
B39: ='Rate peg'!D46 -> Central Coast | C39: ='Rate peg'!E46 -> 0.02951901918 | D39: ='Rate peg'!G46 -> 0.0003205316925 | E39: ='Rate peg'!K46 -> 0 | F39: ='Rate peg'!H46 -> 0.001732527605 | G39: ='Rate peg'!I46 -> 0.0001607121632 | H39: ='Rate peg'!J46 -> -0.001584143008 | I39: ='Rate peg'!L46 -> 0.03 | J39: 0.00827305927 | K39: ='Rate peg'!N46 -> 0.006393831833 | L39: ='Rate peg'!O46 -> 0.002 | M39: ='Rate peg'!P46 -> 0.032 | O39: ='Rate peg'!R46 -> 0.002053059297 | Q39: =INDEX('ABS Pop T1'!AQ43:AU43,MATCH('Rate peg'!$D$9,'ABS Pop T1'!$AQ$16:$AU$16,0)) -> 0.00827305927 | R39: ='Rate peg'!M46 -> 0.00827305927 | T39: 0 | U39: 0 | V39: 0 | W39: 0 | X39: ='ABS Pop T1'!F43=B39 -> TRUE
B40: ='Rate peg'!D47 -> Central Darling | C40: ='Rate peg'!E47 -> 0.02988176551 | D40: ='Rate peg'!G47 -> 0.004701313649 | E40: ='Rate peg'!K47 -> 0 | F40: ='Rate peg'!H47 -> 0.007745107923 | G40: ='Rate peg'!I47 -> 0 | H40: ='Rate peg'!J47 -> 0 | I40: ='Rate peg'!L47 -> 0.042 | J40: 0.006264236902 | K40: ='Rate peg'!N47 -> 0 | L40: ='Rate peg'!O47 -> 0.006 | M40: ='Rate peg'!P47 -> 0.048 | O40: ='Rate peg'!R47 -> 0.01244642157 | Q40: =INDEX('ABS Pop T1'!AQ44:AU44,MATCH('Rate peg'!$D$9,'ABS Pop T1'!$AQ$16:$AU$16,0)) -> 0.006264236902 | R40: ='Rate peg'!M47 -> 0.006264236902 | T40: 0 | U40: 0 | V40: 0 | W40: 0 | X40: ='ABS Pop T1'!F44=B40 -> TRUE
B41: ='Rate peg'!D48 -> Cessnock | C41: ='Rate peg'!E48 -> 0.02980866065 | D41: ='Rate peg'!G48 -> 0.0001065939455 | E41: ='Rate peg'!K48 -> 0 | F41: ='Rate peg'!H48 -> 0.001871048303 | G41: ='Rate peg'!I48 -> 0.0004142100612 | H41: ='Rate peg'!J48 -> -0.001744554601 | I41: ='Rate peg'!L48 -> 0.03 | J41: 0.02717325595 | K41: ='Rate peg'!N48 -> 0.01885572451 | L41: ='Rate peg'!O48 -> 0.008 | M41: ='Rate peg'!P48 -> 0.038 | O41: ='Rate peg'!R48 -> 0.001977642249 | Q41: =INDEX('ABS Pop T1'!AQ45:AU45,MATCH('Rate peg'!$D$9,'ABS Pop T1'!$AQ$16:$AU$16,0)) -> 0.02717325595 | R41: ='Rate peg'!M48 -> 0.02717325595 | T41: 0 | U41: 0 | V41: 0 | W41: 0 | X41: ='ABS Pop T1'!F45=B41 -> TRUE
B42: ='Rate peg'!D49 -> Clarence Valley | C42: ='Rate peg'!E49 -> 0.02980866065 | D42: ='Rate peg'!G49 -> -4.325479291e-05 | E42: ='Rate peg'!K49 -> 0 | F42: ='Rate peg'!H49 -> 0.002807475738 | G42: ='Rate peg'!I49 -> 0 | H42: ='Rate peg'!J49 -> -0.001571634944 | I42: ='Rate peg'!L49 -> 0.031 | J42: 0.0115254613 | K42: ='Rate peg'!N49 -> 0 | L42: ='Rate peg'!O49 -> 0.012 | M42: ='Rate peg'!P49 -> 0.043 | O42: ='Rate peg'!R49 -> 0.002764220946 | Q42: =INDEX('ABS Pop T1'!AQ46:AU46,MATCH('Rate peg'!$D$9,'ABS Pop T1'!$AQ$16:$AU$16,0)) -> 0.0115254613 | R42: ='Rate peg'!M49 -> 0.0115254613 | T42: 0 | U42: 0 | V42: 0 | W42: 0 | X42: ='ABS Pop T1'!F46=B42 -> TRUE
B43: ='Rate peg'!D50 -> Cobar | C43: ='Rate peg'!E50 -> 0.02988176551 | D43: ='Rate peg'!G50 -> 0.001739066892 | E43: ='Rate peg'!K50 -> 0 | F43: ='Rate peg'!H50 -> 0.005111277291 | G43: ='Rate peg'!I50 -> 0 | H43: ='Rate peg'!J50 -> 0.0006714716532 | I43: ='Rate peg'!L50 -> 0.037 | J43: -0.01520726024 | K43: ='Rate peg'!N50 -> 0 | L43: ='Rate peg'!O50 -> 0 | M43: ='Rate peg'!P50 -> 0.037 | O43: ='Rate peg'!R50 -> 0.006850344183 | Q43: =INDEX('ABS Pop T1'!AQ47:AU47,MATCH('Rate peg'!$D$9,'ABS Pop T1'!$AQ$16:$AU$16,0)) -> -0.01520726024 | R43: ='Rate peg'!M50 -> 0 | T43: 0 | U43: 0 | V43: 0 | W43: 0 | X43: ='ABS Pop T1'!F47=B43 -> TRUE
B44: ='Rate peg'!D51 -> Coffs Harbour | C44: ='Rate peg'!E51 -> 0.02980866065 | D44: ='Rate peg'!G51 -> 0.0002044231293 | E44: ='Rate peg'!K51 -> 0 | F44: ='Rate peg'!H51 -> 0.002081471052 | G44: ='Rate peg'!I51 -> 0.001091475407 | H44: ='Rate peg'!J51 -> -0.002076437557 | I44: ='Rate peg'!L51 -> 0.031 | J44: 0.009542743539 | K44: ='Rate peg'!N51 -> 0.003678222256 | L44: ='Rate peg'!O51 -> 0.006 | M44: ='Rate peg'!P51 -> 0.037 | O44: ='Rate peg'!R51 -> 0.002285894182 | Q44: =INDEX('ABS Pop T1'!AQ48:AU48,MATCH('Rate peg'!$D$9,'ABS Pop T1'!$AQ$16:$AU$16,0)) -> 0.009542743539 | R44: ='Rate peg'!M51 -> 0.009542743539 | T44: 0 | U44: 0 | V44: 0 | W44: 0 | X44: ='ABS Pop T1'!F48=B44 -> TRUE
B45: ='Rate peg'!D52 -> Coolamon | C45: ='Rate peg'!E52 -> 0.02988176551 | D45: ='Rate peg'!G52 -> 0.0009930837166 | E45: ='Rate peg'!K52 -> 0 | F45: ='Rate peg'!H52 -> 0.008275725373 | G45: ='Rate peg'!I52 -> 0 | H45: ='Rate peg'!J52 -> -0.004464711283 | I45: ='Rate peg'!L52 -> 0.035 | J45: =CHOOSE($D$11,Q45,R45) -> 0.01406902616 | K45: ='Rate peg'!N52 -> 0 | L45: ='Rate peg'!O52 -> 0.014 | M45: ='Rate peg'!P52 -> 0.049 | O45: ='Rate peg'!R52 -> 0.00926880909 | Q45: =INDEX('ABS Pop T1'!AQ49:AU49,MATCH('Rate peg'!$D$9,'ABS Pop T1'!$AQ$16:$AU$16,0)) -> 0.01406902616 | R45: ='Rate peg'!M52 -> 0.01406902616 | T45: 0 | U45: 0 | V45: 0 | W45: 0 | X45: ='ABS Pop T1'!F49=B45 -> TRUE
B46: ='Rate peg'!D53 -> Coonamble | C46: ='Rate peg'!E53 -> 0.02988176551 | D46: ='Rate peg'!G53 -> 0.0006496651258 | E46: ='Rate peg'!K53 -> 0 | F46: ='Rate peg'!H53 -> 0.00264879517 | G46: ='Rate peg'!I53 -> 0 | H46: ='Rate peg'!J53 -> -0.001124244794 | I46: ='Rate peg'!L53 -> 0.032 | J46: 0.002849740933 | K46: ='Rate peg'!N53 -> 0 | L46: ='Rate peg'!O53 -> 0.003 | M46: ='Rate peg'!P53 -> 0.035 | O46: ='Rate peg'!R53 -> 0.003298460296 | Q46: =INDEX('ABS Pop T1'!AQ50:AU50,MATCH('Rate peg'!$D$9,'ABS Pop T1'!$AQ$16:$AU$16,0)) -> 0.002849740933 | R46: ='Rate peg'!M53 -> 0.002849740933 | T46: 0 | U46: 0 | V46: 0 | W46: 0 | X46: ='ABS Pop T1'!F50=B46 -> TRUE
B47: ='Rate peg'!D54 -> Cootamundra-Gundagai Regional | C47: ='Rate peg'!E54 -> 0.02988176551 | D47: ='Rate peg'!G54 -> 0.001341034615 | E47: ='Rate peg'!K54 -> 0 | F47: ='Rate peg'!H54 -> 0.004455775916 | G47: ='Rate peg'!I54 -> 0 | H47: ='Rate peg'!J54 -> -0.003832353924 | I47: ='Rate peg'!L54 -> 0.032 | J47: 8.754267706e-05 | K47: ='Rate peg'!N54 -> 0 | L47: ='Rate peg'!O54 -> 0 | M47: ='Rate peg'!P54 -> 0.032 | O47: ='Rate peg'!R54 -> 0.005796810531 | Q47: =INDEX('ABS Pop T1'!AQ51:AU51,MATCH('Rate peg'!$D$9,'ABS Pop T1'!$AQ$16:$AU$16,0)) -> 8.754267706e-05 | R47: ='Rate peg'!M54 -> 8.754267706e-05 | T47: 0 | U47: 0 | V47: 0 | W47: 0 | X47: ='ABS Pop T1'!F51=B47 -> TRUE
B48: ='Rate peg'!D55 -> Cowra | C48: ='Rate peg'!E55 -> 0.02988176551 | D48: ='Rate peg'!G55 -> 0.000853710096 | E48: ='Rate peg'!K55 -> 0 | F48: ='Rate peg'!H55 -> 0.004191323681 | G48: ='Rate peg'!I55 -> 0.005222237395 | H48: ='Rate peg'!J55 -> -0.002548279321 | I48: ='Rate peg'!L55 -> 0.038 | J48: 0.001658898807 | K48: ='Rate peg'!N55 -> 0.001275998469 | L48: ='Rate peg'!O55 -> 0 | M48: ='Rate peg'!P55 -> 0.038 | O48: ='Rate peg'!R55 -> 0.005045033777 | Q48: =INDEX('ABS Pop T1'!AQ52:AU52,MATCH('Rate peg'!$D$9,'ABS Pop T1'!$AQ$16:$AU$16,0)) -> 0.001658898807 | R48: ='Rate peg'!M55 -> 0.001658898807 | T48: 0 | U48: 0 | V48: 0 | W48: 0 | X48: ='ABS Pop T1'!F52=B48 -> TRUE
B49: ='Rate peg'!D56 -> Cumberland | C49: ='Rate peg'!E56 -> 0.02951901918 | D49: ='Rate peg'!G56 -> 0.0002753265128 | E49: ='Rate peg'!K56 -> 0 | F49: ='Rate peg'!H56 -> 0 | G49: ='Rate peg'!I56 -> 8.908271507e-05 | H49: ='Rate peg'!J56 -> -0.001399957428 | I49: ='Rate peg'!L56 -> 0.028 | J49: 0.02921262155 | K49: ='Rate peg'!N56 -> 0.01303502652 | L49: ='Rate peg'!O56 -> 0.016 | M49: ='Rate peg'!P56 -> 0.044 | O49: ='Rate peg'!R56 -> 0.0002753265128 | Q49: =INDEX('ABS Pop T1'!AQ53:AU53,MATCH('Rate peg'!$D$9,'ABS Pop T1'!$AQ$16:$AU$16,0)) -> 0.02921262155 | R49: ='Rate peg'!M56 -> 0.02921262155 | T49: 0 | U49: 0 | V49: 0 | W49: 0 | X49: ='ABS Pop T1'!F53=B49 -> TRUE
B50: ='Rate peg'!D57 -> Dubbo Regional | C50: ='Rate peg'!E57 -> 0.02980866065 | D50: ='Rate peg'!G57 -> 0.0006506460307 | E50: ='Rate peg'!K57 -> 0 | F50: ='Rate peg'!H57 -> 0.002430222926 | G50: ='Rate peg'!I57 -> 0 | H50: ='Rate peg'!J57 -> -0.003332913036 | I50: ='Rate peg'!L57 -> 0.03 | J50: 0.00690852469 | K50: ='Rate peg'!N57 -> 0.009582303909 | L50: ='Rate peg'!O57 -> 0 | M50: ='Rate peg'!P57 -> 0.03 | O50: ='Rate peg'!R57 -> 0.003080868956 | Q50: =INDEX('ABS Pop T1'!AQ54:AU54,MATCH('Rate peg'!$D$9,'ABS Pop T1'!$AQ$16:$AU$16,0)) -> 0.00690852469 | R50: ='Rate peg'!M57 -> 0.00690852469 | T50: 0 | U50: 0 | V50: 0 | W50: 0 | X50: ='ABS Pop T1'!F54=B50 -> TRUE
B51: ='Rate peg'!D58 -> Dungog | C51: ='Rate peg'!E58 -> 0.02988176551 | D51: ='Rate peg'!G58 -> 0.0008117357513 | E51: ='Rate peg'!K58 -> 0 | F51: ='Rate peg'!H58 -> 0.004549459006 | G51: ='Rate peg'!I58 -> 0 | H51: ='Rate peg'!J58 -> -0.001935671321 | I51: ='Rate peg'!L58 -> 0.033 | J51: 0.01423305345 | K51: ='Rate peg'!N58 -> 0.007586810622 | L51: ='Rate peg'!O58 -> 0.007 | M51: ='Rate peg'!P58 -> 0.04 | O51: ='Rate peg'!R58 -> 0.005361194758 | Q51: =INDEX('ABS Pop T1'!AQ55:AU55,MATCH('Rate peg'!$D$9,'ABS Pop T1'!$AQ$16:$AU$16,0)) -> 0.01423305345 | R51: ='Rate peg'!M58 -> 0.01423305345 | T51: 0 | U51: 0 | V51: 0 | W51: 0 | X51: ='ABS Pop T1'!F55=B51 -> TRUE
B52: ='Rate peg'!D59 -> Edward River | C52: ='Rate peg'!E59 -> 0.02988176551 | D52: ='Rate peg'!G59 -> 0.001269823938 | E52: ='Rate peg'!K59 -> 0 | F52: ='Rate peg'!H59 -> 0.004064419157 | G52: ='Rate peg'!I59 -> 0 | H52: ='Rate peg'!J59 -> -0.005464811072 | I52: ='Rate peg'!L59 -> 0.03 | J52: -0.002135484636 | K52: ='Rate peg'!N59 -> 0.002166064982 | L52: ='Rate peg'!O59 -> 0 | M52: ='Rate peg'!P59 -> 0.03 | O52: ='Rate peg'!R59 -> 0.005334243095 | Q52: =INDEX('ABS Pop T1'!AQ56:AU56,MATCH('Rate peg'!$D$9,'ABS Pop T1'!$AQ$16:$AU$16,0)) -> -0.002135484636 | R52: ='Rate peg'!M59 -> 0 | T52: 0 | U52: 0 | V52: 0 | W52: 0 | X52: ='ABS Pop T1'!F56=B52 -> TRUE
B53: ='Rate peg'!D60 -> Eurobodalla | C53: ='Rate peg'!E60 -> 0.02980866065 | D53: ='Rate peg'!G60 -> 0.0005553960174 | E53: ='Rate peg'!K60 -> 0 | F53: ='Rate peg'!H60 -> 0.002618411739 | G53: ='Rate peg'!I60 -> 0.0003468009108 | H53: ='Rate peg'!J60 -> -0.001957307948 | I53: ='Rate peg'!L60 -> 0.031 | J53: 0.00559724293 | K53: ='Rate peg'!N60 -> 0.005153897095 | L53: ='Rate peg'!O60 -> 0 | M53: ='Rate peg'!P60 -> 0.031 | O53: ='Rate peg'!R60 -> 0.003173807757 | Q53: =INDEX('ABS Pop T1'!AQ57:AU57,MATCH('Rate peg'!$D$9,'ABS Pop T1'!$AQ$16:$AU$16,0)) -> 0.00559724293 | R53: ='Rate peg'!M60 -> 0.00559724293 | T53: 0 | U53: 0 | V53: 0 | W53: 0 | X53: ='ABS Pop T1'!F57=B53 -> TRUE
B54: ='Rate peg'!D61 -> Fairfield | C54: ='Rate peg'!E61 -> 0.02951901918 | D54: ='Rate peg'!G61 -> -4.026590067e-05 | E54: ='Rate peg'!K61 -> 0 | F54: ='Rate peg'!H61 -> 0.001536080828 | G54: ='Rate peg'!I61 -> 0.001300404269 | H54: ='Rate peg'!J61 -> -0.002179476279 | I54: ='Rate peg'!L61 -> 0.03 | J54: 0.0119453518 | K54: ='Rate peg'!N61 -> 0.00201153707 | L54: ='Rate peg'!O61 -> 0.01 | M54: ='Rate peg'!P61 -> 0.04 | O54: ='Rate peg'!R61 -> 0.001495814927 | Q54: =INDEX('ABS Pop T1'!AQ58:AU58,MATCH('Rate peg'!$D$9,'ABS Pop T1'!$AQ$16:$AU$16,0)) -> 0.0119453518 | R54: ='Rate peg'!M61 -> 0.0119453518 | T54: 0 | U54: 0 | V54: 0 | W54: 0 | X54: ='ABS Pop T1'!F58=B54 -> TRUE
B55: ='Rate peg'!D62 -> Federation | C55: ='Rate peg'!E62 -> 0.02988176551 | D55: ='Rate peg'!G62 -> 0.0002121642201 | E55: ='Rate peg'!K62 -> 0 | F55: ='Rate peg'!H62 -> 0.004362085868 | G55: ='Rate peg'!I62 -> 0 | H55: ='Rate peg'!J62 -> -0.003497042159 | I55: ='Rate peg'!L62 -> 0.031 | J55: 0.01043276662 | K55: ='Rate peg'!N62 -> 0.0006332549303 | L55: ='Rate peg'!O62 -> 0.01 | M55: ='Rate peg'!P62 -> 0.041 | O55: ='Rate peg'!R62 -> 0.004574250088 | Q55: =INDEX('ABS Pop T1'!AQ59:AU59,MATCH('Rate peg'!$D$9,'ABS Pop T1'!$AQ$16:$AU$16,0)) -> 0.01043276662 | R55: ='Rate peg'!M62 -> 0.01043276662 | T55: 0 | U55: 0 | V55: 0 | W55: 0 | X55: ='ABS Pop T1'!F59=B55 -> TRUE
B56: ='Rate peg'!D63 -> Forbes | C56: ='Rate peg'!E63 -> 0.02988176551 | D56: ='Rate peg'!G63 -> 0.001058676003 | E56: ='Rate peg'!K63 -> 0 | F56: ='Rate peg'!H63 -> 0.004272907708 | G56: ='Rate peg'!I63 -> 0 | H56: ='Rate peg'!J63 -> -0.0041877305 | I56: ='Rate peg'!L63 -> 0.031 | J56: -0.00043015378 | K56: ='Rate peg'!N63 -> 0.002228477598 | L56: ='Rate peg'!O63 -> 0 | M56: ='Rate peg'!P63 -> 0.031 | O56: ='Rate peg'!R63 -> 0.005331583711 | Q56: =INDEX('ABS Pop T1'!AQ60:AU60,MATCH('Rate peg'!$D$9,'ABS Pop T1'!$AQ$16:$AU$16,0)) -> -0.00043015378 | R56: ='Rate peg'!M63 -> 0 | T56: 0 | U56: 0 | V56: 0 | W56: 0 | X56: ='ABS Pop T1'!F60=B56 -> TRUE
B57: ='Rate peg'!D64 -> Georges River | C57: ='Rate peg'!E64 -> 0.02951901918 | D57: ='Rate peg'!G64 -> -7.09752171e-05 | E57: ='Rate peg'!K64 -> 0 | F57: ='Rate peg'!H64 -> 0.002025692292 | G57: ='Rate peg'!I64 -> 0 | H57: ='Rate peg'!J64 -> -0.001187800681 | I57: ='Rate peg'!L64 -> 0.03 | J57: 0.02263694816 | K57: ='Rate peg'!N64 -> 0.005003075176 | L57: ='Rate peg'!O64 -> 0.018 | M57: ='Rate peg'!P64 -> 0.048 | O57: ='Rate peg'!R64 -> 0.001954717075 | Q57: =INDEX('ABS Pop T1'!AQ61:AU61,MATCH('Rate peg'!$D$9,'ABS Pop T1'!$AQ$16:$AU$16,0)) -> 0.02263694816 | R57: ='Rate peg'!M64 -> 0.02263694816 | T57: 0 | U57: 0 | V57: 0 | W57: 0 | X57: ='ABS Pop T1'!F61=B57 -> TRUE
B58: ='Rate peg'!D65 -> Gilgandra | C58: ='Rate peg'!E65 -> 0.02988176551 | D58: ='Rate peg'!G65 -> 0.001587795384 | E58: ='Rate peg'!K65 -> 0 | F58: ='Rate peg'!H65 -> 0.004590541708 | G58: ='Rate peg'!I65 -> 0 | H58: ='Rate peg'!J65 -> -0.001161735426 | I58: ='Rate peg'!L65 -> 0.035 | J58: -0.0009282896264 | K58: ='Rate peg'!N65 -> 0 | L58: ='Rate peg'!O65 -> 0 | M58: ='Rate peg'!P65 -> 0.035 | O58: ='Rate peg'!R65 -> 0.006178337092 | Q58: =INDEX('ABS Pop T1'!AQ62:AU62,MATCH('Rate peg'!$D$9,'ABS Pop T1'!$AQ$16:$AU$16,0)) -> -0.0009282896264 | R58: ='Rate peg'!M65 -> 0 | T58: 0 | U58: 0 | V58: 0 | W58: 0 | X58: ='ABS Pop T1'!F62=B58 -> TRUE
B59: ='Rate peg'!D66 -> Glen Innes Severn | C59: ='Rate peg'!E66 -> 0.02988176551 | D59: ='Rate peg'!G66 -> 0.001357865037 | E59: ='Rate peg'!K66 -> 0 | F59: ='Rate peg'!H66 -> 0.00472008405 | G59: ='Rate peg'!I66 -> 0 | H59: ='Rate peg'!J66 -> -0.001968969773 | I59: ='Rate peg'!L66 -> 0.034 | J59: 0.001800382581 | K59: ='Rate peg'!N66 -> 0 | L59: ='Rate peg'!O66 -> 0.002 | M59: ='Rate peg'!P66 -> 0.036 | O59: ='Rate peg'!R66 -> 0.006077949086 | Q59: =INDEX('ABS Pop T1'!AQ63:AU63,MATCH('Rate peg'!$D$9,'ABS Pop T1'!$AQ$16:$AU$16,0)) -> 0.001800382581 | R59: ='Rate peg'!M66 -> 0.001800382581 | T59: 0 | U59: 0 | V59: 0 | W59: 0 | X59: ='ABS Pop T1'!F63=B59 -> TRUE
B60: ='Rate peg'!D67 -> Goulburn Mulwaree | C60: ='Rate peg'!E67 -> 0.02980866065 | D60: ='Rate peg'!G67 -> -0.0001863403698 | E60: ='Rate peg'!K67 -> 0 | F60: ='Rate peg'!H67 -> 0.00184192364 | G60: ='Rate peg'!I67 -> 0 | H60: ='Rate peg'!J67 -> -0.0008700736698 | I60: ='Rate peg'!L67 -> 0.031 | J60: 0.01666201247 | K60: ='Rate peg'!N67 -> 0.001759604508 | L60: ='Rate peg'!O67 -> 0.015 | M60: ='Rate peg'!P67 -> 0.046 | O60: ='Rate peg'!R67 -> 0.00165558327 | Q60: =INDEX('ABS Pop T1'!AQ64:AU64,MATCH('Rate peg'!$D$9,'ABS Pop T1'!$AQ$16:$AU$16,0)) -> 0.01666201247 | R60: ='Rate peg'!M67 -> 0.01666201247 | T60: 0 | U60: 0 | V60: 0 | W60: 0 | X60: ='ABS Pop T1'!F64=B60 -> TRUE
B61: ='Rate peg'!D68 -> Greater Hume | C61: ='Rate peg'!E68 -> 0.02988176551 | D61: ='Rate peg'!G68 -> 0.000919831408 | E61: ='Rate peg'!K68 -> 0 | F61: ='Rate peg'!H68 -> 0.00487139325 | G61: ='Rate peg'!I68 -> 0 | H61: ='Rate peg'!J68 -> -0.002208325337 | I61: ='Rate peg'!L68 -> 0.033 | J61: 0.01214716421 | K61: ='Rate peg'!N68 -> 0.003884462151 | L61: ='Rate peg'!O68 -> 0.008 | M61: ='Rate peg'!P68 -> 0.041 | O61: ='Rate peg'!R68 -> 0.005791224658 | Q61: =INDEX('ABS Pop T1'!AQ65:AU65,MATCH('Rate peg'!$D$9,'ABS Pop T1'!$AQ$16:$AU$16,0)) -> 0.01214716421 | R61: ='Rate peg'!M68 -> 0.01214716421 | T61: 0 | U61: 0 | V61: 0 | W61: 0 | X61: ='ABS Pop T1'!F65=B61 -> TRUE
B62: ='Rate peg'!D69 -> Griffith | C62: ='Rate peg'!E69 -> 0.02980866065 | D62: ='Rate peg'!G69 -> 9.195659219e-05 | E62: ='Rate peg'!K69 -> 0 | F62: ='Rate peg'!H69 -> 0.001987092497 | G62: ='Rate peg'!I69 -> 0 | H62: ='Rate peg'!J69 -> -0.002400538763 | I62: ='Rate peg'!L69 -> 0.029 | J62: 0.007889110079 | K62: ='Rate peg'!N69 -> 0.004616243088 | L62: ='Rate peg'!O69 -> 0.003 | M62: ='Rate peg'!P69 -> 0.032 | O62: ='Rate peg'!R69 -> 0.00207904909 | Q62: =INDEX('ABS Pop T1'!AQ66:AU66,MATCH('Rate peg'!$D$9,'ABS Pop T1'!$AQ$16:$AU$16,0)) -> 0.007889110079 | R62: ='Rate peg'!M69 -> 0.007889110079 | T62: 0 | U62: 0 | V62: 0 | W62: 0 | X62: ='ABS Pop T1'!F66=B62 -> TRUE
B63: ='Rate peg'!D70 -> Gunnedah | C63: ='Rate peg'!E70 -> 0.02988176551 | D63: ='Rate peg'!G70 -> -1.373850022e-05 | E63: ='Rate peg'!K70 -> 0 | F63: ='Rate peg'!H70 -> 0.001447689493 | G63: ='Rate peg'!I70 -> 0 | H63: ='Rate peg'!J70 -> -0.003345127943 | I63: ='Rate peg'!L70 -> 0.028 | J63: 0.008585630366 | K63: ='Rate peg'!N70 -> 0 | L63: ='Rate peg'!O70 -> 0.009 | M63: ='Rate peg'!P70 -> 0.037 | O63: ='Rate peg'!R70 -> 0.001433950993 | Q63: =INDEX('ABS Pop T1'!AQ67:AU67,MATCH('Rate peg'!$D$9,'ABS Pop T1'!$AQ$16:$AU$16,0)) -> 0.008585630366 | R63: ='Rate peg'!M70 -> 0.008585630366 | T63: 0 | U63: 0 | V63: 0 | W63: 0 | X63: ='ABS Pop T1'!F67=B63 -> TRUE
B64: ='Rate peg'!D71 -> Gwydir | C64: ='Rate peg'!E71 -> 0.02988176551 | D64: ='Rate peg'!G71 -> 0.001501696975 | E64: ='Rate peg'!K71 -> 0 | F64: ='Rate peg'!H71 -> 0.004287543525 | G64: ='Rate peg'!I71 -> 0 | H64: ='Rate peg'!J71 -> -0.001466485649 | I64: ='Rate peg'!L71 -> 0.034 | J64: -0.00951417004 | K64: ='Rate peg'!N71 -> 0 | L64: ='Rate peg'!O71 -> 0 | M64: ='Rate peg'!P71 -> 0.034 | O64: ='Rate peg'!R71 -> 0.0057892405 | Q64: =INDEX('ABS Pop T1'!AQ68:AU68,MATCH('Rate peg'!$D$9,'ABS Pop T1'!$AQ$16:$AU$16,0)) -> -0.00951417004 | R64: ='Rate peg'!M71 -> 0 | T64: 0 | U64: 0 | V64: 0 | W64: 0 | X64: ='ABS Pop T1'!F68=B64 -> TRUE
B65: ='Rate peg'!D72 -> Hawkesbury | C65: ='Rate peg'!E72 -> 0.02951901918 | D65: ='Rate peg'!G72 -> 8.955797221e-05 | E65: ='Rate peg'!K72 -> 0 | F65: ='Rate peg'!H72 -> 0.002229656815 | G65: ='Rate peg'!I72 -> 0.0004787061669 | H65: ='Rate peg'!J72 -> -0.001261632291 | I65: ='Rate peg'!L72 -> 0.031 | J65: 0.008217891524 | K65: ='Rate peg'!N72 -> 0.01368003792 | L65: ='Rate peg'!O72 -> 0 | M65: ='Rate peg'!P72 -> 0.031 | O65: ='Rate peg'!R72 -> 0.002319214788 | Q65: =INDEX('ABS Pop T1'!AQ69:AU69,MATCH('Rate peg'!$D$9,'ABS Pop T1'!$AQ$16:$AU$16,0)) -> 0.008217891524 | R65: ='Rate peg'!M72 -> 0.008217891524 | T65: 0 | U65: 0 | V65: 0 | W65: 0 | X65: ='ABS Pop T1'!F69=B65 -> TRUE
B66: ='Rate peg'!D73 -> Hay | C66: ='Rate peg'!E73 -> 0.02988176551 | D66: ='Rate peg'!G73 -> 0.001515639826 | E66: ='Rate peg'!K73 -> 0 | F66: ='Rate peg'!H73 -> 0.006981582698 | G66: ='Rate peg'!I73 -> 0 | H66: ='Rate peg'!J73 -> -0.001676448341 | I66: ='Rate peg'!L73 -> 0.037 | J66: 0.01131141746 | K66: ='Rate peg'!N73 -> 0 | L66: ='Rate peg'!O73 -> 0.011 | M66: ='Rate peg'!P73 -> 0.048 | O66: ='Rate peg'!R73 -> 0.008497222524 | Q66: =INDEX('ABS Pop T1'!AQ70:AU70,MATCH('Rate peg'!$D$9,'ABS Pop T1'!$AQ$16:$AU$16,0)) -> 0.01131141746 | R66: ='Rate peg'!M73 -> 0.01131141746 | T66: 0 | U66: 0 | V66: 0 | W66: 0 | X66: ='ABS Pop T1'!F70=B66 -> TRUE
B67: ='Rate peg'!D74 -> Hilltops | C67: ='Rate peg'!E74 -> 0.02988176551 | D67: ='Rate peg'!G74 -> 0.001306862889 | E67: ='Rate peg'!K74 -> 0 | F67: ='Rate peg'!H74 -> 0.004833202403 | G67: ='Rate peg'!I74 -> 0 | H67: ='Rate peg'!J74 -> -0.004083047843 | I67: ='Rate peg'!L74 -> 0.032 | J67: 0.002441177998 | K67: ='Rate peg'!N74 -> 0.003045349222 | L67: ='Rate peg'!O74 -> 0 | M67: ='Rate peg'!P74 -> 0.032 | O67: ='Rate peg'!R74 -> 0.006140065292 | Q67: =INDEX('ABS Pop T1'!AQ71:AU71,MATCH('Rate peg'!$D$9,'ABS Pop T1'!$AQ$16:$AU$16,0)) -> 0.002441177998 | R67: ='Rate peg'!M74 -> 0.002441177998 | T67: 0 | U67: 0 | V67: 0 | W67: 0 | X67: ='ABS Pop T1'!F71=B67 -> TRUE
B68: ='Rate peg'!D75 -> Hornsby | C68: ='Rate peg'!E75 -> 0.02951901918 | D68: ='Rate peg'!G75 -> 0.0008074211671 | E68: ='Rate peg'!K75 -> 0 | F68: ='Rate peg'!H75 -> 0.003661133688 | G68: ='Rate peg'!I75 -> 0 | H68: ='Rate peg'!J75 -> -0.001305662566 | I68: ='Rate peg'!L75 -> 0.033 | J68: 0.00497183062 | K68: ='Rate peg'!N75 -> 0.00166185497 | L68: ='Rate peg'!O75 -> 0.003 | M68: ='Rate peg'!P75 -> 0.036 | O68: ='Rate peg'!R75 -> 0.004468554855 | Q68: =INDEX('ABS Pop T1'!AQ72:AU72,MATCH('Rate peg'!$D$9,'ABS Pop T1'!$AQ$16:$AU$16,0)) -> 0.00497183062 | R68: ='Rate peg'!M75 -> 0.00497183062 | T68: 0 | U68: 0 | V68: 0 | W68: 0 | X68: ='ABS Pop T1'!F72=B68 -> TRUE
B69: ='Rate peg'!D76 -> Hunters Hill | C69: ='Rate peg'!E76 -> 0.02951901918 | D69: ='Rate peg'!G76 -> 0.001539843479 | E69: ='Rate peg'!K76 -> 0 | F69: ='Rate peg'!H76 -> 0.001889796715 | G69: ='Rate peg'!I76 -> 0 | H69: ='Rate peg'!J76 -> -0.005797280715 | I69: ='Rate peg'!L76 -> 0.027 | J69: 0.001709645249 | K69: ='Rate peg'!N76 -> 0.0001763357433 | L69: ='Rate peg'!O76 -> 0.002 | M69: ='Rate peg'!P76 -> 0.029 | O69: ='Rate peg'!R76 -> 0.003429640194 | Q69: =INDEX('ABS Pop T1'!AQ73:AU73,MATCH('Rate peg'!$D$9,'ABS Pop T1'!$AQ$16:$AU$16,0)) -> 0.001709645249 | R69: ='Rate peg'!M76 -> 0.001709645249 | T69: 0 | U69: 0 | V69: 0 | W69: 0 | X69: ='ABS Pop T1'!F73=B69 -> TRUE
B70: ='Rate peg'!D77 -> Inner West | C70: ='Rate peg'!E77 -> 0.02951901918 | D70: ='Rate peg'!G77 -> -7.863891932e-05 | E70: ='Rate peg'!K77 -> 0 | F70: ='Rate peg'!H77 -> 0.001932315405 | G70: ='Rate peg'!I77 -> 9.116189795e-05 | H70: ='Rate peg'!J77 -> -0.0009698179919 | I70: ='Rate peg'!L77 -> 0.03 | J70: 0.01392871556 | K70: ='Rate peg'!N77 -> 0 | L70: ='Rate peg'!O77 -> 0.014 | M70: ='Rate peg'!P77 -> 0.044 | O70: ='Rate peg'!R77 -> 0.001853676485 | Q70: =INDEX('ABS Pop T1'!AQ74:AU74,MATCH('Rate peg'!$D$9,'ABS Pop T1'!$AQ$16:$AU$16,0)) -> 0.01392871556 | R70: ='Rate peg'!M77 -> 0.01392871556 | T70: 0 | U70: 0 | V70: 0 | W70: 0 | X70: ='ABS Pop T1'!F74=B70 -> TRUE
B71: ='Rate peg'!D78 -> Inverell | C71: ='Rate peg'!E78 -> 0.02988176551 | D71: ='Rate peg'!G78 -> 0.000395121623 | E71: ='Rate peg'!K78 -> 0 | F71: ='Rate peg'!H78 -> 0.002355078512 | G71: ='Rate peg'!I78 -> 0.0007821032971 | H71: ='Rate peg'!J78 -> -0.00116638351 | I71: ='Rate peg'!L78 -> 0.032 | J71: 0.001329198051 | K71: ='Rate peg'!N78 -> 0.002115384615 | L71: ='Rate peg'!O78 -> 0 | M71: ='Rate peg'!P78 -> 0.032 | O71: ='Rate peg'!R78 -> 0.002750200135 | Q71: =INDEX('ABS Pop T1'!AQ75:AU75,MATCH('Rate peg'!$D$9,'ABS Pop T1'!$AQ$16:$AU$16,0)) -> 0.001329198051 | R71: ='Rate peg'!M78 -> 0.001329198051 | T71: 0 | U71: 0 | V71: 0 | W71: 0 | X71: ='ABS Pop T1'!F75=B71 -> TRUE
B72: ='Rate peg'!D79 -> Junee | C72: ='Rate peg'!E79 -> 0.02988176551 | D72: ='Rate peg'!G79 -> 0.0006233188313 | E72: ='Rate peg'!K79 -> 0 | F72: ='Rate peg'!H79 -> 0.004120307101 | G72: ='Rate peg'!I79 -> 0 | H72: ='Rate peg'!J79 -> -0.004356644634 | I72: ='Rate peg'!L79 -> 0.03 | J72: 0.009044156765 | K72: ='Rate peg'!N79 -> 0.0007642338556 | L72: ='Rate peg'!O79 -> 0.008 | M72: ='Rate peg'!P79 -> 0.038 | O72: ='Rate peg'!R79 -> 0.004743625933 | Q72: =INDEX('ABS Pop T1'!AQ76:AU76,MATCH('Rate peg'!$D$9,'ABS Pop T1'!$AQ$16:$AU$16,0)) -> 0.009044156765 | R72: ='Rate peg'!M79 -> 0.009044156765 | T72: 0 | U72: 0 | V72: 0 | W72: 0 | X72: ='ABS Pop T1'!F76=B72 -> TRUE
B73: ='Rate peg'!D80 -> Kempsey | C73: ='Rate peg'!E80 -> 0.02980866065 | D73: ='Rate peg'!G80 -> 0.0001657318599 | E73: ='Rate peg'!K80 -> 0 | F73: ='Rate peg'!H80 -> 0.001817155746 | G73: ='Rate peg'!I80 -> 0 | H73: ='Rate peg'!J80 -> -0.001257461081 | I73: ='Rate peg'!L80 -> 0.031 | J73: 0.005547035599 | K73: ='Rate peg'!N80 -> 0.006819616923 | L73: ='Rate peg'!O80 -> 0 | M73: ='Rate peg'!P80 -> 0.031 | O73: ='Rate peg'!R80 -> 0.001982887606 | Q73: =INDEX('ABS Pop T1'!AQ77:AU77,MATCH('Rate peg'!$D$9,'ABS Pop T1'!$AQ$16:$AU$16,0)) -> 0.005547035599 | R73: ='Rate peg'!M80 -> 0.005547035599 | T73: 0 | U73: 0 | V73: 0 | W73: 0 | X73: ='ABS Pop T1'!F77=B73 -> TRUE
B74: ='Rate peg'!D81 -> Kiama | C74: ='Rate peg'!E81 -> 0.02980866065 | D74: ='Rate peg'!G81 -> -8.63082729e-05 | E74: ='Rate peg'!K81 -> 0 | F74: ='Rate peg'!H81 -> 0.001490627379 | G74: ='Rate peg'!I81 -> 0.0005873045575 | H74: ='Rate peg'!J81 -> -0.0005346319899 | I74: ='Rate peg'!L81 -> 0.031 | J74: 0.007477935742 | K74: ='Rate peg'!N81 -> 0.00676263163 | L74: ='Rate peg'!O81 -> 0.001 | M74: ='Rate peg'!P81 -> 0.032 | O74: ='Rate peg'!R81 -> 0.001404319106 | Q74: =INDEX('ABS Pop T1'!AQ78:AU78,MATCH('Rate peg'!$D$9,'ABS Pop T1'!$AQ$16:$AU$16,0)) -> 0.007477935742 | R74: ='Rate peg'!M81 -> 0.007477935742 | T74: 0 | U74: 0 | V74: 0 | W74: 0 | X74: ='ABS Pop T1'!F78=B74 -> TRUE
B75: ='Rate peg'!D82 -> Ku-ring-gai | C75: ='Rate peg'!E82 -> 0.02951901918 | D75: ='Rate peg'!G82 -> 0.001890544558 | E75: ='Rate peg'!K82 -> 0 | F75: ='Rate peg'!H82 -> 0.002753302008 | G75: ='Rate peg'!I82 -> 0.0001329080983 | H75: ='Rate peg'!J82 -> -0.001772342083 | I75: ='Rate peg'!L82 -> 0.033 | J75: 0.01070849278 | K75: ='Rate peg'!N82 -> 2.676623707e-05 | L75: ='Rate peg'!O82 -> 0.011 | M75: ='Rate peg'!P82 -> 0.044 | O75: ='Rate peg'!R82 -> 0.004643846565 | Q75: =INDEX('ABS Pop T1'!AQ79:AU79,MATCH('Rate peg'!$D$9,'ABS Pop T1'!$AQ$16:$AU$16,0)) -> 0.01070849278 | R75: ='Rate peg'!M82 -> 0.01070849278 | T75: 0 | U75: 0 | V75: 0 | W75: 0 | X75: ='ABS Pop T1'!F79=B75 -> TRUE
B76: ='Rate peg'!D83 -> Kyogle | C76: ='Rate peg'!E83 -> 0.02988176551 | D76: ='Rate peg'!G83 -> 0.0003324954948 | E76: ='Rate peg'!K83 -> 0 | F76: ='Rate peg'!H83 -> 0.004008256982 | G76: ='Rate peg'!I83 -> 0 | H76: ='Rate peg'!J83 -> -0.00229772083 | I76: ='Rate peg'!L83 -> 0.032 | J76: 0.01204055767 | K76: ='Rate peg'!N83 -> 0 | L76: ='Rate peg'!O83 -> 0.012 | M76: ='Rate peg'!P83 -> 0.044 | O76: ='Rate peg'!R83 -> 0.004340752477 | Q76: =INDEX('ABS Pop T1'!AQ80:AU80,MATCH('Rate peg'!$D$9,'ABS Pop T1'!$AQ$16:$AU$16,0)) -> 0.01204055767 | R76: ='Rate peg'!M83 -> 0.01204055767 | T76: 0 | U76: 0 | V76: 0 | W76: 0 | X76: ='ABS Pop T1'!F80=B76 -> TRUE
B77: ='Rate peg'!D84 -> Lachlan | C77: ='Rate peg'!E84 -> 0.02988176551 | D77: ='Rate peg'!G84 -> 0.00171579015 | E77: ='Rate peg'!K84 -> 0 | F77: ='Rate peg'!H84 -> 0.005037828639 | G77: ='Rate peg'!I84 -> 0 | H77: ='Rate peg'!J84 -> -0.00248081532 | I77: ='Rate peg'!L84 -> 0.034 | J77: =CHOOSE($D$11,Q77,R77) -> -0.005369345916 | K77: ='Rate peg'!N84 -> . | L77: ='Rate peg'!O84 -> 0 | M77: ='Rate peg'!P84 -> 0.034 | O77: ='Rate peg'!R84 -> 0.006753618789 | Q77: =INDEX('ABS Pop T1'!AQ81:AU81,MATCH('Rate peg'!$D$9,'ABS Pop T1'!$AQ$16:$AU$16,0)) -> -0.005369345916 | R77: ='Rate peg'!M84 -> 0 | T77: 0 | U77: 0 | V77: 0 | W77: 0 | X77: ='ABS Pop T1'!F81=B77 -> TRUE
B78: ='Rate peg'!D85 -> Lake Macquarie | C78: ='Rate peg'!E85 -> 0.02980866065 | D78: ='Rate peg'!G85 -> 0.0007719833004 | E78: ='Rate peg'!K85 -> 0 | F78: ='Rate peg'!H85 -> 0.001660310623 | G78: ='Rate peg'!I85 -> 0.0001236603528 | H78: ='Rate peg'!J85 -> -0.0004524541284 | I78: ='Rate peg'!L85 -> 0.032 | J78: 0.0119873558 | K78: ='Rate peg'!N85 -> 0.01486198239 | L78: ='Rate peg'!O85 -> 0 | M78: ='Rate peg'!P85 -> 0.032 | O78: ='Rate peg'!R85 -> 0.002432293924 | Q78: =INDEX('ABS Pop T1'!AQ82:AU82,MATCH('Rate peg'!$D$9,'ABS Pop T1'!$AQ$16:$AU$16,0)) -> 0.0119873558 | R78: ='Rate peg'!M85 -> 0.0119873558 | T78: 0 | U78: 0 | V78: 0 | W78: 0 | X78: ='ABS Pop T1'!F82=B78 -> TRUE
B79: ='Rate peg'!D86 -> Lane Cove | C79: ='Rate peg'!E86 -> 0.02951901918 | D79: ='Rate peg'!G86 -> 0.0006641413294 | E79: ='Rate peg'!K86 -> 0 | F79: ='Rate peg'!H86 -> 0.001698154352 | G79: ='Rate peg'!I86 -> 0 | H79: ='Rate peg'!J86 -> -0.001454012723 | I79: ='Rate peg'!L86 -> 0.03 | J79: 0.02452643994 | K79: ='Rate peg'!N86 -> 0.007238813508 | L79: ='Rate peg'!O86 -> 0.017 | M79: ='Rate peg'!P86 -> 0.047 | O79: ='Rate peg'!R86 -> 0.002362295681 | Q79: =INDEX('ABS Pop T1'!AQ83:AU83,MATCH('Rate peg'!$D$9,'ABS Pop T1'!$AQ$16:$AU$16,0)) -> 0.02452643994 | R79: ='Rate peg'!M86 -> 0.02452643994 | T79: =IF(Q79>0,Q79-R79,0-R79) -> 0 | U79: =ROUND(SUM(C79:H79),3)-I79 -> 0 | V79: =M79-I79-L79 -> 0 | W79: =SUM(D79:F79)-O79 -> 0 | X79: ='ABS Pop T1'!F83=B79 -> TRUE
B80: ='Rate peg'!D87 -> Leeton | C80: ='Rate peg'!E87 -> 0.02988176551 | D80: ='Rate peg'!G87 -> 0.0001458943331 | E80: ='Rate peg'!K87 -> 0 | F80: ='Rate peg'!H87 -> 0.002210826553 | G80: ='Rate peg'!I87 -> 0 | H80: ='Rate peg'!J87 -> -0.00484449814 | I80: ='Rate peg'!L87 -> 0.027 | J80: 0.0006999125109 | K80: ='Rate peg'!N87 -> 0.001474926254 | L80: ='Rate peg'!O87 -> 0 | M80: ='Rate peg'!P87 -> 0.027 | O80: ='Rate peg'!R87 -> 0.002356720886 | Q80: =INDEX('ABS Pop T1'!AQ84:AU84,MATCH('Rate peg'!$D$9,'ABS Pop T1'!$AQ$16:$AU$16,0)) -> 0.0006999125109 | R80: ='Rate peg'!M87 -> 0.0006999125109 | T80: 0 | U80: 0 | V80: 0 | W80: 0 | X80: ='ABS Pop T1'!F84=B80 -> TRUE
B81: ='Rate peg'!D88 -> Lismore | C81: ='Rate peg'!E88 -> 0.02980866065 | D81: ='Rate peg'!G88 -> 0.0007517473496 | E81: ='Rate peg'!K88 -> 0 | F81: ='Rate peg'!H88 -> 0.001982931799 | G81: ='Rate peg'!I88 -> 0 | H81: ='Rate peg'!J88 -> -0.00176142961 | I81: ='Rate peg'!L88 -> 0.031 | J81: -0.00268786588 | K81: ='Rate peg'!N88 -> 0.001663262329 | L81: ='Rate peg'!O88 -> 0 | M81: ='Rate peg'!P88 -> 0.031 | O81: ='Rate peg'!R88 -> 0.002734679148 | Q81: =INDEX('ABS Pop T1'!AQ85:AU85,MATCH('Rate peg'!$D$9,'ABS Pop T1'!$AQ$16:$AU$16,0)) -> -0.00268786588 | R81: ='Rate peg'!M88 -> 0 | T81: 0 | U81: 0 | V81: 0 | W81: 0 | X81: ='ABS Pop T1'!F85=B81 -> TRUE
B82: ='Rate peg'!D89 -> Lithgow | C82: ='Rate peg'!E89 -> 0.02980866065 | D82: ='Rate peg'!G89 -> 0.0007306724846 | E82: ='Rate peg'!K89 -> 0 | F82: ='Rate peg'!H89 -> 0.002556070337 | G82: ='Rate peg'!I89 -> 0.0005551738366 | H82: ='Rate peg'!J89 -> -0.002429935019 | I82: ='Rate peg'!L89 -> 0.031 | J82: -0.001805670782 | K82: ='Rate peg'!N89 -> 0.003129750514 | L82: ='Rate peg'!O89 -> 0 | M82: ='Rate peg'!P89 -> 0.031 | O82: ='Rate peg'!R89 -> 0.003286742822 | Q82: =INDEX('ABS Pop T1'!AQ86:AU86,MATCH('Rate peg'!$D$9,'ABS Pop T1'!$AQ$16:$AU$16,0)) -> -0.001805670782 | R82: ='Rate peg'!M89 -> 0 | T82: 0 | U82: 0 | V82: 0 | W82: 0 | X82: ='ABS Pop T1'!F86=B82 -> TRUE
B83: ='Rate peg'!D90 -> Liverpool | C83: ='Rate peg'!E90 -> 0.02951901918 | D83: ='Rate peg'!G90 -> -0.000100009272 | E83: ='Rate peg'!K90 -> 0 | F83: ='Rate peg'!H90 -> 0.001599655676 | G83: ='Rate peg'!I90 -> 0.0009950991491 | H83: ='Rate peg'!J90 -> -0.00166980344 | I83: ='Rate peg'!L90 -> 0.03 | J83: 0.02947412634 | K83: ='Rate peg'!N90 -> 0.0187798808 | L83: ='Rate peg'!O90 -> 0.011 | M83: ='Rate peg'!P90 -> 0.041 | O83: ='Rate peg'!R90 -> 0.001499646404 | Q83: =INDEX('ABS Pop T1'!AQ87:AU87,MATCH('Rate peg'!$D$9,'ABS Pop T1'!$AQ$16:$AU$16,0)) -> 0.02947412634 | R83: ='Rate peg'!M90 -> 0.02947412634 | T83: 0 | U83: 0 | V83: 0 | W83: 0 | X83: ='ABS Pop T1'!F87=B83 -> TRUE
B84: ='Rate peg'!D91 -> Liverpool Plains | C84: ='Rate peg'!E91 -> 0.02988176551 | D84: ='Rate peg'!G91 -> 0.001362943656 | E84: ='Rate peg'!K91 -> 0 | F84: ='Rate peg'!H91 -> 0.004488331789 | G84: ='Rate peg'!I91 -> 0.001101723569 | H84: ='Rate peg'!J91 -> -0.001460420973 | I84: ='Rate peg'!L91 -> 0.035 | J84: 0.000521784503 | K84: ='Rate peg'!N91 -> 0 | L84: ='Rate peg'!O91 -> 0.001 | M84: ='Rate peg'!P91 -> 0.036 | O84: ='Rate peg'!R91 -> 0.005851275445 | Q84: =INDEX('ABS Pop T1'!AQ88:AU88,MATCH('Rate peg'!$D$9,'ABS Pop T1'!$AQ$16:$AU$16,0)) -> 0.000521784503 | R84: ='Rate peg'!M91 -> 0.000521784503 | T84: 0 | U84: 0 | V84: 0 | W84: 0 | X84: ='ABS Pop T1'!F88=B84 -> TRUE
B85: ='Rate peg'!D92 -> Lockhart | C85: ='Rate peg'!E92 -> 0.02988176551 | D85: ='Rate peg'!G92 -> 0.0003020047337 | E85: ='Rate peg'!K92 -> 0 | F85: ='Rate peg'!H92 -> 0.007603132032 | G85: ='Rate peg'!I92 -> 0 | H85: ='Rate peg'!J92 -> -0.003201713256 | I85: ='Rate peg'!L92 -> 0.035 | J85: 0.02296819788 | K85: ='Rate peg'!N92 -> 0.001082251082 | L85: ='Rate peg'!O92 -> 0.022 | M85: ='Rate peg'!P92 -> 0.057 | O85: ='Rate peg'!R92 -> 0.007905136766 | Q85: =INDEX('ABS Pop T1'!AQ89:AU89,MATCH('Rate peg'!$D$9,'ABS Pop T1'!$AQ$16:$AU$16,0)) -> 0.02296819788 | R85: ='Rate peg'!M92 -> 0.02296819788 | T85: 0 | U85: 0 | V85: 0 | W85: 0 | X85: ='ABS Pop T1'!F89=B85 -> TRUE
B86: ='Rate peg'!D93 -> Maitland | C86: ='Rate peg'!E93 -> 0.02980866065 | D86: ='Rate peg'!G93 -> 0.0001395711153 | E86: ='Rate peg'!K93 -> 0 | F86: ='Rate peg'!H93 -> 0.0009618895488 | G86: ='Rate peg'!I93 -> 0 | H86: ='Rate peg'!J93 -> -0.0003819958576 | I86: ='Rate peg'!L93 -> 0.031 | J86: 0.02320272679 | K86: ='Rate peg'!N93 -> 0.02234940756 | L86: ='Rate peg'!O93 -> 0.001 | M86: ='Rate peg'!P93 -> 0.032 | O86: ='Rate peg'!R93 -> 0.001101460664 | Q86: =INDEX('ABS Pop T1'!AQ90:AU90,MATCH('Rate peg'!$D$9,'ABS Pop T1'!$AQ$16:$AU$16,0)) -> 0.02320272679 | R86: ='Rate peg'!M93 -> 0.02320272679 | T86: 0 | U86: 0 | V86: 0 | W86: 0 | X86: ='ABS Pop T1'!F90=B86 -> TRUE
B87: ='Rate peg'!D94 -> Mid-Coast | C87: ='Rate peg'!E94 -> 0.02980866065 | D87: ='Rate peg'!G94 -> 0.0001968902112 | E87: ='Rate peg'!K94 -> 0 | F87: ='Rate peg'!H94 -> 0.001933624635 | G87: ='Rate peg'!I94 -> 0 | H87: ='Rate peg'!J94 -> -0.001026560809 | I87: ='Rate peg'!L94 -> 0.031 | J87: 0.006853162566 | K87: ='Rate peg'!N94 -> 0.006647489145 | L87: ='Rate peg'!O94 -> 0 | M87: ='Rate peg'!P94 -> 0.031 | O87: ='Rate peg'!R94 -> 0.002130514846 | Q87: =INDEX('ABS Pop T1'!AQ91:AU91,MATCH('Rate peg'!$D$9,'ABS Pop T1'!$AQ$16:$AU$16,0)) -> 0.006853162566 | R87: ='Rate peg'!M94 -> 0.006853162566 | T87: 0 | U87: 0 | V87: 0 | W87: 0 | X87: ='ABS Pop T1'!F91=B87 -> TRUE
B88: ='Rate peg'!D95 -> Mid-Western Regional | C88: ='Rate peg'!E95 -> 0.02980866065 | D88: ='Rate peg'!G95 -> 0.000401509811 | E88: ='Rate peg'!K95 -> 0 | F88: ='Rate peg'!H95 -> 0.002485852247 | G88: ='Rate peg'!I95 -> 0 | H88: ='Rate peg'!J95 -> -0.0009471173434 | I88: ='Rate peg'!L95 -> 0.032 | J88: 0.01142063431 | K88: ='Rate peg'!N95 -> 0.007455971205 | L88: ='Rate peg'!O95 -> 0.004 | M88: ='Rate peg'!P95 -> 0.036 | O88: ='Rate peg'!R95 -> 0.002887362058 | Q88: =INDEX('ABS Pop T1'!AQ92:AU92,MATCH('Rate peg'!$D$9,'ABS Pop T1'!$AQ$16:$AU$16,0)) -> 0.01142063431 | R88: ='Rate peg'!M95 -> 0.01142063431 | T88: 0 | U88: 0 | V88: 0 | W88: 0 | X88: ='ABS Pop T1'!F92=B88 -> TRUE
B89: ='Rate peg'!D96 -> Moree Plains | C89: ='Rate peg'!E96 -> 0.02988176551 | D89: ='Rate peg'!G96 -> 0.0006296604824 | E89: ='Rate peg'!K96 -> 0 | F89: ='Rate peg'!H96 -> 0.001674834142 | G89: ='Rate peg'!I96 -> 0 | H89: ='Rate peg'!J96 -> -0.0008064645013 | I89: ='Rate peg'!L96 -> 0.031 | J89: -0.004195804196 | K89: ='Rate peg'!N96 -> 0 | L89: ='Rate peg'!O96 -> 0 | M89: ='Rate peg'!P96 -> 0.031 | O89: ='Rate peg'!R96 -> 0.002304494624 | Q89: =INDEX('ABS Pop T1'!AQ93:AU93,MATCH('Rate peg'!$D$9,'ABS Pop T1'!$AQ$16:$AU$16,0)) -> -0.004195804196 | R89: ='Rate peg'!M96 -> 0 | T89: 0 | U89: 0 | V89: 0 | W89: 0 | X89: ='ABS Pop T1'!F93=B89 -> TRUE
B90: ='Rate peg'!D97 -> Mosman | C90: ='Rate peg'!E97 -> 0.02951901918 | D90: ='Rate peg'!G97 -> 0.003587017598 | E90: ='Rate peg'!K97 -> 0 | F90: ='Rate peg'!H97 -> 0.002774314839 | G90: ='Rate peg'!I97 -> 0 | H90: ='Rate peg'!J97 -> -0.000994418592 | I90: ='Rate peg'!L97 -> 0.035 | J90: 0.006122098022 | K90: ='Rate peg'!N97 -> 8.753118298e-05 | L90: ='Rate peg'!O97 -> 0.006 | M90: ='Rate peg'!P97 -> 0.041 | O90: ='Rate peg'!R97 -> 0.006361332437 | Q90: =INDEX('ABS Pop T1'!AQ94:AU94,MATCH('Rate peg'!$D$9,'ABS Pop T1'!$AQ$16:$AU$16,0)) -> 0.006122098022 | R90: ='Rate peg'!M97 -> 0.006122098022 | T90: 0 | U90: 0 | V90: 0 | W90: 0 | X90: ='ABS Pop T1'!F94=B90 -> TRUE
B91: ='Rate peg'!D98 -> Murray River | C91: ='Rate peg'!E98 -> 0.02988176551 | D91: ='Rate peg'!G98 -> 0.001020304395 | E91: ='Rate peg'!K98 -> 0 | F91: ='Rate peg'!H98 -> 0.003874491695 | G91: ='Rate peg'!I98 -> 0 | H91: ='Rate peg'!J98 -> -0.003175692277 | I91: ='Rate peg'!L98 -> 0.032 | J91: 0.01770974036 | K91: ='Rate peg'!N98 -> 0.02844779229 | L91: ='Rate peg'!O98 -> 0 | M91: ='Rate peg'!P98 -> 0.032 | O91: ='Rate peg'!R98 -> 0.00489479609 | Q91: =INDEX('ABS Pop T1'!AQ95:AU95,MATCH('Rate peg'!$D$9,'ABS Pop T1'!$AQ$16:$AU$16,0)) -> 0.01770974036 | R91: ='Rate peg'!M98 -> 0.01770974036 | T91: 0 | U91: 0 | V91: 0 | W91: 0 | X91: ='ABS Pop T1'!F95=B91 -> TRUE
B92: ='Rate peg'!D99 -> Murrumbidgee | C92: ='Rate peg'!E99 -> 0.02988176551 | D92: ='Rate peg'!G99 -> 0.001191154709 | E92: ='Rate peg'!K99 -> 0 | F92: ='Rate peg'!H99 -> 0.0070622397 | G92: ='Rate peg'!I99 -> 0 | H92: ='Rate peg'!J99 -> -0.002975017868 | I92: ='Rate peg'!L99 -> 0.035 | J92: 0.01413917383 | K92: ='Rate peg'!N99 -> 0 | L92: ='Rate peg'!O99 -> 0.014 | M92: ='Rate peg'!P99 -> 0.049 | O92: ='Rate peg'!R99 -> 0.008253394408 | Q92: =INDEX('ABS Pop T1'!AQ96:AU96,MATCH('Rate peg'!$D$9,'ABS Pop T1'!$AQ$16:$AU$16,0)) -> 0.01413917383 | R92: ='Rate peg'!M99 -> 0.01413917383 | T92: 0 | U92: 0 | V92: 0 | W92: 0 | X92: ='ABS Pop T1'!F96=B92 -> TRUE
B93: ='Rate peg'!D100 -> Muswellbrook | C93: ='Rate peg'!E100 -> 0.02988176551 | D93: ='Rate peg'!G100 -> 0.0004650215725 | E93: ='Rate peg'!K100 -> 0 | F93: ='Rate peg'!H100 -> 0.002100243985 | G93: ='Rate peg'!I100 -> 0 | H93: ='Rate peg'!J100 -> -0.001698395983 | I93: ='Rate peg'!L100 -> 0.031 | J93: 0.0007237635706 | K93: ='Rate peg'!N100 -> 0.002608734764 | L93: ='Rate peg'!O100 -> 0 | M93: ='Rate peg'!P100 -> 0.031 | O93: ='Rate peg'!R100 -> 0.002565265558 | Q93: =INDEX('ABS Pop T1'!AQ97:AU97,MATCH('Rate peg'!$D$9,'ABS Pop T1'!$AQ$16:$AU$16,0)) -> 0.0007237635706 | R93: ='Rate peg'!M100 -> 0.0007237635706 | T93: 0 | U93: 0 | V93: 0 | W93: 0 | X93: ='ABS Pop T1'!F97=B93 -> TRUE
B94: ='Rate peg'!D101 -> Nambucca | C94: ='Rate peg'!E101 -> 0.02988176551 | D94: ='Rate peg'!G101 -> 0.0003803516134 | E94: ='Rate peg'!K101 -> 0 | F94: ='Rate peg'!H101 -> 0.003238570601 | G94: ='Rate peg'!I101 -> 0 | H94: ='Rate peg'!J101 -> -0.001641338846 | I94: ='Rate peg'!L101 -> 0.032 | J94: 0.01020506402 | K94: ='Rate peg'!N101 -> 0.00753968254 | L94: ='Rate peg'!O101 -> 0.003 | M94: ='Rate peg'!P101 -> 0.035 | O94: ='Rate peg'!R101 -> 0.003618922215 | Q94: =INDEX('ABS Pop T1'!AQ98:AU98,MATCH('Rate peg'!$D$9,'ABS Pop T1'!$AQ$16:$AU$16,0)) -> 0.01020506402 | R94: ='Rate peg'!M101 -> 0.01020506402 | T94: 0 | U94: 0 | V94: 0 | W94: 0 | X94: ='ABS Pop T1'!F98=B94 -> TRUE
B95: ='Rate peg'!D102 -> Narrabri | C95: ='Rate peg'!E102 -> 0.02988176551 | D95: ='Rate peg'!G102 -> 0.0007156494055 | E95: ='Rate peg'!K102 -> 0 | F95: ='Rate peg'!H102 -> 0.002719106694 | G95: ='Rate peg'!I102 -> 0 | H95: ='Rate peg'!J102 -> -0.002593348425 | I95: ='Rate peg'!L102 -> 0.031 | J95: 0.003450439147 | K95: ='Rate peg'!N102 -> 0 | L95: ='Rate peg'!O102 -> 0.003 | M95: ='Rate peg'!P102 -> 0.034 | O95: ='Rate peg'!R102 -> 0.003434756099 | Q95: =INDEX('ABS Pop T1'!AQ99:AU99,MATCH('Rate peg'!$D$9,'ABS Pop T1'!$AQ$16:$AU$16,0)) -> 0.003450439147 | R95: ='Rate peg'!M102 -> 0.003450439147 | T95: 0 | U95: 0 | V95: 0 | W95: 0 | X95: ='ABS Pop T1'!F99=B95 -> TRUE
B96: ='Rate peg'!D103 -> Narrandera | C96: ='Rate peg'!E103 -> 0.02988176551 | D96: ='Rate peg'!G103 -> 0.000985337501 | E96: ='Rate peg'!K103 -> 0 | F96: ='Rate peg'!H103 -> 0.003049378429 | G96: ='Rate peg'!I103 -> 0 | H96: ='Rate peg'!J103 -> -0.001155695508 | I96: ='Rate peg'!L103 -> 0.033 | J96: -0.0008784258609 | K96: ='Rate peg'!N103 -> 0.0003629105426 | L96: ='Rate peg'!O103 -> 0 | M96: ='Rate peg'!P103 -> 0.033 | O96: ='Rate peg'!R103 -> 0.00403471593 | Q96: =INDEX('ABS Pop T1'!AQ100:AU100,MATCH('Rate peg'!$D$9,'ABS Pop T1'!$AQ$16:$AU$16,0)) -> -0.0008784258609 | R96: ='Rate peg'!M103 -> 0 | T96: 0 | U96: 0 | V96: 0 | W96: 0 | X96: ='ABS Pop T1'!F100=B96 -> TRUE
B97: ='Rate peg'!D104 -> Narromine | C97: ='Rate peg'!E104 -> 0.02988176551 | D97: ='Rate peg'!G104 -> 0.001486954108 | E97: ='Rate peg'!K104 -> 0 | F97: ='Rate peg'!H104 -> 0.004713003972 | G97: ='Rate peg'!I104 -> 0 | H97: ='Rate peg'!J104 -> -0.00171547115 | I97: ='Rate peg'!L104 -> 0.034 | J97: -0.001552312946 | K97: ='Rate peg'!N104 -> 0.006001846722 | L97: ='Rate peg'!O104 -> 0 | M97: ='Rate peg'!P104 -> 0.034 | O97: ='Rate peg'!R104 -> 0.00619995808 | Q97: =INDEX('ABS Pop T1'!AQ101:AU101,MATCH('Rate peg'!$D$9,'ABS Pop T1'!$AQ$16:$AU$16,0)) -> -0.001552312946 | R97: ='Rate peg'!M104 -> 0 | T97: 0 | U97: 0 | V97: 0 | W97: 0 | X97: ='ABS Pop T1'!F101=B97 -> TRUE
B98: ='Rate peg'!D105 -> Newcastle | C98: ='Rate peg'!E105 -> 0.02980866065 | D98: ='Rate peg'!G105 -> 0.0005170667759 | E98: ='Rate peg'!K105 -> 0 | F98: ='Rate peg'!H105 -> 0.001040116594 | G98: ='Rate peg'!I105 -> 5.540295499e-05 | H98: ='Rate peg'!J105 -> -0.0009436034093 | I98: ='Rate peg'!L105 -> 0.03 | J98: 0.01482756642 | K98: ='Rate peg'!N105 -> 0.003294312078 | L98: ='Rate peg'!O105 -> 0.012 | M98: ='Rate peg'!P105 -> 0.042 | O98: ='Rate peg'!R105 -> 0.00155718337 | Q98: =INDEX('ABS Pop T1'!AQ102:AU102,MATCH('Rate peg'!$D$9,'ABS Pop T1'!$AQ$16:$AU$16,0)) -> 0.01482756642 | R98: ='Rate peg'!M105 -> 0.01482756642 | T98: 0 | U98: 0 | V98: 0 | W98: 0 | X98: ='ABS Pop T1'!F102=B98 -> TRUE
B99: ='Rate peg'!D106 -> North Sydney | C99: ='Rate peg'!E106 -> 0.02951901918 | D99: ='Rate peg'!G106 -> 0.001475954915 | E99: ='Rate peg'!K106 -> 0 | F99: ='Rate peg'!H106 -> 0.001770169719 | G99: ='Rate peg'!I106 -> 0 | H99: ='Rate peg'!J106 -> -0.002353902669 | I99: ='Rate peg'!L106 -> 0.03 | J99: 0.01238596443 | K99: ='Rate peg'!N106 -> 0.002822409249 | L99: ='Rate peg'!O106 -> 0.01 | M99: ='Rate peg'!P106 -> 0.04 | O99: ='Rate peg'!R106 -> 0.003246124634 | Q99: =INDEX('ABS Pop T1'!AQ103:AU103,MATCH('Rate peg'!$D$9,'ABS Pop T1'!$AQ$16:$AU$16,0)) -> 0.01238596443 | R99: ='Rate peg'!M106 -> 0.01238596443 | T99: 0 | U99: 0 | V99: 0 | W99: 0 | X99: ='ABS Pop T1'!F103=B99 -> TRUE
B100: ='Rate peg'!D107 -> Northern Beaches | C100: ='Rate peg'!E107 -> 0.02951901918 | D100: ='Rate peg'!G107 -> 0.0009080077117 | E100: ='Rate peg'!K107 -> 0 | F100: ='Rate peg'!H107 -> 0.001957340928 | G100: ='Rate peg'!I107 -> 0 | H100: ='Rate peg'!J107 -> -0.001045880676 | I100: ='Rate peg'!L107 -> 0.031 | J100: 0.01072419083 | K100: ='Rate peg'!N107 -> 0.0008130297314 | L100: ='Rate peg'!O107 -> 0.01 | M100: ='Rate peg'!P107 -> 0.041 | O100: ='Rate peg'!R107 -> 0.00286534864 | Q100: =INDEX('ABS Pop T1'!AQ104:AU104,MATCH('Rate peg'!$D$9,'ABS Pop T1'!$AQ$16:$AU$16,0)) -> 0.01072419083 | R100: ='Rate peg'!M107 -> 0.01072419083 | T100: 0 | U100: 0 | V100: 0 | W100: 0 | X100: ='ABS Pop T1'!F104=B100 -> TRUE
B101: ='Rate peg'!D108 -> Oberon | C101: ='Rate peg'!E108 -> 0.02988176551 | D101: ='Rate peg'!G108 -> 0.001771299144 | E101: ='Rate peg'!K108 -> 0 | F101: ='Rate peg'!H108 -> 0.006172383617 | G101: ='Rate peg'!I108 -> 0 | H101: ='Rate peg'!J108 -> -0.005786895467 | I101: ='Rate peg'!L108 -> 0.032 | J101: 0.0007142857143 | K101: ='Rate peg'!N108 -> 0 | L101: ='Rate peg'!O108 -> 0.001 | M101: ='Rate peg'!P108 -> 0.033 | O101: ='Rate peg'!R108 -> 0.007943682761 | Q101: =INDEX('ABS Pop T1'!AQ105:AU105,MATCH('Rate peg'!$D$9,'ABS Pop T1'!$AQ$16:$AU$16,0)) -> 0.0007142857143 | R101: ='Rate peg'!M108 -> 0.0007142857143 | T101: 0 | U101: 0 | V101: 0 | W101: 0 | X101: ='ABS Pop T1'!F105=B101 -> TRUE
B102: ='Rate peg'!D109 -> Orange | C102: ='Rate peg'!E109 -> 0.02980866065 | D102: ='Rate peg'!G109 -> 0.000368407812 | E102: ='Rate peg'!K109 -> 0 | F102: ='Rate peg'!H109 -> 0.00151704261 | G102: ='Rate peg'!I109 -> 0 | H102: ='Rate peg'!J109 -> -0.001564451636 | I102: ='Rate peg'!L109 -> 0.03 | J102: 0.008454652319 | K102: ='Rate peg'!N109 -> 0.01286442871 | L102: ='Rate peg'!O109 -> 0 | M102: ='Rate peg'!P109 -> 0.03 | O102: ='Rate peg'!R109 -> 0.001885450422 | Q102: =INDEX('ABS Pop T1'!AQ106:AU106,MATCH('Rate peg'!$D$9,'ABS Pop T1'!$AQ$16:$AU$16,0)) -> 0.008454652319 | R102: ='Rate peg'!M109 -> 0.008454652319 | T102: 0 | U102: 0 | V102: 0 | W102: 0 | X102: ='ABS Pop T1'!F106=B102 -> TRUE
B103: ='Rate peg'!D110 -> Parkes | C103: ='Rate peg'!E110 -> 0.02988176551 | D103: ='Rate peg'!G110 -> 0.0005937119841 | E103: ='Rate peg'!K110 -> 0 | F103: ='Rate peg'!H110 -> 0.002749625409 | G103: ='Rate peg'!I110 -> 0 | H103: ='Rate peg'!J110 -> -0.001989413358 | I103: ='Rate peg'!L110 -> 0.031 | J103: -0.001332865661 | K103: ='Rate peg'!N110 -> 0.002094706106 | L103: ='Rate peg'!O110 -> 0 | M103: ='Rate peg'!P110 -> 0.031 | O103: ='Rate peg'!R110 -> 0.003343337393 | Q103: =INDEX('ABS Pop T1'!AQ107:AU107,MATCH('Rate peg'!$D$9,'ABS Pop T1'!$AQ$16:$AU$16,0)) -> -0.001332865661 | R103: ='Rate peg'!M110 -> 0 | T103: 0 | U103: 0 | V103: 0 | W103: 0 | X103: ='ABS Pop T1'!F107=B103 -> TRUE
B104: ='Rate peg'!D111 -> Parramatta | C104: ='Rate peg'!E111 -> 0.02951901918 | D104: ='Rate peg'!G111 -> 0.0006790464723 | E104: ='Rate peg'!K111 -> 0 | F104: ='Rate peg'!H111 -> 0.0002694782339 | G104: ='Rate peg'!I111 -> 0.0003017020865 | H104: ='Rate peg'!J111 -> -0.0008777199296 | I104: ='Rate peg'!L111 -> 0.03 | J104: 0.02098676994 | K104: ='Rate peg'!N111 -> 0.002582137683 | L104: ='Rate peg'!O111 -> 0.018 | M104: ='Rate peg'!P111 -> 0.048 | O104: ='Rate peg'!R111 -> 0.0009485247063 | Q104: =INDEX('ABS Pop T1'!AQ108:AU108,MATCH('Rate peg'!$D$9,'ABS Pop T1'!$AQ$16:$AU$16,0)) -> 0.02098676994 | R104: ='Rate peg'!M111 -> 0.02098676994 | T104: 0 | U104: 0 | V104: 0 | W104: 0 | X104: ='ABS Pop T1'!F108=B104 -> TRUE
B105: ='Rate peg'!D112 -> Penrith | C105: ='Rate peg'!E112 -> 0.02951901918 | D105: ='Rate peg'!G112 -> 0.0004727796257 | E105: ='Rate peg'!K112 -> 0 | F105: ='Rate peg'!H112 -> 0.001400341575 | G105: ='Rate peg'!I112 -> 0.0001141279235 | H105: ='Rate peg'!J112 -> -0.00164302988 | I105: ='Rate peg'!L112 -> 0.03 | J105: 0.01879556075 | K105: ='Rate peg'!N112 -> 0.01170043221 | L105: ='Rate peg'!O112 -> 0.007 | M105: ='Rate peg'!P112 -> 0.037 | O105: ='Rate peg'!R112 -> 0.001873121201 | Q105: =INDEX('ABS Pop T1'!AQ109:AU109,MATCH('Rate peg'!$D$9,'ABS Pop T1'!$AQ$16:$AU$16,0)) -> 0.01879556075 | R105: ='Rate peg'!M112 -> 0.01879556075 | T105: 0 | U105: 0 | V105: 0 | W105: 0 | X105: ='ABS Pop T1'!F109=B105 -> TRUE
B106: ='Rate peg'!D113 -> Port Macquarie-Hastings | C106: ='Rate peg'!E113 -> 0.02980866065 | D106: ='Rate peg'!G113 -> -6.100860925e-05 | E106: ='Rate peg'!K113 -> 0 | F106: ='Rate peg'!H113 -> 0.001651214484 | G106: ='Rate peg'!I113 -> 0 | H106: ='Rate peg'!J113 -> -0.002105082366 | I106: ='Rate peg'!L113 -> 0.029 | J106: 0.01384005804 | K106: ='Rate peg'!N113 -> 0.008917197452 | L106: ='Rate peg'!O113 -> 0.005 | M106: ='Rate peg'!P113 -> 0.034 | O106: ='Rate peg'!R113 -> 0.001590205875 | Q106: =INDEX('ABS Pop T1'!AQ110:AU110,MATCH('Rate peg'!$D$9,'ABS Pop T1'!$AQ$16:$AU$16,0)) -> 0.01384005804 | R106: ='Rate peg'!M113 -> 0.01384005804 | T106: 0 | U106: 0 | V106: 0 | W106: 0 | X106: ='ABS Pop T1'!F110=B106 -> TRUE
B107: ='Rate peg'!D114 -> Port Stephens | C107: ='Rate peg'!E114 -> 0.02980866065 | D107: ='Rate peg'!G114 -> -0.0003016958954 | E107: ='Rate peg'!K114 -> 0 | F107: ='Rate peg'!H114 -> 0.002686419685 | G107: ='Rate peg'!I114 -> 0 | H107: ='Rate peg'!J114 -> -0.001811423799 | I107: ='Rate peg'!L114 -> 0.03 | J107: 0.01497260168 | K107: ='Rate peg'!N114 -> 0.003609426082 | L107: ='Rate peg'!O114 -> 0.011 | M107: ='Rate peg'!P114 -> 0.041 | O107: ='Rate peg'!R114 -> 0.00238472379 | Q107: =INDEX('ABS Pop T1'!AQ111:AU111,MATCH('Rate peg'!$D$9,'ABS Pop T1'!$AQ$16:$AU$16,0)) -> 0.01497260168 | R107: ='Rate peg'!M114 -> 0.01497260168 | T107: 0 | U107: 0 | V107: 0 | W107: 0 | X107: ='ABS Pop T1'!F111=B107 -> TRUE
B108: ='Rate peg'!D115 -> Queanbeyan-Palerang Regional | C108: ='Rate peg'!E115 -> 0.02980866065 | D108: ='Rate peg'!G115 -> -0.0006831801862 | E108: ='Rate peg'!K115 -> 0 | F108: ='Rate peg'!H115 -> 0.00313559606 | G108: ='Rate peg'!I115 -> 0 | H108: ='Rate peg'!J115 -> -0.001357463754 | I108: ='Rate peg'!L115 -> 0.031 | J108: 0.0229828776 | K108: ='Rate peg'!N115 -> 0.02703178484 | L108: ='Rate peg'!O115 -> 0 | M108: ='Rate peg'!P115 -> 0.031 | O108: ='Rate peg'!R115 -> 0.002452415874 | Q108: =INDEX('ABS Pop T1'!AQ112:AU112,MATCH('Rate peg'!$D$9,'ABS Pop T1'!$AQ$16:$AU$16,0)) -> 0.0229828776 | R108: ='Rate peg'!M115 -> 0.0229828776 | T108: 0 | U108: 0 | V108: 0 | W108: 0 | X108: ='ABS Pop T1'!F112=B108 -> TRUE
B109: ='Rate peg'!D116 -> Randwick | C109: ='Rate peg'!E116 -> 0.02951901918 | D109: ='Rate peg'!G116 -> 0.0008444412246 | E109: ='Rate peg'!K116 -> 0 | F109: ='Rate peg'!H116 -> 0.001437413584 | G109: ='Rate peg'!I116 -> 0 | H109: ='Rate peg'!J116 -> -0.001070818055 | I109: ='Rate peg'!L116 -> 0.031 | J109: =CHOOSE($D$11,Q109,R109) -> 0.01915733288 | K109: ='Rate peg'!N116 -> 0.0004661634746 | L109: ='Rate peg'!O116 -> 0.019 | M109: ='Rate peg'!P116 -> 0.05 | O109: ='Rate peg'!R116 -> 0.002281854808 | Q109: =INDEX('ABS Pop T1'!AQ113:AU113,MATCH('Rate peg'!$D$9,'ABS Pop T1'!$AQ$16:$AU$16,0)) -> 0.01915733288 | R109: ='Rate peg'!M116 -> 0.01915733288 | T109: 0 | U109: 0 | V109: 0 | W109: 0 | X109: ='ABS Pop T1'!F113=B109 -> TRUE
B110: ='Rate peg'!D117 -> Richmond Valley | C110: ='Rate peg'!E117 -> 0.02980866065 | D110: ='Rate peg'!G117 -> 0.0002037358497 | E110: ='Rate peg'!K117 -> 0 | F110: ='Rate peg'!H117 -> 0.002883045763 | G110: ='Rate peg'!I117 -> 0 | H110: ='Rate peg'!J117 -> -0.001411287698 | I110: ='Rate peg'!L117 -> 0.031 | J110: 0.007973674218 | K110: ='Rate peg'!N117 -> 0.002023174545 | L110: ='Rate peg'!O117 -> 0.006 | M110: ='Rate peg'!P117 -> 0.037 | O110: ='Rate peg'!R117 -> 0.003086781613 | Q110: =INDEX('ABS Pop T1'!AQ114:AU114,MATCH('Rate peg'!$D$9,'ABS Pop T1'!$AQ$16:$AU$16,0)) -> 0.007973674218 | R110: ='Rate peg'!M117 -> 0.007973674218 | T110: 0 | U110: 0 | V110: 0 | W110: 0 | X110: ='ABS Pop T1'!F114=B110 -> TRUE
B111: ='Rate peg'!D118 -> Ryde | C111: ='Rate peg'!E118 -> 0.02951901918 | D111: ='Rate peg'!G118 -> 0.001151672741 | E111: ='Rate peg'!K118 -> 0 | F111: ='Rate peg'!H118 -> 0.001616042827 | G111: ='Rate peg'!I118 -> 0 | H111: ='Rate peg'!J118 -> -0.001551445283 | I111: ='Rate peg'!L118 -> 0.031 | J111: 0.02462694816 | K111: ='Rate peg'!N118 -> 0.004358208955 | L111: ='Rate peg'!O118 -> 0.02 | M111: ='Rate peg'!P118 -> 0.051 | O111: ='Rate peg'!R118 -> 0.002767715568 | Q111: =INDEX('ABS Pop T1'!AQ115:AU115,MATCH('Rate peg'!$D$9,'ABS Pop T1'!$AQ$16:$AU$16,0)) -> 0.02462694816 | R111: ='Rate peg'!M118 -> 0.02462694816 | T111: 0 | U111: 0 | V111: 0 | W111: 0 | X111: ='ABS Pop T1'!F115=B111 -> TRUE
B112: ='Rate peg'!D119 -> Shellharbour | C112: ='Rate peg'!E119 -> 0.02980866065 | D112: ='Rate peg'!G119 -> 0.0001311199788 | E112: ='Rate peg'!K119 -> 0 | F112: ='Rate peg'!H119 -> 0.001396451935 | G112: ='Rate peg'!I119 -> 0.0005151499422 | H112: ='Rate peg'!J119 -> -0.00104629085 | I112: ='Rate peg'!L119 -> 0.031 | J112: 0.02309187833 | K112: ='Rate peg'!N119 -> 0.01133237034 | L112: ='Rate peg'!O119 -> 0.012 | M112: ='Rate peg'!P119 -> 0.043 | O112: ='Rate peg'!R119 -> 0.001527571914 | Q112: =INDEX('ABS Pop T1'!AQ116:AU116,MATCH('Rate peg'!$D$9,'ABS Pop T1'!$AQ$16:$AU$16,0)) -> 0.02309187833 | R112: ='Rate peg'!M119 -> 0.02309187833 | T112: 0 | U112: 0 | V112: 0 | W112: 0 | X112: ='ABS Pop T1'!F116=B112 -> TRUE
B113: ='Rate peg'!D120 -> Shoalhaven | C113: ='Rate peg'!E120 -> 0.02980866065 | D113: ='Rate peg'!G120 -> -0.0005477118847 | E113: ='Rate peg'!K120 -> 0 | F113: ='Rate peg'!H120 -> 0.001765533529 | G113: ='Rate peg'!I120 -> 0 | H113: ='Rate peg'!J120 -> -0.0007690293378 | I113: ='Rate peg'!L120 -> 0.03 | J113: 0.006500700428 | K113: ='Rate peg'!N120 -> 0.005756206428 | L113: ='Rate peg'!O120 -> 0.001 | M113: ='Rate peg'!P120 -> 0.031 | O113: ='Rate peg'!R120 -> 0.001217821645 | Q113: =INDEX('ABS Pop T1'!AQ117:AU117,MATCH('Rate peg'!$D$9,'ABS Pop T1'!$AQ$16:$AU$16,0)) -> 0.006500700428 | R113: ='Rate peg'!M120 -> 0.006500700428 | T113: 0 | U113: 0 | V113: 0 | W113: 0 | X113: ='ABS Pop T1'!F117=B113 -> TRUE
B114: ='Rate peg'!D121 -> Singleton | C114: ='Rate peg'!E121 -> 0.02980866065 | D114: ='Rate peg'!G121 -> 0.0001720074684 | E114: ='Rate peg'!K121 -> 0 | F114: ='Rate peg'!H121 -> 0.002604479301 | G114: ='Rate peg'!I121 -> 0 | H114: ='Rate peg'!J121 -> -0.0008185495765 | I114: ='Rate peg'!L121 -> 0.032 | J114: 0.01227890082 | K114: ='Rate peg'!N121 -> 0.002338485929 | L114: ='Rate peg'!O121 -> 0.01 | M114: ='Rate peg'!P121 -> 0.042 | O114: ='Rate peg'!R121 -> 0.002776486769 | Q114: =INDEX('ABS Pop T1'!AQ118:AU118,MATCH('Rate peg'!$D$9,'ABS Pop T1'!$AQ$16:$AU$16,0)) -> 0.01227890082 | R114: ='Rate peg'!M121 -> 0.01227890082 | T114: 0 | U114: 0 | V114: 0 | W114: 0 | X114: ='ABS Pop T1'!F118=B114 -> TRUE
B115: ='Rate peg'!D122 -> Snowy Monaro Regional | C115: ='Rate peg'!E122 -> 0.02980866065 | D115: ='Rate peg'!G122 -> 0.00119385227 | E115: ='Rate peg'!K122 -> 0 | F115: ='Rate peg'!H122 -> 0.009226671032 | G115: ='Rate peg'!I122 -> 0 | H115: ='Rate peg'!J122 -> -0.0008776219345 | I115: ='Rate peg'!L122 -> 0.039 | J115: 0.005137764845 | K115: ='Rate peg'!N122 -> 0.002280954034 | L115: ='Rate peg'!O122 -> 0.003 | M115: ='Rate peg'!P122 -> 0.042 | O115: ='Rate peg'!R122 -> 0.0104205233 | Q115: =INDEX('ABS Pop T1'!AQ119:AU119,MATCH('Rate peg'!$D$9,'ABS Pop T1'!$AQ$16:$AU$16,0)) -> 0.005137764845 | R115: ='Rate peg'!M122 -> 0.005137764845 | T115: 0 | U115: 0 | V115: 0 | W115: 0 | X115: ='ABS Pop T1'!F119=B115 -> TRUE
B116: ='Rate peg'!D123 -> Snowy Valleys | C116: ='Rate peg'!E123 -> 0.02988176551 | D116: ='Rate peg'!G123 -> 0.00105434249 | E116: ='Rate peg'!K123 -> 0 | F116: ='Rate peg'!H123 -> 0.004073814131 | G116: ='Rate peg'!I123 -> 0 | H116: ='Rate peg'!J123 -> -0.0036922393 | I116: ='Rate peg'!L123 -> 0.031 | J116: 0.002293732713 | K116: ='Rate peg'!N123 -> 0.003006566975 | L116: ='Rate peg'!O123 -> 0 | M116: ='Rate peg'!P123 -> 0.031 | O116: ='Rate peg'!R123 -> 0.005128156621 | Q116: =INDEX('ABS Pop T1'!AQ120:AU120,MATCH('Rate peg'!$D$9,'ABS Pop T1'!$AQ$16:$AU$16,0)) -> 0.002293732713 | R116: ='Rate peg'!M123 -> 0.002293732713 | T116: 0 | U116: 0 | V116: 0 | W116: 0 | X116: ='ABS Pop T1'!F120=B116 -> TRUE
B117: ='Rate peg'!D124 -> Strathfield | C117: ='Rate peg'!E124 -> 0.02951901918 | D117: ='Rate peg'!G124 -> 0.001661314928 | E117: ='Rate peg'!K124 -> 0 | F117: ='Rate peg'!H124 -> 0.003242748352 | G117: ='Rate peg'!I124 -> 0 | H117: ='Rate peg'!J124 -> -0.001490678668 | I117: ='Rate peg'!L124 -> 0.033 | J117: 0.01411543287 | K117: ='Rate peg'!N124 -> 0.01499833352 | L117: ='Rate peg'!O124 -> 0 | M117: ='Rate peg'!P124 -> 0.033 | O117: ='Rate peg'!R124 -> 0.00490406328 | Q117: =INDEX('ABS Pop T1'!AQ121:AU121,MATCH('Rate peg'!$D$9,'ABS Pop T1'!$AQ$16:$AU$16,0)) -> 0.01411543287 | R117: ='Rate peg'!M124 -> 0.01411543287 | T117: 0 | U117: 0 | V117: 0 | W117: 0 | X117: ='ABS Pop T1'!F121=B117 -> TRUE
B118: ='Rate peg'!D125 -> Sutherland | C118: ='Rate peg'!E125 -> 0.02951901918 | D118: ='Rate peg'!G125 -> 0.0003626361576 | E118: ='Rate peg'!K125 -> 0 | F118: ='Rate peg'!H125 -> 0.001723343697 | G118: ='Rate peg'!I125 -> 4.890835221e-05 | H118: ='Rate peg'!J125 -> -0.0009574785068 | I118: ='Rate peg'!L125 -> 0.031 | J118: 0.01540464863 | K118: ='Rate peg'!N125 -> 0.004533170604 | L118: ='Rate peg'!O125 -> 0.011 | M118: ='Rate peg'!P125 -> 0.042 | O118: ='Rate peg'!R125 -> 0.002085979855 | Q118: =INDEX('ABS Pop T1'!AQ122:AU122,MATCH('Rate peg'!$D$9,'ABS Pop T1'!$AQ$16:$AU$16,0)) -> 0.01540464863 | R118: ='Rate peg'!M125 -> 0.01540464863 | T118: 0 | U118: 0 | V118: 0 | W118: 0 | X118: ='ABS Pop T1'!F122=B118 -> TRUE
B119: ='Rate peg'!D126 -> Sydney | C119: ='Rate peg'!E126 -> 0.02951901918 | D119: ='Rate peg'!G126 -> -0.0003839958485 | E119: ='Rate peg'!K126 -> 0 | F119: ='Rate peg'!H126 -> 0.0006886465485 | G119: ='Rate peg'!I126 -> 0 | H119: ='Rate peg'!J126 -> -0.0008423091902 | I119: ='Rate peg'!L126 -> 0.029 | J119: 0.02663118726 | K119: ='Rate peg'!N126 -> 0 | L119: ='Rate peg'!O126 -> 0.027 | M119: ='Rate peg'!P126 -> 0.056 | O119: ='Rate peg'!R126 -> 0.0003046506999 | Q119: =INDEX('ABS Pop T1'!AQ123:AU123,MATCH('Rate peg'!$D$9,'ABS Pop T1'!$AQ$16:$AU$16,0)) -> 0.02663118726 | R119: ='Rate peg'!M126 -> 0.02663118726 | T119: 0 | U119: 0 | V119: 0 | W119: 0 | X119: ='ABS Pop T1'!F123=B119 -> TRUE
B120: ='Rate peg'!D127 -> Tamworth Regional | C120: ='Rate peg'!E127 -> 0.02980866065 | D120: ='Rate peg'!G127 -> 0.0004507457226 | E120: ='Rate peg'!K127 -> 0 | F120: ='Rate peg'!H127 -> 0.001888432456 | G120: ='Rate peg'!I127 -> 0 | H120: ='Rate peg'!J127 -> -0.0001610732276 | I120: ='Rate peg'!L127 -> 0.032 | J120: 0.01003298305 | K120: ='Rate peg'!N127 -> 0.01018020126 | L120: ='Rate peg'!O127 -> 0 | M120: ='Rate peg'!P127 -> 0.032 | O120: ='Rate peg'!R127 -> 0.002339178179 | Q120: =INDEX('ABS Pop T1'!AQ124:AU124,MATCH('Rate peg'!$D$9,'ABS Pop T1'!$AQ$16:$AU$16,0)) -> 0.01003298305 | R120: ='Rate peg'!M127 -> 0.01003298305 | T120: 0 | U120: 0 | V120: 0 | W120: 0 | X120: ='ABS Pop T1'!F124=B120 -> TRUE
B121: ='Rate peg'!D128 -> Temora | C121: ='Rate peg'!E128 -> 0.02988176551 | D121: ='Rate peg'!G128 -> 0.002409192886 | E121: ='Rate peg'!K128 -> 0 | F121: ='Rate peg'!H128 -> 0.007373225276 | G121: ='Rate peg'!I128 -> 0 | H121: ='Rate peg'!J128 -> -0.005934534159 | I121: ='Rate peg'!L128 -> 0.034 | J121: -0.0008294625083 | K121: ='Rate peg'!N128 -> 0.007743362832 | L121: ='Rate peg'!O128 -> 0 | M121: ='Rate peg'!P128 -> 0.034 | O121: ='Rate peg'!R128 -> 0.009782418162 | Q121: =INDEX('ABS Pop T1'!AQ125:AU125,MATCH('Rate peg'!$D$9,'ABS Pop T1'!$AQ$16:$AU$16,0)) -> -0.0008294625083 | R121: ='Rate peg'!M128 -> 0 | T121: 0 | U121: 0 | V121: 0 | W121: 0 | X121: ='ABS Pop T1'!F125=B121 -> TRUE
B122: ='Rate peg'!D129 -> Tenterfield | C122: ='Rate peg'!E129 -> 0.02988176551 | D122: ='Rate peg'!G129 -> 0.000466214282 | E122: ='Rate peg'!K129 -> 0 | F122: ='Rate peg'!H129 -> 0.004996591344 | G122: ='Rate peg'!I129 -> 0 | H122: ='Rate peg'!J129 -> -0.0005060493244 | I122: ='Rate peg'!L129 -> 0.035 | J122: 0.01563396443 | K122: ='Rate peg'!N129 -> 0 | L122: ='Rate peg'!O129 -> 0.016 | M122: ='Rate peg'!P129 -> 0.051 | O122: ='Rate peg'!R129 -> 0.005462805626 | Q122: =INDEX('ABS Pop T1'!AQ126:AU126,MATCH('Rate peg'!$D$9,'ABS Pop T1'!$AQ$16:$AU$16,0)) -> 0.01563396443 | R122: ='Rate peg'!M129 -> 0.01563396443 | T122: 0 | U122: 0 | V122: 0 | W122: 0 | X122: ='ABS Pop T1'!F126=B122 -> TRUE
B123: ='Rate peg'!D130 -> The Hills | C123: ='Rate peg'!E130 -> 0.02951901918 | D123: ='Rate peg'!G130 -> -0.0002562443801 | E123: ='Rate peg'!K130 -> 0 | F123: ='Rate peg'!H130 -> 0.002104944182 | G123: ='Rate peg'!I130 -> 0.0002537665301 | H123: ='Rate peg'!J130 -> -0.001196684958 | I123: ='Rate peg'!L130 -> 0.03 | J123: 0.03695509984 | K123: ='Rate peg'!N130 -> 0.01968660779 | L123: ='Rate peg'!O130 -> 0.017 | M123: ='Rate peg'!P130 -> 0.047 | O123: ='Rate peg'!R130 -> 0.001848699802 | Q123: =INDEX('ABS Pop T1'!AQ127:AU127,MATCH('Rate peg'!$D$9,'ABS Pop T1'!$AQ$16:$AU$16,0)) -> 0.03695509984 | R123: ='Rate peg'!M130 -> 0.03695509984 | T123: 0 | U123: 0 | V123: 0 | W123: 0 | X123: ='ABS Pop T1'!F127=B123 -> TRUE
B124: ='Rate peg'!D131 -> Tweed | C124: ='Rate peg'!E131 -> 0.02980866065 | D124: ='Rate peg'!G131 -> -0.0001514050721 | E124: ='Rate peg'!K131 -> 0 | F124: ='Rate peg'!H131 -> 0.001034079871 | G124: ='Rate peg'!I131 -> 0 | H124: ='Rate peg'!J131 -> -0.001257629209 | I124: ='Rate peg'!L131 -> 0.029 | J124: 0.008386972909 | K124: ='Rate peg'!N131 -> 0.005906460945 | L124: ='Rate peg'!O131 -> 0.002 | M124: ='Rate peg'!P131 -> 0.031 | O124: ='Rate peg'!R131 -> 0.0008826747989 | Q124: =INDEX('ABS Pop T1'!AQ128:AU128,MATCH('Rate peg'!$D$9,'ABS Pop T1'!$AQ$16:$AU$16,0)) -> 0.008386972909 | R124: ='Rate peg'!M131 -> 0.008386972909 | T124: 0 | U124: 0 | V124: 0 | W124: 0 | X124: ='ABS Pop T1'!F128=B124 -> TRUE
B125: ='Rate peg'!D132 -> Upper Hunter | C125: ='Rate peg'!E132 -> 0.02988176551 | D125: ='Rate peg'!G132 -> 0.001340893522 | E125: ='Rate peg'!K132 -> 0 | F125: ='Rate peg'!H132 -> 0.004631585339 | G125: ='Rate peg'!I132 -> 0 | H125: ='Rate peg'!J132 -> -0.001784631528 | I125: ='Rate peg'!L132 -> 0.034 | J125: 0.005022321429 | K125: ='Rate peg'!N132 -> 0.003559006714 | L125: ='Rate peg'!O132 -> 0.001 | M125: ='Rate peg'!P132 -> 0.035 | O125: ='Rate peg'!R132 -> 0.00597247886 | Q125: =INDEX('ABS Pop T1'!AQ129:AU129,MATCH('Rate peg'!$D$9,'ABS Pop T1'!$AQ$16:$AU$16,0)) -> 0.005022321429 | R125: ='Rate peg'!M132 -> 0.005022321429 | T125: 0 | U125: 0 | V125: 0 | W125: 0 | X125: ='ABS Pop T1'!F129=B125 -> TRUE
B126: ='Rate peg'!D133 -> Upper Lachlan | C126: ='Rate peg'!E133 -> 0.02988176551 | D126: ='Rate peg'!G133 -> 0.0008510132456 | E126: ='Rate peg'!K133 -> 0 | F126: ='Rate peg'!H133 -> 0.00615173309 | G126: ='Rate peg'!I133 -> 0 | H126: ='Rate peg'!J133 -> -0.00144475894 | I126: ='Rate peg'!L133 -> 0.035 | J126: 0.01952900632 | K126: ='Rate peg'!N133 -> 0.005065622841 | L126: ='Rate peg'!O133 -> 0.014 | M126: ='Rate peg'!P133 -> 0.049 | O126: ='Rate peg'!R133 -> 0.007002746335 | Q126: =INDEX('ABS Pop T1'!AQ130:AU130,MATCH('Rate peg'!$D$9,'ABS Pop T1'!$AQ$16:$AU$16,0)) -> 0.01952900632 | R126: ='Rate peg'!M133 -> 0.01952900632 | T126: 0 | U126: 0 | V126: 0 | W126: 0 | X126: ='ABS Pop T1'!F130=B126 -> TRUE
B127: ='Rate peg'!D134 -> Uralla | C127: ='Rate peg'!E134 -> 0.02988176551 | D127: ='Rate peg'!G134 -> 0.0004090384194 | E127: ='Rate peg'!K134 -> 0 | F127: ='Rate peg'!H134 -> 0.003300847344 | G127: ='Rate peg'!I134 -> 0 | H127: ='Rate peg'!J134 -> -0.0034394744 | I127: ='Rate peg'!L134 -> 0.03 | J127: 0.008103191665 | K127: ='Rate peg'!N134 -> 0.0009140767824 | L127: ='Rate peg'!O134 -> 0.007 | M127: ='Rate peg'!P134 -> 0.037 | O127: ='Rate peg'!R134 -> 0.003709885764 | Q127: =INDEX('ABS Pop T1'!AQ131:AU131,MATCH('Rate peg'!$D$9,'ABS Pop T1'!$AQ$16:$AU$16,0)) -> 0.008103191665 | R127: ='Rate peg'!M134 -> 0.008103191665 | T127: 0 | U127: 0 | V127: 0 | W127: 0 | X127: ='ABS Pop T1'!F131=B127 -> TRUE
B128: ='Rate peg'!D135 -> Wagga Wagga | C128: ='Rate peg'!E135 -> 0.02980866065 | D128: ='Rate peg'!G135 -> 0.0003492415345 | E128: ='Rate peg'!K135 -> 0 | F128: ='Rate peg'!H135 -> 0.001776719948 | G128: ='Rate peg'!I135 -> 0 | H128: ='Rate peg'!J135 -> -0.0008985950513 | I128: ='Rate peg'!L135 -> 0.031 | J128: 0.003566074262 | K128: ='Rate peg'!N135 -> 0.003053128452 | L128: ='Rate peg'!O135 -> 0.001 | M128: ='Rate peg'!P135 -> 0.032 | O128: ='Rate peg'!R135 -> 0.002125961483 | Q128: =INDEX('ABS Pop T1'!AQ132:AU132,MATCH('Rate peg'!$D$9,'ABS Pop T1'!$AQ$16:$AU$16,0)) -> 0.003566074262 | R128: ='Rate peg'!M135 -> 0.003566074262 | T128: 0 | U128: 0 | V128: 0 | W128: 0 | X128: ='ABS Pop T1'!F132=B128 -> TRUE
B129: ='Rate peg'!D136 -> Walcha | C129: ='Rate peg'!E136 -> 0.02988176551 | D129: ='Rate peg'!G136 -> 0.0004787227964 | E129: ='Rate peg'!K136 -> 0 | F129: ='Rate peg'!H136 -> 0.004712927856 | G129: ='Rate peg'!I136 -> 0 | H129: ='Rate peg'!J136 -> -0.0006090061764 | I129: ='Rate peg'!L136 -> 0.034 | J129: 0.007412398922 | K129: ='Rate peg'!N136 -> 0 | L129: ='Rate peg'!O136 -> 0.007 | M129: ='Rate peg'!P136 -> 0.041 | O129: ='Rate peg'!R136 -> 0.005191650652 | Q129: =INDEX('ABS Pop T1'!AQ133:AU133,MATCH('Rate peg'!$D$9,'ABS Pop T1'!$AQ$16:$AU$16,0)) -> 0.007412398922 | R129: ='Rate peg'!M136 -> 0.007412398922 | T129: 0 | U129: 0 | V129: 0 | W129: 0 | X129: ='ABS Pop T1'!F133=B129 -> TRUE
B130: ='Rate peg'!D137 -> Walgett | C130: ='Rate peg'!E137 -> 0.02988176551 | D130: ='Rate peg'!G137 -> 0.001604506049 | E130: ='Rate peg'!K137 -> 0 | F130: ='Rate peg'!H137 -> 0.004539205891 | G130: ='Rate peg'!I137 -> 0 | H130: ='Rate peg'!J137 -> -0.002677106817 | I130: ='Rate peg'!L137 -> 0.033 | J130: -0.003805726713 | K130: ='Rate peg'!N137 -> 0 | L130: ='Rate peg'!O137 -> 0 | M130: ='Rate peg'!P137 -> 0.033 | O130: ='Rate peg'!R137 -> 0.00614371194 | Q130: =INDEX('ABS Pop T1'!AQ134:AU134,MATCH('Rate peg'!$D$9,'ABS Pop T1'!$AQ$16:$AU$16,0)) -> -0.003805726713 | R130: ='Rate peg'!M137 -> 0 | T130: 0 | U130: 0 | V130: 0 | W130: 0 | X130: ='ABS Pop T1'!F134=B130 -> TRUE
B131: ='Rate peg'!D138 -> Warren | C131: ='Rate peg'!E138 -> 0.02988176551 | D131: ='Rate peg'!G138 -> 0.0007894240097 | E131: ='Rate peg'!K138 -> 0 | F131: ='Rate peg'!H138 -> 0.00257463188 | G131: ='Rate peg'!I138 -> 0 | H131: ='Rate peg'!J138 -> -0.001576341126 | I131: ='Rate peg'!L138 -> 0.032 | J131: 0.003871467286 | K131: ='Rate peg'!N138 -> 0 | L131: ='Rate peg'!O138 -> 0.004 | M131: ='Rate peg'!P138 -> 0.036 | O131: ='Rate peg'!R138 -> 0.003364055889 | Q131: =INDEX('ABS Pop T1'!AQ135:AU135,MATCH('Rate peg'!$D$9,'ABS Pop T1'!$AQ$16:$AU$16,0)) -> 0.003871467286 | R131: ='Rate peg'!M138 -> 0.003871467286 | T131: 0 | U131: 0 | V131: 0 | W131: 0 | X131: ='ABS Pop T1'!F135=B131 -> TRUE
B132: ='Rate peg'!D139 -> Warrumbungle | C132: ='Rate peg'!E139 -> 0.02988176551 | D132: ='Rate peg'!G139 -> 0.001814965538 | E132: ='Rate peg'!K139 -> 0 | F132: ='Rate peg'!H139 -> 0.005843000414 | G132: ='Rate peg'!I139 -> 0 | H132: ='Rate peg'!J139 -> 0.0008613262132 | I132: ='Rate peg'!L139 -> 0.038 | J132: 0.001192024274 | K132: ='Rate peg'!N139 -> 0.000221116639 | L132: ='Rate peg'!O139 -> 0.001 | M132: ='Rate peg'!P139 -> 0.039 | O132: ='Rate peg'!R139 -> 0.007657965952 | Q132: =INDEX('ABS Pop T1'!AQ136:AU136,MATCH('Rate peg'!$D$9,'ABS Pop T1'!$AQ$16:$AU$16,0)) -> 0.001192024274 | R132: ='Rate peg'!M139 -> 0.001192024274 | T132: 0 | U132: 0 | V132: 0 | W132: 0 | X132: ='ABS Pop T1'!F136=B132 -> TRUE
B133: ='Rate peg'!D140 -> Waverley | C133: ='Rate peg'!E140 -> 0.02951901918 | D133: ='Rate peg'!G140 -> 0.002570583834 | E133: ='Rate peg'!K140 -> 0 | F133: ='Rate peg'!H140 -> 0.001357124565 | G133: ='Rate peg'!I140 -> 0 | H133: ='Rate peg'!J140 -> -0.001378321712 | I133: ='Rate peg'!L140 -> 0.032 | J133: 0.02009184845 | K133: ='Rate peg'!N140 -> 0 | L133: ='Rate peg'!O140 -> 0.02 | M133: ='Rate peg'!P140 -> 0.052 | O133: ='Rate peg'!R140 -> 0.003927708399 | Q133: =INDEX('ABS Pop T1'!AQ137:AU137,MATCH('Rate peg'!$D$9,'ABS Pop T1'!$AQ$16:$AU$16,0)) -> 0.02009184845 | R133: ='Rate peg'!M140 -> 0.02009184845 | T133: 0 | U133: 0 | V133: 0 | W133: 0 | X133: ='ABS Pop T1'!F137=B133 -> TRUE
B134: ='Rate peg'!D141 -> Weddin | C134: ='Rate peg'!E141 -> 0.02988176551 | D134: ='Rate peg'!G141 -> 0.002749804004 | E134: ='Rate peg'!K141 -> 0 | F134: ='Rate peg'!H141 -> 0.007801067102 | G134: ='Rate peg'!I141 -> 0.003851571852 | H134: ='Rate peg'!J141 -> -0.002531555881 | I134: ='Rate peg'!L141 -> 0.042 | J134: -0.002212389381 | K134: ='Rate peg'!N141 -> 0.000325732899 | L134: ='Rate peg'!O141 -> 0 | M134: ='Rate peg'!P141 -> 0.042 | O134: ='Rate peg'!R141 -> 0.01055087111 | Q134: =INDEX('ABS Pop T1'!AQ138:AU138,MATCH('Rate peg'!$D$9,'ABS Pop T1'!$AQ$16:$AU$16,0)) -> -0.002212389381 | R134: ='Rate peg'!M141 -> 0 | T134: 0 | U134: 0 | V134: 0 | W134: 0 | X134: ='ABS Pop T1'!F138=B134 -> TRUE
B135: ='Rate peg'!D142 -> Wentworth | C135: ='Rate peg'!E142 -> 0.02988176551 | D135: ='Rate peg'!G142 -> 0.001385795974 | E135: ='Rate peg'!K142 -> 0 | F135: ='Rate peg'!H142 -> 0.00501875692 | G135: ='Rate peg'!I142 -> 0 | H135: ='Rate peg'!J142 -> -0.004430862516 | I135: ='Rate peg'!L142 -> 0.032 | J135: 0.01522050215 | K135: ='Rate peg'!N142 -> 0.03013743997 | L135: ='Rate peg'!O142 -> 0 | M135: ='Rate peg'!P142 -> 0.032 | O135: ='Rate peg'!R142 -> 0.006404552894 | Q135: =INDEX('ABS Pop T1'!AQ139:AU139,MATCH('Rate peg'!$D$9,'ABS Pop T1'!$AQ$16:$AU$16,0)) -> 0.01522050215 | R135: ='Rate peg'!M142 -> 0.01522050215 | T135: 0 | U135: 0 | V135: 0 | W135: 0 | X135: ='ABS Pop T1'!F139=B135 -> TRUE
B136: ='Rate peg'!D143 -> Willoughby | C136: ='Rate peg'!E143 -> 0.02951901918 | D136: ='Rate peg'!G143 -> 0.001062149079 | E136: ='Rate peg'!K143 -> 0 | F136: ='Rate peg'!H143 -> 0.001350314284 | G136: ='Rate peg'!I143 -> 0 | H136: ='Rate peg'!J143 -> -0.002063410814 | I136: ='Rate peg'!L143 -> 0.03 | J136: 0.02242993054 | K136: ='Rate peg'!N143 -> 0 | L136: ='Rate peg'!O143 -> 0.022 | M136: ='Rate peg'!P143 -> 0.052 | O136: ='Rate peg'!R143 -> 0.002412463362 | Q136: =INDEX('ABS Pop T1'!AQ140:AU140,MATCH('Rate peg'!$D$9,'ABS Pop T1'!$AQ$16:$AU$16,0)) -> 0.02242993054 | R136: ='Rate peg'!M143 -> 0.02242993054 | T136: 0 | U136: 0 | V136: 0 | W136: 0 | X136: ='ABS Pop T1'!F140=B136 -> TRUE
B137: ='Rate peg'!D144 -> Wingecarribee | C137: ='Rate peg'!E144 -> 0.02980866065 | D137: ='Rate peg'!G144 -> 2.605295079e-05 | E137: ='Rate peg'!K144 -> 0 | F137: ='Rate peg'!H144 -> 0.001467214713 | G137: ='Rate peg'!I144 -> 0.0002089166486 | H137: ='Rate peg'!J144 -> -0.001156721729 | I137: ='Rate peg'!L144 -> 0.03 | J137: 0.008379309696 | K137: ='Rate peg'!N144 -> 0.004943272515 | L137: ='Rate peg'!O144 -> 0.003 | M137: ='Rate peg'!P144 -> 0.033 | O137: ='Rate peg'!R144 -> 0.001493267664 | Q137: =INDEX('ABS Pop T1'!AQ141:AU141,MATCH('Rate peg'!$D$9,'ABS Pop T1'!$AQ$16:$AU$16,0)) -> 0.008379309696 | R137: ='Rate peg'!M144 -> 0.008379309696 | T137: 0 | U137: 0 | V137: 0 | W137: 0 | X137: ='ABS Pop T1'!F141=B137 -> TRUE
B138: ='Rate peg'!D145 -> Wollondilly | C138: ='Rate peg'!E145 -> 0.02951901918 | D138: ='Rate peg'!G145 -> -0.0003208724616 | E138: ='Rate peg'!K145 -> 0 | F138: ='Rate peg'!H145 -> 0.001738287108 | G138: ='Rate peg'!I145 -> 0 | H138: ='Rate peg'!J145 -> -0.001083250193 | I138: ='Rate peg'!L145 -> 0.03 | J138: 0.03784590813 | K138: ='Rate peg'!N145 -> 0.02154842379 | L138: ='Rate peg'!O145 -> 0.016 | M138: ='Rate peg'!P145 -> 0.046 | O138: ='Rate peg'!R145 -> 0.001417414646 | Q138: =INDEX('ABS Pop T1'!AQ142:AU142,MATCH('Rate peg'!$D$9,'ABS Pop T1'!$AQ$16:$AU$16,0)) -> 0.03784590813 | R138: ='Rate peg'!M145 -> 0.03784590813 | T138: 0 | U138: 0 | V138: 0 | W138: 0 | X138: ='ABS Pop T1'!F142=B138 -> TRUE
B139: ='Rate peg'!D146 -> Wollongong | C139: ='Rate peg'!E146 -> 0.02980866065 | D139: ='Rate peg'!G146 -> 0.0005060784062 | E139: ='Rate peg'!K146 -> 0 | F139: ='Rate peg'!H146 -> 0.001365175767 | G139: ='Rate peg'!I146 -> 0.0003374095899 | H139: ='Rate peg'!J146 -> -0.0009795540461 | I139: ='Rate peg'!L146 -> 0.031 | J139: 0.01267376799 | K139: ='Rate peg'!N146 -> 0.004288972111 | L139: ='Rate peg'!O146 -> 0.008 | M139: ='Rate peg'!P146 -> 0.039 | O139: ='Rate peg'!R146 -> 0.001871254173 | Q139: =INDEX('ABS Pop T1'!AQ143:AU143,MATCH('Rate peg'!$D$9,'ABS Pop T1'!$AQ$16:$AU$16,0)) -> 0.01267376799 | R139: ='Rate peg'!M146 -> 0.01267376799 | T139: 0 | U139: 0 | V139: 0 | W139: 0 | X139: ='ABS Pop T1'!F143=B139 -> TRUE
B140: ='Rate peg'!D147 -> Woollahra | C140: ='Rate peg'!E147 -> 0.02951901918 | D140: ='Rate peg'!G147 -> 0.006297917539 | E140: ='Rate peg'!K147 -> 0 | F140: ='Rate peg'!H147 -> 0.002144982086 | G140: ='Rate peg'!I147 -> 0 | H140: ='Rate peg'!J147 -> -0.002077868221 | I140: ='Rate peg'!L147 -> 0.036 | J140: 0.00931108916 | K140: ='Rate peg'!N147 -> 0.000406504065 | L140: ='Rate peg'!O147 -> 0.009 | M140: ='Rate peg'!P147 -> 0.045 | O140: ='Rate peg'!R147 -> 0.008442899625 | Q140: =INDEX('ABS Pop T1'!AQ144:AU144,MATCH('Rate peg'!$D$9,'ABS Pop T1'!$AQ$16:$AU$16,0)) -> 0.00931108916 | R140: ='Rate peg'!M147 -> 0.00931108916 | T140: 0 | U140: 0 | V140: 0 | W140: 0 | X140: ='ABS Pop T1'!F144=B140 -> TRUE
B141: ='Rate peg'!D148 -> Yass Valley | C141: ='Rate peg'!E148 -> 0.02988176551 | D141: ='Rate peg'!G148 -> 0.001039886433 | E141: ='Rate peg'!K148 -> 0 | F141: ='Rate peg'!H148 -> 0.004450134243 | G141: ='Rate peg'!I148 -> 0 | H141: ='Rate peg'!J148 -> -0.001730225939 | I141: ='Rate peg'!L148 -> 0.034 | J141: 0.009842632332 | K141: ='Rate peg'!N148 -> 0.02587626441 | L141: ='Rate peg'!O148 -> 0 | M141: ='Rate peg'!P148 -> 0.034 | O141: ='Rate peg'!R148 -> 0.005490020676 | Q141: =INDEX('ABS Pop T1'!AQ145:AU145,MATCH('Rate peg'!$D$9,'ABS Pop T1'!$AQ$16:$AU$16,0)) -> 0.009842632332 | R141: ='Rate peg'!M148 -> 0.009842632332 | T141: 0 | U141: 0 | V141: 0 | W141: 0 | X141: ='ABS Pop T1'!F145=B141 -> TRUE
B143: Notes:
B144: The core rate peg is the rate peg before the population factor and adjustment and the final rate peg is the rate peg including the population factor and adjustment.
B145: Our methodology does not reduce council income when population falls. This is because in an area of falling population a council still needs to maintain its infrastructure and provide services, so its costs may not decline correspondingly
B146: Figures may not add due to rounding. Percentage changes are calculated from unrounded numbers.

Sheet Rate peg order (hidden)
B2: =Cover!$B$3 -> IPART Rate peg model
B4: ="Rate Peg Order for "&'Rate peg'!$D$9&"-"&RIGHT('Rate peg'!$D$9,2)+1 -> Rate Peg Order for 2026-27
B9: DO NOT DELETE
B10: ORG ID | C10: ='Rate peg calcs'!D35 -> Council | D10: Maximum percentage (%)
B12: =Names!I9 -> 2047 | C12: =Names!G9 -> Albury City | D12: =INDEX('Rate peg calcs'!O$37:O$164,MATCH($B12,'Rate peg calcs'!$B$37:$B$164,0))*100 -> 3.6
B13: =Names!I10 -> 2079 | C13: =Names!G10 -> Armidale Regional | D13: =INDEX('Rate peg calcs'!O$37:O$164,MATCH($B13,'Rate peg calcs'!$B$37:$B$164,0))*100 -> 3.2
B14: =Names!I11 -> 54 | C14: =Names!G11 -> Ballina Shire | D14: =INDEX('Rate peg calcs'!O$37:O$164,MATCH($B14,'Rate peg calcs'!$B$37:$B$164,0))*100 -> 3.4
B15: =Names!I12 -> 55 | C15: =Names!G12 -> Balranald Shire | D15: =INDEX('Rate peg calcs'!O$37:O$164,MATCH($B15,'Rate peg calcs'!$B$37:$B$164,0))*100 -> 4.6
B16: =Names!I13 -> 2043 | C16: =Names!G13 -> Bathurst Regional | D16: =INDEX('Rate peg calcs'!O$37:O$164,MATCH($B16,'Rate peg calcs'!$B$37:$B$164,0))*100 -> 3.1
B17: =Names!I14 -> 2099 | C17: =Names!G14 -> Bayside | D17: =INDEX('Rate peg calcs'!O$37:O$164,MATCH($B17,'Rate peg calcs'!$B$37:$B$164,0))*100 -> 3.9
B18: =Names!I15 -> 60 | C18: =Names!G15 -> Bega Valley Shire | D18: =INDEX('Rate peg calcs'!O$37:O$164,MATCH($B18,'Rate peg calcs'!$B$37:$B$164,0))*100 -> 3.5
B19: =Names!I16 -> 61 | C19: =Names!G16 -> Bellingen Shire | D19: =INDEX('Rate peg calcs'!O$37:O$164,MATCH($B19,'Rate peg calcs'!$B$37:$B$164,0))*100 -> 3.8
B20: =Names!I17 -> 62 | C20: =Names!G17 -> Berrigan Shire | D20: =INDEX('Rate peg calcs'!O$37:O$164,MATCH($B20,'Rate peg calcs'!$B$37:$B$164,0))*100 -> 2.8
B21: =Names!I18 -> 64 | C21: =Names!G18 -> Blacktown City | D21: =INDEX('Rate peg calcs'!O$37:O$164,MATCH($B21,'Rate peg calcs'!$B$37:$B$164,0))*100 -> 5.4
B22: =Names!I19 -> 65 | C22: =Names!G19 -> Bland Shire | D22: =INDEX('Rate peg calcs'!O$37:O$164,MATCH($B22,'Rate peg calcs'!$B$37:$B$164,0))*100 -> 3.6
B23: =Names!I20 -> 66 | C23: =Names!G20 -> Blayney Shire | D23: =INDEX('Rate peg calcs'!O$37:O$164,MATCH($B23,'Rate peg calcs'!$B$37:$B$164,0))*100 -> 4.7
B24: =Names!I21 -> 67 | C24: =Names!G21 -> Blue Mountains City | D24: =INDEX('Rate peg calcs'!O$37:O$164,MATCH($B24,'Rate peg calcs'!$B$37:$B$164,0))*100 -> 3.7
B25: =Names!I22 -> 68 | C25: =Names!G22 -> Bogan Shire | D25: =INDEX('Rate peg calcs'!O$37:O$164,MATCH($B25,'Rate peg calcs'!$B$37:$B$164,0))*100 -> 3.4
B26: =Names!I23 -> 72 | C26: =Names!G23 -> Bourke Shire | D26: =INDEX('Rate peg calcs'!O$37:O$164,MATCH($B26,'Rate peg calcs'!$B$37:$B$164,0))*100 -> 4.1
B27: =Names!I24 -> 73 | C27: =Names!G24 -> Brewarrina Shire | D27: =INDEX('Rate peg calcs'!O$37:O$164,MATCH($B27,'Rate peg calcs'!$B$37:$B$164,0))*100 -> 3.6
B28: =Names!I25 -> 74 | C28: =Names!G25 -> Broken Hill City | D28: =INDEX('Rate peg calcs'!O$37:O$164,MATCH($B28,'Rate peg calcs'!$B$37:$B$164,0))*100 -> 3.2
B29: =Names!I26 -> 75 | C29: =Names!G26 -> Burwood | D29: =INDEX('Rate peg calcs'!O$37:O$164,MATCH($B29,'Rate peg calcs'!$B$37:$B$164,0))*100 -> 4.1
B30: =Names!I27 -> 76 | C30: =Names!G27 -> Byron Shire | D30: =INDEX('Rate peg calcs'!O$37:O$164,MATCH($B30,'Rate peg calcs'!$B$37:$B$164,0))*100 -> 4.6
B31: =Names!I28 -> 77 | C31: =Names!G28 -> Cabonne | D31: =INDEX('Rate peg calcs'!O$37:O$164,MATCH($B31,'Rate peg calcs'!$B$37:$B$164,0))*100 -> 3.4
B32: =Names!I29 -> 78 | C32: =Names!G29 -> Camden | D32: =INDEX('Rate peg calcs'!O$37:O$164,MATCH($B32,'Rate peg calcs'!$B$37:$B$164,0))*100 -> 4.6
B33: =Names!I30 -> 79 | C33: =Names!G30 -> Campbelltown City | D33: =INDEX('Rate peg calcs'!O$37:O$164,MATCH($B33,'Rate peg calcs'!$B$37:$B$164,0))*100 -> 3.7
B34: =Names!I32 -> 2080 | C34: =Names!G32 -> Canterbury-Bankstown | D34: =INDEX('Rate peg calcs'!O$37:O$164,MATCH($B34,'Rate peg calcs'!$B$37:$B$164,0))*100 -> 4.1
B35: =Names!I33 -> 81 | C35: =Names!G33 -> Carrathool Shire | D35: =INDEX('Rate peg calcs'!O$37:O$164,MATCH($B35,'Rate peg calcs'!$B$37:$B$164,0))*100 -> 3.7
B36: =Names!I34 -> 2088 | C36: =Names!G34 -> Central Coast | D36: =INDEX('Rate peg calcs'!O$37:O$164,MATCH($B36,'Rate peg calcs'!$B$37:$B$164,0))*100 -> 3.2
B37: =Names!I35 -> 83 | C37: =Names!G35 -> Central Darling Shire | D37: =INDEX('Rate peg calcs'!O$37:O$164,MATCH($B37,'Rate peg calcs'!$B$37:$B$164,0))*100 -> 4.8
B38: =Names!I36 -> 84 | C38: =Names!G36 -> Cessnock City | D38: =INDEX('Rate peg calcs'!O$37:O$164,MATCH($B38,'Rate peg calcs'!$B$37:$B$164,0))*100 -> 3.8
B39: =Names!I31 -> 1989 | C39: =Names!G31 -> City of Canada Bay | D39: =INDEX('Rate peg calcs'!O$37:O$164,MATCH($B39,'Rate peg calcs'!$B$37:$B$164,0))*100 -> 4.2
B40: =Names!I99 -> 2089 | C40: =Names!G99 -> City of Parramatta | D40: =INDEX('Rate peg calcs'!O$37:O$164,MATCH($B40,'Rate peg calcs'!$B$37:$B$164,0))*100 -> 4.8
B41: =Names!I106 -> 184 | C41: =Names!G106 -> City of Ryde | D41: =INDEX('Rate peg calcs'!O$37:O$164,MATCH($B41,'Rate peg calcs'!$B$37:$B$164,0))*100 -> 5.1
B42: =Names!I114 -> 2029 | C42: =Names!G114 -> City of Sydney | D42: =INDEX('Rate peg calcs'!O$37:O$164,MATCH($B42,'Rate peg calcs'!$B$37:$B$164,0))*100 -> 5.6
B43: =Names!I37 -> 2037 | C43: =Names!G37 -> Clarence Valley | D43: =INDEX('Rate peg calcs'!O$37:O$164,MATCH($B43,'Rate peg calcs'!$B$37:$B$164,0))*100 -> 4.3
B44: =Names!I38 -> 85 | C44: =Names!G38 -> Cobar Shire | D44: =INDEX('Rate peg calcs'!O$37:O$164,MATCH($B44,'Rate peg calcs'!$B$37:$B$164,0))*100 -> 3.7
B45: =Names!I39 -> 86 | C45: =Names!G39 -> Coffs Harbour City | D45: =INDEX('Rate peg calcs'!O$37:O$164,MATCH($B45,'Rate peg calcs'!$B$37:$B$164,0))*100 -> 3.7
B46: =Names!I40 -> 90 | C46: =Names!G40 -> Coolamon Shire | D46: =INDEX('Rate peg calcs'!O$37:O$164,MATCH($B46,'Rate peg calcs'!$B$37:$B$164,0))*100 -> 4.9
B47: =Names!I41 -> 93 | C47: =Names!G41 -> Coonamble Shire | D47: =INDEX('Rate peg calcs'!O$37:O$164,MATCH($B47,'Rate peg calcs'!$B$37:$B$164,0))*100 -> 3.5
B48: =Names!I42 -> 2094 | C48: =Names!G42 -> Cootamundra-Gundagai Regional | D48: =INDEX('Rate peg calcs'!O$37:O$164,MATCH($B48,'Rate peg calcs'!$B$37:$B$164,0))*100 -> 3.2
B49: =Names!I43 -> 97 | C49: =Names!G43 -> Cowra Shire | D49: =INDEX('Rate peg calcs'!O$37:O$164,MATCH($B49,'Rate peg calcs'!$B$37:$B$164,0))*100 -> 3.8
B50: =Names!I44 -> 2090 | C50: =Names!G44 -> Cumberland City | D50: =INDEX('Rate peg calcs'!O$37:O$164,MATCH($B50,'Rate peg calcs'!$B$37:$B$164,0))*100 -> 4.4
B51: =Names!I45 -> 2098 | C51: =Names!G45 -> Dubbo Regional | D51: =INDEX('Rate peg calcs'!O$37:O$164,MATCH($B51,'Rate peg calcs'!$B$37:$B$164,0))*100 -> 3
B52: =Names!I46 -> 104 | C52: =Names!G46 -> Dungog Shire | D52: =INDEX('Rate peg calcs'!O$37:O$164,MATCH($B52,'Rate peg calcs'!$B$37:$B$164,0))*100 -> 4
B53: =Names!I47 -> 2091 | C53: =Names!G47 -> Edward River | D53: =INDEX('Rate peg calcs'!O$37:O$164,MATCH($B53,'Rate peg calcs'!$B$37:$B$164,0))*100 -> 3
B54: =Names!I48 -> 105 | C54: =Names!G48 -> Eurobodalla Shire | D54: =INDEX('Rate peg calcs'!O$37:O$164,MATCH($B54,'Rate peg calcs'!$B$37:$B$164,0))*100 -> 3.1
B55: =Names!I49 -> 107 | C55: =Names!G49 -> Fairfield City | D55: =INDEX('Rate peg calcs'!O$37:O$164,MATCH($B55,'Rate peg calcs'!$B$37:$B$164,0))*100 -> 4
B56: =Names!I50 -> 2092 | C56: =Names!G50 -> Federation | D56: =INDEX('Rate peg calcs'!O$37:O$164,MATCH($B56,'Rate peg calcs'!$B$37:$B$164,0))*100 -> 4.1
B57: =Names!I51 -> 108 | C57: =Names!G51 -> Forbes Shire | D57: =INDEX('Rate peg calcs'!O$37:O$164,MATCH($B57,'Rate peg calcs'!$B$37:$B$164,0))*100 -> 3.1
B58: =Names!I52 -> 2093 | C58: =Names!G52 -> Georges River | D58: =INDEX('Rate peg calcs'!O$37:O$164,MATCH($B58,'Rate peg calcs'!$B$37:$B$164,0))*100 -> 4.8
B59: =Names!I53 -> 109 | C59: =Names!G53 -> Gilgandra Shire | D59: =INDEX('Rate peg calcs'!O$37:O$164,MATCH($B59,'Rate peg calcs'!$B$37:$B$164,0))*100 -> 3.5
B60: =Names!I54 -> 2053 | C60: =Names!G54 -> Glen Innes Severn | D60: =INDEX('Rate peg calcs'!O$37:O$164,MATCH($B60,'Rate peg calcs'!$B$37:$B$164,0))*100 -> 3.6
B61: =Names!I55 -> 2032 | C61: =Names!G55 -> Goulburn Mulwaree | D61: =INDEX('Rate peg calcs'!O$37:O$164,MATCH($B61,'Rate peg calcs'!$B$37:$B$164,0))*100 -> 4.6
B62: =Names!I56 -> 2049 | C62: =Names!G56 -> Greater Hume Shire | D62: =INDEX('Rate peg calcs'!O$37:O$164,MATCH($B62,'Rate peg calcs'!$B$37:$B$164,0))*100 -> 4.1
B63: =Names!I57 -> 118 | C63: =Names!G57 -> Griffith City | D63: =INDEX('Rate peg calcs'!O$37:O$164,MATCH($B63,'Rate peg calcs'!$B$37:$B$164,0))*100 -> 3.2
B64: =Names!I58 -> 120 | C64: =Names!G58 -> Gunnedah Shire | D64: =INDEX('Rate peg calcs'!O$37:O$164,MATCH($B64,'Rate peg calcs'!$B$37:$B$164,0))*100 -> 3.7
B65: =Names!I59 -> 2039 | C65: =Names!G59 -> Gwydir Shire | D65: =INDEX('Rate peg calcs'!O$37:O$164,MATCH($B65,'Rate peg calcs'!$B$37:$B$164,0))*100 -> 3.4
B66: =Names!I60 -> 125 | C66: =Names!G60 -> Hawkesbury City | D66: =INDEX('Rate peg calcs'!O$37:O$164,MATCH($B66,'Rate peg calcs'!$B$37:$B$164,0))*100 -> 3.1
B67: =Names!I61 -> 126 | C67: =Names!G61 -> Hay Shire | D67: =INDEX('Rate peg calcs'!O$37:O$164,MATCH($B67,'Rate peg calcs'!$B$37:$B$164,0))*100 -> 4.8
B68: =Names!I62 -> 2081 | C68: =Names!G62 -> Hilltops | D68: =INDEX('Rate peg calcs'!O$37:O$164,MATCH($B68,'Rate peg calcs'!$B$37:$B$164,0))*100 -> 3.2
B69: =Names!I63 -> 129 | C69: =Names!G63 -> Hornsby Shire | D69: =INDEX('Rate peg calcs'!O$37:O$164,MATCH($B69,'Rate peg calcs'!$B$37:$B$164,0))*100 -> 3.6
B70: =Names!I64 -> 131 | C70: =Names!G64 -> Hunters Hill | D70: =INDEX('Rate peg calcs'!O$37:O$164,MATCH($B70,'Rate peg calcs'!$B$37:$B$164,0))*100 -> 2.9
B71: =Names!I65 -> 2083 | C71: =Names!G65 -> Inner West | D71: =INDEX('Rate peg calcs'!O$37:O$164,MATCH($B71,'Rate peg calcs'!$B$37:$B$164,0))*100 -> 4.4
B72: =Names!I66 -> 133 | C72: =Names!G66 -> Inverell Shire | D72: =INDEX('Rate peg calcs'!O$37:O$164,MATCH($B72,'Rate peg calcs'!$B$37:$B$164,0))*100 -> 3.2
B73: =Names!I67 -> 135 | C73: =Names!G67 -> Junee Shire | D73: =INDEX('Rate peg calcs'!O$37:O$164,MATCH($B73,'Rate peg calcs'!$B$37:$B$164,0))*100 -> 3.8
B74: =Names!I68 -> 136 | C74: =Names!G68 -> Kempsey Shire | D74: =INDEX('Rate peg calcs'!O$37:O$164,MATCH($B74,'Rate peg calcs'!$B$37:$B$164,0))*100 -> 3.1
B75: =Names!I69 -> 137 | C75: =Names!G69 -> Kiama Municipal | D75: =INDEX('Rate peg calcs'!O$37:O$164,MATCH($B75,'Rate peg calcs'!$B$37:$B$164,0))*100 -> 3.2
B76: =Names!I70 -> 139 | C76: =Names!G70 -> Ku-ring-gai | D76: =INDEX('Rate peg calcs'!O$37:O$164,MATCH($B76,'Rate peg calcs'!$B$37:$B$164,0))*100 -> 4.4
B77: =Names!I71 -> 140 | C77: =Names!G71 -> Kyogle | D77: =INDEX('Rate peg calcs'!O$37:O$164,MATCH($B77,'Rate peg calcs'!$B$37:$B$164,0))*100 -> 4.4
B78: =Names!I72 -> 141 | C78: =Names!G72 -> Lachlan Shire | D78: =INDEX('Rate peg calcs'!O$37:O$164,MATCH($B78,'Rate peg calcs'!$B$37:$B$164,0))*100 -> 3.4
B79: =Names!I73 -> 142 | C79: =Names!G73 -> Lake Macquarie City | D79: =INDEX('Rate peg calcs'!O$37:O$164,MATCH($B79,'Rate peg calcs'!$B$37:$B$164,0))*100 -> 3.2
B80: =Names!I74 -> 143 | C80: =Names!G74 -> Lane Cove | D80: =INDEX('Rate peg calcs'!O$37:O$164,MATCH($B80,'Rate peg calcs'!$B$37:$B$164,0))*100 -> 4.7
B81: =Names!I75 -> 144 | C81: =Names!G75 -> Leeton Shire | D81: =INDEX('Rate peg calcs'!O$37:O$164,MATCH($B81,'Rate peg calcs'!$B$37:$B$164,0))*100 -> 2.7
B82: =Names!I76 -> 146 | C82: =Names!G76 -> Lismore City | D82: =INDEX('Rate peg calcs'!O$37:O$164,MATCH($B82,'Rate peg calcs'!$B$37:$B$164,0))*100 -> 3.1
B83: =Names!I77 -> 2044 | C83: =Names!G77 -> Lithgow City | D83: =INDEX('Rate peg calcs'!O$37:O$164,MATCH($B83,'Rate peg calcs'!$B$37:$B$164,0))*100 -> 3.1
B84: =Names!I78 -> 147 | C84: =Names!G78 -> Liverpool City | D84: =INDEX('Rate peg calcs'!O$37:O$164,MATCH($B84,'Rate peg calcs'!$B$37:$B$164,0))*100 -> 4.1
B85: =Names!I79 -> 2040 | C85: =Names!G79 -> Liverpool Plains Shire | D85: =INDEX('Rate peg calcs'!O$37:O$164,MATCH($B85,'Rate peg calcs'!$B$37:$B$164,0))*100 -> 3.6
B86: =Names!I80 -> 148 | C86: =Names!G80 -> Lockhart Shire | D86: =INDEX('Rate peg calcs'!O$37:O$164,MATCH($B86,'Rate peg calcs'!$B$37:$B$164,0))*100 -> 5.7
B87: =Names!I81 -> 150 | C87: =Names!G81 -> Maitland City | D87: =INDEX('Rate peg calcs'!O$37:O$164,MATCH($B87,'Rate peg calcs'!$B$37:$B$164,0))*100 -> 3.2
B88: =Names!I82 -> 2084 | C88: =Names!G82 -> Mid-Coast | D88: =INDEX('Rate peg calcs'!O$37:O$164,MATCH($B88,'Rate peg calcs'!$B$37:$B$164,0))*100 -> 3.1
B89: =Names!I83 -> 2042 | C89: =Names!G83 -> Mid-Western Regional | D89: =INDEX('Rate peg calcs'!O$37:O$164,MATCH($B89,'Rate peg calcs'!$B$37:$B$164,0))*100 -> 3.6
B90: =Names!I84 -> 155 | C90: =Names!G84 -> Moree Plains Shire | D90: =INDEX('Rate peg calcs'!O$37:O$164,MATCH($B90,'Rate peg calcs'!$B$37:$B$164,0))*100 -> 3.1
B91: =Names!I85 -> 156 | C91: =Names!G85 -> Mosman | D91: =INDEX('Rate peg calcs'!O$37:O$164,MATCH($B91,'Rate peg calcs'!$B$37:$B$164,0))*100 -> 4.1
B92: =Names!I86 -> 2085 | C92: =Names!G86 -> Murray River | D92: =INDEX('Rate peg calcs'!O$37:O$164,MATCH($B92,'Rate peg calcs'!$B$37:$B$164,0))*100 -> 3.2
B93: =Names!I87 -> 2086 | C93: =Names!G87 -> Murrumbidgee | D93: =INDEX('Rate peg calcs'!O$37:O$164,MATCH($B93,'Rate peg calcs'!$B$37:$B$164,0))*100 -> 4.9
B94: =Names!I88 -> 162 | C94: =Names!G88 -> Muswellbrook Shire | D94: =INDEX('Rate peg calcs'!O$37:O$164,MATCH($B94,'Rate peg calcs'!$B$37:$B$164,0))*100 -> 3.1
B95: =Names!I89 -> 163 | C95: =Names!G89 -> Nambucca Valley | D95: =INDEX('Rate peg calcs'!O$37:O$164,MATCH($B95,'Rate peg calcs'!$B$37:$B$164,0))*100 -> 3.5
B96: =Names!I90 -> 164 | C96: =Names!G90 -> Narrabri Shire | D96: =INDEX('Rate peg calcs'!O$37:O$164,MATCH($B96,'Rate peg calcs'!$B$37:$B$164,0))*100 -> 3.4
B97: =Names!I91 -> 165 | C97: =Names!G91 -> Narrandera Shire | D97: =INDEX('Rate peg calcs'!O$37:O$164,MATCH($B97,'Rate peg calcs'!$B$37:$B$164,0))*100 -> 3.3
B98: =Names!I92 -> 166 | C98: =Names!G92 -> Narromine Shire | D98: =INDEX('Rate peg calcs'!O$37:O$164,MATCH($B98,'Rate peg calcs'!$B$37:$B$164,0))*100 -> 3.4
B99: =Names!I93 -> 167 | C99: =Names!G93 -> Newcastle City | D99: =INDEX('Rate peg calcs'!O$37:O$164,MATCH($B99,'Rate peg calcs'!$B$37:$B$164,0))*100 -> 4.2
B100: =Names!I94 -> 168 | C100: =Names!G94 -> North Sydney | D100: =INDEX('Rate peg calcs'!O$37:O$164,MATCH($B100,'Rate peg calcs'!$B$37:$B$164,0))*100 -> 4
B101: =Names!I95 -> 2087 | C101: =Names!G95 -> Northern Beaches | D101: =INDEX('Rate peg calcs'!O$37:O$164,MATCH($B101,'Rate peg calcs'!$B$37:$B$164,0))*100 -> 4.1
B102: =Names!I96 -> 2045 | C102: =Names!G96 -> Oberon | D102: =INDEX('Rate peg calcs'!O$37:O$164,MATCH($B102,'Rate peg calcs'!$B$37:$B$164,0))*100 -> 3.3
B103: =Names!I97 -> 172 | C103: =Names!G97 -> Orange City | D103: =INDEX('Rate peg calcs'!O$37:O$164,MATCH($B103,'Rate peg calcs'!$B$37:$B$164,0))*100 -> 3
B104: =Names!I98 -> 173 | C104: =Names!G98 -> Parkes Shire | D104: =INDEX('Rate peg calcs'!O$37:O$164,MATCH($B104,'Rate peg calcs'!$B$37:$B$164,0))*100 -> 3.1
B105: =Names!I100 -> 176 | C105: =Names!G100 -> Penrith City | D105: =INDEX('Rate peg calcs'!O$37:O$164,MATCH($B105,'Rate peg calcs'!$B$37:$B$164,0))*100 -> 3.7
B106: =Names!I101 -> 124 | C106: =Names!G101 -> Port Macquarie-Hastings | D106: =INDEX('Rate peg calcs'!O$37:O$164,MATCH($B106,'Rate peg calcs'!$B$37:$B$164,0))*100 -> 3.4
B107: =Names!I102 -> 178 | C107: =Names!G102 -> Port Stephens | D107: =INDEX('Rate peg calcs'!O$37:O$164,MATCH($B107,'Rate peg calcs'!$B$37:$B$164,0))*100 -> 4.1
B108: =Names!I103 -> 2095 | C108: =Names!G103 -> Queanbeyan-Palerang Regional | D108: =INDEX('Rate peg calcs'!O$37:O$164,MATCH($B108,'Rate peg calcs'!$B$37:$B$164,0))*100 -> 3.1
B109: =Names!I104 -> 181 | C109: =Names!G104 -> Randwick City | D109: =INDEX('Rate peg calcs'!O$37:O$164,MATCH($B109,'Rate peg calcs'!$B$37:$B$164,0))*100 -> 5
B110: =Names!I105 -> 1981 | C110: =Names!G105 -> Richmond Valley | D110: =INDEX('Rate peg calcs'!O$37:O$164,MATCH($B110,'Rate peg calcs'!$B$37:$B$164,0))*100 -> 3.7
B111: =Names!I107 -> 188 | C111: =Names!G107 -> Shellharbour City | D111: =INDEX('Rate peg calcs'!O$37:O$164,MATCH($B111,'Rate peg calcs'!$B$37:$B$164,0))*100 -> 4.3
B112: =Names!I108 -> 189 | C112: =Names!G108 -> Shoalhaven City | D112: =INDEX('Rate peg calcs'!O$37:O$164,MATCH($B112,'Rate peg calcs'!$B$37:$B$164,0))*100 -> 3.1
B113: =Names!I109 -> 190 | C113: =Names!G109 -> Singleton | D113: =INDEX('Rate peg calcs'!O$37:O$164,MATCH($B113,'Rate peg calcs'!$B$37:$B$164,0))*100 -> 4.2
B114: =Names!I110 -> 2096 | C114: =Names!G110 -> Snowy Monaro Regional | D114: =INDEX('Rate peg calcs'!O$37:O$164,MATCH($B114,'Rate peg calcs'!$B$37:$B$164,0))*100 -> 4.2
B115: =Names!I111 -> 2097 | C115: =Names!G111 -> Snowy Valleys | D115: =INDEX('Rate peg calcs'!O$37:O$164,MATCH($B115,'Rate peg calcs'!$B$37:$B$164,0))*100 -> 3.1
B116: =Names!I112 -> 193 | C116: =Names!G112 -> Strathfield | D116: =INDEX('Rate peg calcs'!O$37:O$164,MATCH($B116,'Rate peg calcs'!$B$37:$B$164,0))*100 -> 3.3
B117: =Names!I113 -> 194 | C117: =Names!G113 -> Sutherland Shire | D117: =INDEX('Rate peg calcs'!O$37:O$164,MATCH($B117,'Rate peg calcs'!$B$37:$B$164,0))*100 -> 4.2
B118: =Names!I115 -> 2038 | C118: =Names!G115 -> Tamworth Regional | D118: =INDEX('Rate peg calcs'!O$37:O$164,MATCH($B118,'Rate peg calcs'!$B$37:$B$164,0))*100 -> 3.2
B119: =Names!I116 -> 198 | C119: =Names!G116 -> Temora Shire | D119: =INDEX('Rate peg calcs'!O$37:O$164,MATCH($B119,'Rate peg calcs'!$B$37:$B$164,0))*100 -> 3.4
B120: =Names!I117 -> 199 | C120: =Names!G117 -> Tenterfield Shire | D120: =INDEX('Rate peg calcs'!O$37:O$164,MATCH($B120,'Rate peg calcs'!$B$37:$B$164,0))*100 -> 5.1
B121: =Names!I118 -> 59 | C121: =Names!G118 -> The Hills Shire | D121: =INDEX('Rate peg calcs'!O$37:O$164,MATCH($B121,'Rate peg calcs'!$B$37:$B$164,0))*100 -> 4.7
B122: =Names!I119 -> 202 | C122: =Names!G119 -> Tweed Shire | D122: =INDEX('Rate peg calcs'!O$37:O$164,MATCH($B122,'Rate peg calcs'!$B$37:$B$164,0))*100 -> 3.1
B123: =Names!I120 -> 2046 | C123: =Names!G120 -> Upper Hunter Shire | D123: =INDEX('Rate peg calcs'!O$37:O$164,MATCH($B123,'Rate peg calcs'!$B$37:$B$164,0))*100 -> 3.5
B124: =Names!I121 -> 2035 | C124: =Names!G121 -> Upper Lachlan Shire | D124: =INDEX('Rate peg calcs'!O$37:O$164,MATCH($B124,'Rate peg calcs'!$B$37:$B$164,0))*100 -> 4.9
B125: =Names!I122 -> 204 | C125: =Names!G122 -> Uralla Shire | D125: =INDEX('Rate peg calcs'!O$37:O$164,MATCH($B125,'Rate peg calcs'!$B$37:$B$164,0))*100 -> 3.7
B126: =Names!I123 -> 206 | C126: =Names!G123 -> Wagga Wagga City | D126: =INDEX('Rate peg calcs'!O$37:O$164,MATCH($B126,'Rate peg calcs'!$B$37:$B$164,0))*100 -> 3.2
B127: =Names!I124 -> 208 | C127: =Names!G124 -> Walcha | D127: =INDEX('Rate peg calcs'!O$37:O$164,MATCH($B127,'Rate peg calcs'!$B$37:$B$164,0))*100 -> 4.1
B128: =Names!I125 -> 209 | C128: =Names!G125 -> Walgett Shire | D128: =INDEX('Rate peg calcs'!O$37:O$164,MATCH($B128,'Rate peg calcs'!$B$37:$B$164,0))*100 -> 3.3
B129: =Names!I126 -> 210 | C129: =Names!G126 -> Warren Shire | D129: =INDEX('Rate peg calcs'!O$37:O$164,MATCH($B129,'Rate peg calcs'!$B$37:$B$164,0))*100 -> 3.6
B130: =Names!I127 -> 2050 | C130: =Names!G127 -> Warrumbungle Shire | D130: =INDEX('Rate peg calcs'!O$37:O$164,MATCH($B130,'Rate peg calcs'!$B$37:$B$164,0))*100 -> 3.9
B131: =Names!I128 -> 212 | C131: =Names!G128 -> Waverley | D131: =INDEX('Rate peg calcs'!O$37:O$164,MATCH($B131,'Rate peg calcs'!$B$37:$B$164,0))*100 -> 5.2
B132: =Names!I129 -> 213 | C132: =Names!G129 -> Weddin Shire | D132: =INDEX('Rate peg calcs'!O$37:O$164,MATCH($B132,'Rate peg calcs'!$B$37:$B$164,0))*100 -> 4.2
B133: =Names!I130 -> 215 | C133: =Names!G130 -> Wentworth Shire | D133: =INDEX('Rate peg calcs'!O$37:O$164,MATCH($B133,'Rate peg calcs'!$B$37:$B$164,0))*100 -> 3.2
B134: =Names!I131 -> 216 | C134: =Names!G131 -> Willoughby City | D134: =INDEX('Rate peg calcs'!O$37:O$164,MATCH($B134,'Rate peg calcs'!$B$37:$B$164,0))*100 -> 5.2
B135: =Names!I132 -> 218 | C135: =Names!G132 -> Wingecarribee Shire | D135: =INDEX('Rate peg calcs'!O$37:O$164,MATCH($B135,'Rate peg calcs'!$B$37:$B$164,0))*100 -> 3.3
B136: =Names!I133 -> 219 | C136: =Names!G133 -> Wollondilly Shire | D136: =INDEX('Rate peg calcs'!O$37:O$164,MATCH($B136,'Rate peg calcs'!$B$37:$B$164,0))*100 -> 4.6
B137: =Names!I134 -> 220 | C137: =Names!G134 -> Wollongong City | D137: =INDEX('Rate peg calcs'!O$37:O$164,MATCH($B137,'Rate peg calcs'!$B$37:$B$164,0))*100 -> 3.9
B138: =Names!I135 -> 221 | C138: =Names!G135 -> Woollahra Municipal | D138: =INDEX('Rate peg calcs'!O$37:O$164,MATCH($B138,'Rate peg calcs'!$B$37:$B$164,0))*100 -> 4.5
B139: =Names!I136 -> 2036 | C139: =Names!G136 -> Yass Valley | D139: =INDEX('Rate peg calcs'!O$37:O$164,MATCH($B139,'Rate peg calcs'!$B$37:$B$164,0))*100 -> 3.4

Sheet Rate peg calcs
B2: =Cover!$B$3 -> IPART Rate peg model
B4: ="Calculation of the rate Peg for "&'Rate peg'!$D$9&"-"&RIGHT('Rate peg'!$D$9,2)+1 -> Calculation of the rate Peg for 2026-27
B5: Rate peg from 1 July | D5: ='Rate peg'!D9 -> 2026
B7: BCC and superannuation catch-up | H7: Summary of outcomes (ranges) | K7: ="Averages shown in rows "&ROW(C171)&" to "&ROW(C174)&" below." -> Averages shown in rows 171 to 174 below.
D8: Metropolitan | E8: Regional | F8: Rural | I8: =E35 -> BCC | J8: =G35 -> ESL factor (excl subsidy catch-up) | K8: =H35 -> ESL subsidy catch-up adjustment | L8: =N35 -> Population factor | M8: =I35 -> Dams safety levy adjustment | N8: =J35 -> Election cost adjustment | O8: Rate Peg | P8: =P35 -> Core Rate Peg | S8: ESL factor + subsidy catch-up adjustment | T8: =T35 -> ESL factor + subsidy catch-up adjustment | V8: Councils with catch-up adjustment
B9: BCC | D9: =INDEX('BCC calcs'!$J$34:$J$41,MATCH($D$5,'BCC calcs'!$B$34:$B$41,0)) -> 0.02951901918 | E9: =INDEX('BCC calcs'!$J$46:$J$53,MATCH($D$5,'BCC calcs'!$B$46:$B$53,0)) -> 0.02980866065 | F9: =INDEX('BCC calcs'!$J$58:$J$65,MATCH($D$5,'BCC calcs'!$B$58:$B$65,0)) -> 0.02988176551 | W9: =W36 -> 2024-25 | X9: =X36 -> 2025-26 | Y9: =Y36 -> 2026-27 | Z9: =Z36 -> 2027-28 | AA9: =AA36 -> 2028-29
B10: One-off superannuation catch-up | D10: =IF('Rate peg'!$D$9=2024,SUM('BCC Inputs'!$M$38:$M$39),0) -> 0 | E10: =D10 -> 0 | F10: =E10 -> 0 | H10: Maximum | S10: =H10 -> Maximum | V10: Number
